Workbook

Sheet PI vs gap
A1: Measurement | B1: Hall
A2: Type | B2: Gap dependence
A4: PS type | B4: HXR
A5: PS serial no | B5: 16306
A7: Measurement date | B7: ='DF raw data'!B2 -> 7. aug 2017
C11: Nominal gap [mm] | D11: Encoder [counts] | E11: Encoder [mm] | F11: PI [T^2mm^3] | H11: Encoder offset
C12: 10 | D12: =' 10 mm'!B3 -> 14497988 | E12: =(D12-$H$12)*-0.00025+10 -> 10.00075 | F12: =' 10 mm'!Q3 -> 706.5887002 | H12: 14497991
C13: 12 | D13: =' 12 mm'!B3 -> 14489953 | E13: =(D13-$H$12)*-0.00025+10 -> 12.0095 | F13: =' 12 mm'!Q3 -> 541.8831683
C14: 15 | D14: =' 15 mm'!B3 -> 14477925 | E14: 15.0165 | F14: =' 15 mm'!Q3 -> 369.194525
C15: 20 | D15: =' 20 mm'!B3 -> 14457898 | E15: 20.02325 | F15: =' 20 mm'!Q3 -> 202.0345203
C16: 30 | D16: =' 30 mm'!B3 -> 14417896 | E16: 30.02375 | F16: =' 30 mm'!Q3 -> 67.88652725
C17: 100 | D17: =' 100 mm'!B3 -> 14137921 | E17: 100.0175 | F17: =' 100 mm'!Q3 -> 0.3860301441
A41: Measuring series at 10 mm gap:
A42: Reference magnet
A43: Tref | B43: 20.93 | C43: degC
A44: Hall ref field | B44: 0.505415 | C44: T
A45: NMR ref field | B45: 0.506485 | C45: T
A47: Measuring series at larger gaps:
A48: Reference magnet
A49: Tref | B49: 20.95 | C49: degC
A50: Hall ref field | B50: 0.505295 | C50: T
A51: NMR ref field | B51: 0.506475 | C51: T
A53: Offset from Faro | B53: -0.033

Sheet 10 mm
A1: dz | B1: ='DF raw data'!B7 -> 0.50015 | C1: mm | F1: T_coeff | G1: -0.0008 | H1: /degC | L1: Hallref | M1: ='PI vs gap'!B44 -> 0.505415 | N1: T | P1: IBy total | Q1: =L1203*1000 -> -18.91259065 | R1: muTm | X1: DF ref | Y1: 18
A2: Tref | B2: ='DF raw data'!B8 -> 21.89 | C2: degC | F2: Tcorr | G2: 20 | H2: degC | L2: NMRref | M2: ='PI vs gap'!B45 -> 0.506485 | N2: T | P2: JBy total | Q2: =M1203 -> -5.917592121 | R2: muTm^2
A3: Encoder | B3: ='DF raw data'!B9 -> 14497988 | P3: PI total | Q3: =N1203 -> 706.5887002 | R3: T^2mm^3
A5: z [mm] | B5: Bx | C5: By | D5: Bz | F5: Bx_corr | G5: By_corr | H5: Bz_corr | J5: Ix | K5: Jx | L5: Iy | M5: Jy | N5: PI
A6: ='[1]PI vs x'!B53 -> -0.068 | B6: ='DF raw data'!A11 -> -1.2890989e-06 | C6: ='DF raw data'!B11 -> -3.5721303e-06 | D6: ='DF raw data'!C11 -> 4.7516896e-06 | F6: =(1-$G$1*($B$2-$G$2))*B6 -> -1.291048018e-06 | G6: =(1-$G$1*($B$2-$G$2))*C6*$M$2/$M$1 -> -3.585105253e-06 | H6: =(1-$G$1*($B$2-$G$2))*D6 -> 4.758874155e-06 | J6: =F6*$B$1 -> -6.45717666e-07 | K6: =J6*$B$1 -> -3.229556906e-07 | L6: =G6*$B$1 -> -1.793090392e-06 | M6: =L6*$B$1 -> -8.968141597e-07 | N6: =(J6^2+L6)^2*$B$1 -> 1.608068105e-12
A7: =A6+$B$1 -> 0.43215 | B7: ='DF raw data'!A12 -> -1.0571559e-06 | C7: ='DF raw data'!B12 -> -1.0781467e-05 | D7: ='DF raw data'!C12 -> -1.0082206e-06 | F7: =(1-$G$1*($B$2-$G$2))*B7 -> -1.05875432e-06 | G7: =(1-$G$1*($B$2-$G$2))*C7*$M$2/$M$1 -> -1.082062823e-05 | H7: =(1-$G$1*($B$2-$G$2))*D7 -> -1.00974503e-06 | J7: =F7*$B$1+J6 -> -1.175253639e-06 | K7: =J7*$B$1+K6 -> -9.107587982e-07 | L7: =G7*$B$1+L6 -> -7.205027603e-06 | M7: =L7*$B$1+M6 -> -4.500408715e-06 | N7: =(J7^2+L7^2)*$B$1+N6 -> 2.826288409e-11
A8: =A7+$B$1 -> 0.9323 | B8: ='DF raw data'!A13 -> -1.1446566e-06 | C8: ='DF raw data'!B13 -> -7.9690881e-06 | D8: ='DF raw data'!C13 -> 7.6896117e-07 | F8: -1.146387321e-06 | G8: -7.998034005e-06 | H8: 7.701238393e-07 | J8: =F8*$B$1+J7 -> -1.748619257e-06 | K8: =J8*$B$1+K7 -> -1.78533072e-06 | L8: =G8*$B$1+L7 -> -1.120524431e-05 | M8: =L8*$B$1+M7 -> -1.010471166e-05 | N8: =(J8^2+L8^2)*$B$1+N7 -> 9.258976104e-11
A9: 1.43245 | B9: ='DF raw data'!A14 -> -1.5669095e-06 | C9: ='DF raw data'!B14 -> 3.9890556e-06 | D9: ='DF raw data'!C14 -> 3.3376798e-06 | F9: -1.569278667e-06 | G9: 4.003544939e-06 | H9: 3.342726372e-06 | J9: -2.533493983e-06 | K9: -3.052457735e-06 | L9: -9.202871309e-06 | M9: -1.470752774e-05 | N9: 1.381591438e-10
A10: 1.9326 | B10: ='DF raw data'!A15 -> -1.4356804e-06 | C10: ='DF raw data'!B15 -> 1.3441287e-06 | D10: ='DF raw data'!C15 -> 9.4040242e-06 | F10: -1.437851149e-06 | G10: 1.349010943e-06 | H10: 9.418243085e-06 | J10: -3.252635235e-06 | K10: -4.679263248e-06 | L10: -8.528163486e-06 | M10: -1.897288871e-05 | N10: 1.798262444e-10
A11: 2.43275 | B11: ='DF raw data'!A16 -> -1.4832069e-06 | C11: ='DF raw data'!B16 -> 1.2630036e-06 | D11: ='DF raw data'!C16 -> 1.559494e-06 | F11: =(1-$G$1*($B$2-$G$2))*B11 -> -1.485449509e-06 | G11: 1.267591174e-06 | H11: =(1-$G$1*($B$2-$G$2))*D11 -> 1.561851955e-06 | J11: -3.995582807e-06 | K11: -6.677653989e-06 | L11: -7.89417776e-06 | M11: -2.292116172e-05 | N11: 2.18979349e-10
A12: 2.9329 | B12: ='DF raw data'!A17 -> -1.5398139e-06 | C12: ='DF raw data'!B17 -> 1.352667e-06 | D12: ='DF raw data'!C17 -> -7.2044113e-06 | F12: -1.542142099e-06 | G12: 1.357580256e-06 | H12: -7.21530437e-06 | J12: -4.766885177e-06 | K12: -9.06181161e-06 | L12: -7.215183995e-06 | M12: -2.652983599e-05 | N12: 2.563816035e-10
A13: 3.43305 | B13: ='DF raw data'!A18 -> -1.2286939e-06 | C13: ='DF raw data'!B18 -> -6.6979273e-06 | D13: ='DF raw data'!C18 -> -5.1152801e-06 | F13: -1.230551685e-06 | G13: -6.722256001e-06 | H13: -5.123014404e-06 | J13: -5.382345603e-06 | K13: -1.175379176e-05 | L13: -1.057732033e-05 | M13: -3.182008276e-05 | N13: 3.268274058e-10
A14: 3.9332 | B14: ='DF raw data'!A19 -> -1.6938022e-06 | C14: ='DF raw data'!B19 -> 5.6735726e-06 | D14: ='DF raw data'!C19 -> -7.4161126e-06 | F14: -1.696363229e-06 | G14: 5.694180565e-06 | H14: -7.427325762e-06 | J14: -6.230781672e-06 | K14: -1.487011722e-05 | L14: -7.729375924e-06 | M14: -3.568593013e-05 | N14: 3.761251369e-10
A15: 4.43335 | B15: ='DF raw data'!A20 -> -1.8093444e-06 | C15: ='DF raw data'!B20 -> 9.4395537e-06 | D15: ='DF raw data'!C20 -> -3.7194461e-06 | F15: -1.812080129e-06 | G15: 9.473840737e-06 | H15: -3.725069903e-06 | J15: -7.137093548e-06 | K15: -1.843973455e-05 | L15: -2.99103448e-06 | M15: -3.718189602e-05 | N15: 4.060763153e-10
A16: 4.9335 | B16: ='DF raw data'!A21 -> -1.667114e-06 | C16: ='DF raw data'!B21 -> 6.1663186e-06 | D16: ='DF raw data'!C21 -> 2.8564841e-07 | F16: -1.669634676e-06 | G16: 6.188716353e-06 | H16: 2.860803104e-07 | J16: -7.972161331e-06 | K16: -2.242701104e-05 | L16: 1.042520044e-07 | M16: -3.712975438e-05 | N16: 4.378689626e-10
A17: 5.43365 | B17: ='DF raw data'!A22 -> -2.2079068e-06 | C17: ='DF raw data'!B22 -> 2.0305997e-05 | D17: ='DF raw data'!C22 -> -2.488063e-06 | F17: -2.211245155e-06 | G17: 2.037975393e-05 | H17: -2.491824951e-06 | J17: -9.078115596e-06 | K17: -2.696743056e-05 | L17: 1.029718593e-05 | M17: -3.197961684e-05 | N17: 5.321193397e-10
A18: 5.9338 | B18: ='DF raw data'!A23 -> -1.727781e-06 | C18: ='DF raw data'!B23 -> 6.3779344e-06 | D18: ='DF raw data'!C23 -> -6.5297554e-06 | F18: -1.730393405e-06 | G18: 6.4011008e-06 | H18: -6.53962839e-06 | J18: -9.943571857e-06 | K18: -3.194070802e-05 | L18: 1.34986965e-05 | M18: -2.522824378e-05 | N18: 6.727062173e-10
A19: 6.43395 | B19: ='DF raw data'!A24 -> -1.3144629e-06 | C19: ='DF raw data'!B24 -> -3.7473189e-06 | D19: ='DF raw data'!C24 -> 2.1910252e-07 | F19: -1.316450368e-06 | G19: -3.760930186e-06 | H19: 2.19433803e-07 | J19: -1.060199451e-05 | K19: -3.724329558e-05 | L19: 1.161766726e-05 | M19: -1.94176675e-05 | N19: 7.964295633e-10
A20: 6.9341 | B20: ='DF raw data'!A25 -> -9.7404995e-07 | C20: ='DF raw data'!B25 -> -1.2223681e-05 | D20: ='DF raw data'!C25 -> 3.9900569e-06 | F20: -9.755227135e-07 | G20: -1.226808075e-05 | H20: 3.996089866e-06 | J20: -1.108990219e-05 | K20: -4.278991016e-05 | L20: 5.481786677e-06 | M20: -1.66759519e-05 | N20: 8.729704766e-10
A21: 7.43425 | B21: ='DF raw data'!A26 -> -1.4092541e-06 | C21: ='DF raw data'!B26 -> -1.1111996e-06 | D21: ='DF raw data'!C26 -> -1.397106e-06 | F21: -1.411384892e-06 | G21: -1.11523578e-06 | H21: -1.399218424e-06 | J21: -1.179580635e-05 | K21: -4.86895827e-05 | L21: 4.924001502e-06 | M21: -1.421321254e-05 | N21: 9.546884037e-10
A22: 7.9344 | B22: ='DF raw data'!A27 -> -3.74862e-06 | C22: ='DF raw data'!B27 -> -8.8570675e-07 | D22: ='DF raw data'!C27 -> -3.4074967e-06 | F22: -3.754287913e-06 | G22: -8.889238788e-07 | H22: -3.412648835e-06 | J22: -1.367351345e-05 | K22: -5.552839046e-05 | L22: 4.479406224e-06 | M22: -1.197283752e-05 | N22: 1.058234483e-09
A23: 8.43455 | B23: ='DF raw data'!A28 -> -6.6131061e-06 | C23: ='DF raw data'!B28 -> 4.8285792e-06 | D23: ='DF raw data'!C28 -> -3.501342e-06 | F23: -6.623105116e-06 | G23: 4.846117918e-06 | H23: -3.506636029e-06 | J23: -1.698605947e-05 | K23: -6.40239681e-05 | L23: 6.903192101e-06 | M23: -8.520205992e-06 | N23: 1.226375049e-09
A24: 8.9347 | B24: ='DF raw data'!A29 -> -5.8111791e-06 | C24: ='DF raw data'!B29 -> 7.881793e-06 | D24: ='DF raw data'!C29 -> -1.6530742e-06 | F24: -5.819965603e-06 | G24: 7.910421825e-06 | H24: -1.655573648e-06 | J24: -1.989691527e-05 | K24: -7.397541027e-05 | L24: 1.085958958e-05 | M24: -3.088782266e-06 | N24: 1.483361083e-09
A25: 9.43485 | B25: ='DF raw data'!A30 -> -7.5264425e-06 | C25: ='DF raw data'!B30 -> -5.6833478e-06 | D25: ='DF raw data'!C30 -> 1.0112215e-06 | F25: -7.537822481e-06 | G25: -5.703991271e-06 | H25: 1.012750467e-06 | J25: -2.366695718e-05 | K25: -8.581243891e-05 | L25: 8.006738342e-06 | M25: 9.157879161e-07 | N25: 1.795571079e-09
A26: 9.935 | B26: ='DF raw data'!A31 -> -4.792123e-06 | C26: ='DF raw data'!B31 -> 4.369188e-06 | D26: ='DF raw data'!C31 -> 6.3691641e-06 | F26: -4.79936869e-06 | G26: 4.385058084e-06 | H26: 6.378794276e-06 | J26: -2.606736143e-05 | K26: -9.885002973e-05 | L26: 1.019992514e-05 | M26: 6.017280476e-06 | N26: 2.187461513e-09
A27: 10.43515 | B27: ='DF raw data'!A32 -> -8.1085017e-07 | C27: ='DF raw data'!B32 -> 1.0657476e-05 | D27: ='DF raw data'!C32 -> 2.5888819e-06 | F27: -8.120761755e-07 | G27: 1.069618686e-05 | H27: 2.592796289e-06 | J27: -2.647352133e-05 | K27: -0.0001120907614 | L27: 1.5549623e-05 | M27: 1.379442442e-05 | N27: 2.658921962e-09
A28: 10.9353 | B28: ='DF raw data'!A33 -> 9.4646822e-07 | C28: ='DF raw data'!B33 -> -7.9151841e-06 | D28: ='DF raw data'!C33 -> 2.3314585e-06 | F28: 9.478992799e-07 | G28: -7.94393421e-06 | H28: 2.334983665e-06 | J28: -2.599942951e-05 | K28: -0.0001250943761 | L28: 1.157646431e-05 | M28: 1.958439304e-05 | N28: 3.06403589e-09
A29: 11.43545 | B29: ='DF raw data'!A34 -> 3.7060934e-06 | C29: ='DF raw data'!B34 -> -1.3478992e-06 | D29: ='DF raw data'!C34 -> 2.4099952e-06 | F29: 3.711697013e-06 | G29: -1.352795138e-06 | H29: 2.413639113e-06 | J29: -2.414302425e-05 | K29: -0.0001371695097 | L29: 1.089986382e-05 | M29: 2.503595993e-05 | N29: 3.41498747e-09
A30: 11.9356 | B30: ='DF raw data'!A35 -> 1.590405e-06 | C30: ='DF raw data'!B35 -> 3.3037734e-06 | D30: ='DF raw data'!C35 -> -4.8004786e-06 | F30: 1.592809692e-06 | G30: 3.315773607e-06 | H30: -4.807736924e-06 | J30: -2.334638048e-05 | K30: -0.0001488462019 | L30: 1.255824799e-05 | M30: 3.131696767e-05 | N30: 3.766474421e-09
A31: 12.43575 | B31: ='DF raw data'!A36 -> 2.0474253e-07 | C31: ='DF raw data'!B36 -> -8.5445599e-06 | D31: ='DF raw data'!C36 -> -6.5565746e-06 | F31: 2.050521007e-07 | G31: -8.575596075e-06 | H31: -6.566488141e-06 | J31: -2.324382367e-05 | K31: -0.0001604716003 | L31: 8.269163612e-06 | M31: 3.545278985e-05 | N31: 4.070892922e-09
A32: 12.9359 | B32: ='DF raw data'!A37 -> 3.9579436e-06 | C32: ='DF raw data'!B37 -> 4.0524328e-06 | D32: ='DF raw data'!C37 -> -3.2857117e-06 | F32: 3.963928011e-06 | G32: 4.067152343e-06 | H32: -3.290679696e-06 | J32: -2.126126507e-05 | K32: -0.000171105422 | L32: 1.030334986e-05 | M32: 4.060601028e-05 | N32: 4.350076858e-09
A33: 13.43605 | B33: ='DF raw data'!A38 -> 2.6825553e-06 | C33: ='DF raw data'!B38 -> -4.7116256e-08 | D33: ='DF raw data'!C38 -> -3.0733993e-06 | F33: 2.686611324e-06 | G33: -4.728739511e-08 | H33: -3.07804628e-06 | J33: -1.991755642e-05 | K33: -0.0001810671878 | L33: 1.027969907e-05 | M33: 4.574740176e-05 | N33: 4.601342848e-09
A34: 13.9362 | B34: ='DF raw data'!A39 -> -3.1121629e-06 | C34: ='DF raw data'!B39 -> -5.5887476e-06 | D34: ='DF raw data'!C39 -> 4.554031e-06 | F34: -3.11686849e-06 | G34: -5.609047458e-06 | H34: 4.560916695e-06 | J34: -2.14764582e-05 | K34: -0.0001918086384 | L34: 7.474333979e-06 | M34: 4.94856899e-05 | N34: 4.859972376e-09
A35: 14.43635 | B35: ='DF raw data'!A40 -> -2.9634423e-06 | C35: ='DF raw data'!B40 -> -9.8449409e-06 | D35: ='DF raw data'!C40 -> 5.6139634e-06 | F35: -2.967923025e-06 | G35: -9.880700414e-06 | H35: 5.622451713e-06 | J35: -2.29608649e-05 | K35: -0.000203292515 | L35: 2.532501667e-06 | M35: 5.075232061e-05 | N35: 5.126859859e-09
A36: 14.9365 | B36: ='DF raw data'!A41 -> -1.9960455e-06 | C36: ='DF raw data'!B41 -> -1.6749281e-06 | D36: ='DF raw data'!C41 -> 8.3184659e-06 | F36: -1.999063521e-06 | G36: -1.681011896e-06 | H36: 8.33104342e-06 | J36: -2.396069652e-05 | K36: -0.0002152764573 | L36: 1.691743567e-06 | M36: 5.159844616e-05 | N36: 5.415434893e-09
A37: 15.43665 | B37: ='DF raw data'!A42 -> -7.5383576e-07 | C37: ='DF raw data'!B42 -> -9.3527287e-06 | D37: ='DF raw data'!C42 -> 4.7664016e-06 | F37: -7.549755597e-07 | G37: -9.386700365e-06 | H37: 4.773608399e-06 | J37: -2.433829754e-05 | K37: -0.0002274492569 | L37: -3.00301462e-06 | M37: 5.009648839e-05 | N37: 5.71621051e-09
A38: 15.9368 | B38: ='DF raw data'!A43 -> 7.1324467e-07 | C38: ='DF raw data'!B43 -> 1.6568821e-06 | D38: ='DF raw data'!C43 -> -1.5398602e-06 | F38: 7.143230959e-07 | G38: 1.662900348e-06 | H38: -1.542188469e-06 | J38: -2.398102885e-05 | K38: -0.0002394433684 | L38: -2.171315011e-06 | M38: 4.901050519e-05 | N38: 6.006199658e-09
A39: 16.43695 | B39: ='DF raw data'!A44 -> -1.1209661e-06 | C39: ='DF raw data'!B44 -> 1.1036812e-05 | D39: ='DF raw data'!C44 -> -1.9945639e-06 | F39: -1.122661001e-06 | G39: 1.107690072e-05 | H39: -1.997579681e-06 | J39: -2.454252775e-05 | K39: -0.0002517183137 | L39: 3.368796882e-06 | M39: 5.069540895e-05 | N39: 6.313133941e-09
A40: 16.9371 | B40: ='DF raw data'!A45 -> -1.0280521e-06 | C40: ='DF raw data'!B45 -> -7.0333833e-08 | D40: ='DF raw data'!C45 -> 1.7558284e-06 | F40: -1.029606515e-06 | G40: -7.058930469e-08 | H40: 1.758483213e-06 | J40: -2.505748545e-05 | K40: -0.000264250815 | L40: 3.333491641e-06 | M40: 5.23626548e-05 | N40: 6.632724661e-09
A41: 17.43725 | B41: ='DF raw data'!A46 -> 7.5455756e-07 | C41: ='DF raw data'!B46 -> 6.8429281e-06 | D41: ='DF raw data'!C46 -> -1.5262106e-06 | F41: 7.55698451e-07 | G41: 6.867783484e-06 | H41: -1.52851823e-06 | J41: -2.467952286e-05 | K41: -0.0002765942784 | L41: 6.76841355e-06 | M41: 5.574787683e-05 | N41: 6.96026803e-09
A42: 17.9374 | B42: ='DF raw data'!A47 -> 1.3752724e-07 | C42: ='DF raw data'!B47 -> 6.9192492e-06 | D42: ='DF raw data'!C47 -> -7.8437934e-06 | F42: 1.377351812e-07 | G42: 6.944381803e-06 | H42: -7.855653216e-06 | J42: -2.461063461e-05 | K42: -0.0002889032873 | L42: 1.024164611e-05 | M42: 6.087023614e-05 | N42: 7.315661942e-09
A43: 18.43755 | B43: ='DF raw data'!A48 -> -3.0458789e-06 | C43: ='DF raw data'!B48 -> -1.1823148e-06 | D43: ='DF raw data'!C48 -> -7.7443601e-06 | F43: -3.050484269e-06 | G43: -1.18660929e-06 | H43: -7.756069572e-06 | J43: -2.613633432e-05 | K43: -0.0003019753749 | L43: 9.648163473e-06 | M43: 6.56957651e-05 | N43: 7.703875886e-09
A44: 18.9377 | B44: ='DF raw data'!A49 -> -2.5465299e-06 | C44: ='DF raw data'!B49 -> -4.9498985e-06 | D44: ='DF raw data'!C49 -> 6.3179482e-07 | F44: -2.550380253e-06 | G44: -4.967877883e-06 | H44: 6.327500938e-07 | J44: -2.7411907e-05 | K44: -0.0003156854402 | L44: 7.163479349e-06 | M44: 6.927857929e-05 | N44: 8.105360336e-09
A45: 19.43785 | B45: ='DF raw data'!A50 -> -1.1756376e-06 | C45: ='DF raw data'!B50 -> -1.608082e-06 | D45: ='DF raw data'!C50 -> 8.3649884e-06 | F45: -1.177415164e-06 | G45: -1.613922993e-06 | H45: 8.377636262e-06 | J45: -2.80007912e-05 | K45: -0.0003296900359 | L45: 6.356275764e-06 | M45: 7.245767062e-05 | N45: 8.517707278e-09
A46: 19.938 | B46: ='DF raw data'!A51 -> -1.3677957e-06 | C46: ='DF raw data'!B51 -> -1.420617e-06 | D46: ='DF raw data'!C51 -> 1.2136466e-05 | F46: -1.369863807e-06 | G46: -1.425777069e-06 | H46: 1.215481634e-05 | J46: -2.868592858e-05 | K46: -0.0003440373031 | L46: 5.643173363e-06 | M46: 7.528010377e-05 | N46: 8.945199439e-09
A47: 20.43815 | B47: ='DF raw data'!A52 -> -3.2403216e-06 | C47: ='DF raw data'!B52 -> -1.6561161e-06 | D47: ='DF raw data'!C52 -> 9.8644468e-06 | F47: -3.245220966e-06 | G47: -1.662131566e-06 | H47: 9.879361844e-06 | J47: -3.030902585e-05 | K47: -0.0003591963624 | L47: 4.811858261e-06 | M47: 7.768675468e-05 | N47: 9.416236222e-09
A48: 20.9383 | B48: ='DF raw data'!A53 -> -4.9730761e-06 | C48: ='DF raw data'!B53 -> 5.3476097e-06 | D48: ='DF raw data'!C53 -> 7.7934183e-06 | F48: -4.980595391e-06 | G48: 5.367033679e-06 | H48: 7.805201948e-06 | J48: -3.280007063e-05 | K48: -0.0003756013177 | L48: 7.496180155e-06 | M48: 8.143596919e-05 | N48: 9.982424703e-09
A49: 21.43845 | B49: ='DF raw data'!A54 -> -5.080673e-06 | C49: ='DF raw data'!B54 -> -1.6534476e-06 | D49: ='DF raw data'!C54 -> 5.0738108e-06 | F49: -5.088354978e-06 | G49: -1.659453373e-06 | H49: 5.081482402e-06 | J49: -3.534501138e-05 | K49: -0.0003932791251 | L49: 6.66620455e-06 | M49: 8.477007139e-05 | N49: 1.062947281e-08
A50: 21.9386 | B50: ='DF raw data'!A55 -> 8.7190421e-07 | C50: ='DF raw data'!B55 -> 5.255345e-08 | D50: ='DF raw data'!C55 -> 4.4886783e-06 | F50: 8.732225292e-07 | G50: 5.274433848e-08 | H50: 4.495465182e-06 | J50: -3.490826913e-05 | K50: -0.0004107384959 | L50: 6.692584631e-06 | M50: 8.81173676e-05 | N50: 1.126135129e-08
A51: 22.43875 | B51: ='DF raw data'!A56 -> 2.4731678e-06 | C51: ='DF raw data'!B56 -> 1.7433423e-06 | D51: ='DF raw data'!C56 -> 1.6786305e-06 | F51: 2.47690723e-06 | G51: 1.749674595e-06 | H51: 1.681168589e-06 | J51: -3.366944398e-05 | K51: -0.0004275782684 | L51: 7.56768438e-06 | M51: 9.190234494e-05 | N51: 1.185698058e-08
A52: 22.9389 | B52: ='DF raw data'!A57 -> 1.4150544e-06 | C52: ='DF raw data'!B57 -> -8.5466954e-06 | D52: ='DF raw data'!C57 -> 3.8644012e-06 | F52: 1.417193962e-06 | G52: -8.577739332e-06 | H52: 3.870244175e-06 | J52: -3.296063442e-05 | K52: -0.0004440635297 | L52: 3.277528053e-06 | M52: 9.35416006e-05 | N52: 1.240571796e-08
A53: 23.43905 | B53: ='DF raw data'!A58 -> 8.274481e-07 | C53: ='DF raw data'!B58 -> -1.1399635e-05 | D53: ='DF raw data'!C58 -> 2.5486895e-06 | F53: 8.286992015e-07 | G53: -1.144104159e-05 | H53: 2.552543119e-06 | J53: -3.254616051e-05 | K53: -0.0004603414918 | L53: -2.444708897e-06 | M53: 9.231887944e-05 | N53: 1.293849232e-08
A54: 23.9392 | B54: ='DF raw data'!A59 -> -1.279029e-06 | C54: ='DF raw data'!B59 -> -2.1355197e-06 | D54: ='DF raw data'!C59 -> -6.4878168e-06 | F54: -1.280962892e-06 | G54: -2.143276491e-06 | H54: -6.497626379e-06 | J54: -3.31868341e-05 | K54: -0.0004769398869 | L54: -3.516668634e-06 | M54: 9.056001762e-05 | N54: 1.349552584e-08
A55: 24.43935 | B55: ='DF raw data'!A60 -> 6.8200171e-07 | C55: ='DF raw data'!B60 -> -7.8339205e-08 | D55: ='DF raw data'!C60 -> -8.6621494e-06 | F55: 6.830328966e-07 | G55: -7.862375439e-08 | H55: -8.67524657e-06 | J55: -3.28452152e-05 | K55: -0.0004933674213 | L55: -3.555992304e-06 | M55: 8.878148807e-05 | N55: 1.404141618e-08
A56: 24.9395 | B56: ='DF raw data'!A61 -> 4.9096417e-07 | C56: ='DF raw data'!B61 -> 2.8753377e-06 | D56: ='DF raw data'!C61 -> -1.3290575e-05 | F56: 4.917065078e-07 | G56: 2.885781712e-06 | H56: -1.331067035e-05 | J56: -3.259928819e-05 | K56: -0.0005096719553 | L56: -2.112668581e-06 | M56: 8.772483688e-05 | N56: 1.457516474e-08
A57: 25.43965 | B57: ='DF raw data'!A62 -> -7.7499425e-07 | C57: ='DF raw data'!B62 -> 9.9655254e-06 | D57: ='DF raw data'!C62 -> -1.3325849e-05 | F57: -7.761660413e-07 | G57: 1.000172291e-05 | H57: -1.334599768e-05 | J57: -3.298748763e-05 | K57: -0.0005261706472 | L57: 2.889693132e-06 | M57: 8.91701169e-05 | N57: 1.512359155e-08
A58: 25.9398 | B58: ='DF raw data'!A63 -> 4.8310148e-06 | C58: ='DF raw data'!B63 -> -2.1325839e-06 | D58: ='DF raw data'!C63 -> -8.3451505e-06 | F58: 4.838319294e-06 | G58: -2.140330027e-06 | H58: -8.357768368e-06 | J58: -3.056760224e-05 | K58: -0.0005414590335 | L58: 1.819207069e-06 | M58: 9.007999332e-05 | N58: 1.559257611e-08
A59: 26.43995 | B59: ='DF raw data'!A64 -> 4.205981e-06 | C59: ='DF raw data'!B64 -> -2.2110387e-06 | D59: ='DF raw data'!C64 -> -4.7536214e-06 | F59: 4.212340443e-06 | G59: -2.219069796e-06 | H59: -4.760808876e-06 | J59: -2.846080017e-05 | K59: -0.0005556937027 | L59: 7.093393104e-07 | M59: 9.043476937e-05 | N59: 1.599795785e-08
A60: 26.9401 | B60: ='DF raw data'!A65 -> -1.0307879e-06 | C60: ='DF raw data'!B65 -> 7.7961331e-06 | D60: ='DF raw data'!C65 -> -3.0632857e-06 | F60: -1.032346451e-06 | G60: 7.824450785e-06 | H60: -3.067917388e-06 | J60: -2.897712824e-05 | K60: -0.0005701866134 | L60: 4.62273837e-06 | M60: 9.274683197e-05 | N60: 1.642860884e-08
A61: 27.44025 | B61: ='DF raw data'!A66 -> -4.3266073e-06 | C61: ='DF raw data'!B66 -> 7.974525e-06 | D61: ='DF raw data'!C66 -> 1.3061306e-06 | F61: -4.33314913e-06 | G61: 8.003490653e-06 | H61: 1.308105469e-06 | J61: -3.114435278e-05 | K61: -0.0005857634614 | L61: 8.62568422e-06 | M61: 9.706096793e-05 | N61: 1.695095206e-08
A62: 27.9404 | B62: ='DF raw data'!A67 -> -2.7918315e-06 | C62: ='DF raw data'!B67 -> -1.5492395e-06 | D62: ='DF raw data'!C67 -> 5.1165498e-06 | F62: -2.796052749e-06 | G62: -1.554866761e-06 | H62: 5.124286023e-06 | J62: -3.254279856e-05 | K62: -0.0006020397421 | L62: 7.84801761e-06 | M62: 0.0001009861539 | N62: 1.751143272e-08
A63: 28.44055 | B63: ='DF raw data'!A68 -> 6.3307817e-07 | C63: ='DF raw data'!B68 -> -4.711198e-06 | D63: ='DF raw data'!C68 -> 7.6168453e-06 | F63: 6.340353842e-07 | G63: -4.728310358e-06 | H63: 7.62836197e-06 | J63: -3.222568577e-05 | K63: -0.0006181574189 | L63: 5.483153184e-06 | M63: 0.000103728553 | N63: 1.80458729e-08
A64: 28.9407 | B64: ='DF raw data'!A69 -> 2.3661676e-06 | C64: ='DF raw data'!B69 -> -1.3155536e-05 | D64: ='DF raw data'!C69 -> 8.4209551e-06 | F64: 2.369745245e-06 | G64: -1.32033205e-05 | H64: 8.433687584e-06 | J64: -3.104045768e-05 | K64: -0.0006336823038 | L64: -1.120487564e-06 | M64: 0.0001031681412 | N64: 1.852840036e-08
A65: 29.44085 | B65: ='DF raw data'!A70 -> 1.7158861e-06 | C65: ='DF raw data'!B70 -> -3.5534492e-06 | D65: ='DF raw data'!C70 -> -1.7151672e-06 | F65: 1.71848052e-06 | G65: -3.566356298e-06 | H65: -1.717760533e-06 | J65: -3.018095965e-05 | K65: -0.0006487773107 | L65: -2.904200666e-06 | M65: 0.0001017156052 | N65: 1.898820062e-08
A66: 29.941 | B66: ='DF raw data'!A71 -> -9.1883706e-08 | C66: ='DF raw data'!B71 -> 1.7504145e-06 | D66: ='DF raw data'!C71 -> -1.6566685e-06 | F66: -9.202263416e-08 | G66: 1.756772484e-06 | H66: -1.659173383e-06 | J66: -3.022698477e-05 | K66: -0.0006638953372 | L66: -2.025550908e-06 | M66: 0.0001007025259 | N66: 1.944722501e-08
A67: 30.44115 | B67: ='DF raw data'!A72 -> 8.7912196e-07 | C67: ='DF raw data'!B72 -> 7.0492051e-06 | D67: ='DF raw data'!C72 -> 5.0750186e-06 | F67: 8.804511924e-07 | G67: 7.074809738e-06 | H67: 5.082692028e-06 | J67: -2.978662711e-05 | K67: -0.0006787931187 | L67: 1.512915182e-06 | M67: 0.0001014592104 | N67: 1.989212448e-08
A68: 30.9413 | B68: ='DF raw data'!A73 -> 4.3948066e-06 | C68: ='DF raw data'!B73 -> 8.0499112e-06 | D68: ='DF raw data'!C73 -> 2.9163291e-06 | F68: 4.401451548e-06 | G68: 8.079150676e-06 | H68: 2.92073859e-06 | J68: -2.758524111e-05 | K68: -0.0006925898771 | L68: 5.553702393e-06 | M68: 0.0001042368947 | N68: 2.028813781e-08
A69: 31.44145 | B69: ='DF raw data'!A74 -> 2.3310538e-06 | C69: ='DF raw data'!B74 -> 1.3483866e-05 | D69: ='DF raw data'!C74 -> 3.1132602e-06 | F69: 2.334578353e-06 | G69: 1.353284308e-05 | H69: 3.117967449e-06 | J69: -2.641760175e-05 | K69: -0.0007058026406 | L69: 1.232215386e-05 | M69: 0.0001103998199 | N69: 2.071312785e-08
A70: 31.9416 | B70: ='DF raw data'!A75 -> -1.8397143e-06 | C70: ='DF raw data'!B75 -> 8.396556e-06 | D70: ='DF raw data'!C75 -> 5.3649433e-07 | F70: -1.842495948e-06 | G70: 8.427054585e-06 | H70: 5.373055094e-07 | J70: -2.73391261e-05 | K70: -0.0007194763045 | L70: 1.653694521e-05 | M70: 0.0001186707731 | N70: 2.122373017e-08
A71: 32.44175 | B71: ='DF raw data'!A76 -> -2.5986694e-06 | C71: ='DF raw data'!B76 -> 2.2155411e-06 | D71: ='DF raw data'!C76 -> 3.1423494e-06 | F71: -2.602598588e-06 | G71: =(1-$G$1*($B$2-$G$2))*C71*$M$2/$M$1 -> 2.22358855e-06 | H71: 3.147100632e-06 | J71: -2.864081578e-05 | K71: -0.0007338010085 | L71: 1.764907303e-05 | M71: 0.000127497957 | N71: 2.1789793e-08
A72: =A71+$B$1 -> 32.9419 | B72: ='DF raw data'!A77 -> -4.7815001e-06 | C72: ='DF raw data'!B77 -> -2.8614966e-06 | D72: ='DF raw data'!C77 -> 3.8048981e-06 | F72: -4.788729728e-06 | G72: -2.871890337e-06 | H72: 3.810651106e-06 | J72: =F72*$B$1+J71 -> -3.103589896e-05 | K72: =J72*$B$1+K71 -> -0.0007493236134 | L72: =G72*$B$1+L71 -> 1.621269707e-05 | M72: =L72*$B$1+M71 -> 0.0001356067374 | N72: =(J72^2+L72^2)*$B$1+N71 -> 2.240301619e-08
A73: 33.44205 | B73: ='DF raw data'!A78 -> -6.151141e-06 | C73: ='DF raw data'!B78 -> -8.0802338e-06 | D73: ='DF raw data'!C78 -> -2.4883832e-06 | F73: -6.160441525e-06 | G73: -8.109583416e-06 | H73: -2.492145635e-06 | J73: -3.411704379e-05 | K73: -0.0007663872528 | L73: 1.215668893e-05 | M73: 0.0001416869054 | N73: 2.305909184e-08
A74: 33.9422 | B74: ='DF raw data'!A79 -> -1.9614702e-06 | C74: ='DF raw data'!B79 -> -1.2557291e-07 | D74: ='DF raw data'!C79 -> -7.5468324e-06 | F74: -1.964435943e-06 | G74: -1.260290251e-07 | H74: -7.558243211e-06 | J74: -3.509955642e-05 | K74: -0.000783942296 | L74: 1.209365551e-05 | M74: 0.0001477355472 | N74: 2.374841625e-08
A75: 34.44235 | B75: ='DF raw data'!A80 -> 4.6296309e-06 | C75: ='DF raw data'!B80 -> -2.167141e-06 | D75: ='DF raw data'!C80 -> -4.7401172e-06 | F75: =(1-$G$1*($B$2-$G$2))*B75 -> 4.636630902e-06 | G75: -2.175012648e-06 | H75: =(1-$G$1*($B$2-$G$2))*D75 -> -4.747284257e-06 | J75: -3.278054548e-05 | K75: -0.0008003374858 | L75: 1.100582293e-05 | M75: 0.0001532401095 | N75: 2.434644176e-08
A76: 34.9425 | B76: ='DF raw data'!A81 -> 6.7536721e-06 | C76: ='DF raw data'!B81 -> -2.7135254e-06 | D76: ='DF raw data'!C81 -> -1.6010219e-06 | F76: 6.763883652e-06 | G76: -2.723381665e-06 | H76: -1.603442645e-06 | J76: -2.939758907e-05 | K76: -0.00081504069 | L76: 9.643723595e-06 | M76: 0.0001580634179 | N76: 2.482519517e-08
A77: 35.44265 | B77: ='DF raw data'!A82 -> 2.3905275e-06 | C77: ='DF raw data'!B82 -> 6.6724087e-06 | D77: ='DF raw data'!C82 -> 3.2404439e-06 | F77: 2.394141978e-06 | G77: 6.696644711e-06 | H77: 3.245343451e-06 | J77: -2.820015896e-05 | K77: -0.0008291449995 | L77: 1.299305045e-05 | M77: 0.000164561892 | N77: 2.530737394e-08
A78: 35.9428 | B78: ='DF raw data'!A83 -> -1.6745792e-06 | C78: ='DF raw data'!B83 -> 1.2570009e-06 | D78: ='DF raw data'!C83 -> 5.1161423e-06 | F78: -1.677111164e-06 | G78: 1.261566671e-06 | H78: 5.123877907e-06 | J78: -2.903896611e-05 | K78: -0.0008436688384 | L78: 1.362402302e-05 | M78: 0.0001713759472 | N78: 2.582196605e-08
A79: 36.44295 | B79: ='DF raw data'!A84 -> -3.2924611e-06 | C79: ='DF raw data'!B84 -> -5.6945564e-06 | D79: ='DF raw data'!C84 -> -3.9318165e-06 | F79: -3.297439301e-06 | G79: -5.715240584e-06 | H79: -3.937761407e-06 | J79: -3.068818037e-05 | K79: -0.0008590175318 | L79: 1.076554544e-05 | M79: 0.0001767603347 | N79: 2.635095539e-08
A80: 36.9431 | B80: ='DF raw data'!A85 -> -2.5506627e-06 | C80: ='DF raw data'!B85 -> -9.5063033e-06 | D80: ='DF raw data'!C85 -> -3.6516924e-06 | F80: -2.554519302e-06 | G80: -9.54083279e-06 | H80: -3.657213759e-06 | J80: -3.19658232e-05 | K80: -0.0008750052382 | L80: 5.993697919e-06 | M80: 0.0001797580827 | N80: 2.687998318e-08
A81: 37.44325 | B81: ='DF raw data'!A86 -> 2.7381582e-06 | C81: ='DF raw data'!B86 -> -5.431838e-06 | D81: ='DF raw data'!C86 -> -3.2942974e-06 | F81: 2.742298295e-06 | G81: -5.451567919e-06 | H81: -3.299278378e-06 | J81: -3.059426271e-05 | K81: -0.0008903069587 | L81: 3.267096224e-06 | M81: 0.0001813921209 | N81: 2.73534666e-08
A82: 37.9434 | B82: ='DF raw data'!A87 -> 5.2722289e-06 | C82: ='DF raw data'!B87 -> -1.0279408e-06 | D82: ='DF raw data'!C87 -> -9.976653e-06 | F82: 5.28020051e-06 | G82: -1.031674562e-06 | H82: -9.991737699e-06 | J82: -2.795337042e-05 | K82: -0.000904287837 | L82: 2.751104192e-06 | M82: 0.0001827680857 | N82: 2.774806469e-08
A83: 38.44355 | B83: ='DF raw data'!A88 -> -9.3486159e-07 | C83: ='DF raw data'!B88 -> 1.0361268e-05 | D83: ='DF raw data'!C88 -> -6.0012444e-06 | F83: -9.362751007e-07 | G83: 1.039890296e-05 | H83: -6.010318282e-06 | J83: -2.842164842e-05 | K83: -0.0009185029244 | L83: 7.952115505e-06 | M83: 0.0001867453362 | N83: 2.818370846e-08
A84: 38.9437 | B84: ='DF raw data'!A89 -> -5.5252194e-06 | C84: ='DF raw data'!B89 -> -1.1236069e-06 | D84: ='DF raw data'!C89 -> -5.3633903e-06 | F84: -5.533573532e-06 | G84: -1.127688147e-06 | H84: -5.371499746e-06 | J84: -3.118926522e-05 | K84: -0.0009341022354 | L84: 7.388102279e-06 | M84: 0.0001904404956 | N84: 2.869753973e-08
A85: 39.44385 | B85: ='DF raw data'!A90 -> -2.2507622e-06 | C85: ='DF raw data'!B90 -> -5.8984324e-06 | D85: ='DF raw data'!C90 -> -4.7701233e-06 | F85: -2.254165352e-06 | G85: -5.919857117e-06 | H85: -4.777335726e-06 | J85: -3.231668602e-05 | K85: -0.0009502654259 | L85: 4.427285741e-06 | M85: 0.0001926548025 | N85: 2.922968385e-08
A86: 39.944 | B86: ='DF raw data'!A91 -> -4.0354206e-07 | C86: ='DF raw data'!B91 -> -3.1119387e-06 | D86: ='DF raw data'!C91 -> 7.2363564e-06 | F86: -4.041522156e-07 | G86: -3.123242111e-06 | H86: 7.247297771e-06 | J86: -3.251882275e-05 | K86: -0.0009665297151 | L86: 2.865196199e-06 | M86: 0.0001940878304 | N86: 2.976268529e-08
A87: 40.44415 | B87: ='DF raw data'!A92 -> -2.5932561e-06 | C87: ='DF raw data'!B92 -> -2.5579491e-06 | D87: ='DF raw data'!C92 -> 1.077969e-05 | F87: -2.597177103e-06 | G87: -2.56724027e-06 | H87: 1.079598889e-05 | J87: -3.381780088e-05 | K87: -0.0009834436882 | L87: 1.581190978e-06 | M87: 0.0001948786631 | N87: 3.033592913e-08
A88: 40.9443 | B88: ='DF raw data'!A93 -> -2.4693757e-06 | C88: ='DF raw data'!B93 -> 9.463306e-06 | D88: ='DF raw data'!C93 -> 1.0932215e-06 | F88: -2.473109396e-06 | G88: 9.497679312e-06 | H88: 1.094874451e-06 | J88: -3.505472654e-05 | K88: -0.00100097631 | L88: 6.331455286e-06 | M88: 0.0001980453405 | N88: 3.097058005e-08
A89: 41.44445 | B89: ='DF raw data'!A94 -> -2.9051037e-06 | C89: ='DF raw data'!B94 -> 2.7584567e-06 | D89: ='DF raw data'!C94 -> -9.889975e-07 | F89: -2.909496217e-06 | G89: 2.768476168e-06 | H89: -9.904928642e-07 | J89: -3.650991108e-05 | K89: -0.001019236742 | L89: 7.716108642e-06 | M89: 0.0002019045522 | N89: 3.16670449e-08
A90: 41.9446 | B90: ='DF raw data'!A95 -> -4.1996418e-06 | C90: ='DF raw data'!B95 -> -3.4351003e-06 | D90: ='DF raw data'!C95 -> 4.4536664e-06 | F90: -4.205991658e-06 | G90: -3.447577522e-06 | H90: 4.460400344e-06 | J90: -3.86135378e-05 | K90: -0.001038549303 | L90: 5.991802744e-06 | M90: 0.0002049013523 | N90: 3.243072744e-08
A91: 42.44475 | B91: ='DF raw data'!A96 -> 1.9544502e-06 | C91: ='DF raw data'!B96 -> -8.5515137e-07 | D91: ='DF raw data'!C96 -> 6.2651325e-06 | F91: 1.957405329e-06 | G91: -8.582575133e-07 | H91: 6.27460538e-06 | J91: -3.763454153e-05 | K91: -0.001057372219 | L91: 5.562545249e-06 | M91: 0.0002076834593 | N91: 3.315459484e-08
A92: 42.9449 | B92: ='DF raw data'!A97 -> 1.0384244e-05 | C92: ='DF raw data'!B97 -> -6.4417482e-06 | D92: ='DF raw data'!C97 -> 4.708907e-06 | F92: 1.039994498e-05 | G92: -6.465146389e-06 | H92: 4.716026867e-06 | J92: -3.243300905e-05 | K92: -0.001073593588 | L92: 2.329002282e-06 | M92: 0.0002088483098 | N92: 3.368341561e-08
A93: 43.44505 | B93: ='DF raw data'!A98 -> 9.5130354e-06 | C93: ='DF raw data'!B98 -> -4.1640133e-06 | D93: ='DF raw data'!C98 -> 1.6385545e-06 | F93: 9.52741911e-06 | G93: -4.179138134e-06 | H93: 1.641031994e-06 | J93: -2.766787038e-05 | K93: -0.001087431673 | L93: 2.388063448e-07 | M93: 0.0002089677488 | N93: 3.406631448e-08
A94: 43.9452 | B94: ='DF raw data'!A99 -> 2.8529728e-06 | C94: ='DF raw data'!B99 -> 5.8555679e-06 | D94: ='DF raw data'!C99 -> 7.0068727e-06 | F94: 2.857286495e-06 | G94: 5.876836922e-06 | H94: 7.017467092e-06 | J94: -2.623879854e-05 | K94: -0.001100555009 | L94: 3.178106331e-06 | M94: 0.0002105572787 | N94: 3.441570672e-08
A95: 44.44535 | B95: ='DF raw data'!A100 -> -2.2550405e-06 | C95: ='DF raw data'!B100 -> 1.4172466e-06 | D95: ='DF raw data'!C100 -> 8.5516021e-06 | F95: -2.258450121e-06 | G95: 1.422394427e-06 | H95: 8.564532122e-06 | J95: -2.736836237e-05 | K95: -0.001114243295 | L95: 3.889516904e-06 | M95: 0.0002125026206 | N95: 3.479789915e-08
A96: 44.9455 | B96: ='DF raw data'!A101 -> -6.0186312e-06 | C96: ='DF raw data'!B101 -> -3.493408e-06 | D96: ='DF raw data'!C101 -> 7.2561907e-06 | F96: -6.02773137e-06 | G96: -3.506097012e-06 | H96: 7.26716206e-06 | J96: -3.038313221e-05 | K96: -0.001129439419 | L96: 2.135942483e-06 | M96: 0.0002135709122 | N96: 3.526188679e-08
A97: 45.44565 | B97: ='DF raw data'!A102 -> -1.3106156e-05 | C97: ='DF raw data'!B102 -> -2.8824441e-06 | D97: ='DF raw data'!C102 -> 1.0090525e-05 | F97: -1.312597251e-05 | G97: -2.892913924e-06 | H97: 1.010578187e-05 | J97: -3.694808736e-05 | K97: -0.001147919004 | L97: 6.890515841e-07 | M97: 0.0002139155414 | N97: 3.594490961e-08
A98: 45.9458 | B98: ='DF raw data'!A103 -> -1.5845235e-05 | C98: ='DF raw data'!B103 -> -2.2113061e-06 | D98: ='DF raw data'!C103 -> 7.2609782e-06 | F98: -1.5869193e-05 | G98: -2.219338168e-06 | H98: 7.271956799e-06 | J98: -4.488506424e-05 | K98: -0.001170368269 | L98: -4.209504005e-07 | M98: 0.000213705003 | N98: 3.695263493e-08
A99: 46.44595 | B99: ='DF raw data'!A104 -> -1.0465827e-05 | C99: ='DF raw data'!B104 -> -9.2972223e-06 | D99: ='DF raw data'!C104 -> 2.1297616e-07 | F99: -1.048165133e-05 | G99: -9.330992351e-06 | H99: 2.1329818e-07 | J99: -5.012746215e-05 | K99: -0.00119543952 | L99: -5.087846225e-06 | M99: 0.0002111603167 | N99: 3.822234005e-08
A100: 46.9461 | B100: ='DF raw data'!A105 -> -7.288344e-06 | C100: ='DF raw data'!B105 -> -7.4200352e-06 | D100: ='DF raw data'!C105 -> -2.9034184e-06 | F100: -7.299363976e-06 | G100: -7.446986794e-06 | H100: -2.907808369e-06 | J100: -5.377823904e-05 | K100: -0.001222336706 | L100: -8.81245667e-06 | M100: 0.0002067527665 | N100: 3.970766471e-08
A101: 47.44625 | B101: ='DF raw data'!A106 -> -7.4028793e-07 | C101: ='DF raw data'!B106 -> -3.4364336e-06 | D101: ='DF raw data'!C106 -> -1.0108836e-06 | F101: -7.414072454e-07 | G101: -3.448915665e-06 | H101: -1.012412056e-06 | J101: -5.414905388e-05 | K101: -0.001249419355 | L101: -1.053743184e-05 | M101: 0.00020148247 | N101: 4.122969993e-08
A102: 47.9464 | B102: ='DF raw data'!A107 -> 5.1149082e-06 | C102: ='DF raw data'!B107 -> -1.0227744e-05 | D102: ='DF raw data'!C107 -> 4.4637218e-06 | F102: 5.122641941e-06 | G102: -1.026489396e-05 | H102: 4.470470947e-06 | J102: -5.158696451e-05 | K102: -0.001275220575 | L102: -1.567141855e-05 | M102: 0.00019364441 | N102: 4.268354009e-08
A103: 48.44655 | B103: ='DF raw data'!A108 -> 3.1826464e-06 | C103: ='DF raw data'!B108 -> -1.2042086e-05 | D103: ='DF raw data'!C108 -> 4.7179583e-06 | F103: 3.187458561e-06 | G103: -1.208582615e-05 | H103: 4.725091853e-06 | J103: -4.999275711e-05 | K103: -0.001300224453 | L103: -2.17161445e-05 | M103: 0.0001827830803 | N103: 4.416941907e-08
A104: 48.9467 | B104: ='DF raw data'!A109 -> 4.3846057e-06 | C104: ='DF raw data'!B109 -> -6.6800485e-06 | D104: ='DF raw data'!C109 -> 2.7245931e-06 | F104: 4.391235224e-06 | G104: -6.704312261e-06 | H104: 2.728712685e-06 | J104: -4.779648081e-05 | K104: -0.001324129863 | L104: -2.506930628e-05 | M104: 0.0001702446668 | N104: 4.562634286e-08
A105: 49.44685 | B105: ='DF raw data'!A110 -> 6.1215515e-06 | C105: ='DF raw data'!B110 -> 6.5408485e-06 | D105: ='DF raw data'!C110 -> 3.9567039e-06 | F105: 6.130807286e-06 | G105: 6.564606648e-06 | H105: 3.962686436e-06 | J105: -4.473015755e-05 | K105: -0.001346501651 | L105: -2.178601826e-05 | M105: 0.0001593483898 | N105: 4.686442296e-08
A106: 49.947 | B106: ='DF raw data'!A111 -> 4.4580929e-06 | C106: ='DF raw data'!B111 -> 6.2435729e-06 | D106: ='DF raw data'!C111 -> -1.7430486e-06 | F106: 4.464833536e-06 | G106: 6.266251262e-06 | H106: -1.745684089e-06 | J106: -4.249707106e-05 | K106: -0.001367756561 | L106: -1.865195269e-05 | M106: 0.0001500196156 | N106: 4.794169424e-08
A107: 50.44715 | B107: ='DF raw data'!A112 -> 4.352024e-06 | C107: ='DF raw data'!B112 -> -6.9957684e-07 | D107: ='DF raw data'!C112 -> -8.0103837e-06 | F107: 4.35860426e-06 | G107: -7.021178942e-07 | H107: -8.0224954e-06 | J107: -4.031711514e-05 | K107: -0.001387921166 | L107: -1.900311696e-05 | M107: 0.0001405152067 | N107: 4.893528634e-08
A108: 50.9473 | B108: ='DF raw data'!A113 -> 2.9000919e-06 | C108: ='DF raw data'!B113 -> 4.497545e-06 | D108: ='DF raw data'!C113 -> -8.829933e-06 | F108: 2.904476839e-06 | G108: 4.513881312e-06 | H108: -8.843283859e-06 | J108: -3.886444105e-05 | K108: -0.001407359216 | L108: -1.674549922e-05 | M108: 0.0001321399453 | N108: 4.983098323e-08
A109: 51.44745 | B109: ='DF raw data'!A114 -> 3.9487904e-06 | C109: ='DF raw data'!B114 -> -1.8004838e-06 | D109: ='DF raw data'!C114 -> -5.3998574e-06 | F109: 3.954760971e-06 | G109: -1.807023649e-06 | H109: -5.408021984e-06 | J109: -3.688646735e-05 | K109: -0.001425807983 | L109: -1.76492821e-05 | M109: 0.0001233126568 | N109: 5.066728837e-08
A110: 51.9476 | B110: ='DF raw data'!A115 -> 7.6627302e-06 | C110: ='DF raw data'!B115 -> 4.7650674e-06 | D110: ='DF raw data'!C115 -> -1.0821372e-07 | F110: 7.674316248e-06 | G110: 4.782375426e-06 | H110: -1.083773391e-07 | J110: -3.304815807e-05 | K110: -0.001442337019 | L110: -1.525737703e-05 | M110: 0.0001156816797 | N110: 5.132997126e-08
A111: 52.44775 | B111: ='DF raw data'!A116 -> 7.5489925e-06 | C111: ='DF raw data'!B116 -> 1.0159528e-05 | D111: ='DF raw data'!C116 -> 2.8507727e-06 | F111: 7.560406577e-06 | G111: 1.019643018e-05 | H111: 2.855083068e-06 | J111: -2.926682073e-05 | K111: -0.00145697482 | L111: -1.015763247e-05 | M111: 0.0001106013398 | N111: 5.180997737e-08
A112: 52.9479 | B112: ='DF raw data'!A117 -> 1.9911647e-06 | C112: ='DF raw data'!B117 -> 8.7951003e-06 | D112: ='DF raw data'!C117 -> -2.5604006e-06 | F112: 1.994175341e-06 | G112: 8.827046506e-06 | H112: -2.564271926e-06 | J112: -2.826943393e-05 | K112: -0.001471113777 | L112: -5.742785164e-06 | M112: 0.0001077290858 | N112: 5.222617243e-08
A113: 53.44805 | B113: ='DF raw data'!A118 -> -3.8578901e-06 | C113: ='DF raw data'!B118 -> 5.1756224e-06 | D113: ='DF raw data'!C118 -> -5.1058942e-06 | F113: -3.86372323e-06 | G113: 5.194421674e-06 | H113: -5.113614312e-06 | J113: -3.02018751e-05 | K113: -0.001486219245 | L113: -3.144795164e-06 | M113: 0.0001061562165 | N113: 5.268733223e-08
A114: 53.9482 | B114: ='DF raw data'!A119 -> -2.2372872e-06 | C114: ='DF raw data'!B119 -> 6.9512707e-06 | D114: ='DF raw data'!C119 -> -4.8245038e-06 | F114: -2.240669978e-06 | G114: 6.976519614e-06 | H114: -4.83179845e-06 | J114: -3.132254619e-05 | K114: -0.001501885216 | L114: 3.445111211e-07 | M114: 0.0001063285237 | N114: 5.317808971e-08
A115: 54.44835 | B115: ='DF raw data'!A120 -> 3.0441413e-06 | C115: ='DF raw data'!B120 -> 1.4492975e-05 | D115: ='DF raw data'!C120 -> -4.7553531e-06 | F115: 3.048744042e-06 | G115: 1.454561744e-05 | H115: -4.762543194e-06 | J115: -2.979771686e-05 | K115: -0.001516788545 | L115: 7.619501685e-06 | M115: 0.0001101394175 | N115: 5.365121197e-08
A116: 54.9485 | B116: ='DF raw data'!A121 -> 3.9065462e-06 | C116: ='DF raw data'!B121 -> 4.2476358e-06 | D116: ='DF raw data'!C121 -> -2.3196101e-06 | F116: 3.912452898e-06 | G116: 4.263064373e-06 | H116: -2.32311735e-06 | J116: -2.784090354e-05 | K116: -0.001530713172 | L116: 9.751673332e-06 | M116: 0.0001150167169 | N116: 5.408644803e-08
A117: 55.44865 | B117: ='DF raw data'!A122 -> 4.8171323e-06 | C117: ='DF raw data'!B122 -> 8.1506307e-08 | D117: ='DF raw data'!C122 -> -2.5438987e-06 | F117: 4.824415804e-06 | G117: 8.180236017e-08 | H117: -2.547745075e-06 | J117: -2.542797198e-05 | K117: -0.001543430973 | L117: 9.792586782e-06 | M117: 0.0001199144792 | N117: 5.445779765e-08
A118: 55.9488 | B118: ='DF raw data'!A123 -> 6.531799e-06 | C118: ='DF raw data'!B123 -> 8.9447815e-07 | D118: ='DF raw data'!C123 -> -1.5449825e-06 | F118: 6.54167508e-06 | G118: 8.977271389e-07 | H118: -1.547318514e-06 | J118: -2.215615319e-05 | K118: -0.001554512373 | L118: 1.024158501e-05 | M118: 0.0001250368079 | N118: 5.475577962e-08
A119: 56.44895 | B119: ='DF raw data'!A124 -> 2.0949635e-06 | C119: ='DF raw data'!B124 -> -3.5530491e-06 | D119: ='DF raw data'!C124 -> -5.4714819e-06 | F119: 2.098131085e-06 | G119: -3.565954745e-06 | H119: -5.479754781e-06 | J119: -2.110677292e-05 | K119: -0.001565068925 | L119: 8.458072745e-06 | M119: 0.000129267113 | N119: 5.50143746e-08
A120: 56.9491 | B120: ='DF raw data'!A125 -> 2.4881854e-06 | C120: ='DF raw data'!B125 -> -4.4543494e-06 | D120: ='DF raw data'!C125 -> -1.5837335e-05 | F120: 2.491947536e-06 | G120: -4.470528814e-06 | H120: -1.586128105e-05 | J120: -1.986042536e-05 | K120: -0.001575002117 | L120: 6.222137759e-06 | M120: 0.0001323791152 | N120: 5.523101532e-08
A121: 57.44925 | B121: ='DF raw data'!A126 -> 5.841267e-06 | C121: ='DF raw data'!B126 -> 4.9917608e-06 | D121: ='DF raw data'!C126 -> -1.2367809e-05 | F121: 5.850098996e-06 | G121: 5.009892239e-06 | H121: -1.238650913e-05 | J121: -1.693449835e-05 | K121: -0.001583471906 | L121: 8.727835362e-06 | M121: 0.0001367443421 | N121: 5.541254593e-08
A122: 57.9494 | B122: ='DF raw data'!A127 -> 2.6765454e-06 | C122: ='DF raw data'!B127 -> 7.1259265e-06 | D122: ='DF raw data'!C127 -> 5.883428e-07 | F122: 2.680592337e-06 | G122: 7.151809811e-06 | H122: 5.892323743e-07 | J122: -1.559380009e-05 | K122: -0.001591271145 | L122: 1.230481304e-05 | M122: 0.0001428985943 | N122: 5.560989263e-08
A123: 58.44955 | B123: ='DF raw data'!A128 -> -4.7555977e-06 | C123: ='DF raw data'!B128 -> -8.5517649e-06 | D123: ='DF raw data'!C128 -> 1.7994259e-06 | F123: -4.762788164e-06 | G123: -8.582827246e-06 | H123: 1.802146632e-06 | J123: -1.797590859e-05 | K123: -0.001600261796 | L123: 8.012111992e-06 | M123: 0.0001469058521 | N123: 5.580361435e-08
A124: 58.9497 | B124: ='DF raw data'!A129 -> -7.5089511e-06 | C124: ='DF raw data'!B129 -> -5.0478347e-06 | D124: ='DF raw data'!C129 -> -3.9535134e-06 | F124: -7.520304634e-06 | G124: -5.066169814e-06 | H124: -3.959491112e-06 | J124: -2.173718896e-05 | K124: -0.001611133651 | L124: 5.47826716e-06 | M124: 0.0001496458075 | N124: 5.605494812e-08
A125: 59.44985 | B125: ='DF raw data'!A130 -> -3.8525495e-06 | C125: ='DF raw data'!B130 -> 5.0371245e-06 | D125: ='DF raw data'!C130 -> 1.0952151e-06 | F125: -3.858374555e-06 | G125: 5.055420712e-06 | H125: 1.096871065e-06 | J125: -2.366695499e-05 | K125: -0.001622970679 | L125: 8.006735829e-06 | M125: 0.0001536503764 | N125: 5.636715805e-08
A126: 59.95 | B126: ='DF raw data'!A131 -> 2.8624783e-07 | C126: ='DF raw data'!B131 -> 7.666843e-06 | D126: ='DF raw data'!C131 -> 3.7455991e-06 | F126: 2.866806367e-07 | G126: 7.694691068e-06 | H126: 3.751262446e-06 | J126: -2.352357167e-05 | K126: -0.001634735993 | L126: 1.185523557e-05 | M126: 0.0001595797725 | N126: 5.671421465e-08
A127: 60.45015 | B127: ='DF raw data'!A132 -> 6.0308494e-06 | C127: ='DF raw data'!B132 -> 5.5260016e-06 | D127: ='DF raw data'!C132 -> 9.3475114e-07 | F127: 6.039968044e-06 | G127: 5.546073547e-06 | H127: 9.361644837e-07 | J127: -2.050268165e-05 | K127: -0.001644990409 | L127: 1.462910425e-05 | M127: 0.0001668965189 | N127: 5.703149513e-08
A128: 60.9503 | B128: ='DF raw data'!A133 -> 9.2348901e-06 | C128: ='DF raw data'!B133 -> -3.218948e-06 | D128: ='DF raw data'!C133 -> 2.2588371e-07 | F128: 9.248853254e-06 | G128: -3.230640098e-06 | H128: 2.262252462e-07 | J128: -1.58768677e-05 | K128: -0.001652931225 | L128: 1.301329961e-05 | M128: 0.0001734051207 | N128: 5.724226879e-08
A129: 61.45045 | B129: ='DF raw data'!A134 -> 3.2752257e-06 | C129: ='DF raw data'!B134 -> -8.2899815e-06 | D129: ='DF raw data'!C134 -> 3.6358847e-07 | F129: 3.280177841e-06 | G129: -8.320092977e-06 | H129: 3.641382158e-07 | J129: -1.423628675e-05 | K129: -0.001660051503 | L129: 8.852005103e-06 | M129: 0.0001778324511 | N129: 5.738282587e-08
A130: 61.9506 | B130: ='DF raw data'!A135 -> -1.3018609e-06 | C130: ='DF raw data'!B135 -> -1.1289438e-06 | D130: ='DF raw data'!C135 -> 2.212853e-07 | F130: -1.303829314e-06 | G130: -1.133044432e-06 | H130: 2.216198834e-07 | J130: -1.488839698e-05 | K130: -0.001667497935 | L130: 8.285312931e-06 | M130: 0.0001819763504 | N130: 5.75280248e-08
A131: 62.45075 | B131: ='DF raw data'!A136 -> 2.4861044e-06 | C131: ='DF raw data'!B136 -> -5.4856091e-06 | D131: ='DF raw data'!C136 -> 4.4754943e-06 | F131: 2.48986339e-06 | G131: -5.50553433e-06 | H131: 4.482261247e-06 | J131: -1.364309181e-05 | K131: -0.001674321528 | L131: 5.531719935e-06 | M131: 0.0001847430401 | N131: 5.763642425e-08
A132: 62.9509 | B132: ='DF raw data'!A137 -> 8.7634953e-06 | C132: ='DF raw data'!B137 -> -4.2840975e-06 | D132: ='DF raw data'!C137 -> 3.6291256e-06 | F132: 8.776745705e-06 | G132: -4.299658512e-06 | H132: 3.634612838e-06 | J132: -9.253402443e-06 | K132: -0.001678949617 | L132: 3.38124573e-06 | M132: 0.0001864341701 | N132: 5.768496795e-08
A133: 63.45105 | B133: ='DF raw data'!A138 -> 1.3770838e-05 | C133: ='DF raw data'!B138 -> 2.8486531e-06 | D133: ='DF raw data'!C138 -> -3.0685389e-06 | F133: 1.379165951e-05 | G133: 2.859000186e-06 | H133: -3.073178531e-06 | J133: -2.355503941e-06 | K133: -0.001680127722 | L133: 4.811174673e-06 | M133: 0.0001888404792 | N133: 5.769932016e-08
A134: 63.9512 | B134: ='DF raw data'!A139 -> 1.168258e-05 | C134: ='DF raw data'!B139 -> -3.9071647e-06 | D134: ='DF raw data'!C139 -> -1.0739807e-06 | F134: 1.170024406e-05 | G134: -3.921356589e-06 | H134: -1.075604559e-06 | J134: 3.496373126e-06 | K134: -0.001678379011 | L134: 2.849908175e-06 | M134: 0.0001902658607 | N134: 5.770949651e-08
A135: 64.45135 | B135: ='DF raw data'!A140 -> 4.2496367e-06 | C135: ='DF raw data'!B140 -> -1.6476939e-05 | D135: ='DF raw data'!C140 -> 2.8192312e-07 | F135: 4.256062151e-06 | G135: =(1-$G$1*($B$2-$G$2))*C135*$M$2/$M$1 -> -1.653678774e-05 | H135: 2.823493878e-07 | J135: 5.625042611e-06 | K135: -0.001675565646 | L135: -5.420966214e-06 | M135: 0.0001875545645 | N135: 5.774001965e-08
A136: =A135+$B$1 -> 64.9515 | B136: ='DF raw data'!A141 -> 1.6820529e-06 | C136: ='DF raw data'!B141 -> -5.2263595e-06 | D136: ='DF raw data'!C141 -> 2.506489e-06 | F136: 1.684596164e-06 | G136: -5.245343065e-06 | H136: 2.510278811e-06 | J136: =F136*$B$1+J135 -> 6.467593382e-06 | K136: =J136*$B$1+K135 -> -0.001672330879 | L136: =G136*$B$1+L135 -> -8.044424548e-06 | M136: =L136*$B$1+M135 -> 0.0001835311455 | N136: =(J136^2+L136^2)*$B$1+N135 -> 5.77933069e-08
A137: 65.45165 | B137: ='DF raw data'!A142 -> 3.2140786e-06 | C137: ='DF raw data'!B142 -> 6.833855e-06 | D137: ='DF raw data'!C142 -> 3.4754573e-06 | F137: 3.218938287e-06 | G137: 6.858677428e-06 | H137: 3.480712191e-06 | J137: 8.077545367e-06 | K137: -0.001668290895 | L137: -4.614057033e-06 | M137: 0.0001812234249 | N137: 5.783658801e-08
A138: 65.9518 | B138: ='DF raw data'!A143 -> 6.7718911e-06 | C138: ='DF raw data'!B143 -> -3.6576555e-06 | D138: ='DF raw data'!C143 -> -2.8331472e-06 | F138: 6.782130199e-06 | G138: -3.670941104e-06 | H138: -2.837430919e-06 | J138: 1.146962779e-05 | K138: -0.00166255436 | L138: -6.450078226e-06 | M138: 0.0001779974183 | N138: 5.792319192e-08
A139: 66.45195 | B139: ='DF raw data'!A144 -> 9.7864367e-06 | C139: ='DF raw data'!B144 -> -1.6992116e-06 | D139: ='DF raw data'!C144 -> -4.0497453e-06 | F139: =(1-$G$1*($B$2-$G$2))*B139 -> 9.801233792e-06 | G139: -1.705383601e-06 | H139: =(1-$G$1*($B$2-$G$2))*D139 -> -4.055868515e-06 | J139: 1.637171487e-05 | K139: -0.001654366047 | L139: -7.303025834e-06 | M139: 0.0001743448099 | N139: 5.808392374e-08
A140: 66.9521 | B140: ='DF raw data'!A145 -> 9.2223318e-06 | C140: ='DF raw data'!B145 -> 2.0971904e-06 | D140: ='DF raw data'!C145 -> -2.0931241e-06 | F140: 9.236275966e-06 | G140: 2.104807968e-06 | H140: -2.096288904e-06 | J140: 2.099123829e-05 | K140: -0.001643867279 | L140: -6.250306128e-06 | M140: 0.0001712187193 | N140: 5.83238449e-08
A141: 67.45225 | B141: ='DF raw data'!A146 -> 6.8967902e-06 | C141: ='DF raw data'!B146 -> 1.435793e-06 | D141: ='DF raw data'!C146 -> -4.180858e-06 | F141: 6.907218147e-06 | G141: 1.441008192e-06 | H141: -4.187179457e-06 | J141: 2.444588345e-05 | K141: -0.001631640671 | L141: -5.529585881e-06 | M141: 0.0001684530969 | N141: 5.86380279e-08
A142: 67.9524 | B142: ='DF raw data'!A147 -> 7.4642276e-06 | C142: ='DF raw data'!B147 -> 3.1452612e-06 | D142: ='DF raw data'!C147 -> -7.7371715e-06 | F142: 7.475513512e-06 | G142: 3.156685648e-06 | H142: -7.748870103e-06 | J142: 2.818476153e-05 | K142: -0.001617544062 | L142: -3.950769554e-06 | M142: 0.0001664771195 | N142: 5.904314408e-08
A143: 68.45255 | B143: ='DF raw data'!A148 -> 1.063656e-05 | C143: ='DF raw data'!B148 -> 6.0878638e-06 | D143: ='DF raw data'!C148 -> -2.6418622e-06 | F143: 1.065264248e-05 | G143: 6.109976584e-06 | H143: -2.645856696e-06 | J143: 3.351268067e-05 | K143: -0.001600782695 | L143: -8.948647658e-07 | M143: 0.0001660295529 | N143: 5.960526294e-08
A144: 68.9527 | B144: ='DF raw data'!A149 -> 6.9531934e-06 | C144: ='DF raw data'!B149 -> 1.3660122e-05 | D144: ='DF raw data'!C149 -> 5.3612694e-06 | F144: 6.963706628e-06 | G144: 1.370973929e-05 | H144: 5.369375639e-06 | J144: 3.699557854e-05 | K144: -0.001582279357 | L144: 5.962061342e-06 | M144: 0.0001690114779 | N144: 6.030758307e-08
A145: 69.45285 | B145: ='DF raw data'!A150 -> 4.197308e-06 | C145: ='DF raw data'!B150 -> 8.6195096e-06 | D145: ='DF raw data'!C150 -> 1.0453785e-05 | F145: 4.20365433e-06 | G145: 8.650818013e-06 | H145: 1.046959112e-05 | J145: 3.909803625e-05 | K145: -0.001562724474 | L145: 1.028876797e-05 | M145: 0.0001741574052 | N145: 6.112508584e-08
A146: 69.953 | B146: ='DF raw data'!A151 -> 1.0566667e-05 | C146: ='DF raw data'!B151 -> 4.7071599e-06 | D146: ='DF raw data'!C151 -> 8.0214904e-06 | F146: 1.05826438e-05 | G146: 4.72425759e-06 | H146: 8.033618893e-06 | J146: 4.439094555e-05 | K146: -0.001540522342 | L146: 1.265160541e-05 | M146: 0.0001804851056 | N146: 6.219071502e-08
A147: 70.45315 | B147: ='DF raw data'!A152 -> 1.5396723e-05 | C147: ='DF raw data'!B152 -> 4.2763231e-06 | D147: ='DF raw data'!C152 -> 3.9387323e-06 | F147: 1.542000285e-05 | G147: 4.291855873e-06 | H147: 3.944687663e-06 | J147: 5.210325997e-05 | K147: -0.001514462897 | L147: 1.479817712e-05 | M147: 0.0001878864139 | N147: 6.365802295e-08
A148: 70.9533 | B148: ='DF raw data'!A153 -> 9.9878789e-06 | C148: ='DF raw data'!B153 -> -4.8106003e-06 | D148: ='DF raw data'!C153 -> 4.7254089e-06 | F148: 1.000298057e-05 | G148: -4.828073714e-06 | H148: 4.732553718e-06 | J148: 5.71062507e-05 | K148: -0.001485901206 | L148: 1.238341605e-05 | M148: 0.0001940799795 | N148: 6.536577155e-08
A149: 71.45345 | B149: ='DF raw data'!A154 -> 2.1153799e-06 | C149: ='DF raw data'!B154 -> 9.4104428e-07 | D149: ='DF raw data'!C154 -> 3.1923935e-06 | F149: 2.118578354e-06 | G149: 9.444624098e-07 | H149: 3.197220399e-06 | J149: 5.816585767e-05 | K149: -0.001456809552 | L149: 1.285578893e-05 | M149: 0.0002005098023 | N149: 6.714057299e-08
A150: 71.9536 | B150: ='DF raw data'!A155 -> 1.3800134e-06 | C150: ='DF raw data'!B155 -> 1.1435869e-06 | D150: ='DF raw data'!C155 -> -4.4374228e-06 | F150: 1.38209998e-06 | G150: 1.14774072e-06 | H150: -4.444132183e-06 | J150: 5.885711497e-05 | K150: -0.001427372166 | L150: 1.342983145e-05 | M150: 0.0002072267325 | N150: 6.896337984e-08
A151: 72.45375 | B151: ='DF raw data'!A156 -> 6.4446185e-06 | C151: ='DF raw data'!B156 -> 1.1080442e-05 | D151: ='DF raw data'!C156 -> -6.8255813e-06 | F151: 6.454362763e-06 | G151: 1.112068919e-05 | H151: -6.835901579e-06 | J151: 6.208526451e-05 | K151: -0.001396320221 | L151: 1.899184415e-05 | M151: 0.0002167255034 | N151: 7.107164724e-08
A152: 72.9539 | B152: ='DF raw data'!A157 -> 1.0225177e-05 | C152: ='DF raw data'!B157 -> 1.5878082e-05 | D152: ='DF raw data'!C157 -> -3.4144962e-06 | F152: 1.024063747e-05 | G152: 1.593575553e-05 | H152: -3.419658918e-06 | J152: 6.720711934e-05 | K152: -0.00136270658 | L152: 2.696211228e-05 | M152: 0.0002302106038 | N152: 7.369431e-08
A153: 73.45405 | B153: ='DF raw data'!A158 -> 9.187218e-06 | C153: ='DF raw data'!B158 -> 5.2902135e-07 | D153: ='DF raw data'!C158 -> 4.0419636e-06 | F153: 9.201109074e-06 | G153: 5.309429e-07 | H153: 4.048075049e-06 | J153: 7.180905404e-05 | K153: -0.001326791282 | L153: 2.722766337e-05 | M153: 0.0002438285196 | N153: 7.664413763e-08
A154: 73.9542 | B154: ='DF raw data'!A159 -> 3.0221097e-06 | C154: ='DF raw data'!B159 -> 7.4258705e-06 | D154: ='DF raw data'!C159 -> 5.8224778e-06 | F154: 3.02667913e-06 | G154: 7.45284329e-06 | H154: 5.831281386e-06 | J154: 7.332284761e-05 | K154: -0.001290118859 | L154: 3.095520294e-05 | M154: 0.0002593107644 | N154: 7.981232008e-08
A155: 74.45435 | B155: ='DF raw data'!A160 -> 5.7567087e-07 | C155: ='DF raw data'!B160 -> 6.6401199e-06 | D155: ='DF raw data'!C160 -> 1.0731108e-06 | F155: 5.765412844e-07 | G155: 6.664238629e-06 | H155: 1.074733344e-06 | J155: 7.361120473e-05 | K155: -0.001253302215 | L155: 3.428832189e-05 | M155: 0.0002764600686 | N155: 8.311045847e-08
A156: 74.9545 | B156: ='DF raw data'!A161 -> 3.4051889e-06 | C156: ='DF raw data'!B161 -> 6.1423025e-06 | D156: ='DF raw data'!C161 -> 9.9684416e-07 | F156: 3.410337546e-06 | G156: 6.16461302e-06 | H156: 9.983513884e-07 | J156: 7.531688505e-05 | K156: -0.001215632475 | L156: 3.737155309e-05 | M156: 0.0002951514509 | N156: 8.664615193e-08
A157: 75.45465 | B157: ='DF raw data'!A162 -> 1.0463234e-06 | C157: ='DF raw data'!B162 -> 5.5911141e-06 | D157: ='DF raw data'!C162 -> -1.5549651e-06 | F157: 1.047905441e-06 | G157: 5.611422553e-06 | H157: -1.557316207e-06 | J157: 7.584099496e-05 | K157: -0.001177700602 | L157: 4.017810608e-05 | M157: 0.0003152465306 | N157: 9.033032522e-08
A158: 75.9548 | B158: ='DF raw data'!A163 -> -6.2120961e-07 | C158: ='DF raw data'!B163 -> 1.9789743e-06 | D158: ='DF raw data'!C163 -> 9.2107946e-08 | F158: -6.221488789e-07 | G158: 1.986162475e-06 | H158: 9.224721321e-08 | J158: 7.55298272e-05 | K158: -0.001139924359 | L158: 4.117148524e-05 | M158: 0.000335838449 | N158: 9.403135819e-08
A159: 76.45495 | B159: ='DF raw data'!A164 -> -1.8637541e-06 | C159: ='DF raw data'!B164 -> -8.4609262e-08 | D159: ='DF raw data'!C164 -> 2.3528789e-06 | F159: -1.866572096e-06 | G159: -8.491658595e-08 | H159: 2.356436453e-06 | J159: 7.459626116e-05 | K159: -0.001102615039 | L159: 4.112901421e-05 | M159: 0.0003564091254 | N159: 9.766054562e-08
A160: 76.9551 | B160: ='DF raw data'!A165 -> -1.9963802e-06 | C160: ='DF raw data'!B165 -> -1.1594305e-05 | D160: ='DF raw data'!C165 -> -1.7027835e-06 | F160: -1.999398727e-06 | G160: -1.163641868e-05 | H160: -1.705358109e-06 | J160: 7.359626189e-05 | K160: -0.001065805868 | L160: 3.530905941e-05 | M160: 0.0003740689515 | N160: 1.009931148e-07
A161: 77.45525 | B161: ='DF raw data'!A166 -> 2.4590815e-06 | C161: ='DF raw data'!B166 -> -3.6010831e-06 | D161: ='DF raw data'!C166 -> -2.8477864e-06 | F161: 2.462799631e-06 | G161: -3.614163217e-06 | H161: -2.852092253e-06 | J161: 7.482803113e-05 | K161: -0.001028380628 | L161: 3.350143567e-05 | M161: 0.0003908246945 | N161: 1.043549133e-07
A162: 77.9554 | B162: ='DF raw data'!A167 -> 4.8716001e-06 | C162: ='DF raw data'!B167 -> -4.8871871e-06 | D162: ='DF raw data'!C167 -> -6.779801e-06 | F162: 4.878965959e-06 | G162: -4.904938698e-06 | H162: -6.790052059e-06 | J162: 7.726824595e-05 | K162: -0.0009897349152 | L162: 3.104823059e-05 | M162: 0.0004063534671 | N162: 1.078231406e-07
A163: 78.45555 | B163: ='DF raw data'!A168 -> 2.2167776e-06 | C163: ='DF raw data'!B168 -> 3.8751086e-06 | D163: ='DF raw data'!C168 -> -7.3027823e-06 | F163: 2.220129368e-06 | G163: 3.889184053e-06 | H163: -7.313824107e-06 | J163: 7.837864365e-05 | K163: -0.0009505338365 | L163: 3.299340599e-05 | M163: 0.0004228551191 | N163: 1.114401137e-07
A164: 78.9557 | B164: ='DF raw data'!A169 -> -8.4334459e-07 | C164: ='DF raw data'!B169 -> 6.580477e-06 | D164: ='DF raw data'!C169 -> -3.0979629e-06 | F164: -8.44619727e-07 | G164: 6.60437909e-06 | H164: -3.10264702e-06 | J164: 7.79562071e-05 | K164: -0.0009115440396 | L164: 3.629658619e-05 | M164: 0.0004410088566 | N164: 1.151385291e-07
A165: 79.45585 | B165: ='DF raw data'!A170 -> -2.3329369e-06 | C165: ='DF raw data'!B170 -> -7.0089473e-06 | D165: ='DF raw data'!C170 -> -8.4004409e-07 | F165: -2.336464301e-06 | G165: -7.034405711e-06 | H165: -8.413142367e-07 | J165: 7.678762448e-05 | K165: -0.0008731387092 | L165: 3.277832817e-05 | M165: 0.0004574029375 | N165: 1.186249538e-07
A166: 79.956 | B166: ='DF raw data'!A171 -> -2.647462e-06 | C166: ='DF raw data'!B171 -> -2.3482014e-06 | D166: ='DF raw data'!C171 -> -3.4869647e-06 | F166: -2.651464963e-06 | G166: -2.356730709e-06 | H166: -3.492236991e-06 | J166: 7.546149428e-05 | K166: -0.0008353966428 | L166: 3.159960931e-05 | M166: 0.0004732074821 | N166: 1.219724439e-07
A167: 80.45615 | B167: ='DF raw data'!A172 -> -1.4569844e-06 | C167: ='DF raw data'!B172 -> -4.3808313e-06 | D167: ='DF raw data'!C172 -> -1.5067175e-05 | F167: -1.45918736e-06 | G167: -4.396743676e-06 | H167: -1.508995657e-05 | J167: 7.473168172e-05 | K167: -0.0007980195922 | L167: 2.940057796e-05 | M167: 0.0004879121811 | N167: 1.251980204e-07
A168: 80.9563 | B168: ='DF raw data'!A173 -> 5.7420112e-07 | C168: ='DF raw data'!B173 -> -8.3634995e-06 | D168: ='DF raw data'!C173 -> -1.4566021e-05 | F168: 5.750693121e-07 | G168: -8.393878014e-06 | H168: -1.458804482e-05 | J168: 7.501930264e-05 | K168: -0.000760498688 | L168: 2.520237987e-05 | M168: 0.0005005171514 | N168: 1.283304877e-07
A169: 81.45645 | B169: ='DF raw data'!A174 -> 2.3568834e-06 | C169: ='DF raw data'!B174 -> 6.8784202e-06 | D169: ='DF raw data'!C174 -> -4.0751752e-07 | F169: 2.360447008e-06 | G169: 6.903404501e-06 | H169: -4.081336865e-07 | J169: 7.619988021e-05 | K169: -0.0007223873179 | L169: 2.865511763e-05 | M169: 0.0005148490085 | N169: 1.316452506e-07
A170: 81.9566 | B170: ='DF raw data'!A175 -> 6.3082525e-06 | C170: ='DF raw data'!B175 -> 9.3209374e-06 | D170: ='DF raw data'!C175 -> 4.8724851e-06 | F170: 6.317790578e-06 | G170: 9.35479359e-06 | H170: 4.879852297e-06 | J170: 7.935972316e-05 | K170: -0.0006826955524 | L170: 3.333391765e-05 | M170: 0.0005315209674 | N170: 1.353509199e-07
A171: 82.45675 | B171: ='DF raw data'!A176 -> 1.1997047e-05 | C171: ='DF raw data'!B176 -> -6.4765727e-06 | D171: ='DF raw data'!C176 -> 4.8553138e-06 | F171: 1.201518654e-05 | G171: -6.500097381e-06 | H171: 4.862655034e-06 | J171: 8.536911871e-05 | K171: -0.0006399981876 | L171: 3.008289394e-05 | M171: 0.0005465669268 | N171: 1.394485823e-07
A172: 82.9569 | B172: ='DF raw data'!A177 -> 1.2066067e-05 | C172: ='DF raw data'!B177 -> -1.0304864e-05 | D172: ='DF raw data'!C177 -> 2.723327e-06 | F172: 1.208431089e-05 | G172: -1.034229408e-05 | H172: 2.72744467e-06 | J172: 9.14130868e-05 | K172: -0.0005942779323 | L172: 2.491019556e-05 | M172: 0.0005590257612 | N172: 1.439383639e-07
A173: 83.45705 | B173: ='DF raw data'!A178 -> 5.8631676e-06 | C173: ='DF raw data'!B178 -> -8.4601006e-06 | D173: ='DF raw data'!C178 -> -2.0742211e-06 | F173: 5.872032709e-06 | G173: -8.490829996e-06 | H173: -2.077357322e-06 | J173: 9.434998396e-05 | K173: -0.0005470887878 | L173: 2.066350694e-05 | M173: 0.0005693606141 | N173: 1.486042133e-07
A174: 83.9572 | B174: ='DF raw data'!A179 -> 2.3383298e-06 | C174: ='DF raw data'!B179 -> -1.4747883e-06 | D174: ='DF raw data'!C179 -> -3.0796566e-06 | F174: 2.341865355e-06 | G174: -1.480145134e-06 | H174: -3.084313041e-06 | J174: 9.552126792e-05 | K174: -0.0004993138256 | L174: 1.992321235e-05 | M174: 0.0005793252088 | N174: 1.53366265e-07
A175: 84.45735 | B175: ='DF raw data'!A180 -> 2.6514433e-06 | C175: ='DF raw data'!B180 -> -2.9807804e-06 | D175: ='DF raw data'!C180 -> -1.142331e-06 | F175: 2.655452282e-06 | G175: -2.991607409e-06 | H175: -1.144058204e-06 | J175: 9.684939238e-05 | K175: -0.0004508746021 | L175: 1.84269599e-05 | M175: 0.0005885414528 | N175: 1.582274017e-07
A176: 84.9575 | B176: ='DF raw data'!A181 -> -8.0484023e-07 | C176: ='DF raw data'!B181 -> -1.0359303e-05 | D176: ='DF raw data'!C181 -> 2.6051218e-06 | F176: -8.060571484e-07 | G176: -1.039693082e-05 | H176: 2.609060744e-06 | J176: 9.64462429e-05 | K176: -0.0004026370137 | L176: 1.322693495e-05 | M176: 0.0005951569043 | N176: 1.62967238e-07
A177: 85.45765 | B177: ='DF raw data'!A182 -> -5.0659901e-06 | C177: ='DF raw data'!B182 -> 2.447837e-06 | D177: ='DF raw data'!C182 -> 2.5530114e-06 | F177: -5.073649877e-06 | G177: 2.456728213e-06 | H177: 2.556871553e-06 | J177: 9.390865691e-05 | K177: -0.0003556685989 | L177: 1.445566757e-05 | M177: 0.0006023869064 | N177: 1.674824932e-07
A178: 85.9578 | B178: ='DF raw data'!A183 -> -1.184555e-07 | C178: ='DF raw data'!B183 -> 3.3074787e-07 | D178: ='DF raw data'!C183 -> -2.9087444e-06 | F178: -1.186346047e-07 | G178: 3.319492366e-07 | H178: -2.913142422e-06 | J178: 9.384932181e-05 | K178: -0.0003087298606 | L178: 1.462169198e-05 | M178: 0.0006096999457 | N178: 1.71994591e-07
A179: 86.45795 | B179: ='DF raw data'!A184 -> 4.7762123e-06 | C179: ='DF raw data'!B184 -> 1.2599349e-06 | D179: ='DF raw data'!C184 -> -7.3071042e-06 | F179: 4.783433933e-06 | G179: 1.264511328e-06 | H179: -7.318152542e-06 | J179: 9.624175629e-05 | K179: -0.0002605945462 | L179: 1.525413732e-05 | M179: 0.0006173293025 | N179: 1.767435975e-07
A180: 86.9581 | B180: ='DF raw data'!A185 -> 2.0258128e-06 | C180: ='DF raw data'!B185 -> 1.2591906e-05 | D180: ='DF raw data'!C185 -> -1.4426323e-05 | F180: 2.028875829e-06 | G180: 1.263764324e-05 | H180: -1.44481356e-05 | J180: 9.725649854e-05 | K180: -0.0002119517085 | L180: 2.157485459e-05 | M180: 0.000628119966 | N180: 1.817072365e-07
A181: 87.45825 | B181: ='DF raw data'!A186 -> 3.9051347e-06 | C181: ='DF raw data'!B186 -> 3.6680296e-06 | D181: ='DF raw data'!C186 -> -1.5165007e-05 | F181: 3.911039264e-06 | G181: 3.681352885e-06 | H181: -1.518793649e-05 | J181: 9.921260483e-05 | K181: -0.0001623305242 | L181: 2.341608323e-05 | M181: 0.00063983152 | N181: 1.869045222e-07
A182: 87.9584 | B182: ='DF raw data'!A187 -> 5.8089036e-06 | C182: ='DF raw data'!B187 -> 7.8760559e-06 | D182: ='DF raw data'!C187 -> -3.8566122e-06 | F182: 5.817686662e-06 | G182: 7.904663886e-06 | H182: -3.862443398e-06 | J182: 0.0001021223208 | K182: -0.0001112540454 | L182: 2.736960088e-05 | M182: 0.0006535204259 | N182: 1.924952307e-07
A183: 88.45855 | B183: ='DF raw data'!A188 -> 1.0407209e-06 | C183: ='DF raw data'!B188 -> 8.8288571e-06 | D183: ='DF raw data'!C188 -> -2.933177e-06 | F183: 1.04229447e-06 | G183: 8.86092592e-06 | H183: -2.937611964e-06 | J183: 0.0001026436244 | K183: -5.991683666e-05 | L183: 3.180139297e-05 | M183: 0.0006694258926 | N183: 1.982704838e-07
A184: 88.9587 | B184: ='DF raw data'!A189 -> -1.1761615e-06 | C184: ='DF raw data'!B189 -> 1.1321011e-05 | D184: ='DF raw data'!C189 -> -5.0017316e-06 | F184: -1.177939856e-06 | G184: 1.1362132e-05 | H184: -5.009294218e-06 | J184: 0.0001020544778 | K184: -8.874289601e-06 | L184: 3.74841633e-05 | M184: 0.0006881735969 | N184: 2.041823463e-07
A185: 89.45885 | B185: ='DF raw data'!A190 -> 3.4248048e-06 | C185: ='DF raw data'!B190 -> -3.9068991e-06 | D185: ='DF raw data'!C190 -> -1.3234878e-06 | F185: 3.429983105e-06 | G185: -3.921090025e-06 | H185: -1.325488914e-06 | J185: 0.0001037699838 | K185: 4.302626781e-05 | L185: 3.552303012e-05 | M185: 0.0007059404404 | N185: 2.101991984e-07
A186: 89.959 | B186: ='DF raw data'!A191 -> 2.9707123e-06 | C186: ='DF raw data'!B191 -> -4.4730305e-06 | D186: ='DF raw data'!C191 -> -4.3662785e-06 | F186: 2.975204017e-06 | G186: -4.489277768e-06 | H186: -4.372880313e-06 | J186: 0.0001052580321 | K186: 9.567107257e-05 | L186: 3.327771784e-05 | M186: 0.000722584291 | N186: 2.162943563e-07
A187: 90.45915 | B187: ='DF raw data'!A192 -> 3.2200157e-06 | C187: ='DF raw data'!B192 -> -6.7071351e-06 | D187: ='DF raw data'!C192 -> -4.0243231e-06 | F187: 3.224884364e-06 | G187: -6.731497247e-06 | H187: -4.030407877e-06 | J187: 0.000106870958 | K187: 0.0001491225822 | L187: 2.99109595e-05 | M187: 0.0007375442574 | N187: 2.224542373e-07
A188: 90.9593 | B188: ='DF raw data'!A193 -> 6.7578776e-06 | C188: ='DF raw data'!B193 -> -4.9725813e-06 | D188: ='DF raw data'!C193 -> -1.3680167e-06 | F188: 6.768095511e-06 | G188: -4.990643073e-06 | H188: -1.370085141e-06 | J188: 0.000110256021 | K188: 0.0002042671311 | L188: 2.741488936e-05 | M188: 0.0007512558143 | N188: 2.289101567e-07
A189: 91.45945 | B189: ='DF raw data'!A194 -> 8.1145672e-06 | C189: ='DF raw data'!B194 -> 5.2303285e-06 | D189: ='DF raw data'!C194 -> -3.5413452e-06 | F189: 8.126836426e-06 | G189: 5.249326482e-06 | H189: -3.546699714e-06 | J189: 0.0001143206582 | K189: 0.0002614446083 | L189: 3.004034e-05 | M189: 0.0007662804903 | N189: 2.358980699e-07
A190: 91.9596 | B190: ='DF raw data'!A195 -> 1.0850022e-05 | C190: ='DF raw data'!B195 -> 3.7710354e-06 | D190: ='DF raw data'!C195 -> 2.4816634e-06 | F190: 1.086642723e-05 | G190: 3.784732831e-06 | H190: 2.485415675e-06 | J190: 0.0001197555018 | K190: 0.0003213403226 | L190: 3.193327413e-05 | M190: 0.0007822519174 | N190: 2.435809312e-07
A191: 92.45975 | B191: ='DF raw data'!A196 -> 1.3139998e-05 | C191: ='DF raw data'!B196 -> 1.1278716e-05 | D191: ='DF raw data'!C196 -> 5.4275533e-06 | F191: 1.315986568e-05 | G191: 1.131968338e-05 | H191: 5.435759761e-06 | J191: 0.0001263374086 | K191: 0.0003845279775 | L191: 3.759481377e-05 | M191: 0.0008010549635 | N191: 2.522707928e-07
A192: 92.9599 | B192: ='DF raw data'!A197 -> 1.5518013e-05 | C192: ='DF raw data'!B197 -> 1.3421154e-05 | D192: ='DF raw data'!C197 -> -4.4791364e-07 | F192: 1.554147624e-05 | G192: 1.34699033e-05 | H192: -4.485908854e-07 | J192: 0.000134110478 | K192: 0.0004516033331 | L192: 4.43317859e-05 | M192: 0.0008232275062 | N192: 2.622492492e-07
A193: 93.46005 | B193: ='DF raw data'!A198 -> 1.5974114e-05 | C193: ='DF raw data'!B198 -> 2.8942843e-06 | D193: ='DF raw data'!C198 -> -4.4840763e-06 | F193: 1.599826686e-05 | G193: 2.904797131e-06 | H193: -4.490856223e-06 | J193: 0.0001421120111 | K193: 0.0005226806554 | L193: 4.578462019e-05 | M193: 0.000846126684 | N193: 2.733986206e-07
A194: 93.9602 | B194: ='DF raw data'!A199 -> 9.9846775e-06 | C194: ='DF raw data'!B199 -> -1.454774e-06 | D194: ='DF raw data'!C199 -> -4.8035345e-06 | F194: 9.999774332e-06 | G194: -1.460058136e-06 | H194: -4.810797444e-06 | J194: 0.0001471133983 | K194: 0.0005962594216 | L194: 4.505437211e-05 | M194: 0.0008686606282 | N194: 2.852382956e-07
A195: 94.46035 | B195: ='DF raw data'!A200 -> 7.533713e-06 | C195: ='DF raw data'!B200 -> 6.9751541e-06 | D195: ='DF raw data'!C200 -> -2.6234977e-06 | F195: 7.545103974e-06 | G195: 7.000489765e-06 | H195: -2.627464429e-06 | J195: 0.000150887082 | K195: 0.0006717255957 | L195: 4.855566707e-05 | M195: 0.0008929457451 | N195: 2.978043465e-07
A196: 94.9605 | B196: ='DF raw data'!A201 -> 1.1161942e-05 | C196: ='DF raw data'!B201 -> 4.2360289e-06 | D196: ='DF raw data'!C201 -> -8.637513e-06 | F196: 1.117881886e-05 | G196: 4.251415314e-06 | H196: -8.65057292e-06 | J196: 0.0001564781683 | K196: 0.0007499881515 | L196: 5.068201244e-05 | M196: 0.0009182943536 | N196: 3.113354463e-07
A197: 95.46065 | B197: ='DF raw data'!A202 -> 8.0999425e-06 | C197: ='DF raw data'!B202 -> -2.5228589e-06 | D197: ='DF raw data'!C202 -> -1.5009608e-05 | F197: 8.112189613e-06 | G197: -2.532022613e-06 | H197: -1.503230253e-05 | J197: 0.0001605354799 | K197: 0.0008302799718 | L197: 4.941562133e-05 | M197: 0.0009430095766 | N197: 3.254464503e-07
A198: 95.9608 | B198: ='DF raw data'!A203 -> 5.2357182e-06 | C198: ='DF raw data'!B203 -> 5.9376243e-06 | D198: ='DF raw data'!C203 -> -1.0589813e-05 | F198: 5.243634606e-06 | G198: 5.959191373e-06 | H198: -1.06058248e-05 | J198: 0.0001631580838 | K198: 0.0009118834874 | L198: 5.239611089e-05 | M198: 0.0009692154915 | N198: 3.401338116e-07
A199: 96.46095 | B199: ='DF raw data'!A204 -> 6.9028583e-06 | C199: ='DF raw data'!B204 -> 1.0163399e-05 | D199: ='DF raw data'!C204 -> -6.6038974e-06 | F199: 6.913295422e-06 | G199: =(1-$G$1*($B$2-$G$2))*C199*$M$2/$M$1 -> 1.020031524e-05 | H199: -6.613882493e-06 | J199: 0.0001666157685 | K199: 0.000995216364 | L199: 5.749779856e-05 | M199: 0.0009979730154 | N199: 3.556718772e-07
A200: =A199+$B$1 -> 96.9611 | B200: ='DF raw data'!A205 -> 3.8936532e-06 | C200: ='DF raw data'!B205 -> 1.0379014e-05 | D200: ='DF raw data'!C205 -> -6.7169076e-06 | F200: 3.899540404e-06 | G200: 1.041671341e-05 | H200: -6.727063564e-06 | J200: =F200*$B$1+J199 -> 0.0001685661236 | K200: =J200*$B$1+K199 -> 0.001079524711 | L200: =G200*$B$1+L199 -> 6.270771777e-05 | M200: =L200*$B$1+M199 -> 0.00102933628 | N200: =(J200^2+L200^2)*$B$1+N199 -> 3.718501272e-07
A201: 97.46125 | B201: ='DF raw data'!A206 -> 2.1760613e-06 | C201: ='DF raw data'!B206 -> 5.0461977e-06 | D201: ='DF raw data'!C206 -> -6.8685094e-06 | F201: 2.179351505e-06 | G201: 5.064526868e-06 | H201: -6.878894586e-06 | J201: 0.0001696561263 | K201: 0.001164378222 | L201: 6.524074089e-05 | M201: 0.001061966437 | N201: 3.883748608e-07
... 1002 more rows

Sheet 12 mm
A1: dz | B1: ='DF raw data'!E7 -> 0.50024 | C1: mm | F1: T_coeff | G1: -0.0008 | H1: /degC | L1: Hallref | M1: ='[1]PI vs x'!B50 -> 0.505 | N1: T | P1: IBy total | Q1: =L1203*1000 -> -14.31613088 | R1: muTm | X1: DF ref | Y1: 19
A2: Tref | B2: ='DF raw data'!E8 -> 21.88 | C2: degC | F2: Tcorr | G2: 20 | H2: degC | L2: NMRref | M2: ='[1]PI vs x'!B51 -> 0.50627 | N2: T | P2: JBy total | Q2: =M1203 -> -4.569895441 | R2: muTm^2
A3: Encoder | B3: ='DF raw data'!E9 -> 14489953 | P3: PI total | Q3: =N1203 -> 541.8831683 | R3: T^2mm^3
A5: z [mm] | B5: Bx | C5: By | D5: Bz | F5: Bx_corr | G5: By_corr | H5: Bz_corr | J5: Ix | K5: Jx | L5: Iy | M5: Jy | N5: PI
A6: ='[1]PI vs x'!B53 -> -0.068 | B6: ='DF raw data'!D11 -> 1.2275006e-05 | C6: ='DF raw data'!E11 -> 3.5179905e-06 | D6: ='DF raw data'!F11 -> 8.1680628e-06 | F6: =(1-$G$1*($B$2-$G$2))*B6 -> 1.229346761e-05 | G6: =(1-$G$1*($B$2-$G$2))*C6*$M$2/$M$1 -> 3.532142088e-06 | H6: =(1-$G$1*($B$2-$G$2))*D6 -> 8.180347566e-06 | J6: =F6*$B$1 -> 6.149684237e-06 | K6: =J6*$B$1 -> 3.076318043e-06 | L6: =G6*$B$1 -> 1.766918758e-06 | M6: =L6*$B$1 -> 8.838834394e-07 | N6: =(J6^2+L6)^2*$B$1 -> 1.561817084e-12
A7: =A6+$B$1 -> 0.43224 | B7: ='DF raw data'!D12 -> 1.1941258e-05 | C7: ='DF raw data'!E12 -> 1.3087654e-05 | D7: ='DF raw data'!F12 -> 1.1256707e-05 | F7: =(1-$G$1*($B$2-$G$2))*B7 -> 1.195921765e-05 | G7: =(1-$G$1*($B$2-$G$2))*C7*$M$2/$M$1 -> 1.314030084e-05 | H7: 1.127363709e-05 | J7: =F7*$B$1+J6 -> 1.213216327e-05 | K7: =J7*$B$1+K6 -> 9.145311399e-06 | L7: =G7*$B$1+L6 -> 8.34022285e-06 | M7: =L7*$B$1+M6 -> 5.055996518e-06 | N7: =(J7^2+L7^2)*$B$1+N6 -> 1.099881882e-10
A8: =A7+$B$1 -> 0.93248 | B8: ='DF raw data'!D13 -> 1.2474527e-05 | C8: ='DF raw data'!E13 -> -2.9949883e-06 | D8: ='DF raw data'!F13 -> 2.404093e-06 | F8: 1.249328869e-05 | G8: -3.007036041e-06 | H8: 2.407708756e-06 | J8: =F8*$B$1+J7 -> 1.838180601e-05 | K8: =J8*$B$1+K7 -> 1.834062604e-05 | L8: =G8*$B$1+L7 -> 6.835983141e-06 | M8: =L8*$B$1+M7 -> 8.475628724e-06 | N8: =(J8^2+L8^2)*$B$1+N7 -> 3.023912262e-10
A9: 1.43272 | B9: ='DF raw data'!D14 -> 1.2193574e-05 | C9: ='DF raw data'!E14 -> 2.6456451e-06 | D9: ='DF raw data'!F14 -> -9.5781143e-06 | F9: 1.221191314e-05 | G9: 2.656287561e-06 | H9: -9.592519784e-06 | J9: 2.449069344e-05 | K9: 3.059185052e-05 | L9: 8.16476443e-06 | M9: 1.255997048e-05 | N9: 6.357798976e-10
A10: 1.93296 | B10: ='DF raw data'!D15 -> 1.2117278e-05 | C10: ='DF raw data'!E15 -> 4.8359848e-06 | D10: ='DF raw data'!F15 -> -8.6553337e-06 | F10: 1.213550239e-05 | G10: 4.855438196e-06 | H10: -8.668351322e-06 | J10: 3.056135715e-05 | K10: 4.587986382e-05 | L10: 1.059364883e-05 | M10: 1.785933738e-05 | N10: 1.159141964e-09
A11: 2.4332 | B11: ='DF raw data'!D16 -> 1.26737e-05 | C11: ='DF raw data'!E16 -> -1.0222739e-05 | D11: ='DF raw data'!F16 -> -8.0438331e-06 | F11: 1.269276124e-05 | G11: -1.026386134e-05 | H11: -8.055931025e-06 | J11: 3.691078403e-05 | K11: 6.434411443e-05 | L11: 5.459254839e-06 | M11: 2.059027502e-05 | N11: 1.855580815e-09
A12: 2.93344 | B12: ='DF raw data'!D17 -> 1.2572913e-05 | C12: ='DF raw data'!E17 -> -8.1291328e-06 | D12: ='DF raw data'!F17 -> -1.2762117e-05 | F12: 1.259182266e-05 | G12: -8.161833325e-06 | H12: -1.278131122e-05 | J12: 4.32097174e-05 | K12: 8.595934346e-05 | L12: 1.376379337e-06 | M12: 2.127879502e-05 | N12: 2.790516418e-09
A13: 3.43368 | B13: ='DF raw data'!D18 -> 1.2558623e-05 | C13: ='DF raw data'!E18 -> -6.619272e-06 | D13: ='DF raw data'!F18 -> -6.5566855e-06 | F13: 1.257751117e-05 | G13: -6.645898907e-06 | H13: -6.566546755e-06 | J13: 4.950149159e-05 | K13: 0.0001107219696 | L13: -1.948165133e-06 | M13: 2.030424489e-05 | N13: 4.018201933e-09
A14: 3.93392 | B14: ='DF raw data'!D19 -> 1.1998534e-05 | C14: ='DF raw data'!E19 -> 9.429481e-06 | D14: ='DF raw data'!F19 -> -1.5094264e-06 | F14: 1.20165798e-05 | G14: 9.467412349e-06 | H14: -1.511696577e-06 | J14: 5.551266547e-05 | K14: 0.0001384916254 | L14: 2.787813221e-06 | M14: 2.169882057e-05 | N14: 5.56365736e-09
A15: 4.43416 | B15: ='DF raw data'!D20 -> 1.2548946e-05 | C15: ='DF raw data'!E20 -> -5.2040091e-06 | D15: ='DF raw data'!F20 -> 1.1740341e-06 | F15: 1.256781961e-05 | G15: -5.224942923e-06 | H15: 1.175799847e-06 | J15: 6.179959155e-05 | K15: 0.0001694062531 | L15: 1.74087773e-07 | M15: 2.178590624e-05 | N15: 7.474183884e-09
A16: 4.9344 | B16: ='DF raw data'!D21 -> 1.2501827e-05 | C16: ='DF raw data'!E21 -> -3.7581926e-06 | D16: ='DF raw data'!F21 -> 1.7888671e-06 | F16: 1.252062975e-05 | G16: -3.773310433e-06 | H16: 1.791557556e-06 | J16: 6.806291138e-05 | K16: 0.0002034540438 | L16: -1.713473038e-06 | M16: 2.092875849e-05 | N16: 9.79304435e-09
A17: 5.43464 | B17: ='DF raw data'!D22 -> 1.2327466e-05 | C17: ='DF raw data'!E22 -> 3.7511526e-07 | D17: ='DF raw data'!F22 -> -2.4074395e-06 | F17: 1.234600651e-05 | G17: 3.766242113e-07 | H17: -2.411060289e-06 | J17: 7.423887767e-05 | K17: 0.0002405913 | L17: -1.525070542e-06 | M17: 2.01658572e-05 | N17: 1.255123605e-08
A18: 5.93488 | B18: ='DF raw data'!D23 -> 1.2163262e-05 | C18: ='DF raw data'!E23 -> 5.0242502e-06 | D18: ='DF raw data'!F23 -> -1.3994721e-06 | F18: 1.218155555e-05 | G18: 5.044460919e-06 | H18: -1.401576906e-06 | J18: 8.033257902e-05 | K18: 0.0002807768693 | L18: 9.983705877e-07 | M18: 2.06652821e-05 | N18: 1.577994508e-08
A19: 6.43512 | B19: ='DF raw data'!D24 -> 1.2066608e-05 | C19: ='DF raw data'!E24 -> 7.5198727e-06 | D19: ='DF raw data'!F24 -> -1.8925056e-06 | F19: 1.208475618e-05 | G19: 7.550122394e-06 | H19: -1.895351928e-06 | J19: 8.637785745e-05 | K19: 0.0003239865288 | L19: 4.775243814e-06 | M19: 2.305405007e-05 | N19: 1.952370983e-08
A20: 6.93536 | B20: ='DF raw data'!D25 -> 1.2027565e-05 | C20: ='DF raw data'!E25 -> 8.6542714e-06 | D20: ='DF raw data'!F25 -> -1.1737865e-06 | F20: 1.204565446e-05 | G20: 8.689084365e-06 | H20: -1.175551875e-06 | J20: 9.240357563e-05 | K20: 0.0003702104934 | L20: 9.121871377e-06 | M20: 2.761717501e-05 | N20: 2.383659369e-08
A21: 7.4356 | B21: ='DF raw data'!D26 -> 1.2176024e-05 | C21: ='DF raw data'!E26 -> 4.1096077e-06 | D21: ='DF raw data'!F26 -> -4.1190069e-06 | F21: 1.219433674e-05 | G21: 4.126139147e-06 | H21: -4.125201886e-06 | J21: 9.850367065e-05 | K21: 0.0004194859696 | L21: 1.118593122e-05 | M21: 3.321282524e-05 | N21: 2.875300152e-08
A22: 7.93584 | B22: ='DF raw data'!D27 -> 1.1200871e-05 | C22: ='DF raw data'!E27 -> 6.9318589e-06 | D22: ='DF raw data'!F27 -> -7.2805997e-06 | F22: 1.121771711e-05 | G22: 6.95974323e-06 | H22: -7.291549722e-06 | J22: 0.0001041152215 | K22: 0.000471568568 | L22: 1.466747318e-05 | M22: 4.055008203e-05 | N22: 3.42832118e-08
A23: 8.43608 | B23: ='DF raw data'!D28 -> 7.5990683e-06 | C23: ='DF raw data'!E28 -> 9.2264054e-06 | D23: ='DF raw data'!F28 -> -9.0271334e-07 | F23: =(1-$G$1*($B$2-$G$2))*B23 -> 7.610497299e-06 | G23: 9.26351985e-06 | H23: -9.040710209e-07 | J23: 0.0001079222966 | K23: 0.0005255556177 | L23: 1.930145635e-05 | M23: 5.020544255e-05 | N23: 4.029598071e-08
A24: 8.93632 | B24: ='DF raw data'!D29 -> 3.3008107e-06 | C24: ='DF raw data'!E29 -> 4.8425222e-06 | D24: ='DF raw data'!F29 -> -7.8564318e-07 | F24: 3.305775119e-06 | G24: 4.862001894e-06 | H24: -7.868247873e-07 | J24: 0.0001095759776 | K24: 0.0005803699047 | L24: 2.173362417e-05 | M24: 6.107747071e-05 | N24: 4.653859837e-08
A25: 9.43656 | B25: ='DF raw data'!D30 -> 1.4146643e-06 | C25: ='DF raw data'!E30 -> -4.2846955e-06 | D25: ='DF raw data'!F30 -> -3.0778317e-06 | F25: 1.416791955e-06 | G25: -4.301931261e-06 | H25: -3.082460759e-06 | J25: 0.0001102847136 | K25: 0.0006355387298 | L25: 1.958162608e-05 | M25: 7.087298334e-05 | N25: 5.281468851e-08
A26: 9.9368 | B26: ='DF raw data'!D31 -> 3.5035177e-07 | C26: ='DF raw data'!E31 -> -7.5335142e-06 | D26: ='DF raw data'!F31 -> 6.0141174e-06 | F26: 3.508786991e-07 | G26: -7.563818769e-06 | H26: 6.023162633e-06 | J26: 0.0001104602371 | K26: 0.0006907953588 | L26: 1.579790138e-05 | M26: 7.877572552e-05 | N26: 5.90431956e-08
A27: 10.43704 | B27: ='DF raw data'!D32 -> -4.3668857e-07 | C27: ='DF raw data'!E32 -> 1.3063033e-06 | D27: ='DF raw data'!F32 -> 6.5683125e-06 | F27: -4.373453496e-07 | G27: 1.31155808e-06 | H27: 6.578191242e-06 | J27: 0.0001102414595 | K27: 0.0007459425465 | L27: 1.645399519e-05 | M27: 8.700667208e-05 | N27: 6.525813401e-08
A28: 10.93728 | B28: ='DF raw data'!D33 -> 2.8246708e-07 | C28: ='DF raw data'!E33 -> -5.7092971e-06 | D28: ='DF raw data'!F33 -> 4.9118552e-07 | F28: 2.828919105e-07 | G28: -5.732263512e-06 | H28: 4.91924263e-07 | J28: 0.0001103829733 | K28: 0.0008011605251 | L28: 1.358648769e-05 | M28: 9.380317668e-05 | N28: 7.14455993e-08
A29: 11.43752 | B29: ='DF raw data'!D34 -> 2.1412995e-06 | C29: ='DF raw data'!E34 -> -8.0103819e-06 | D29: ='DF raw data'!F34 -> 2.7165663e-06 | F29: 2.144520014e-06 | G29: -8.042604733e-06 | H29: 2.720652016e-06 | J29: 0.000111455748 | K29: 0.0008569151485 | L29: 9.563255102e-06 | M29: 9.858709941e-05 | N29: 7.770552243e-08
A30: 11.93776 | B30: ='DF raw data'!D35 -> -1.6202117e-07 | C30: ='DF raw data'!E35 -> -1.036804e-05 | D30: ='DF raw data'!F35 -> 6.6832436e-06 | F30: -1.622648498e-07 | G30: -1.040974683e-05 | H30: 6.693295198e-06 | J30: 0.0001113745767 | K30: 0.0009126291667 | L30: 4.355883349e-06 | M30: 0.0001007660865 | N30: 8.392013904e-08
A31: 12.438 | B31: ='DF raw data'!D36 -> -4.5691559e-06 | C31: ='DF raw data'!E36 -> -6.9793919e-06 | D31: ='DF raw data'!F36 -> 2.6870126e-07 | F31: -4.57602791e-06 | G31: -7.007467438e-06 | H31: 2.691053867e-07 | J31: 0.0001090854645 | K31: 0.0009671980795 | L31: 8.504678378e-07 | M31: 0.0001011915245 | N31: 8.987317605e-08
A32: 12.93824 | B32: ='DF raw data'!D37 -> -3.6318527e-06 | C32: ='DF raw data'!E37 -> -5.1653155e-06 | D32: ='DF raw data'!F37 -> -4.712143e-06 | F32: -3.637315006e-06 | G32: -5.186093673e-06 | H32: -4.719230063e-06 | J32: 0.000107265934 | K32: 0.00102085679 | L32: -1.743823661e-06 | M32: 0.0001003191942 | N32: 9.563044898e-08
A33: 13.43848 | B33: ='DF raw data'!D38 -> 2.4938051e-06 | C33: ='DF raw data'!E38 -> 7.1434982e-08 | D33: ='DF raw data'!F38 -> -3.6221898e-06 | F33: 2.497555783e-06 | G33: 7.172233877e-08 | H33: -3.627637573e-06 | J33: 0.0001085153113 | K33: 0.00107514049 | L33: -1.707945278e-06 | M33: 9.946481164e-05 | N33: 1.015225207e-07
A34: 13.93872 | B34: ='DF raw data'!D39 -> 2.7494532e-06 | C34: ='DF raw data'!E39 -> -4.3979899e-08 | D34: ='DF raw data'!F39 -> -5.2692339e-08 | F34: 2.753588378e-06 | G34: -4.415681403e-08 | H34: -5.277158828e-08 | J34: 0.0001098927664 | K34: 0.001130113247 | L34: -1.730034283e-06 | M34: 9.859937929e-05 | N34: 1.075651264e-07
A35: 14.43896 | B35: ='DF raw data'!D40 -> -1.1462399e-06 | C35: ='DF raw data'!E40 -> 3.7337427e-06 | D35: ='DF raw data'!F40 -> -2.4278704e-06 | F35: -1.147963845e-06 | G35: 3.74876218e-06 | H35: -2.431521917e-06 | J35: 0.0001093185089 | K35: 0.001184798738 | L35: 1.452465098e-07 | M35: 9.86720374e-05 | N35: 1.135432732e-07
A36: 14.9392 | B36: ='DF raw data'!D41 -> -3.6279819e-06 | C36: ='DF raw data'!E41 -> -3.5725957e-06 | D36: ='DF raw data'!F41 -> -3.9542938e-06 | F36: -3.633438385e-06 | G36: -3.586966944e-06 | H36: -3.960241058e-06 | J36: 0.0001075009177 | K36: 0.001238574997 | L36: -1.649097834e-06 | M36: 9.78470927e-05 | N36: 1.193256309e-07
A37: 15.43944 | B37: ='DF raw data'!D42 -> -6.8312947e-06 | C37: ='DF raw data'!E42 -> -1.2767144e-06 | D37: ='DF raw data'!F42 -> -3.227178e-06 | F37: -6.841568967e-06 | G37: -1.281850155e-06 | H37: -3.232031676e-06 | J37: 0.0001040784913 | K37: 0.001290639222 | L37: -2.290330556e-06 | M37: 9.670137774e-05 | N37: 1.247470209e-07
A38: 15.93968 | B38: ='DF raw data'!D43 -> -6.5651693e-06 | C38: ='DF raw data'!E43 -> -2.3225152e-06 | D38: ='DF raw data'!F43 -> -1.4533142e-06 | F38: -6.575043315e-06 | G38: -2.331857828e-06 | H38: -1.455499985e-06 | J38: 0.0001007893916 | K38: 0.001341058107 | L38: -3.456819116e-06 | M38: 9.497213855e-05 | N38: 1.298346873e-07
A39: 16.43992 | B39: ='DF raw data'!D44 -> -9.0881093e-07 | C39: ='DF raw data'!E44 -> -8.0947084e-06 | D39: ='DF raw data'!F44 -> 4.6556816e-06 | F39: -9.101777816e-07 | G39: -8.127270448e-06 | H39: 4.662683745e-06 | J39: 0.0001003340843 | K39: 0.001391249229 | L39: -7.522404884e-06 | M39: 9.120913073e-05 | N39: 1.348988745e-07
A40: 16.94016 | B40: ='DF raw data'!D45 -> 1.5796685e-06 | C40: ='DF raw data'!E45 -> -1.0384123e-06 | D40: ='DF raw data'!F45 -> 8.6879299e-06 | F40: 1.582044321e-06 | G40: -1.042589452e-06 | H40: 8.700996547e-06 | J40: 0.0001011254861 | K40: 0.001441836242 | L40: -8.043949832e-06 | M40: 8.718522527e-05 | N40: 1.400468788e-07
A41: 17.4404 | B41: ='DF raw data'!D46 -> 2.057204e-06 | C41: ='DF raw data'!E46 -> -5.4193009e-07 | D41: ='DF raw data'!F46 -> 9.8972814e-06 | F41: 2.060298035e-06 | G41: -5.441100763e-07 | H41: 9.912166911e-06 | J41: 0.0001021561296 | K41: 0.001492938825 | L41: -8.316135457e-06 | M41: 8.302516167e-05 | N41: 1.453019165e-07
A42: 17.94064 | B42: ='DF raw data'!D47 -> 3.6183323e-07 | C42: ='DF raw data'!E47 -> 5.2770952e-06 | D42: ='DF raw data'!F47 -> 1.1802651e-05 | F42: 3.623774272e-07 | G42: 5.298323022e-06 | H42: 1.182040219e-05 | J42: 0.0001023374053 | K42: 0.001544132088 | L42: -5.665702348e-06 | M42: 8.019095072e-05 | N42: 1.505569601e-07
A43: 18.44088 | B43: ='DF raw data'!D48 -> 2.1788871e-06 | C43: ='DF raw data'!E48 -> 2.6200264e-06 | D43: ='DF raw data'!F48 -> 7.6006982e-06 | F43: 2.182164146e-06 | G43: 2.630565807e-06 | H43: 7.61212965e-06 | J43: 0.0001034290111 | K43: 0.001595871417 | L43: -4.349788109e-06 | M43: 7.801501272e-05 | N43: 1.559177725e-07
A44: 18.94112 | B44: ='DF raw data'!D49 -> 4.683985e-06 | C44: ='DF raw data'!E49 -> -3.6421102e-06 | D44: ='DF raw data'!F49 -> 3.6515705e-06 | F44: 4.691029713e-06 | G44: -3.656761076e-06 | H44: 3.657062462e-06 | J44: 0.0001057756518 | K44: 0.001648784629 | L44: -6.17904627e-06 | M44: 7.492400661e-05 | N44: 1.615338015e-07
A45: 19.44136 | B45: ='DF raw data'!D50 -> 6.2259642e-06 | C45: ='DF raw data'!E50 -> -4.2077809e-07 | D45: ='DF raw data'!F50 -> -1.8746067e-06 | F45: 6.23532805e-06 | G45: -4.224707262e-07 | H45: -1.877426108e-06 | J45: 0.0001088948123 | K45: 0.00170325817 | L45: -6.390383026e-06 | M45: 7.172728141e-05 | N45: 1.674861158e-07
A46: 19.9416 | B46: ='DF raw data'!D51 -> 7.4295967e-06 | C46: ='DF raw data'!E51 -> 3.4926411e-06 | D46: ='DF raw data'!F51 -> -5.5181154e-06 | F46: 7.440770813e-06 | G46: 3.506690716e-06 | H46: -5.526414646e-06 | J46: 0.0001126169835 | K46: 0.001759593689 | L46: -4.636196062e-06 | M46: 6.940807069e-05 | N46: 1.738412044e-07
A47: 20.44184 | B47: ='DF raw data'!D52 -> 7.3893461e-06 | C47: ='DF raw data'!E52 -> -6.4859782e-06 | D47: ='DF raw data'!F52 -> 1.0803356e-07 | F47: 7.400459677e-06 | G47: -6.512068915e-06 | H47: 1.081960425e-07 | J47: 0.0001163189894 | K47: 0.001817781101 | L47: -7.893793416e-06 | M47: 6.545927947e-05 | N47: 1.806406762e-07
A48: 20.94208 | B48: ='DF raw data'!D53 -> 6.4002525e-06 | C48: ='DF raw data'!E53 -> -1.1871838e-06 | D48: ='DF raw data'!F53 -> 9.9569734e-06 | F48: 6.40987848e-06 | G48: -1.191959406e-06 | H48: 9.971948688e-06 | J48: 0.000119525467 | K48: 0.00187757252 | L48: -8.490059189e-06 | M48: 6.121221226e-05 | N48: 1.878233314e-07
A49: 21.44232 | B49: ='DF raw data'!D54 -> 5.120266e-06 | C49: ='DF raw data'!E54 -> 2.0815146e-06 | D49: ='DF raw data'!F54 -> 1.3777375e-05 | F49: 5.12796688e-06 | G49: 2.089887771e-06 | H49: 1.379809617e-05 | J49: 0.0001220906812 | K49: 0.001938647163 | L49: -7.444613731e-06 | M49: 5.748811869e-05 | N49: 1.953077006e-07
A50: 21.94256 | B50: ='DF raw data'!D55 -> 3.3441318e-06 | C50: ='DF raw data'!E55 -> 6.4158953e-06 | D50: ='DF raw data'!F55 -> 1.5315905e-07 | F50: 3.349161374e-06 | G50: 6.441704097e-06 | H50: 1.533894012e-07 | J50: 0.0001237660657 | K50: 0.002000559899 | L50: -4.222215673e-06 | M50: 5.537599752e-05 | N50: 2.029793142e-07
A51: 22.4428 | B51: ='DF raw data'!D56 -> 2.8961656e-06 | C51: ='DF raw data'!E56 -> 9.3017076e-07 | D51: ='DF raw data'!F56 -> -2.8519569e-06 | F51: 2.900521433e-06 | G51: 9.339124964e-07 | H51: -2.856246243e-06 | J51: 0.0001252170225 | K51: 0.002063198463 | L51: -3.755035286e-06 | M51: 5.349757867e-05 | N51: 2.108297822e-07
A52: 22.94304 | B52: ='DF raw data'!D57 -> 2.2014426e-06 | C52: ='DF raw data'!E57 -> -8.0638874e-06 | D52: ='DF raw data'!F57 -> 4.3495689e-07 | F52: 2.20475357e-06 | G52: -8.096325466e-06 | H52: 4.356110652e-07 | J52: 0.0001263199284 | K52: 0.002126388744 | L52: -7.805141137e-06 | M52: 4.959313487e-05 | N52: 2.188424487e-07
A53: 23.44328 | B53: ='DF raw data'!D58 -> 3.564666e-06 | C53: ='DF raw data'!E58 -> -1.0020863e-05 | D53: ='DF raw data'!F58 -> -1.0890652e-06 | F53: 3.570027258e-06 | G53: -1.006117326e-05 | H53: -1.090703154e-06 | J53: 0.0001281057989 | K53: 0.002190472388 | L53: -1.283814245e-05 | M53: 4.317098249e-05 | N53: 2.271343837e-07
A54: 23.94352 | B54: ='DF raw data'!D59 -> 8.6695945e-06 | C54: ='DF raw data'!E59 -> -7.0578467e-06 | D54: ='DF raw data'!F59 -> 7.3025893e-07 | F54: 8.68263357e-06 | G54: -7.086237833e-06 | H54: 7.313572394e-07 | J54: 0.0001324491995 | K54: 0.002256728776 | L54: -1.638296206e-05 | M54: 3.497556955e-05 | N54: 2.360442543e-07
A55: 24.44376 | B55: ='DF raw data'!D60 -> 9.8460005e-06 | C55: ='DF raw data'!E60 -> -1.4228222e-05 | D55: ='DF raw data'!F60 -> -9.1822568e-07 | F55: 9.860808885e-06 | G55: -1.428545693e-05 | H55: -9.196066914e-07 | J55: 0.0001373819705 | K55: 0.002325452733 | L55: -2.352911904e-05 | M55: 2.320536304e-05 | N55: 2.457626295e-07
A56: 24.944 | B56: ='DF raw data'!D61 -> 2.3114405e-06 | C56: ='DF raw data'!E61 -> -4.2064531e-07 | D56: ='DF raw data'!F61 -> -8.3775376e-06 | F56: 2.314916907e-06 | G56: -4.223374121e-07 | H56: -8.390137417e-06 | J56: 0.0001385399846 | K56: 0.002394755975 | L56: -2.37403891e-05 | M56: 1.132947079e-05 | N56: 2.556458379e-07
A57: 25.44424 | B57: ='DF raw data'!D62 -> -2.5842312e-06 | C57: ='DF raw data'!E62 -> -3.4196878e-06 | D57: ='DF raw data'!F62 -> -1.2043674e-05 | F57: -2.588117884e-06 | G57: -3.433443952e-06 | H57: -1.206178769e-05 | J57: 0.0001372453045 | K57: 0.002463411566 | L57: -2.545793511e-05 | M57: -1.405606663e-06 | N57: 2.653927042e-07
A58: 25.94448 | B58: ='DF raw data'!D63 -> -1.2495731e-06 | C58: ='DF raw data'!E63 -> 5.1297916e-06 | D58: ='DF raw data'!F63 -> -5.530761e-06 | F58: -1.251452458e-06 | G58: 5.150426873e-06 | H58: -5.539079265e-06 | J58: 0.0001366192779 | K58: 0.002531753994 | L58: -2.288148557e-05 | M58: -1.2851841e-05 | N58: 2.749915041e-07
A59: 26.44472 | B59: ='DF raw data'!D64 -> 1.6809353e-06 | C59: ='DF raw data'!E64 -> 4.701138e-07 | D59: ='DF raw data'!F64 -> -3.6248675e-08 | F59: 1.683463427e-06 | G59: 4.720048957e-07 | H59: -3.630319301e-08 | J59: 0.0001374614136 | K59: 0.002600517691 | L59: -2.264536984e-05 | M59: -2.417996081e-05 | N59: 2.847003887e-07
A60: 26.94496 | B60: ='DF raw data'!D65 -> 2.3195896e-06 | C60: ='DF raw data'!E65 -> -8.8956713e-06 | D60: ='DF raw data'!F65 -> -2.2793827e-06 | F60: 2.323078263e-06 | G60: -8.931455328e-06 | H60: -2.282810892e-06 | J60: 0.0001386235103 | K60: 0.002669862716 | L60: -2.711324105e-05 | M60: -3.774308851e-05 | N60: 2.946809798e-07
A61: 27.4452 | B61: ='DF raw data'!D66 -> 3.4592665e-06 | C61: ='DF raw data'!E66 -> -7.5535286e-06 | D61: ='DF raw data'!F66 -> -6.0557941e-06 | F61: 3.464469237e-06 | G61: -7.58391368e-06 | H61: -6.064902014e-06 | J61: 0.0001403565764 | K61: 0.00274007469 | L61: -3.090701803e-05 | M61: -5.320401521e-05 | N61: 3.050135432e-07
A62: 27.94544 | B62: ='DF raw data'!D67 -> 9.4728586e-07 | C62: ='DF raw data'!E67 -> -5.3649223e-06 | D62: ='DF raw data'!F67 -> -3.047491e-06 | F62: 9.487105779e-07 | G62: -5.386503418e-06 | H62: -3.052074426e-06 | J62: 0.0001408311594 | K62: 0.002810524069 | L62: -3.36015625e-05 | M62: -7.001286084e-05 | N62: 3.154998144e-07
A63: 28.44568 | B63: ='DF raw data'!D68 -> -4.4858461e-06 | C63: ='DF raw data'!E68 -> 8.1142898e-06 | D63: ='DF raw data'!F68 -> 1.1709782e-06 | F63: -4.492592813e-06 | G63: 8.146930617e-06 | H63: 1.172739351e-06 | J63: 0.0001385837847 | K63: 0.002879849221 | L63: -2.952614193e-05 | M63: -8.478301808e-05 | N63: 3.255432622e-07
A64: 28.94592 | B64: ='DF raw data'!D69 -> -5.1102979e-06 | C64: ='DF raw data'!E69 -> 9.3871091e-07 | D64: ='DF raw data'!F69 -> -1.5845579e-06 | F64: -5.117983788e-06 | G64: 9.424870003e-07 | H64: -1.586941075e-06 | J64: 0.0001360235645 | K64: 0.002947893649 | L64: -2.905467223e-05 | M64: -9.931732731e-05 | N64: 3.352211974e-07
A65: 29.44616 | B65: ='DF raw data'!D70 -> -4.7724752e-06 | C65: ='DF raw data'!E70 -> -2.8025866e-06 | D65: ='DF raw data'!F70 -> -2.5627364e-07 | F65: -4.779653003e-06 | G65: -2.81386038e-06 | H65: -2.566590756e-07 | J65: 0.0001336325909 | K65: 0.003014742016 | L65: -3.046227775e-05 | M65: -0.0001145557771 | N65: 3.446185158e-07
A66: 29.9464 | B66: ='DF raw data'!D71 -> -2.8755896e-06 | C66: ='DF raw data'!E71 -> -5.2575128e-06 | D66: ='DF raw data'!F71 -> -4.902613e-06 | F66: -2.879914487e-06 | G66: -5.278661849e-06 | H66: -4.90998653e-06 | J66: 0.0001321919425 | K66: 0.003080869714 | L66: -3.310287555e-05 | M66: -0.0001311151596 | N66: 3.539082277e-07
A67: 30.44664 | B67: ='DF raw data'!D72 -> -2.0173904e-06 | C67: ='DF raw data'!E72 -> -9.5728899e-07 | D67: ='DF raw data'!F72 -> -3.116307e-06 | F67: -2.020424555e-06 | G67: -9.611398131e-07 | H67: -3.120993926e-06 | J67: 0.0001311812453 | K67: 0.00314649182 | L67: -3.358367613e-05 | M67: -0.0001479150577 | N67: 3.630808197e-07
A68: 30.94688 | B68: ='DF raw data'!D73 -> -6.9962715e-07 | C68: ='DF raw data'!E73 -> -3.842119e-06 | D68: ='DF raw data'!F73 -> -5.0495e-08 | F68: -7.006793892e-07 | G68: -3.857574438e-06 | H68: -5.057094448e-08 | J68: 0.0001308307375 | K68: 0.003211938588 | L68: -3.551338917e-05 | M68: -0.0001656802755 | N68: 3.722741717e-07
A69: 31.44712 | B69: ='DF raw data'!D74 -> 2.6459891e-06 | C69: ='DF raw data'!E74 -> -5.9267845e-06 | D69: ='DF raw data'!F74 -> 8.2296918e-07 | F69: 2.649968668e-06 | G69: -5.950625784e-06 | H69: 8.242069256e-07 | J69: 0.0001321563578 | K69: 0.003278048484 | L69: -3.849013021e-05 | M69: -0.0001849345783 | N69: 3.817521154e-07
A70: 31.94736 | B70: ='DF raw data'!D75 -> 9.8070159e-06 | C70: ='DF raw data'!E75 -> -7.6299821e-06 | D70: ='DF raw data'!F75 -> 3.9439474e-06 | F70: 9.821765652e-06 | G70: -7.660674724e-06 | H70: 3.949879097e-06 | J70: 0.0001370695978 | K70: 0.00334661618 | L70: -4.232230613e-05 | M70: -0.0002061058887 | N70: 3.920466806e-07
A71: 32.4476 | B71: ='DF raw data'!D76 -> 1.3515542e-05 | C71: ='DF raw data'!E76 -> 2.4870001e-06 | D71: ='DF raw data'!F76 -> 6.1749015e-06 | F71: 1.353586938e-05 | G71: =(1-$G$1*($B$2-$G$2))*C71*$M$2/$M$1 -> 2.497004391e-06 | H71: 6.184188552e-06 | J71: 0.0001438407811 | K71: 0.003418571092 | L71: -4.107320466e-05 | M71: -0.0002266523486 | N71: 4.032406403e-07
A72: =A71+$B$1 -> 32.94784 | B72: ='DF raw data'!D77 -> 9.1273687e-06 | C72: ='DF raw data'!E77 -> 1.0584827e-05 | D72: ='DF raw data'!F77 -> 6.4898486e-06 | F72: 9.141096263e-06 | G72: 1.062740588e-05 | H72: 6.499609332e-06 | J72: =F72*$B$1+J71 -> 0.0001484135231 | K72: =J72*$B$1+K71 -> 0.003492813473 | L72: =G72*$B$1+L71 -> -3.575695114e-05 | M72: =L72*$B$1+M71 -> -0.0002445394058 | N72: =(J72^2+L72^2)*$B$1+N71 -> 4.148988003e-07
A73: 33.44808 | B73: ='DF raw data'!D78 -> 3.4031398e-06 | C73: ='DF raw data'!E78 -> 8.1806029e-06 | D73: ='DF raw data'!F78 -> 7.2325201e-06 | F73: 3.408258122e-06 | G73: 8.21351047e-06 | H73: 7.24339781e-06 | J73: 0.0001501184702 | K73: 0.003567908737 | L73: -3.164822466e-05 | M73: -0.0002603711137 | N73: 4.266730318e-07
A74: 33.94832 | B74: ='DF raw data'!D79 -> 4.5173496e-07 | C74: ='DF raw data'!E79 -> -4.1711487e-06 | D74: ='DF raw data'!F79 -> 1.7907879e-06 | F74: 4.524143694e-07 | G74: -4.187927704e-06 | H74: 1.793481245e-06 | J74: 0.0001503447859 | K74: 0.003643117212 | L74: -3.374319362e-05 | M74: -0.0002772508089 | N74: 4.385498088e-07
A75: 34.44856 | B75: ='DF raw data'!D80 -> -4.0512386e-06 | C75: ='DF raw data'!E80 -> 5.6705717e-06 | D75: ='DF raw data'!F80 -> 3.5628923e-07 | F75: -4.057331663e-06 | G75: 5.693382334e-06 | H75: 3.56825089e-07 | J75: 0.0001483151463 | K75: 0.003717310381 | L75: -3.089513604e-05 | M75: -0.0002927057918 | N75: 4.500312633e-07
A76: 34.9488 | B76: ='DF raw data'!D81 -> -5.1137613e-06 | C76: ='DF raw data'!E81 -> 4.5998181e-06 | D76: ='DF raw data'!F81 -> 5.3798448e-07 | F76: -5.121452397e-06 | G76: 4.618321484e-06 | H76: 5.387936087e-07 | J76: 0.000145753191 | K76: 0.003790221958 | L76: -2.85848669e-05 | M76: -0.0003070050856 | N76: 4.610671016e-07
A77: 35.44904 | B77: ='DF raw data'!D82 -> 1.0950752e-06 | C77: ='DF raw data'!E82 -> -4.3395344e-06 | D77: ='DF raw data'!F82 -> -3.9934239e-06 | F77: 1.096722193e-06 | G77: -4.356990758e-06 | H77: -3.99943001e-06 | J77: 0.0001463018153 | K77: 0.003863407978 | L77: -3.076440795e-05 | M77: -0.000322394673 | N77: 4.722478007e-07
A78: 35.94928 | B78: ='DF raw data'!D83 -> 4.2138126e-06 | C78: ='DF raw data'!E83 -> -2.9618991e-06 | D78: ='DF raw data'!F83 -> -4.184898e-06 | F78: 4.220150174e-06 | G78: -2.973813735e-06 | H78: -4.191192087e-06 | J78: 0.0001484129032 | K78: 0.003937650048 | L78: -3.225202854e-05 | M78: -0.0003385284278 | N78: 4.837866283e-07
A79: 36.44952 | B79: ='DF raw data'!D84 -> 5.5022101e-06 | C79: ='DF raw data'!E84 -> 2.2310865e-06 | D79: ='DF raw data'!F84 -> 3.3252584e-06 | F79: 5.510485424e-06 | G79: 2.240061344e-06 | H79: 3.330259589e-06 | J79: 0.0001511694685 | K79: 0.004013271063 | L79: -3.113146025e-05 | M79: -0.0003541016295 | N79: 4.957030334e-07
A80: 36.94976 | B80: ='DF raw data'!D85 -> 4.9172086e-06 | C80: ='DF raw data'!E85 -> 6.6485914e-06 | D80: ='DF raw data'!F85 -> 6.7344954e-06 | F80: 4.924604082e-06 | G80: 6.675336249e-06 | H80: 6.744624081e-06 | J80: 0.0001536329524 | K80: 0.004090124411 | L80: -2.779219005e-05 | M80: -0.0003680043946 | N80: 5.078966285e-07
A81: 37.45 | B81: ='DF raw data'!D86 -> 3.5424453e-06 | C81: ='DF raw data'!E86 -> -6.5446861e-06 | D81: ='DF raw data'!F86 -> -1.3079697e-06 | F81: 3.547773138e-06 | G81: -6.571012976e-06 | H81: -1.309936886e-06 | J81: 0.0001554076904 | K81: 0.004167865554 | L81: -3.107927358e-05 | M81: -0.0003835514904 | N81: 5.204613924e-07
A82: 37.95024 | B82: ='DF raw data'!D87 -> 3.4686816e-06 | C82: ='DF raw data'!E87 -> -5.4763336e-06 | D82: ='DF raw data'!F87 -> -6.8388035e-06 | F82: 3.473898497e-06 | G82: -5.498362885e-06 | H82: -6.84908906e-06 | J82: 0.0001571454734 | K82: 0.004246476006 | L82: -3.382977463e-05 | M82: -0.0004004744969 | N82: 5.333871706e-07
A83: 38.45048 | B83: ='DF raw data'!D88 -> 1.0528164e-06 | C83: ='DF raw data'!E88 -> 5.5135274e-06 | D83: ='DF raw data'!F88 -> -5.8865553e-06 | F83: 1.054399836e-06 | G83: 5.535706302e-06 | H83: -5.895408679e-06 | J83: 0.0001576729264 | K83: 0.004325350311 | L83: -3.106059291e-05 | M83: -0.0004160122479 | N83: 5.463061248e-07
A84: 38.95072 | B84: ='DF raw data'!D89 -> -7.5862062e-07 | C84: ='DF raw data'!E89 -> 3.6466149e-06 | D84: ='DF raw data'!F89 -> -3.6573908e-06 | F84: -7.597615854e-07 | G84: 3.661283896e-06 | H84: -3.662891516e-06 | J84: 0.0001572928633 | K84: 0.004404034493 | L84: -2.922907225e-05 | M84: -0.000430633799 | N84: 5.591099594e-07
A85: 39.45096 | B85: ='DF raw data'!D90 -> 1.7408018e-06 | C85: ='DF raw data'!E90 -> 5.3376021e-07 | D85: ='DF raw data'!F90 -> 1.1818194e-06 | F85: 1.743419966e-06 | G85: 5.359073319e-07 | H85: 1.183596856e-06 | J85: 0.0001581649917 | K85: 0.004483154948 | L85: -2.896098997e-05 | M85: -0.0004451212446 | N85: 5.720436163e-07
A86: 39.9512 | B86: ='DF raw data'!D91 -> 2.1194717e-06 | C86: ='DF raw data'!E91 -> 3.992192e-06 | D86: ='DF raw data'!F91 -> 6.1930768e-06 | F86: 2.122659385e-06 | G86: 4.008251127e-06 | H86: 6.202391188e-06 | J86: 0.0001592268308 | K86: 0.004562806578 | L86: -2.695590242e-05 | M86: -0.0004586056652 | N86: 5.850897777e-07
A87: 40.45144 | B87: ='DF raw data'!D92 -> -4.4183689e-06 | C87: ='DF raw data'!E92 -> 6.0002708e-06 | D87: ='DF raw data'!F92 -> 2.38292e-06 | F87: =(1-$G$1*($B$2-$G$2))*B87 -> -4.425014127e-06 | G87: 6.024407692e-06 | H87: 2.386503912e-06 | J87: 0.0001570132617 | K87: 0.004641350892 | L87: -2.394225272e-05 | M87: -0.0004705825377 | N87: 5.977090299e-07
A88: 40.95168 | B88: ='DF raw data'!D93 -> -7.6790166e-06 | C88: ='DF raw data'!E93 -> 3.2164457e-06 | D88: ='DF raw data'!F93 -> -2.4415201e-06 | F88: -7.690565841e-06 | G88: 3.229384283e-06 | H88: -2.445192146e-06 | J88: 0.0001531661331 | K88: 0.004717970718 | L88: -2.232678552e-05 | M88: -0.0004817512889 | N88: 6.096939547e-07
A89: 41.45192 | B89: ='DF raw data'!D94 -> -3.7430002e-06 | C89: ='DF raw data'!E94 -> -8.0430727e-06 | D89: ='DF raw data'!F94 -> -9.4281717e-08 | F89: -3.748629672e-06 | G89: -8.075427036e-06 | H89: -9.44235167e-08 | J89: 0.0001512909186 | K89: 0.004793652487 | L89: -2.636643715e-05 | M89: -0.0004949408354 | N89: 6.214916805e-07
A90: 41.95216 | B90: ='DF raw data'!D95 -> -4.4076151e-06 | C90: ='DF raw data'!E95 -> -1.6145517e-06 | D90: ='DF raw data'!F95 -> 2.2310417e-06 | F90: -4.414244153e-06 | G90: -1.62104645e-06 | H90: 2.234397187e-06 | J90: 0.0001490827371 | K90: 0.004868229636 | L90: -2.717734942e-05 | M90: -0.0005085360327 | N90: 6.329793273e-07
A91: 42.4524 | B91: ='DF raw data'!D96 -> -5.9597514e-06 | C91: ='DF raw data'!E96 -> 4.5879437e-06 | D91: ='DF raw data'!F96 -> 7.2338444e-06 | F91: -5.968714866e-06 | G91: 4.606399318e-06 | H91: 7.244724102e-06 | J91: 0.0001460969471 | K91: 0.004941313173 | L91: -2.487304423e-05 | M91: -0.0005209785243 | N91: 6.439660916e-07
A92: 42.95264 | B92: ='DF raw data'!D97 -> -4.7276117e-06 | C92: ='DF raw data'!E97 -> 1.322314e-06 | D92: ='DF raw data'!F97 -> 2.9376536e-06 | F92: -4.734722028e-06 | G92: 1.327633185e-06 | H92: 2.942071831e-06 | J92: 0.0001437284498 | K92: 0.005013211892 | L92: -2.4208909e-05 | M92: -0.000533088789 | N92: 6.545931594e-07
A93: 43.45288 | B93: ='DF raw data'!D98 -> -9.4023562e-06 | C93: ='DF raw data'!E98 -> 3.1880259e-06 | D93: ='DF raw data'!F98 -> 2.985704e-06 | F93: -9.416497344e-06 | G93: 3.200850161e-06 | H93: 2.990194499e-06 | J93: 0.0001390179412 | K93: 0.005082754227 | L93: -2.260771572e-05 | M93: -0.0005443980727 | N93: 6.645164687e-07
A94: 43.95312 | B94: ='DF raw data'!D99 -> -1.5812839e-05 | C94: ='DF raw data'!E99 -> 9.7019401e-06 | D94: ='DF raw data'!F99 -> 9.4329298e-06 | F94: -1.583662151e-05 | G94: 9.740967452e-06 | H94: 9.447116926e-06 | J94: 0.0001310958296 | K94: 0.005148333605 | L94: -1.773489416e-05 | M94: -0.0005532697762 | N94: 6.732709903e-07
A95: 44.45336 | B95: ='DF raw data'!D100 -> -1.4161516e-05 | C95: ='DF raw data'!E100 -> 5.268957e-06 | D95: ='DF raw data'!F100 -> 8.429357e-06 | F95: -1.418281492e-05 | G95: 5.290152085e-06 | H95: 8.442034753e-06 | J95: 0.0001240010183 | K95: 0.005210363874 | L95: -1.508854848e-05 | M95: -0.0005608176716 | N95: 6.810766937e-07
A96: 44.9536 | B96: ='DF raw data'!D101 -> -1.0467076e-05 | C96: ='DF raw data'!E101 -> -5.2922046e-06 | D96: ='DF raw data'!F101 -> 8.2855712e-07 | F96: -1.048281848e-05 | G96: -5.313493201e-06 | H96: 8.298032699e-07 | J96: 0.0001187570932 | K96: 0.005269770923 | L96: -1.774657032e-05 | M96: -0.000569695216 | N96: 6.88289248e-07
A97: 45.45384 | B97: ='DF raw data'!D102 -> -8.2623301e-06 | C97: ='DF raw data'!E102 -> 1.2245997e-05 | D97: ='DF raw data'!F102 -> -1.4425312e-06 | F97: -8.274756644e-06 | G97: 1.229525816e-05 | H97: -1.444700767e-06 | J97: 0.0001146177289 | K97: 0.005327107295 | L97: -1.159599038e-05 | M97: -0.0005754959942 | N97: 6.949282786e-07
A98: 45.95408 | B98: ='DF raw data'!D103 -> -4.1701278e-06 | C98: ='DF raw data'!E103 -> 4.6898817e-06 | D98: ='DF raw data'!F103 -> 6.4293289e-07 | F98: -4.176399672e-06 | G98: 4.708747377e-06 | H98: 6.438998611e-07 | J98: 0.0001125285267 | K98: 0.005383398566 | L98: -9.240486589e-06 | M98: -0.0005801184552 | N98: 7.013053661e-07
A99: 46.45432 | B99: ='DF raw data'!D104 -> -4.5841734e-06 | C99: ='DF raw data'!E104 -> -8.2601582e-06 | D99: ='DF raw data'!F104 -> -1.2866657e-06 | F99: -4.591067997e-06 | G99: -8.293385792e-06 | H99: -1.288600845e-06 | J99: 0.0001102318909 | K99: 0.005438540967 | L99: -1.33891699e-05 | M99: -0.0005868162536 | N99: 7.074734952e-07
A100: 46.95456 | B100: ='DF raw data'!D105 -> -8.4365456e-06 | C100: ='DF raw data'!E105 -> -3.6921451e-06 | D100: ='DF raw data'!F105 -> -3.8851431e-06 | F100: -8.449234165e-06 | G100: -3.706997248e-06 | H100: -3.890986355e-06 | J100: 0.000106005246 | K100: 0.005491569031 | L100: -1.52435582e-05 | M100: -0.0005944416911 | N100: 7.13210987e-07
A101: 47.4548 | B101: ='DF raw data'!D106 -> -9.9918834e-06 | C101: ='DF raw data'!E106 -> 5.8986002e-06 | D101: ='DF raw data'!F106 -> -8.0236641e-06 | F101: -1.000691119e-05 | G101: 5.922328109e-06 | H101: -8.035731691e-06 | J101: 0.0001009993887 | K101: 0.005542092965 | L101: -1.228097279e-05 | M101: -0.0006005851249 | N101: 7.183893208e-07
A102: 47.95504 | B102: ='DF raw data'!D107 -> -4.9181253e-06 | C102: ='DF raw data'!E107 -> 2.4228207e-06 | D102: ='DF raw data'!F107 -> -7.7430741e-06 | F102: -4.92552216e-06 | G102: 2.43256682e-06 | H102: -7.754719683e-06 | J102: 9.853544551e-05 | K102: 0.005591384336 | L102: -1.106410556e-05 | M102: -0.0006061198331 | N102: 7.233075046e-07
A103: 48.45528 | B103: ='DF raw data'!D108 -> 3.5422415e-06 | C103: ='DF raw data'!E108 -> -1.0136945e-05 | D103: ='DF raw data'!F108 -> -8.279967e-06 | F103: 3.547569031e-06 | G103: -1.017772222e-05 | H103: -8.29242007e-06 | J103: 0.0001003100814 | K103: 0.005641563452 | L103: -1.615540932e-05 | M103: -0.0006142014151 | N103: 7.28471537e-07
A104: 48.95552 | B104: ='DF raw data'!D109 -> 3.7282005e-06 | C104: ='DF raw data'!E109 -> -8.4587776e-07 | D104: ='DF raw data'!F109 -> -5.777998e-06 | F104: 3.733807714e-06 | G104: -8.492804165e-07 | H104: -5.786688109e-06 | J104: 0.0001021778814 | K104: 0.005692676915 | L104: -1.658025336e-05 | M104: -0.000622495521 | N104: 7.338317208e-07
A105: 49.45576 | B105: ='DF raw data'!D110 -> 1.3606622e-06 | C105: ='DF raw data'!E110 -> 3.2003022e-06 | D105: ='DF raw data'!F110 -> 1.5362167e-06 | F105: 1.362708636e-06 | G105: 3.213175844e-06 | H105: 1.53852717e-06 | J105: 0.0001028595628 | K105: 0.005744131383 | L105: -1.497289428e-05 | M105: -0.0006299855616 | N105: 7.392364524e-07
A106: 49.956 | B106: ='DF raw data'!D111 -> 3.241337e-06 | C106: ='DF raw data'!E111 -> -3.6302358e-06 | D106: ='DF raw data'!F111 -> -5.1317312e-07 | F106: 3.246211971e-06 | G106: -3.644838909e-06 | H106: -5.139449324e-07 | J106: 0.0001044834479 | K106: 0.005796398183 | L106: -1.679618849e-05 | M106: -0.000638387687 | N106: 7.448385916e-07
A107: 50.45624 | B107: ='DF raw data'!D112 -> 2.5150946e-06 | C107: ='DF raw data'!E112 -> -1.2496279e-06 | D107: ='DF raw data'!F112 -> 1.4224207e-06 | F107: 2.518877302e-06 | G107: -1.254654695e-06 | H107: 1.424560021e-06 | J107: 0.000105743491 | K107: 0.005849295307 | L107: -1.742381696e-05 | M107: -0.0006471037772 | N107: 7.505839857e-07
A108: 50.95648 | B108: ='DF raw data'!D113 -> -1.6555424e-06 | C108: ='DF raw data'!E113 -> 1.0277145e-05 | D108: ='DF raw data'!F113 -> 5.5544951e-06 | F108: -1.658032336e-06 | G108: 1.031848619e-05 | H108: 5.562849061e-06 | J108: 0.0001049140769 | K108: 0.005901777525 | L108: -1.226209742e-05 | M108: -0.0006532377688 | N108: 7.561653247e-07
A109: 51.45672 | B109: ='DF raw data'!D114 -> -5.1670941e-06 | C109: ='DF raw data'!E114 -> 9.8639212e-06 | D109: ='DF raw data'!F114 -> 6.4978684e-07 | F109: -5.17486541e-06 | G109: 9.903600143e-06 | H109: 6.507641194e-07 | J109: 0.0001023254023 | K109: 0.005952964784 | L109: -7.307920488e-06 | M109: -0.0006568934829 | N109: 7.614297973e-07
A110: 51.95696 | B110: ='DF raw data'!D115 -> -3.1090169e-06 | C110: ='DF raw data'!E115 -> 2.7557212e-06 | D110: ='DF raw data'!F115 -> -4.9958617e-06 | F110: -3.113692861e-06 | G110: 2.766806457e-06 | H110: -5.003375476e-06 | J110: 0.0001007678086 | K110: 0.006003372872 | L110: -5.923853226e-06 | M110: -0.0006598568313 | N110: 7.665268644e-07
A111: 52.4572 | B111: ='DF raw data'!D116 -> -1.0215591e-06 | C111: ='DF raw data'!E116 -> 3.0392544e-06 | D111: ='DF raw data'!F116 -> -6.7573419e-06 | F111: -1.023095525e-06 | G111: 3.051480208e-06 | H111: -6.767504942e-06 | J111: 0.0001002560153 | K111: 0.006053524941 | L111: -4.397380767e-06 | M111: -0.000662056577 | N111: 7.715645841e-07
A112: 52.95744 | B112: ='DF raw data'!D117 -> 1.1318465e-07 | C112: ='DF raw data'!E117 -> 2.6368375e-06 | D112: ='DF raw data'!F117 -> -5.9065787e-06 | F112: 1.133548797e-07 | G112: 2.647444532e-06 | H112: -5.915462194e-06 | J112: 0.0001003127199 | K112: 0.006103705376 | L112: -3.073023114e-06 | M112: -0.0006635938261 | N112: 7.76603044e-07
A113: 53.45768 | B113: ='DF raw data'!D118 -> 3.0877416e-06 | C113: ='DF raw data'!E118 -> 2.243361e-06 | D113: ='DF raw data'!F118 -> 1.5305706e-06 | F113: 3.092385563e-06 | G113: 2.25238522e-06 | H113: 1.532872578e-06 | J113: 0.0001018596549 | K113: 0.00615465965 | L113: -1.946289932e-06 | M113: -0.0006645674382 | N113: 7.817951237e-07
A114: 53.95792 | B114: ='DF raw data'!D119 -> 4.7630165e-06 | C114: ='DF raw data'!E119 -> -3.9678057e-06 | D114: ='DF raw data'!F119 -> 7.8191224e-06 | F114: 4.770180077e-06 | G114: -3.983766729e-06 | H114: 7.83088236e-06 | J114: 0.0001042458897 | K114: 0.006206807614 | L114: -3.939129401e-06 | M114: -0.0006665379483 | N114: 7.872390967e-07
A115: 54.45816 | B115: ='DF raw data'!D120 -> 4.6598288e-06 | C115: ='DF raw data'!E120 -> 4.4351705e-06 | D115: ='DF raw data'!F120 -> 5.1554542e-07 | F115: 4.666837183e-06 | G115: 4.453011567e-06 | H115: 5.163208003e-07 | J115: 0.0001065804284 | K115: 0.006260123407 | L115: -1.711554895e-06 | M115: -0.0006673941365 | N115: 7.929229822e-07
A116: 54.9584 | B116: ='DF raw data'!D121 -> 2.07682e-06 | C116: ='DF raw data'!E121 -> 4.1417638e-06 | D116: ='DF raw data'!F121 -> -7.9973106e-06 | F116: 2.079943537e-06 | G116: 4.158424599e-06 | H116: -8.009338555e-06 | J116: 0.0001076208993 | K116: 0.006313959686 | L116: 3.686554268e-07 | M116: -0.0006672097203 | N116: 7.987169589e-07
A117: 55.45864 | B117: ='DF raw data'!D122 -> -5.1953265e-07 | C117: ='DF raw data'!E122 -> 1.7825038e-06 | D117: ='DF raw data'!F122 -> -7.9587771e-06 | F117: -5.203140271e-07 | G117: 1.78967416e-06 | H117: -7.970747101e-06 | J117: 0.0001073606174 | K117: 0.006367665761 | L117: 1.263922029e-06 | M117: -0.0006665774559 | N117: 8.044836754e-07
A118: 55.95888 | B118: ='DF raw data'!D123 -> 3.3793765e-06 | C118: ='DF raw data'!E123 -> 1.2318582e-05 | D118: ='DF raw data'!F123 -> -5.7988364e-06 | F118: 3.384459082e-06 | G118: 1.236813514e-05 | H118: -5.80755785e-06 | J118: 0.0001090536592 | K118: 0.006422218764 | L118: 7.450957953e-06 | M118: -0.0006628501887 | N118: 8.104606517e-07
A119: 56.45912 | B119: ='DF raw data'!D124 -> 7.5431308e-06 | C119: ='DF raw data'!E124 -> 8.8233246e-06 | D119: ='DF raw data'!F124 -> -4.5707129e-06 | F119: 7.554475669e-06 | G119: 8.858817604e-06 | H119: -4.577587252e-06 | J119: 0.0001128327102 | K119: 0.006478662199 | L119: 1.188249287e-05 | M119: -0.0006569060905 | N119: 8.168999481e-07
A120: 56.95936 | B120: ='DF raw data'!D125 -> 7.9147285e-06 | C120: ='DF raw data'!E125 -> -5.5726691e-06 | D120: ='DF raw data'!F125 -> -2.2003949e-06 | F120: 7.926632252e-06 | G120: -5.595085907e-06 | H120: -2.203704294e-06 | J120: 0.0001167979287 | K120: 0.006537089195 | L120: 9.083607097e-06 | M120: -0.0006523621069 | N120: 8.23765376e-07
A121: 57.4596 | B121: ='DF raw data'!D126 -> 5.6101417e-06 | C121: ='DF raw data'!E126 -> -1.4354922e-06 | D121: ='DF raw data'!F126 -> -3.3294768e-07 | F121: 5.618579353e-06 | G121: -1.441266659e-06 | H121: -3.334484333e-07 | J121: 0.0001196085668 | K121: 0.006596922184 | L121: 8.362627864e-06 | M121: -0.0006481787859 | N121: 8.309568977e-07
A122: 57.95984 | B122: ='DF raw data'!D127 -> -1.1029916e-06 | C122: ='DF raw data'!E127 -> 5.6369495e-06 | D122: ='DF raw data'!F127 -> -3.6112758e-06 | F122: -1.104650499e-06 | G122: 5.659624884e-06 | H122: -3.616707159e-06 | J122: 0.0001190559764 | K122: 0.006656478746 | L122: 1.119379862e-05 | M122: -0.0006425792001 | N122: 8.381101429e-07
A123: 58.46008 | B123: ='DF raw data'!D128 -> -6.8025984e-06 | C123: ='DF raw data'!E128 -> 9.351028e-06 | D123: ='DF raw data'!F128 -> -3.3805989e-06 | F123: -6.812829508e-06 | G123: 9.388643762e-06 | H123: -3.385683321e-06 | J123: 0.0001156479266 | K123: 0.006714330465 | L123: 1.589037377e-05 | M123: -0.0006346301995 | N123: 8.449268868e-07
A124: 58.96032 | B124: ='DF raw data'!D129 -> -6.7187502e-06 | C124: ='DF raw data'!E129 -> 2.6635239e-06 | D124: ='DF raw data'!F129 -> 2.7669026e-07 | F124: -6.7288552e-06 | G124: 2.674238281e-06 | H124: 2.771064022e-07 | J124: 0.0001122818841 | K124: 0.006770498354 | L124: 1.722813473e-05 | M124: -0.0006260119974 | N124: 8.513819988e-07
A125: 59.46056 | B125: ='DF raw data'!D130 -> -3.9864244e-06 | C125: ='DF raw data'!E130 -> 4.68588e-06 | D125: ='DF raw data'!F130 -> 1.287117e-06 | F125: -3.992419982e-06 | G125: 4.704729579e-06 | H125: 1.289052824e-06 | J125: 0.0001102847159 | K125: 0.006825667181 | L125: 1.958162865e-05 | M125: -0.0006162164835 | N125: 8.576580893e-07
A126: 59.9608 | B126: ='DF raw data'!D131 -> -3.7442092e-07 | C126: ='DF raw data'!E131 -> 6.7864235e-06 | D126: ='DF raw data'!F131 -> 3.6706772e-06 | F126: -3.749840491e-07 | G126: 6.813722797e-06 | H126: 3.676197899e-06 | J126: 0.0001100971339 | K126: 0.006880742171 | L126: 2.299012535e-05 | M126: -0.0006047159032 | N126: 8.639860876e-07
A127: 60.46104 | B127: ='DF raw data'!D132 -> 1.3188836e-06 | C127: ='DF raw data'!E132 -> 8.1903454e-06 | D127: ='DF raw data'!F132 -> 3.9148581e-06 | F127: 1.320867201e-06 | G127: 8.22329216e-06 | H127: 3.920746047e-06 | J127: 0.0001107578845 | K127: 0.006936147695 | L127: 2.710374502e-05 | M127: -0.0005911575258 | N127: 8.704901691e-07
A128: 60.96128 | B128: ='DF raw data'!D133 -> -2.0568989e-06 | C128: ='DF raw data'!E133 -> 1.7546125e-05 | D128: ='DF raw data'!F133 -> 6.0974417e-06 | F128: -2.059992476e-06 | G128: 1.761670664e-05 | H128: 6.106612252e-06 | J128: 0.0001097273939 | K128: 0.006991037726 | L128: 3.591632634e-05 | M128: -0.0005731907427 | N128: 8.7715841e-07
A129: 61.46152 | B129: ='DF raw data'!D134 -> -6.2029867e-06 | C129: ='DF raw data'!E134 -> 3.364199e-07 | D129: ='DF raw data'!F134 -> 9.3128619e-06 | F129: -6.212315992e-06 | G129: 3.377731941e-07 | H129: 9.326868444e-06 | J129: 0.0001066197449 | K129: 0.007044373188 | L129: 3.608529401e-05 | M129: -0.0005551394352 | N129: 8.834964101e-07
A130: 61.96176 | B130: ='DF raw data'!D135 -> -4.6646746e-06 | C130: ='DF raw data'!E135 -> 1.2647346e-05 | D130: ='DF raw data'!F135 -> 6.3505431e-06 | F130: -4.671690271e-06 | G130: 1.269822164e-05 | H130: 6.360094317e-06 | J130: 0.0001042827786 | K130: 0.007096539605 | L130: 4.24374524e-05 | M130: -0.000533910524 | N130: 8.898373699e-07
A131: 62.462 | B131: ='DF raw data'!D136 -> 9.4855187e-07 | C131: ='DF raw data'!E136 -> 1.9588362e-05 | D131: ='DF raw data'!F136 -> -1.2768868e-06 | F131: 9.49978492e-07 | G131: 1.966715881e-05 | H131: -1.278807238e-06 | J131: 0.0001047579958 | K131: 0.007148943745 | L131: 5.227575192e-05 | M131: -0.0005077601019 | N131: 8.966941555e-07
A132: 62.96224 | B132: ='DF raw data'!D137 -> 2.9559158e-06 | C132: ='DF raw data'!E137 -> 9.5356918e-06 | D132: ='DF raw data'!F137 -> -7.3142e-06 | F132: 2.960361497e-06 | G132: 9.574050396e-06 | H132: -7.325200557e-06 | J132: 0.000106238887 | K132: 0.007202088685 | L132: 5.706507489e-05 | M132: -0.0004792138688 | N132: 9.039692078e-07
A133: 63.46248 | B133: ='DF raw data'!D138 -> 3.9034931e-06 | C133: ='DF raw data'!E138 -> 2.8237696e-06 | D133: ='DF raw data'!F138 -> -7.2240218e-06 | F133: 3.909363954e-06 | G133: 2.835128591e-06 | H133: -7.234886729e-06 | J133: 0.0001081945073 | K133: 0.007256211906 | L133: 5.848331962e-05 | M133: -0.000449958173 | N133: 9.115360132e-07
A134: 63.96272 | B134: ='DF raw data'!D139 -> 6.0546299e-06 | C134: ='DF raw data'!E139 -> 7.6018438e-07 | D134: ='DF raw data'!F139 -> -5.0117669e-06 | F134: 6.063736063e-06 | G134: 7.632423234e-07 | H134: -5.019304597e-06 | J134: 0.0001112278306 | K134: 0.007311852516 | L134: 5.886512396e-05 | M134: -0.0004205114834 | N134: 9.194581806e-07
A135: 64.46296 | B135: ='DF raw data'!D140 -> 2.8413049e-06 | C135: ='DF raw data'!E140 -> 1.4360285e-05 | D135: ='DF raw data'!F140 -> -7.7529985e-06 | F135: 2.845578223e-06 | G135: =(1-$G$1*($B$2-$G$2))*C135*$M$2/$M$1 -> 1.441805117e-05 | H135: -7.76465901e-06 | J135: 0.0001126513026 | K135: 0.007368205203 | L135: 6.607760987e-05 | M135: -0.0003874568199 | N135: 9.279905574e-07
A136: =A135+$B$1 -> 64.9632 | B136: ='DF raw data'!D141 -> -4.365576e-07 | C136: ='DF raw data'!E141 -> -1.6030775e-06 | D136: ='DF raw data'!F141 -> -5.3414697e-06 | F136: -4.372141826e-07 | G136: -1.609526094e-06 | H136: -5.34950327e-06 | J136: =F136*$B$1+J135 -> 0.0001124325906 | K136: =J136*$B$1+K135 -> 0.007424448483 | L136: =G136*$B$1+L135 -> 6.527246054e-05 | M136: =L136*$B$1+M135 -> -0.0003548049242 | N136: =(J136^2+L136^2)*$B$1+N135 -> 9.364454045e-07
A137: 65.46344 | B137: ='DF raw data'!D142 -> -4.3255582e-07 | C137: ='DF raw data'!E142 -> -3.9560641e-06 | D137: ='DF raw data'!F142 -> -8.0556783e-06 | F137: -4.33206384e-07 | G137: -3.971977897e-06 | H137: -8.06779404e-06 | J137: 0.0001122158835 | K137: 0.007480583356 | L137: 6.328551832e-05 | M137: -0.0003231469765 | N137: 9.447481186e-07
A138: 65.96368 | B138: ='DF raw data'!D143 -> -1.7649437e-06 | C138: ='DF raw data'!E143 -> 1.2321518e-05 | D138: ='DF raw data'!F143 -> -1.3007579e-05 | F138: -1.767598175e-06 | G138: 1.237108296e-05 | H138: -1.30271424e-05 | J138: 0.0001113316602 | K138: 0.007536275906 | L138: 6.947402886e-05 | M138: -0.0002883932883 | N138: 9.533629414e-07
A139: 66.46392 | B139: ='DF raw data'!D144 -> -3.967536e-06 | C139: ='DF raw data'!E144 -> 4.4914755e-06 | D139: ='DF raw data'!F144 -> -3.7672723e-06 | F139: -3.973503174e-06 | G139: 4.509543061e-06 | H139: -3.772938278e-06 | J139: 0.0001093439549 | K139: 0.007590974126 | L139: 7.172988268e-05 | M139: -0.0002525111318 | N139: 9.619176839e-07
A140: 66.96416 | B140: ='DF raw data'!D145 -> -8.8852556e-07 | C140: ='DF raw data'!E145 -> -4.1808894e-06 | D140: ='DF raw data'!F145 -> 4.0976156e-06 | F140: -8.898619024e-07 | G140: -4.197707587e-06 | H140: 4.103778414e-06 | J140: 0.0001088988104 | K140: 0.007645449667 | L140: 6.963002143e-05 | M140: -0.0002176794099 | N140: 9.702753391e-07
A141: 67.4644 | B141: ='DF raw data'!D146 -> 4.8208894e-06 | C141: ='DF raw data'!E146 -> 2.0883194e-06 | D141: ='DF raw data'!F146 -> 7.3769479e-06 | F141: 4.828140018e-06 | G141: 2.096719944e-06 | H141: 7.38804283e-06 | J141: 0.0001113140392 | K141: 0.007701133402 | L141: 7.067888462e-05 | M141: -0.0001823230046 | N141: 9.789726718e-07
A142: 67.96464 | B142: ='DF raw data'!D147 -> 5.7295547e-06 | C142: ='DF raw data'!E147 -> 6.0001362e-06 | D142: ='DF raw data'!F147 -> 9.5415453e-06 | F142: 5.73817195e-06 | G142: 6.024272551e-06 | H142: 9.555895784e-06 | J142: 0.0001141845023 | K142: 0.007758253057 | L142: 7.369246672e-05 | M142: -0.0001454590851 | N142: 9.882114444e-07
A143: 68.46488 | B143: ='DF raw data'!D148 -> 4.9465161e-06 | C143: ='DF raw data'!E148 -> -1.3791251e-07 | D143: ='DF raw data'!F148 -> 5.1591633e-06 | F143: 4.95395566e-06 | G143: -1.384672815e-07 | H143: 5.166922682e-06 | J143: 0.0001166626691 | K143: 0.007816612391 | L143: 7.362319985e-05 | M143: -0.0001086298156 | N143: 9.977312887e-07
A144: 68.96512 | B144: ='DF raw data'!D149 -> 3.525827e-06 | C144: ='DF raw data'!E149 -> 5.5955857e-06 | D144: ='DF raw data'!F149 -> 3.4457494e-07 | F144: 3.531129844e-06 | G144: 5.618094692e-06 | H144: 3.450931807e-07 | J144: 0.0001184290815 | K144: 0.007875855354 | L144: 7.643359553e-05 | M144: -7.039467377e-05 | N144: 1.007669828e-06
A145: 69.46536 | B145: ='DF raw data'!D150 -> 1.5886907e-06 | C145: ='DF raw data'!E150 -> 6.1778624e-06 | D145: ='DF raw data'!F150 -> 1.6105624e-06 | F145: 1.591080091e-06 | G145: 6.202713678e-06 | H145: 1.612984686e-06 | J145: 0.0001192250034 | K145: 0.00793549647 | L145: 7.953644103e-05 | M145: -3.060736452e-05 | N145: 1.017945081e-06
A146: 69.9656 | B146: ='DF raw data'!D151 -> 3.4974507e-06 | C146: ='DF raw data'!E151 -> -8.0064495e-07 | D146: ='DF raw data'!F151 -> -1.0227072e-07 | F146: 3.502710866e-06 | G146: -8.038656515e-07 | H146: -1.024245352e-07 | J146: 0.0001209771995 | K146: 0.007996014104 | L146: 7.913431527e-05 | M146: 8.978785356e-06 | N146: 1.028398958e-06
A147: 70.46584 | B147: ='DF raw data'!D152 -> 8.0703903e-06 | C147: ='DF raw data'!E152 -> -1.8391096e-06 | D147: ='DF raw data'!F152 -> 3.5761043e-06 | F147: 8.082528167e-06 | G147: -1.846507664e-06 | H147: 3.581482761e-06 | J147: 0.0001250204034 | K147: 0.008058554311 | L147: 7.821061828e-05 | M147: 4.810286504e-05 | N147: 1.039277678e-06
A148: 70.96608 | B148: ='DF raw data'!D153 -> 9.3623239e-06 | C148: ='DF raw data'!E153 -> 2.6016128e-06 | D148: ='DF raw data'!F153 -> 8.9848181e-06 | F148: 9.376404835e-06 | G148: 2.612078136e-06 | H148: 8.998331266e-06 | J148: 0.0001297108561 | K148: 0.00812344087 | L148: 7.951728424e-05 | M148: 8.788059131e-05 | N148: 1.050857186e-06
A149: 71.46632 | B149: ='DF raw data'!D154 -> 4.8506627e-06 | C149: ='DF raw data'!E154 -> 3.1702798e-06 | D149: ='DF raw data'!F154 -> 7.0246751e-06 | F149: 4.857958097e-06 | G149: 3.183032675e-06 | H149: 7.035240211e-06 | J149: 0.0001321410011 | K149: 0.008189543084 | L149: 8.110956451e-05 | M149: 0.0001284548399 | N149: 1.062882958e-06
A150: 71.96656 | B150: ='DF raw data'!D155 -> -2.5640489e-07 | C150: ='DF raw data'!E155 -> 5.6143977e-06 | D150: ='DF raw data'!F155 -> 2.8259094e-06 | F150: -2.56790523e-07 | G150: 5.636982366e-06 | H150: 2.830159568e-06 | J150: 0.0001320125442 | K150: 0.008255581039 | L150: 8.392940857e-05 | M150: 0.0001704396872 | N150: 1.07512456e-06
A151: 72.4668 | B151: ='DF raw data'!D156 -> 6.0317547e-08 | C151: ='DF raw data'!E156 -> 1.2864832e-05 | D151: ='DF raw data'!F156 -> 1.5917905e-06 | F151: =(1-$G$1*($B$2-$G$2))*B151 -> 6.040826459e-08 | G151: 1.291658251e-05 | H151: 1.594184553e-06 | J151: 0.0001320427628 | K151: 0.008321634111 | L151: 9.03907998e-05 | M151: 0.0002156567809 | N151: 1.0879336e-06
A152: 72.96704 | B152: ='DF raw data'!D157 -> 4.6177156e-06 | C152: ='DF raw data'!E157 -> 7.432212e-06 | D152: ='DF raw data'!F157 -> 4.0022569e-06 | F152: 4.624660644e-06 | G152: 7.462109067e-06 | H152: 4.008276294e-06 | J152: 0.000134356203 | K152: 0.008388844458 | L152: 9.412364524e-05 | M152: 0.0002627411932 | N152: 1.101395483e-06
A153: 73.46728 | B153: ='DF raw data'!D158 -> 9.4964926e-06 | C153: ='DF raw data'!E158 -> -5.2201544e-06 | D153: ='DF raw data'!F158 -> 5.5876299e-06 | F153: 9.510775325e-06 | G153: -5.24115317e-06 | H153: 5.596033695e-06 | J153: 0.0001391138733 | K153: 0.008458434782 | L153: 9.150181078e-05 | M153: 0.000308514059 | N153: 1.115264763e-06
A154: 73.96752 | B154: ='DF raw data'!D159 -> 1.2275079e-05 | C154: ='DF raw data'!E159 -> -3.0627693e-06 | D154: ='DF raw data'!F159 -> 2.3260802e-06 | F154: 1.229354072e-05 | G154: -3.075089699e-06 | H154: 2.329578625e-06 | J154: 0.0001452635941 | K154: 0.008531101442 | L154: 8.996352791e-05 | M154: 0.0003535174142 | N154: 1.129869244e-06
A155: 74.46776 | B155: ='DF raw data'!D160 -> 1.0544856e-05 | C155: ='DF raw data'!E160 -> -4.3211949e-07 | D155: ='DF raw data'!F160 -> 3.0562517e-06 | F155: 1.056071546e-05 | G155: -4.338577485e-07 | H155: 3.060848303e-06 | J155: 0.0001505464864 | K155: 0.008606410816 | L155: 8.974649491e-05 | M155: 0.0003984122008 | N155: 1.145235955e-06
A156: 74.968 | B156: ='DF raw data'!D161 -> 6.9538801e-06 | C156: ='DF raw data'!E161 -> -9.4065635e-06 | D156: ='DF raw data'!F161 -> 4.9877126e-06 | F156: 6.964338736e-06 | G156: -9.44440266e-06 | H156: 4.99521412e-06 | J156: 0.0001540303272 | K156: 0.008683462947 | L156: 8.502202692e-05 | M156: 0.0004409436196 | N156: 1.160720427e-06
A157: 75.46824 | B157: ='DF raw data'!D162 -> 5.9397426e-06 | C157: ='DF raw data'!E162 -> -1.6721918e-06 | D157: ='DF raw data'!F162 -> -9.7246073e-07 | F157: 5.948675973e-06 | G157: -1.678918415e-06 | H157: -9.739233109e-07 | J157: 0.0001570060929 | K157: 0.008762003675 | L157: 8.418216477e-05 | M157: 0.0004830549057 | N157: 1.176596819e-06
A158: 75.96848 | B158: ='DF raw data'!D163 -> 7.3439587e-06 | C158: ='DF raw data'!E163 -> 7.2939797e-06 | D158: ='DF raw data'!F163 -> -2.9256332e-06 | F158: 7.355004014e-06 | G158: 7.323320709e-06 | H158: -2.930033352e-06 | J158: 0.0001606853601 | K158: 0.00884238492 | L158: 8.784558273e-05 | M158: 0.00052699878 | N158: 1.193373184e-06
A159: 76.46872 | B159: ='DF raw data'!D164 -> 6.836126e-06 | C159: ='DF raw data'!E164 -> 2.6874072e-06 | D159: ='DF raw data'!F164 -> 1.5078696e-06 | F159: 6.846407534e-06 | G159: 2.698217655e-06 | H159: 1.510137436e-06 | J159: 0.000164110207 | K159: 0.00892447941 | L159: 8.919533913e-05 | M159: 0.0005716178564 | N159: 1.210825541e-06
A160: 76.96896 | B160: ='DF raw data'!D165 -> 6.2118925e-06 | C160: ='DF raw data'!E165 -> 7.0831661e-06 | D160: ='DF raw data'!F165 -> 3.2215032e-06 | F160: 6.221235186e-06 | G160: 7.111659084e-06 | H160: 3.226348341e-06 | J160: 0.0001672223177 | K160: 0.009008130702 | L160: 9.275287547e-05 | M160: 0.0006180165549 | N160: 1.229117517e-06
A161: 77.4692 | B161: ='DF raw data'!D166 -> 6.111557e-06 | C161: ='DF raw data'!E166 -> 6.2685936e-06 | D161: ='DF raw data'!F166 -> -2.1040903e-06 | F161: 6.120748782e-06 | G161: 6.293809857e-06 | H161: -2.107254852e-06 | J161: 0.0001702841611 | K161: 0.009093313651 | L161: 9.590129091e-05 | M161: 0.0006659902166 | N161: 1.24822356e-06
A162: 77.96944 | B162: ='DF raw data'!D167 -> 4.2081374e-06 | C162: ='DF raw data'!E167 -> 7.5704151e-08 | D162: ='DF raw data'!F167 -> -8.1057951e-06 | F162: 4.214466439e-06 | G162: 7.600868108e-08 | H162: -8.117986216e-06 | J162: 0.0001723924058 | K162: 0.009179551228 | L162: 9.593931349e-05 | M162: 0.0007139828988 | N162: 1.267694648e-06
A163: 78.46968 | B163: ='DF raw data'!D168 -> 5.7438447e-06 | C163: ='DF raw data'!E168 -> 7.2145917e-06 | D163: ='DF raw data'!F168 -> -6.7273941e-06 | F163: 5.752483442e-06 | G163: 7.243613361e-06 | H163: -6.737512101e-06 | J163: 0.0001752700281 | K163: 0.009267228306 | L163: 9.956285864e-05 | M163: 0.0007637882232 | N163: 1.288020573e-06
A164: 78.96992 | B164: ='DF raw data'!D169 -> 9.6085714e-06 | C164: ='DF raw data'!E169 -> 1.0399766e-05 | D164: ='DF raw data'!F169 -> 1.2676757e-06 | F164: 9.623022691e-06 | G164: 1.044160045e-05 | H164: 1.269582284e-06 | J164: 0.0001800838489 | K164: 0.009357313451 | L164: 0.0001047861648 | M164: 0.0008162064543 | N164: 1.309736158e-06
A165: 79.47016 | B165: ='DF raw data'!D170 -> 9.4167335e-06 | C165: ='DF raw data'!E170 -> 1.559902e-05 | D165: ='DF raw data'!F170 -> 5.8075238e-06 | F165: 9.430896267e-06 | G165: 1.566176915e-05 | H165: 5.816258316e-06 | J165: 0.0001848015605 | K165: 0.009449758584 | L165: 0.0001126208082 | M165: 0.0008725438874 | N165: 1.33316493e-06
A166: 79.9704 | B166: ='DF raw data'!D171 -> 6.4497872e-06 | C166: ='DF raw data'!E171 -> 1.8043942e-05 | D166: ='DF raw data'!F171 -> -2.8742929e-07 | F166: 6.45948768e-06 | G166: 1.811652617e-05 | H166: -2.878615837e-07 | J166: 0.0001880328546 | K166: 0.009543820139 | L166: 0.0001216834193 | M166: 0.0009334148011 | N166: 1.358258574e-06
A167: 80.47064 | B167: ='DF raw data'!D172 -> 9.2923001e-06 | C167: ='DF raw data'!E172 -> 6.5417184e-06 | D167: ='DF raw data'!F172 -> -7.4784621e-06 | F167: 9.306275719e-06 | G167: 6.568033338e-06 | H167: -7.489709707e-06 | J167: 0.000192688226 | K167: 0.009640210497 | L167: 0.0001249690123 | M167: 0.0009959292998 | N167: 1.384644236e-06
A168: 80.97088 | B168: ='DF raw data'!D173 -> 1.6150749e-05 | C168: ='DF raw data'!E173 -> 3.57403e-06 | D168: ='DF raw data'!F173 -> -1.0503471e-05 | F168: 1.617503973e-05 | G168: 3.588407014e-06 | H168: -1.051926822e-05 | J168: 0.0002007796278 | K168: 0.009740648498 | L168: 0.000126764077 | M168: 0.001059341762 | N168: 1.412848563e-06
A169: 81.47112 | B169: ='DF raw data'!D174 -> 1.5187557e-05 | C169: ='DF raw data'!E174 -> 7.4538252e-06 | D169: ='DF raw data'!F174 -> -1.0919772e-05 | F169: 1.521039909e-05 | G169: 7.483809209e-06 | H169: -1.093619534e-05 | J169: 0.0002083884779 | K169: 0.00984489275 | L169: 0.0001305077777 | M169: 0.001124626972 | N169: 1.443092091e-06
A170: 81.97136 | B170: ='DF raw data'!D175 -> 6.4130727e-06 | C170: ='DF raw data'!E175 -> 1.7409362e-05 | D170: ='DF raw data'!F175 -> -9.1834372e-06 | F170: 6.422717961e-06 | G170: 1.747939349e-05 | H170: -9.19724909e-06 | J170: 0.0002116013783 | K170: 0.009950744224 | L170: 0.0001392516695 | M170: 0.001194286228 | N170: 1.475190577e-06
A171: 82.4716 | B171: ='DF raw data'!D176 -> 2.7792704e-09 | C171: ='DF raw data'!E176 -> 2.5985926e-05 | D171: ='DF raw data'!F176 -> -8.4947387e-06 | F171: 2.783450423e-09 | G171: 2.609045786e-05 | H171: -8.507514787e-06 | J171: 0.0002116027707 | K171: 0.01005659639 | L171: 0.0001523031602 | M171: 0.00127047436 | N171: 1.509192882e-06
A172: 82.97184 | B172: ='DF raw data'!D177 -> -1.1891681e-06 | C172: ='DF raw data'!E177 -> 1.7281003e-05 | D172: ='DF raw data'!F177 -> 1.8598804e-06 | F172: -1.190956609e-06 | G172: 1.735051815e-05 | H172: 1.86267766e-06 | J172: 0.0002110070066 | K172: 0.01016215054 | L172: 0.0001609825834 | M172: 0.001351004288 | N172: 1.544429462e-06
A173: 83.47208 | B173: ='DF raw data'!D178 -> -1.2394886e-06 | C173: ='DF raw data'!E178 -> 1.1134682e-05 | D173: ='DF raw data'!F178 -> 9.9043245e-06 | F173: -1.241352791e-06 | G173: 1.117947275e-05 | H173: 9.919220604e-06 | J173: 0.0002103860323 | K173: 0.01026739405 | L173: 0.0001665750028 | M173: 0.001434331767 | N173: 1.580451502e-06
A174: 83.97232 | B174: ='DF raw data'!D179 -> 1.5136888e-07 | C174: ='DF raw data'!E179 -> 9.3218077e-06 | D174: ='DF raw data'!F179 -> 9.0745307e-06 | F174: 1.515965388e-07 | G174: 9.359305919e-06 | H174: 9.088178794e-06 | J174: 0.0002104618669 | K174: 0.01037267549 | L174: 0.000171256902 | M174: 0.00152000132 | N174: 1.617280733e-06
A175: 84.47256 | B175: ='DF raw data'!D180 -> -3.3454999e-08 | C175: ='DF raw data'!E180 -> 9.5750511e-06 | D175: ='DF raw data'!F180 -> 4.3109903e-06 | F175: -3.350531532e-08 | G175: 9.613568024e-06 | H175: 4.317474029e-06 | J175: 0.0002104451062 | K175: 0.01047794855 | L175: 0.0001760659933 | M175: 0.001608076573 | N175: 1.65494199e-06
A176: 84.9728 | B176: ='DF raw data'!D181 -> -1.8208085e-06 | C176: ='DF raw data'!E181 -> 3.8829144e-06 | D176: ='DF raw data'!F181 -> -8.3749165e-07 | F176: -1.823546996e-06 | G176: 3.898533943e-06 | H176: -8.387512374e-07 | J176: 0.0002095328951 | K176: 0.01058276529 | L176: 0.0001780161959 | M176: 0.001697127394 | N176: 1.692757033e-06
A177: 85.47304 | B177: ='DF raw data'!D182 -> -6.3040369e-07 | C177: ='DF raw data'!E182 -> 4.9505993e-06 | D177: ='DF raw data'!F182 -> -1.8191057e-06 | F177: -6.313518171e-07 | G177: 4.970513748e-06 | H177: -1.821841635e-06 | J177: 0.0002092170676 | K177: 0.01068742403 | L177: 0.0001805026457 | M177: 0.001787422038 | N177: 1.730951851e-06
A178: 85.97328 | B178: ='DF raw data'!D183 -> 1.3913667e-06 | C178: ='DF raw data'!E183 -> 1.3574132e-05 | D178: ='DF raw data'!F183 -> -3.7194681e-07 | F178: 1.393459316e-06 | G178: 1.362873576e-05 | H178: -3.72506218e-07 | J178: 0.0002099141317 | K178: 0.01079243148 | L178: 0.0001873202845 | M178: 0.001881127137 | N178: 1.770547263e-06
A179: 86.47352 | B179: ='DF raw data'!D184 -> -8.2371133e-07 | C179: ='DF raw data'!E184 -> 5.5260712e-06 | D179: ='DF raw data'!F184 -> 2.689136e-06 | F179: -8.249501918e-07 | G179: 5.548300561e-06 | H179: 2.693180461e-06 | J179: 0.0002095014586 | K179: 0.01089723249 | L179: 0.0001900957664 | M179: 0.001976220643 | N179: 1.810580101e-06
A180: 86.97376 | B180: ='DF raw data'!D185 -> -8.0303143e-06 | C180: ='DF raw data'!E185 -> 1.1505475e-05 | D180: ='DF raw data'!F185 -> 3.0447411e-06 | F180: -8.042391893e-06 | G180: 1.155175731e-05 | H180: 3.049320391e-06 | J180: 0.0002054783325 | K180: 0.01100002097 | L180: 0.0001958744174 | M180: 0.002074204862 | N180: 1.850893508e-06
A181: 87.474 | B181: ='DF raw data'!D186 -> -6.1517203e-06 | C181: ='DF raw data'!E186 -> 8.8313282e-06 | D181: ='DF raw data'!F186 -> -3.3538379e-06 | F181: -6.160972487e-06 | G181: 8.8668534e-06 | H181: -3.358882072e-06 | J181: 0.0002023963676 | K181: 0.01110126773 | L181: 0.0002003099722 | M181: 0.002174407922 | N181: 1.891457157e-06
A182: 87.97424 | B182: ='DF raw data'!D187 -> 4.6745117e-06 | C182: ='DF raw data'!E187 -> -9.1160928e-06 | D182: ='DF raw data'!F187 -> -4.3011678e-06 | F182: 4.681542166e-06 | G182: -9.152763503e-06 | H182: -4.307636756e-06 | J182: 0.0002047382623 | K182: 0.011203686 | L182: 0.0001957313938 | M182: 0.002272320595 | N182: 1.931590679e-06
A183: 88.47448 | B183: ='DF raw data'!D188 -> 8.4046042e-06 | C183: ='DF raw data'!E188 -> -6.1949727e-06 | D183: ='DF raw data'!F188 -> 1.4452381e-06 | F183: 8.417244725e-06 | G183: -6.219892807e-06 | H183: 1.447411738e-06 | J183: 0.0002089489048 | K183: 0.0113082106 | L183: 0.0001926199546 | M183: 0.002368676801 | N183: 1.971991107e-06
A184: 88.97472 | B184: ='DF raw data'!D189 -> 5.2625692e-06 | C184: ='DF raw data'!E189 -> -4.9075338e-06 | D184: ='DF raw data'!F189 -> 2.323359e-06 | F184: 5.270484104e-06 | G184: -4.927275011e-06 | H184: 2.326853332e-06 | J184: 0.0002115854118 | K184: 0.01141405408 | L184: 0.0001901551345 | M184: 0.002463800005 | N184: 2.012474211e-06
A185: 89.47496 | B185: ='DF raw data'!D190 -> 4.0024752e-06 | C185: ='DF raw data'!E190 -> 6.4120281e-06 | D185: ='DF raw data'!F190 -> 7.4156702e-08 | F185: 4.008494923e-06 | G185: 6.437821341e-06 | H185: 7.426823368e-08 | J185: 0.0002135906213 | K185: 0.01152090066 | L185: 0.0001933755903 | M185: 0.00256053421 | N185: 2.054001671e-06
A186: 89.9752 | B186: ='DF raw data'!D191 -> 5.5796991e-06 | C186: ='DF raw data'!E191 -> 7.2474136e-06 | D186: ='DF raw data'!F191 -> 3.5288409e-07 | F186: 5.588090967e-06 | G186: 7.276567291e-06 | H186: 3.534148277e-07 | J186: 0.0002163860079 | K186: 0.01162914559 | L186: 0.0001970156203 | M186: 0.002659089304 | N186: 2.096841253e-06
A187: 90.47544 | B187: ='DF raw data'!D192 -> 6.0663733e-06 | C187: ='DF raw data'!E192 -> 8.9752975e-06 | D187: ='DF raw data'!F192 -> 3.5351698e-06 | F187: 6.075497125e-06 | G187: 9.011401835e-06 | H187: 3.540486695e-06 | J187: 0.0002194252146 | K187: 0.01173891086 | L187: 0.000201523484 | M187: 0.002759899412 | N187: 2.141242125e-06
A188: 90.97568 | B188: ='DF raw data'!D193 -> 5.9324666e-06 | C188: ='DF raw data'!E193 -> -2.4467377e-06 | D188: ='DF raw data'!F193 -> 1.2264792e-06 | F188: 5.94138903e-06 | G188: -2.45658003e-06 | H188: 1.228323825e-06 | J188: 0.000222397335 | K188: 0.0118501629 | L188: 0.0002002946044 | M188: 0.002860094785 | N188: 2.186052876e-06
A189: 91.47592 | B189: ='DF raw data'!D194 -> 5.9383456e-06 | C189: ='DF raw data'!E194 -> -5.6301218e-07 | D189: ='DF raw data'!F194 -> -7.7824807e-06 | F189: 5.947276872e-06 | G189: -5.652769718e-07 | H189: -7.794185551e-06 | J189: 0.0002253724008 | K189: 0.01196290319 | L189: 0.0002000118302 | M189: 0.002960148703 | N189: 2.231473393e-06
A190: 91.97616 | B190: ='DF raw data'!D195 -> 1.073537e-05 | C190: ='DF raw data'!E195 -> 1.5646656e-05 | D190: ='DF raw data'!F195 -> -1.1411335e-05 | F190: 1.0751516e-05 | G190: 1.570959677e-05 | H190: -1.142849765e-05 | J190: 0.0002307507392 | K190: 0.01207833394 | L190: 0.0002078703989 | M190: 0.003064133791 | N190: 2.279724545e-06
A191: 92.4764 | B191: ='DF raw data'!D196 -> 1.6844802e-05 | C191: ='DF raw data'!E196 -> 1.0324911e-05 | D191: ='DF raw data'!F196 -> -9.1678085e-06 | F191: 1.687013658e-05 | G191: 1.036644434e-05 | H191: -9.181596884e-06 | J191: 0.0002391898563 | K191: 0.01219798628 | L191: 0.000213056109 | M191: 0.003170712979 | N191: 2.331051517e-06
A192: 92.97664 | B192: ='DF raw data'!D197 -> 1.4063888e-05 | C192: ='DF raw data'!E197 -> -6.4827185e-07 | D192: ='DF raw data'!F197 -> -4.9114024e-06 | F192: 1.408504009e-05 | G192: -6.508796103e-07 | H192: -4.918789149e-06 | J192: 0.0002462357567 | K192: 0.01232116325 | L192: 0.000212730513 | M192: 0.003277129291 | N192: 2.384020089e-06
A193: 93.47688 | B193: ='DF raw data'!D198 -> 6.2640174e-06 | C193: ='DF raw data'!E198 -> 2.0972598e-06 | D193: ='DF raw data'!F198 -> -2.5223123e-06 | F193: 6.273438482e-06 | G193: 2.105696308e-06 | H193: -2.526105858e-06 | J193: 0.0002493739816 | K193: 0.01244591009 | L193: 0.0002137838665 | M193: 0.003384072532 | N193: 2.437991445e-06
A194: 93.97712 | B194: ='DF raw data'!D199 -> 6.0163729e-06 | C194: ='DF raw data'!E199 -> 1.1009393e-05 | D194: ='DF raw data'!F199 -> -5.4601405e-06 | F194: 6.025421525e-06 | G194: 1.105367976e-05 | H194: -5.468352551e-06 | J194: 0.0002523881385 | K194: 0.01257216474 | L194: 0.0002193133593 | M194: 0.003493781847 | N194: 2.493917338e-06
A195: 94.47736 | B195: ='DF raw data'!D200 -> 1.2747259e-05 | C195: ='DF raw data'!E200 -> 1.2956229e-05 | D195: ='DF raw data'!F200 -> 4.2602769e-06 | F195: 1.276643088e-05 | G195: 1.300834716e-05 | H195: 4.266684356e-06 | J195: 0.0002587744178 | K195: 0.01270161405 | L195: 0.0002258206549 | M195: 0.003606746372 | N195: 2.552925232e-06
A196: 94.9776 | B196: ='DF raw data'!D201 -> 1.3879326e-05 | C196: ='DF raw data'!E201 -> 3.8442208e-06 | D196: ='DF raw data'!F201 -> 4.6410423e-06 | F196: 1.390020051e-05 | G196: 3.859684693e-06 | H196: 4.648022428e-06 | J196: 0.0002657278541 | K196: 0.01283454175 | L196: 0.0002277514235 | M196: 0.003720676744 | N196: 2.614195629e-06
A197: 95.47784 | B197: ='DF raw data'!D202 -> 9.0392568e-06 | C197: ='DF raw data'!E202 -> -2.3182461e-06 | D197: ='DF raw data'!F202 -> -9.3219552e-07 | F197: 9.052851842e-06 | G197: -2.327571555e-06 | H197: -9.335975421e-07 | J197: 0.0002702564528 | K197: 0.01296973484 | L197: 0.0002265870791 | M197: 0.003834024664 | N197: 2.676415608e-06
A198: 95.97808 | B198: ='DF raw data'!D203 -> 4.4111221e-06 | C198: ='DF raw data'!E203 -> 3.0874212e-06 | D198: ='DF raw data'!F203 -> 7.3462579e-06 | F198: 4.417756428e-06 | G198: 3.099840765e-06 | H198: 7.357306672e-06 | J198: 0.0002724663912 | K198: 0.01310603343 | L198: 0.0002281377435 | M198: 0.003948148289 | N198: 2.739588298e-06
A199: 96.47832 | B199: ='DF raw data'!D204 -> 7.971683e-07 | C199: ='DF raw data'!E204 -> 7.2276666e-06 | D199: ='DF raw data'!F204 -> 1.2125311e-05 | F199: 7.983672411e-07 | G199: =(1-$G$1*($B$2-$G$2))*C199*$M$2/$M$1 -> 7.256740856e-06 | H199: 1.214354747e-05 | J199: 0.0002728657665 | K199: 0.0132425318 | L199: 0.0002317678555 | M199: 0.004064087841 | N199: 2.803705092e-06
A200: =A199+$B$1 -> 96.97856 | B200: ='DF raw data'!D205 -> 6.8830542e-07 | C200: ='DF raw data'!E205 -> 9.988009e-06 | D200: ='DF raw data'!F205 -> 2.6397613e-06 | F200: 6.893406314e-07 | G200: 1.00281871e-05 | H200: 2.643731501e-06 | J200: =F200*$B$1+J199 -> 0.0002732106022 | K200: =J200*$B$1+K199 -> 0.01337920267 | L200: =G200*$B$1+L199 -> 0.0002367843558 | M200: =L200*$B$1+M199 -> 0.004182536847 | N200: =(J200^2+L200^2)*$B$1+N199 -> 2.869091895e-06
A201: 97.4788 | B201: ='DF raw data'!D206 -> 4.3598979e-07 | C201: ='DF raw data'!E206 -> 5.5731684e-06 | D201: ='DF raw data'!F206 -> -6.4525229e-06 | F201: 4.366455186e-07 | G201: 5.595587216e-06 | H201: -6.462227494e-06 | J201: 0.0002734290298 | K201: 0.01351598281 | L201: 0.0002395834924 | M201: 0.004302386093 | N201: 2.935205456e-06
... 1002 more rows

Sheet 15 mm
A1: dz | B1: ='DF raw data'!H7 -> 0.50015 | C1: mm | F1: T_coeff | G1: -0.0008 | H1: /degC | L1: Hallref | M1: ='[1]PI vs x'!B50 -> 0.505 | N1: T | P1: IBy total | Q1: =L1203*1000 -> -14.83684279 | R1: muTm | X1: DF ref | Y1: 20
A2: Tref | B2: ='DF raw data'!H8 -> 21.89 | C2: degC | F2: Tcorr | G2: 20 | H2: degC | L2: NMRref | M2: ='[1]PI vs x'!B51 -> 0.50627 | N2: T | P2: JBy total | Q2: =M1203 -> -4.803441418 | R2: muTm^2
A3: Encoder | B3: ='DF raw data'!H9 -> 14477925 | P3: PI total | Q3: =N1203 -> 369.194525 | R3: T^2mm^3
A5: z [mm] | B5: Bx | C5: By | D5: Bz | F5: Bx_corr | G5: By_corr | H5: Bz_corr | J5: Ix | K5: Jx | L5: Iy | M5: Jy | N5: PI
A6: ='[1]PI vs x'!B53 -> -0.068 | B6: ='DF raw data'!G11 -> 8.0874033e-06 | C6: ='DF raw data'!H11 -> 1.1997726e-05 | D6: ='DF raw data'!I11 -> 7.1249347e-06 | F6: =(1-$G$1*($B$2-$G$2))*B6 -> 8.099631454e-06 | G6: =(1-$G$1*($B$2-$G$2))*C6*$M$2/$M$1 -> 1.204608468e-05 | H6: =(1-$G$1*($B$2-$G$2))*D6 -> 7.135707601e-06 | J6: =F6*$B$1 -> 4.051030672e-06 | K6: =J6*$B$1 -> 2.02612299e-06 | L6: =G6*$B$1 -> 6.024849253e-06 | M6: =L6*$B$1 -> 3.013328354e-06 | N6: =(J6^2+L6)^2*$B$1 -> 1.815494799e-11
A7: =A6+$B$1 -> 0.43215 | B7: ='DF raw data'!G12 -> 8.1077615e-06 | C7: ='DF raw data'!H12 -> 1.2497144e-05 | D7: ='DF raw data'!I12 -> 1.342881e-05 | F7: =(1-$G$1*($B$2-$G$2))*B7 -> 8.120020435e-06 | G7: =(1-$G$1*($B$2-$G$2))*C7*$M$2/$M$1 -> 1.254751566e-05 | H7: 1.344911436e-05 | J7: =F7*$B$1+J6 -> 8.112258892e-06 | K7: =J7*$B$1+K6 -> 6.083469275e-06 | L7: =G7*$B$1+L6 -> 1.230048921e-05 | M7: =L7*$B$1+M6 -> 9.165418034e-06 | N7: =(J7^2+L7^2)*$B$1+N6 -> 1.267429042e-10
A8: =A7+$B$1 -> 0.9323 | B8: ='DF raw data'!G13 -> 8.6079108e-06 | C8: ='DF raw data'!H13 -> -1.5550075e-06 | D8: ='DF raw data'!I13 -> 1.0823217e-05 | F8: 8.620925961e-06 | G8: -1.561275197e-06 | H8: 1.08395817e-05 | J8: =F8*$B$1+J7 -> 1.242401501e-05 | K8: =J8*$B$1+K7 -> 1.229734038e-05 | L8: =G8*$B$1+L7 -> 1.151961742e-05 | M8: =L8*$B$1+M7 -> 1.492695469e-05 | N8: =(J8^2+L8^2)*$B$1+N7 -> 2.703148301e-10
A9: 1.43245 | B9: ='DF raw data'!G14 -> 8.3653449e-06 | C9: ='DF raw data'!H14 -> 4.7850508e-06 | D9: ='DF raw data'!I14 -> 8.9627692e-06 | F9: 8.377993301e-06 | G9: 4.804337684e-06 | H9: 8.976320907e-06 | J9: 1.661426836e-05 | K9: 2.06069667e-05 | L9: 1.392250691e-05 | M9: 2.189029652e-05 | N9: 5.053203667e-10
A10: 1.9326 | B10: ='DF raw data'!G15 -> 8.4517105e-06 | C10: ='DF raw data'!H15 -> 1.9586632e-06 | D10: ='DF raw data'!I15 -> 6.2664008e-06 | F10: 8.464489486e-06 | G10: 1.966557894e-06 | H10: 6.275875598e-06 | J10: 2.084778278e-05 | K10: 3.103398526e-05 | L10: 1.490608085e-05 | M10: 2.934557286e-05 | N10: 8.338295363e-10
A11: 2.43275 | B11: ='DF raw data'!G16 -> 8.6709933e-06 | C11: ='DF raw data'!H16 -> -3.692644e-06 | D11: ='DF raw data'!I16 -> 8.3957248e-06 | F11: 8.684103842e-06 | G11: -3.70752777e-06 | H11: 8.408419136e-06 | J11: 2.519113731e-05 | K11: 4.363333259e-05 | L11: 1.305176083e-05 | M11: 3.587341104e-05 | N11: 1.236421208e-09
A12: 2.9329 | B12: ='DF raw data'!G17 -> 8.7147073e-06 | C12: ='DF raw data'!H17 -> -5.9390231e-06 | D12: ='DF raw data'!I17 -> 1.9389815e-06 | F12: 8.727883937e-06 | G12: -5.962961247e-06 | H12: 1.94191324e-06 | J12: 2.955638847e-05 | K12: 5.841596028e-05 | L12: 1.006938576e-05 | M12: 4.090961433e-05 | N12: 1.724053768e-09
A13: 3.43305 | B13: ='DF raw data'!G18 -> 8.8026154e-06 | C13: ='DF raw data'!H18 -> -8.2343713e-06 | D13: ='DF raw data'!I18 -> 1.8413526e-06 | F13: 8.815924954e-06 | G13: -8.267561201e-06 | H13: 1.844136725e-06 | J13: 3.396567333e-05 | K13: 7.54038918e-05 | L13: 5.934365029e-06 | M13: 4.387768699e-05 | N13: 2.318673927e-09
A14: 3.9332 | B14: ='DF raw data'!G19 -> 8.9882542e-06 | C14: ='DF raw data'!H19 -> -1.3694745e-05 | D14: ='DF raw data'!I19 -> -1.4802966e-06 | F14: 9.00184444e-06 | G14: -1.374994378e-05 | H14: -1.482534808e-06 | J14: 3.846794583e-05 | K14: 9.46436349e-05 | L14: -9.426693517e-07 | M14: 4.340621092e-05 | N14: 3.059231769e-09
A15: 4.43335 | B15: ='DF raw data'!G20 -> 8.1156923e-06 | C15: ='DF raw data'!H20 -> 9.9783056e-06 | D15: ='DF raw data'!I20 -> -2.3873029e-06 | F15: 8.127963227e-06 | G15: 1.00185247e-05 | H15: -2.390912502e-06 | J15: 4.253314664e-05 | K15: 0.0001159165882 | L15: 4.068095775e-06 | M15: 4.544086902e-05 | N15: 3.972314594e-09
A16: 4.9335 | B16: ='DF raw data'!G21 -> 8.1416674e-06 | C16: ='DF raw data'!H21 -> 9.3828194e-06 | D16: ='DF raw data'!I21 -> -8.7565002e-07 | F16: 8.153977601e-06 | G16: 9.420638298e-06 | H16: -8.769740028e-07 | J16: 4.661135853e-05 | K16: 0.0001392292592 | L16: 8.77982802e-06 | M16: 4.98321e-05 | N16: 5.097504112e-09
A17: 5.43365 | B17: ='DF raw data'!G22 -> 8.2543429e-06 | C17: ='DF raw data'!H22 -> 6.1042456e-06 | D17: ='DF raw data'!I22 -> -1.4279825e-06 | F17: 8.266823466e-06 | G17: 6.128849702e-06 | H17: -1.43014161e-06 | J17: 5.074601029e-05 | K17: 0.0001646098762 | L17: 1.18451722e-05 | M17: 5.575646288e-05 | N17: 6.455644264e-09
A18: 5.9338 | B18: ='DF raw data'!G23 -> 8.3635405e-06 | C18: ='DF raw data'!H23 -> 3.2815942e-06 | D18: ='DF raw data'!I23 -> -5.1028053e-07 | F18: 8.376186173e-06 | G18: 3.294821171e-06 | H18: -5.110520742e-07 | J18: 5.493535981e-05 | K18: 0.0001920857964 | L18: 1.349307701e-05 | M18: 6.250502534e-05 | N18: 8.0561027e-09
A19: 6.43395 | B19: ='DF raw data'!G24 -> 8.3844952e-06 | C19: ='DF raw data'!H24 -> 3.7381824e-06 | D19: ='DF raw data'!I24 -> 5.3947992e-06 | F19: 8.397172557e-06 | G19: 3.75324972e-06 | H19: 5.402956136e-06 | J19: 5.913520566e-05 | K19: 0.0002216622695 | L19: 1.537026485e-05 | M19: 7.019246331e-05 | N19: 9.923271478e-09
A20: 6.9341 | B20: ='DF raw data'!G25 -> 8.3707437e-06 | C20: ='DF raw data'!H25 -> 3.375927e-06 | D20: ='DF raw data'!I25 -> 1.0722548e-06 | F20: 8.383400264e-06 | G20: 3.389534193e-06 | H20: 1.073876049e-06 | J20: 6.33281633e-05 | K20: 0.0002533358504 | L20: 1.706554038e-05 | M20: 7.872779333e-05 | N20: 1.20747612e-08
A21: 7.43425 | B21: ='DF raw data'!G26 -> 8.0964692e-06 | C21: ='DF raw data'!H26 -> 9.883438e-06 | D21: ='DF raw data'!I26 -> -4.4657095e-06 | F21: 8.108711061e-06 | G21: 9.923274718e-06 | H21: -4.472461653e-06 | J21: 6.738373514e-05 | K21: 0.0002870378255 | L21: 2.202866623e-05 | M21: 8.974543075e-05 | N21: 1.458843002e-08
A22: 7.9344 | B22: ='DF raw data'!G27 -> 7.1280688e-06 | C22: ='DF raw data'!H27 -> -7.126926e-06 | D22: ='DF raw data'!I27 -> 5.9736162e-06 | F22: 7.13884644e-06 | G22: -7.155652172e-06 | H22: 5.982648308e-06 | J22: 7.095422919e-05 | K22: 0.0003225255833 | L22: 1.84497668e-05 | M22: 9.897308161e-05 | N22: 1.727668452e-08
A23: 8.43455 | B23: ='DF raw data'!G28 -> 3.7488085e-06 | C23: ='DF raw data'!H28 -> 4.4693634e-06 | D23: ='DF raw data'!I28 -> 8.0182917e-06 | F23: =(1-$G$1*($B$2-$G$2))*B23 -> 3.754476698e-06 | G23: 4.487377857e-06 | H23: 8.030415357e-06 | J23: 7.283203071e-05 | K23: 0.0003589525234 | L23: 2.069412883e-05 | M23: 0.0001093232501 | N23: 2.014392027e-08
A24: 8.9347 | B24: ='DF raw data'!G29 -> 4.0153413e-06 | C24: ='DF raw data'!H29 -> -4.6757569e-07 | D24: ='DF raw data'!I29 -> 5.2718065e-06 | F24: 4.021412496e-06 | G24: -4.694603258e-07 | H24: 5.279777471e-06 | J24: 7.484334017e-05 | K24: 0.00039638542 | L24: 2.045932825e-05 | M24: 0.0001195559832 | N24: 2.315487813e-08
A25: 9.43485 | B25: ='DF raw data'!G30 -> 4.9858813e-06 | C25: ='DF raw data'!H30 -> -3.0343135e-06 | D25: ='DF raw data'!I30 -> 7.3679371e-06 | F25: 4.993419953e-06 | G25: -3.046543768e-06 | H25: 7.379077421e-06 | J25: 7.734079916e-05 | K25: 0.0004350674207 | L25: 1.893559939e-05 | M25: 0.0001290266232 | N25: 2.632590722e-08
A26: 9.935 | B26: ='DF raw data'!G31 -> 4.6006776e-06 | C26: ='DF raw data'!H31 -> 2.3357288e-06 | D26: ='DF raw data'!I31 -> 6.3847224e-06 | F26: 4.607633825e-06 | G26: 2.345143314e-06 | H26: 6.3943761e-06 | J26: 7.964530721e-05 | K26: 0.0004749020211 | L26: 2.010852281e-05 | M26: 0.0001390839009 | N26: 2.97007832e-08
A27: 10.43515 | B27: ='DF raw data'!G32 -> 4.141099e-06 | C27: ='DF raw data'!H32 -> -5.0902936e-06 | D27: ='DF raw data'!I32 -> 4.082362e-06 | F27: 4.147360342e-06 | G27: -5.110810812e-06 | H27: 4.088534531e-06 | J27: 8.171960949e-05 | K27: 0.0005157740838 | L27: 1.755235079e-05 | M27: 0.0001478627091 | N27: 3.319492093e-08
A28: 10.9353 | B28: ='DF raw data'!G33 -> 5.9504114e-06 | C28: ='DF raw data'!H33 -> -5.4566835e-06 | D28: ='DF raw data'!I33 -> 8.2073066e-06 | F28: 5.959408422e-06 | G28: -5.478677503e-06 | H28: 8.219716048e-06 | J28: 8.470020761e-05 | K28: 0.0005581368926 | L28: 1.481219023e-05 | M28: 0.0001552710261 | N28: 3.689279303e-08
A29: 11.43545 | B29: ='DF raw data'!G34 -> 5.5852311e-06 | C29: ='DF raw data'!H34 -> 3.9459273e-06 | D29: ='DF raw data'!I34 -> 1.5311085e-05 | F29: 5.593675969e-06 | G29: 3.961831967e-06 | H29: 1.533423536e-05 | J29: 8.749788465e-05 | K29: 0.0006018989596 | L29: 1.679370049e-05 | M29: 0.0001636703954 | N29: 4.086293781e-08
A30: 11.9356 | B30: ='DF raw data'!G35 -> 6.8127918e-07 | C30: ='DF raw data'!H35 -> -5.7235384e-06 | D30: ='DF raw data'!I35 -> 9.1880474e-06 | F30: 6.823092741e-07 | G30: -5.746608003e-06 | H30: 9.201939728e-06 | J30: 8.783914163e-05 | K30: 0.0006458317063 | L30: 1.39195345e-05 | M30: 0.0001706322506 | N30: 4.481885835e-08
A31: 12.43575 | B31: ='DF raw data'!G36 -> -6.5398758e-06 | C31: ='DF raw data'!H36 -> 2.6080406e-07 | D31: ='DF raw data'!I36 -> 8.2946326e-06 | F31: -6.549764092e-06 | G31: 2.618552709e-07 | H31: 8.307174084e-06 | J31: 8.456327712e-05 | K31: 0.0006881260294 | L31: 1.405050141e-05 | M31: 0.0001776596088 | N31: 4.849414282e-08
A32: 12.9359 | B32: ='DF raw data'!G37 -> -5.407082e-06 | C32: ='DF raw data'!H37 -> -7.3274668e-06 | D32: ='DF raw data'!I37 -> 5.701088e-06 | F32: -5.415257508e-06 | G32: -7.357001283e-06 | H32: 5.709708045e-06 | J32: 8.185483608e-05 | K32: 0.0007290657256 | L32: 1.037089722e-05 | M32: 0.0001828466131 | N32: 5.189904884e-08
A33: 13.43605 | B33: ='DF raw data'!G38 -> 6.0491072e-07 | C33: ='DF raw data'!H38 -> -4.4698563e-06 | D33: ='DF raw data'!I38 -> -3.0714029e-06 | F33: 6.05825345e-07 | G33: -4.487872744e-06 | H33: -3.076046861e-06 | J33: 8.215783962e-05 | K33: 0.0007701569691 | L33: 8.126287669e-06 | M33: 0.0001869109759 | N33: 5.530804481e-08
A34: 13.9362 | B34: ='DF raw data'!G39 -> 4.3763307e-06 | C34: ='DF raw data'!H39 -> -1.2901536e-06 | D34: ='DF raw data'!I39 -> -3.8952162e-06 | F34: 4.382947712e-06 | G34: -1.295353763e-06 | H34: -3.901105767e-06 | J34: 8.434997092e-05 | K34: 0.0008123446071 | L34: 7.478416484e-06 | M34: 0.0001906513059 | N34: 5.889454259e-08
A35: 14.43635 | B35: ='DF raw data'!G40 -> 6.8717513e-06 | C35: ='DF raw data'!H40 -> 6.814999e-07 | D35: ='DF raw data'!I40 -> -6.3146888e-07 | F35: 6.882141388e-06 | G35: 6.842467903e-07 | H35: -6.324236609e-07 | J35: 8.779207394e-05 | K35: 0.0008562538129 | L35: 7.820642516e-06 | M35: 0.0001945628002 | N35: 6.278001323e-08
A36: 14.9365 | B36: ='DF raw data'!G41 -> 4.7100789e-06 | C36: ='DF raw data'!H41 -> 8.1810404e-06 | D36: ='DF raw data'!I41 -> -2.2402979e-07 | F36: 4.717200539e-06 | G36: 8.214015343e-06 | H36: -2.24368523e-07 | J36: 9.015138179e-05 | K36: 0.0009013430265 | L36: 1.192888229e-05 | M36: 0.0002005290307 | N36: 6.69160386e-08
A37: 15.43665 | B37: ='DF raw data'!G42 -> 1.2913682e-06 | C37: ='DF raw data'!H42 -> -3.5150524e-06 | D37: ='DF raw data'!I42 -> 5.5775567e-06 | F37: 1.293320749e-06 | G37: -3.52922036e-06 | H37: 5.585989966e-06 | J37: 9.079823616e-05 | K37: 0.0009467557643 | L37: 1.016374273e-05 | M37: 0.0002056124266 | N37: 7.109110142e-08
A38: 15.9368 | B38: ='DF raw data'!G43 -> -2.6491157e-06 | C38: ='DF raw data'!H43 -> 7.577416e-06 | D38: ='DF raw data'!I43 -> 6.5194295e-06 | F38: -2.653121163e-06 | G38: 7.607957942e-06 | H38: 6.529286877e-06 | J38: 8.947127761e-05 | K38: 0.0009915048238 | L38: 1.396886289e-05 | M38: 0.0002125989534 | N38: 7.519245078e-08
A39: 16.43695 | B39: ='DF raw data'!G44 -> -5.1344664e-06 | C39: ='DF raw data'!H44 -> 9.5027708e-06 | D39: ='DF raw data'!I44 -> -3.9000038e-06 | F39: -5.142229713e-06 | G39: 9.541073181e-06 | H39: -3.905900606e-06 | J39: 8.689939142e-05 | K39: 0.001034967554 | L39: 1.874083064e-05 | M39: 0.0002219721798 | N39: 7.914499767e-08
A40: 16.9371 | B40: ='DF raw data'!G45 -> -2.631828e-06 | C40: ='DF raw data'!H45 -> 1.2338364e-05 | D40: ='DF raw data'!I45 -> -1.0581632e-05 | F40: -2.635807324e-06 | G40: 1.238809568e-05 | H40: -1.059763143e-05 | J40: 8.558109238e-05 | K40: 0.001077770938 | L40: 2.493673669e-05 | M40: 0.0002344442887 | N40: 8.311917167e-08
A41: 17.43725 | B41: ='DF raw data'!G46 -> 2.3404014e-06 | C41: ='DF raw data'!H46 -> 8.319138e-06 | D41: ='DF raw data'!I46 -> -8.1617354e-06 | F41: 2.343940087e-06 | G41: 8.352669566e-06 | H41: -8.174075944e-06 | J41: 8.675341402e-05 | K41: 0.001121160658 | L41: 2.911432438e-05 | M41: 0.000249005818 | N41: 8.73073271e-08
A42: 17.9374 | B42: ='DF raw data'!G47 -> 2.5791692e-06 | C42: ='DF raw data'!H47 -> 1.3046595e-05 | D42: ='DF raw data'!I47 -> -5.2215069e-06 | F42: 2.583068904e-06 | G42: 1.309918131e-05 | H42: -5.229401818e-06 | J42: 8.804533593e-05 | K42: 0.001165196533 | L42: 3.566587991e-05 | M42: 0.0002668441079 | N42: 9.182069879e-08
A43: 18.43755 | B43: ='DF raw data'!G48 -> -1.1979843e-06 | C43: ='DF raw data'!H48 -> 3.7205691e-06 | D43: ='DF raw data'!I48 -> -5.0587146e-06 | F43: -1.199795652e-06 | G43: 3.735565427e-06 | H43: -5.066363376e-06 | J43: 8.744525814e-05 | K43: 0.001208932278 | L43: 3.753422296e-05 | M43: 0.0002856168495 | N43: 9.634980265e-08
A44: 18.9377 | B44: ='DF raw data'!G49 -> -4.5394677e-06 | C44: ='DF raw data'!H49 -> -3.224447e-06 | D44: ='DF raw data'!I49 -> -5.8406617e-06 | F44: -4.546331375e-06 | G44: -3.23744363e-06 | H44: -5.84949278e-06 | J44: 8.51714105e-05 | K44: 0.001251530759 | L44: 3.591501553e-05 | M44: 0.0003035797445 | N44: 1.00623113e-07
A45: 19.43785 | B45: ='DF raw data'!G50 -> -2.4844462e-06 | C45: ='DF raw data'!H50 -> 2.114507e-06 | D45: ='DF raw data'!I50 -> -5.0888355e-07 | F45: -2.488202683e-06 | G45: 2.123029846e-06 | H45: -5.096529819e-07 | J45: 8.392693593e-05 | K45: 0.001293506816 | L45: 3.69768489e-05 | M45: 0.0003220737155 | N45: 1.048298836e-07
A46: 19.938 | B46: ='DF raw data'!G51 -> -2.5684835e-06 | C46: ='DF raw data'!H51 -> -2.2090671e-06 | D46: ='DF raw data'!I51 -> 6.0589487e-06 | F46: -2.572367047e-06 | G46: -2.217971085e-06 | H46: 6.06810983e-06 | J46: 8.264036655e-05 | K46: 0.001334839396 | L46: 3.586753067e-05 | M46: 0.000340012861 | N46: 1.08889056e-07
A47: 20.43815 | B47: ='DF raw data'!G52 -> -1.9407139e-06 | C47: ='DF raw data'!H52 -> 8.6816459e-07 | D47: ='DF raw data'!I52 -> 6.6325706e-06 | F47: -1.943648259e-06 | G47: 8.71663861e-07 | H47: 6.642599047e-06 | J47: 8.166825087e-05 | K47: 0.001375685771 | L47: 3.630349335e-05 | M47: 0.0003581700532 | N47: 1.128840775e-07
A48: 20.9383 | B48: ='DF raw data'!G53 -> 2.070798e-06 | C48: ='DF raw data'!H53 -> 6.051142e-06 | D48: ='DF raw data'!I53 -> 9.3214896e-07 | F48: 2.073929047e-06 | G48: 6.075532059e-06 | H48: 9.335583692e-07 | J48: 8.270552648e-05 | K48: 0.00141705094 | L48: 3.934217071e-05 | M48: 0.0003778470398 | N48: 1.17079341e-07
A49: 21.43845 | B49: ='DF raw data'!G54 -> 5.0567637e-06 | C49: ='DF raw data'!H54 -> -2.0173329e-06 | D49: ='DF raw data'!I54 -> -2.5584043e-06 | F49: 5.064409527e-06 | G49: -2.025464071e-06 | H49: -2.562272607e-06 | J49: 8.523849091e-05 | K49: 0.001459682972 | L49: 3.832913485e-05 | M49: 0.0003970173566 | N49: 1.214480127e-07
A50: 21.9386 | B50: ='DF raw data'!G55 -> 6.2736822e-06 | C50: ='DF raw data'!H55 -> 3.7678028e-06 | D50: ='DF raw data'!I55 -> -8.2488432e-06 | F50: 6.283168007e-06 | G50: 3.782989509e-06 | H50: -8.261315451e-06 | J50: 8.838101739e-05 | K50: 0.001503886737 | L50: 4.022119705e-05 | M50: 0.0004171339883 | N50: 1.261639015e-07
A51: 22.43875 | B51: ='DF raw data'!G56 -> 1.2645345e-06 | C51: ='DF raw data'!H56 -> -2.1793121e-06 | D51: ='DF raw data'!I56 -> -4.3989598e-06 | F51: 1.266446476e-06 | G51: -2.188096153e-06 | H51: -4.405611027e-06 | J51: 8.901443059e-05 | K51: 0.001548407305 | L51: 3.912682076e-05 | M51: 0.0004367032677 | N51: 1.308925581e-07
A52: 22.9389 | B52: ='DF raw data'!G57 -> -6.292435e-06 | C52: ='DF raw data'!H57 -> -3.5546809e-06 | D52: ='DF raw data'!I57 -> 9.3920664e-07 | F52: -6.301949162e-06 | G52: -3.569008589e-06 | H52: 9.406267204e-07 | J52: 8.586251072e-05 | K52: 0.00159135144 | L52: 3.734178112e-05 | M52: 0.0004553797596 | N52: 1.352772628e-07
A53: 23.43905 | B53: ='DF raw data'!G58 -> -1.0270114e-05 | C53: ='DF raw data'!H58 -> 8.4963276e-06 | D53: ='DF raw data'!I58 -> -2.8454554e-06 | F53: -1.028564241e-05 | G53: 8.530573356e-06 | H53: -2.849757729e-06 | J53: 8.071814667e-05 | K53: 0.001631722621 | L53: 4.160834738e-05 | M53: 0.0004761901745 | N53: 1.394018367e-07
A54: 23.9392 | B54: ='DF raw data'!G59 -> -5.1518268e-06 | C54: ='DF raw data'!H59 -> 7.1325694e-06 | D54: ='DF raw data'!I59 -> -6.5360105e-06 | F54: -5.159616362e-06 | G54: 7.161318319e-06 | H54: -6.545892948e-06 | J54: 7.813756454e-05 | K54: 0.001670803124 | L54: 4.519008074e-05 | M54: 0.0004987919934 | N54: 1.4347687e-07
A55: 24.43935 | B55: ='DF raw data'!G60 -> -1.6496175e-06 | C55: ='DF raw data'!H60 -> 6.6614384e-06 | D55: ='DF raw data'!I60 -> -3.4315919e-06 | F55: -1.652111722e-06 | G55: 6.688288353e-06 | H55: -3.436780467e-06 | J55: 7.731126087e-05 | K55: 0.001709470351 | L55: 4.853522816e-05 | M55: 0.0005230668877 | N55: 1.476444697e-07
A56: 24.9395 | B56: ='DF raw data'!G61 -> -2.6603352e-06 | C56: ='DF raw data'!H61 -> -6.3373036e-06 | D56: ='DF raw data'!I61 -> 3.4919619e-06 | F56: -2.664357627e-06 | G56: -6.362847078e-06 | H56: 3.497241746e-06 | J56: 7.59786824e-05 | K56: 0.001747471089 | L56: 4.535285019e-05 | M56: 0.0005457501158 | N56: 1.515604647e-07
A57: 25.43965 | B57: ='DF raw data'!G62 -> -5.2335213e-06 | C57: ='DF raw data'!H62 -> -1.2005957e-05 | D57: ='DF raw data'!I62 -> 1.7960234e-06 | F57: -5.241434384e-06 | G57: -1.205434886e-05 | H57: 1.798738987e-06 | J57: 7.335717899e-05 | K57: 0.001784160682 | L57: 3.932386761e-05 | M57: 0.0005654179482 | N57: 1.55025325e-07
A58: 25.9398 | B58: ='DF raw data'!G63 -> -4.3296e-06 | C58: ='DF raw data'!H63 -> -7.0362972e-08 | D58: ='DF raw data'!I63 -> 4.7064937e-06 | F58: -4.336146355e-06 | G58: -7.064658079e-08 | H58: 4.713609918e-06 | J58: 7.118845539e-05 | K58: 0.001819765588 | L58: 3.928853372e-05 | M58: 0.0005850681083 | N58: 1.583320092e-07
A59: 26.43995 | B59: ='DF raw data'!G64 -> -2.5740155e-08 | C59: ='DF raw data'!H64 -> 6.7175921e-07 | D59: ='DF raw data'!I64 -> 7.8156418e-06 | F59: -2.577907411e-08 | G59: 6.744668389e-07 | H59: 7.82745905e-06 | J59: 7.117556199e-05 | K59: 0.001855364045 | L59: 3.962586831e-05 | M59: 0.0006048869863 | N59: 1.616510897e-07
A60: 26.9401 | B60: ='DF raw data'!G65 -> -2.9010384e-06 | C60: ='DF raw data'!H65 -> -8.1053477e-06 | D60: ='DF raw data'!I65 -> 6.1477299e-06 | F60: -2.90542477e-06 | G60: -8.138017552e-06 | H60: 6.157025268e-06 | J60: 6.972241379e-05 | K60: 0.00189023571 | L60: 3.555563884e-05 | M60: 0.0006226701391 | N60: 1.647147177e-07
A61: 27.44025 | B61: ='DF raw data'!G66 -> -2.1212595e-06 | C61: ='DF raw data'!H66 -> 9.8688446e-08 | D61: ='DF raw data'!I66 -> 1.0624032e-06 | F61: -2.124466844e-06 | G61: 9.908622497e-08 | H61: 1.064009554e-06 | J61: 6.86598617e-05 | K61: 0.00192457594 | L61: 3.560519681e-05 | M61: 0.0006404780783 | N61: 1.677065683e-07
A62: 27.9404 | B62: ='DF raw data'!G67 -> 2.1219334e-06 | C62: ='DF raw data'!H67 -> -2.3771854e-06 | D62: ='DF raw data'!I67 -> -5.7821485e-06 | F62: 2.125141763e-06 | G62: -2.386767012e-06 | H62: -5.790891109e-06 | J62: 6.972275135e-05 | K62: 0.001959447774 | L62: 3.441145529e-05 | M62: 0.0006576889676 | N62: 1.707301803e-07
A63: 28.44055 | B63: ='DF raw data'!G68 -> 3.8634921e-06 | C63: ='DF raw data'!H68 -> -3.8547578e-06 | D63: ='DF raw data'!I68 -> -6.3887887e-06 | F63: 3.8693337e-06 | G63: -3.870294995e-06 | H63: -6.398448549e-06 | J63: 7.16579986e-05 | K63: 0.001995287522 | L63: 3.247572725e-05 | M63: 0.0006739317026 | N63: 1.738258795e-07
A64: 28.9407 | B64: ='DF raw data'!G69 -> 5.0367403e-06 | C64: ='DF raw data'!H69 -> -1.4373244e-06 | D64: ='DF raw data'!I69 -> 4.5969193e-07 | F64: 5.044355851e-06 | G64: -1.443117757e-06 | H64: 4.603869842e-07 | J64: 7.418093318e-05 | K64: 0.002032389116 | L64: 3.17539519e-05 | M64: 0.0006898134417 | N64: 1.770824184e-07
A65: 29.44085 | B65: ='DF raw data'!G70 -> 3.8521416e-06 | C65: ='DF raw data'!H70 -> 5.6173712e-06 | D65: ='DF raw data'!I70 -> 2.3879518e-06 | F65: 3.857966038e-06 | G65: 5.640012879e-06 | H65: 2.391562383e-06 | J65: 7.611049489e-05 | K65: 0.00207045578 | L65: 3.457480434e-05 | M65: 0.0007071060301 | N65: 1.805775789e-07
A66: 29.941 | B66: ='DF raw data'!G71 -> 8.763185e-07 | C66: ='DF raw data'!H71 -> 6.6649072e-06 | D66: ='DF raw data'!I71 -> 4.7192848e-06 | F66: 8.776434936e-07 | G66: 6.691771134e-06 | H66: 4.726420359e-06 | J66: 7.654944829e-05 | K66: 0.002108741987 | L66: 3.792169368e-05 | M66: 0.0007260725652 | N66: 1.8422761e-07
A67: 30.44115 | B67: ='DF raw data'!G72 -> -6.4058527e-06 | C67: ='DF raw data'!H72 -> -3.0239326e-07 | D67: ='DF raw data'!I72 -> 4.2261365e-07 | F67: -6.415538349e-06 | G67: -3.036121026e-07 | H67: 4.232526418e-07 | J67: 7.334071678e-05 | K67: 0.002145423346 | L67: 3.776984208e-05 | M67: 0.0007449631517 | N67: 1.876313417e-07
A68: 30.9413 | B68: ='DF raw data'!G73 -> -8.5001066e-06 | C68: ='DF raw data'!H73 -> -5.0930948e-06 | D68: ='DF raw data'!I73 -> -9.5012672e-07 | F68: -8.512958761e-06 | G68: -5.113623303e-06 | H68: -9.515633116e-07 | J68: 6.908296046e-05 | K68: 0.002179975189 | L68: 3.521226339e-05 | M68: 0.0007625745652 | N68: 1.90638423e-07
A69: 31.44145 | B69: ='DF raw data'!G74 -> -4.149389e-06 | C69: ='DF raw data'!H74 -> -1.1994242e-06 | D69: ='DF raw data'!I74 -> 1.449877e-06 | F69: -4.155662876e-06 | G69: -1.204258664e-06 | H69: 1.452069214e-06 | J69: 6.700450567e-05 | K69: 0.002213487492 | L69: 3.460995342e-05 | M69: 0.0007798847334 | N69: 1.934830024e-07
A70: 31.9416 | B70: ='DF raw data'!G75 -> 9.0062019e-07 | C70: ='DF raw data'!H75 -> 1.4443444e-05 | D70: ='DF raw data'!I75 -> -3.0100521e-06 | F70: 9.019819277e-07 | G70: 1.450166052e-05 | H70: -3.014603299e-06 | J70: 6.745563193e-05 | K70: 0.002247225427 | L70: 4.186295893e-05 | M70: 0.0008008224923 | N70: 1.966353326e-07
A71: 32.44175 | B71: ='DF raw data'!G76 -> 6.1179378e-07 | C71: ='DF raw data'!H76 -> 1.5931291e-05 | D71: ='DF raw data'!I76 -> -7.0763667e-06 | F71: 6.127188122e-07 | G71: =(1-$G$1*($B$2-$G$2))*C71*$M$2/$M$1 -> 1.599550452e-05 | H71: -7.087066166e-06 | J71: 6.776208324e-05 | K71: 0.002281116633 | L71: 4.986311051e-05 | M71: 0.000825761527 | N71: 2.001754092e-07
A72: =A71+$B$1 -> 32.9419 | B72: ='DF raw data'!G77 -> -9.076881e-07 | C72: ='DF raw data'!H77 -> 8.7139479e-06 | D72: ='DF raw data'!I77 -> -7.6014726e-06 | F72: -9.090605244e-07 | G72: 8.749070808e-06 | H72: -7.612966027e-06 | J72: =F72*$B$1+J71 -> 6.730741662e-05 | K72: =J72*$B$1+K71 -> 0.002314780437 | L72: =G72*$B$1+L71 -> 5.423895828e-05 | M72: =L72*$B$1+M71 -> 0.000852889142 | N72: =(J72^2+L72^2)*$B$1+N71 -> 2.039126065e-07
A73: 33.44205 | B73: ='DF raw data'!G78 -> -1.7125545e-06 | C73: ='DF raw data'!H78 -> 3.6319734e-06 | D73: ='DF raw data'!I78 -> -2.9698451e-06 | F73: -1.715143882e-06 | G73: 3.646612628e-06 | H73: -2.974335506e-06 | J73: 6.644958741e-05 | K73: 0.002348015198 | L73: 5.606281159e-05 | M73: 0.0008809289572 | N73: 2.076930335e-07
A74: 33.9422 | B74: ='DF raw data'!G79 -> -4.1672733e-06 | C74: ='DF raw data'!H79 -> -5.9991989e-06 | D74: ='DF raw data'!I79 -> 2.9332994e-06 | F74: -4.173574217e-06 | G74: -6.023379595e-06 | H74: 2.937734549e-06 | J74: 6.436217427e-05 | K74: 0.00238020594 | L74: 5.305021828e-05 | M74: 0.0009074620239 | N74: 2.111724846e-07
A75: 34.44235 | B75: ='DF raw data'!G80 -> -3.7349359e-06 | C75: ='DF raw data'!H80 -> -7.15241e-06 | D75: ='DF raw data'!I80 -> 7.1374493e-06 | F75: -3.740583123e-06 | G75: -7.18123889e-06 | H75: 7.148241123e-06 | J75: 6.249132162e-05 | K75: 0.002411460974 | L75: 4.945852165e-05 | M75: 0.0009321987035 | N75: 2.143490926e-07
A76: 34.9425 | B76: ='DF raw data'!G81 -> -1.4521137e-07 | C76: ='DF raw data'!H81 -> -4.1869907e-06 | D76: ='DF raw data'!I81 -> 3.3491931e-06 | F76: -1.454309296e-07 | G76: -4.203867011e-06 | H76: 3.35425708e-06 | J76: 6.241858434e-05 | K76: 0.002442679629 | L76: 4.735595757e-05 | M76: 0.0009558837857 | N76: 2.174193466e-07
A77: 35.44265 | B77: ='DF raw data'!G82 -> 4.7293602e-06 | C77: ='DF raw data'!H82 -> -8.4206358e-06 | D77: ='DF raw data'!I82 -> -1.0903635e-06 | F77: 4.736510993e-06 | G77: -8.454576469e-06 | H77: -1.09201213e-06 | J77: 6.478755031e-05 | K77: 0.002475083122 | L77: 4.312740114e-05 | M77: 0.0009774539554 | N77: 2.204489549e-07
A78: 35.9428 | B78: ='DF raw data'!G83 -> 6.0331827e-06 | C78: ='DF raw data'!H83 -> -4.9379205e-06 | D78: ='DF raw data'!I83 -> 4.600483e-06 | F78: 6.042304872e-06 | G78: -4.957823549e-06 | H78: 4.60743893e-06 | J78: 6.780960909e-05 | K78: 0.002508998098 | L78: 4.06477457e-05 | M78: 0.0009977839254 | N78: 2.235750837e-07
A79: 36.44295 | B79: ='DF raw data'!G84 -> 5.0479598e-06 | C79: ='DF raw data'!H84 -> -1.0623919e-05 | D79: ='DF raw data'!I84 -> 3.3304939e-06 | F79: 5.055592315e-06 | G79: -1.066674034e-05 | H79: 3.335529607e-06 | J79: 7.033816359e-05 | K79: 0.002544177731 | L79: 3.531277552e-05 | M79: 0.00101544561 | N79: 2.266732375e-07
A80: 36.9431 | B80: ='DF raw data'!G85 -> 6.2887725e-06 | C80: ='DF raw data'!H85 -> -1.2507925e-06 | D80: ='DF raw data'!I85 -> -8.1118078e-06 | F80: 6.298281124e-06 | G80: -1.255834012e-06 | H80: -8.124072853e-06 | J80: 7.348824889e-05 | K80: 0.002580932879 | L80: 3.468467013e-05 | M80: 0.001032793148 | N80: 2.299760026e-07
A81: 37.44325 | B81: ='DF raw data'!G86 -> 1.0177631e-06 | C81: ='DF raw data'!H86 -> 2.7392134e-06 | D81: ='DF raw data'!I86 -> -5.2519786e-06 | F81: 1.019301958e-06 | G81: 2.750254221e-06 | H81: -5.259919592e-06 | J81: 7.399805277e-05 | K81: 0.002617943005 | L81: 3.606020978e-05 | M81: 0.001050828662 | N81: 2.333650443e-07
A82: 37.9434 | B82: ='DF raw data'!G87 -> -7.1806694e-06 | C82: ='DF raw data'!H87 -> -1.3387481e-07 | D82: ='DF raw data'!I87 -> 1.5107493e-07 | F82: -7.191526572e-06 | G82: -1.34414413e-07 | H82: 1.513033553e-07 | J82: 7.040121075e-05 | K82: 0.00265315417 | L82: 3.599298241e-05 | M82: 0.001068830552 | N82: 2.364918947e-07
A83: 38.44355 | B83: ='DF raw data'!G88 -> -6.7313208e-06 | C83: ='DF raw data'!H88 -> 8.5031324e-06 | D83: ='DF raw data'!I88 -> 3.0396593e-06 | F83: -6.741498557e-06 | G83: 8.537405584e-06 | H83: 3.044255265e-06 | J83: 6.702945025e-05 | K83: 0.00268667895 | L83: 4.026296582e-05 | M83: 0.001088968074 | N83: 2.395498386e-07
A84: 38.9437 | B84: ='DF raw data'!G89 -> -3.3485244e-06 | C84: ='DF raw data'!H89 -> -1.9376757e-06 | D84: ='DF raw data'!I89 -> 9.2397079e-07 | F84: -3.353587369e-06 | G84: -1.9454858e-06 | H84: 9.253678338e-07 | J84: 6.535215353e-05 | K84: 0.002719364829 | L84: 3.928993109e-05 | M84: 0.001108618933 | N84: 2.424580121e-07
A85: 39.44385 | B85: ='DF raw data'!G90 -> 2.0486355e-06 | C85: ='DF raw data'!H90 -> 6.7536081e-07 | D85: ='DF raw data'!I90 -> 3.3873337e-06 | F85: 2.051733037e-06 | G85: 6.780829557e-07 | H85: 3.392455349e-06 | J85: 6.63783278e-05 | K85: 0.00275256395 | L85: 3.962907428e-05 | M85: 0.001128439415 | N85: 2.454471815e-07
A86: 39.944 | B86: ='DF raw data'!G91 -> 9.5563464e-06 | C86: ='DF raw data'!H91 -> -3.5496096e-06 | D86: ='DF raw data'!I91 -> -1.3967104e-06 | F86: 9.570795596e-06 | G86: -3.563916848e-06 | H86: -1.398822226e-06 | J86: 7.116516122e-05 | K86: 0.002788157205 | L86: 3.784658127e-05 | M86: 0.001147368382 | N86: 2.48696578e-07
A87: 40.44415 | B87: ='DF raw data'!G92 -> 1.1144994e-05 | C87: ='DF raw data'!H92 -> -1.1875999e-05 | D87: ='DF raw data'!I92 -> -1.0198814e-05 | F87: =(1-$G$1*($B$2-$G$2))*B87 -> 1.116184523e-05 | G87: -1.192386704e-05 | H87: -1.021423461e-05 | J87: 7.674775811e-05 | K87: 0.002826542597 | L87: 3.188285917e-05 | M87: 0.001163314594 | N87: 2.521509816e-07
A88: 40.9443 | B88: ='DF raw data'!G93 -> 8.9300465e-06 | C88: ='DF raw data'!H93 -> -5.9363547e-06 | D88: ='DF raw data'!I93 -> -2.6764058e-06 | F88: 8.94354873e-06 | G88: -5.960282091e-06 | H88: -2.680452526e-06 | J88: 8.122087401e-05 | K88: 0.002867165217 | L88: 2.890182408e-05 | M88: 0.001177769842 | N88: 2.558681693e-07
A89: 41.44445 | B89: ='DF raw data'!G94 -> 7.0169358e-06 | C89: ='DF raw data'!H94 -> -3.0747424e-06 | D89: ='DF raw data'!I94 -> 2.5719753e-06 | F89: 7.027545407e-06 | G89: -3.087135623e-06 | H89: 2.575864127e-06 | J89: 8.473570085e-05 | K89: 0.002909545777 | L89: 2.73577932e-05 | M89: 0.001191452842 | N89: 2.598336525e-07
A90: 41.9446 | B90: ='DF raw data'!G95 -> -3.5140694e-08 | C90: ='DF raw data'!H95 -> -7.073555e-06 | D90: ='DF raw data'!I95 -> -2.4410722e-06 | F90: -3.519382673e-08 | G90: -7.102066052e-06 | H90: -2.444763101e-06 | J90: 8.471809865e-05 | K90: 0.002951917535 | L90: 2.380569487e-05 | M90: 0.00120335926 | N90: 2.637067478e-07
A91: 42.44475 | B91: ='DF raw data'!G96 -> -4.7807675e-06 | C91: ='DF raw data'!H96 -> -1.163036e-05 | D91: ='DF raw data'!I96 -> -5.2432313e-07 | F91: -4.78799602e-06 | G91: -1.167723796e-05 | H91: -5.251159066e-07 | J91: 8.232338244e-05 | K91: 0.002993091574 | L91: 1.79653243e-05 | M91: 0.001212344617 | N91: 2.672577588e-07
A92: 42.9449 | B92: ='DF raw data'!G97 -> -4.6424661e-06 | C92: ='DF raw data'!H97 -> 9.9408126e-06 | D92: ='DF raw data'!I97 -> 2.4989683e-06 | F92: -4.649485509e-06 | G92: 9.980880575e-06 | H92: 2.50274674e-06 | J92: 7.999794227e-05 | K92: 0.003033102545 | L92: 2.295726172e-05 | M92: 0.001223826692 | N92: 2.707221511e-07
A93: 43.44505 | B93: ='DF raw data'!G98 -> -1.483813e-06 | C93: ='DF raw data'!H98 -> -3.1435911e-06 | D93: ='DF raw data'!I98 -> 3.7515827e-06 | F93: -1.486056525e-06 | G93: -3.156261828e-06 | H93: 3.757255093e-06 | J93: 7.92546911e-05 | K93: 0.003072741779 | L93: 2.137865737e-05 | M93: 0.001234519227 | N93: 2.740923384e-07
A94: 43.9452 | B94: ='DF raw data'!G99 -> -4.4023595e-06 | C94: ='DF raw data'!H99 -> -5.6915169e-06 | D94: ='DF raw data'!I99 -> 3.1205825e-06 | F94: -4.409015868e-06 | G94: -5.714457435e-06 | H94: 3.125300821e-06 | J94: 7.704952181e-05 | K94: 0.003111278097 | L94: 1.852057148e-05 | M94: 0.001243782291 | N94: 2.772331006e-07
A95: 44.44535 | B95: ='DF raw data'!G100 -> -9.7383145e-06 | C95: ='DF raw data'!H100 -> -3.8510216e-06 | D95: ='DF raw data'!I100 -> -1.1902624e-06 | F95: -9.753038832e-06 | G95: -3.866543735e-06 | H95: -1.192062077e-06 | J95: 7.217153944e-05 | K95: 0.003147374693 | L95: 1.658671963e-05 | M95: 0.001252078139 | N95: 2.799758483e-07
A96: 44.9455 | B96: ='DF raw data'!G101 -> -6.0358557e-06 | C96: ='DF raw data'!H101 -> -9.3596964e-06 | D96: ='DF raw data'!I101 -> -5.8466426e-06 | F96: -6.044981914e-06 | G96: -9.397422097e-06 | H96: -5.855482724e-06 | J96: 6.914814173e-05 | K96: 0.003181959136 | L96: 1.188659897e-05 | M96: 0.001258023221 | N96: 2.824379651e-07
A97: 45.44565 | B97: ='DF raw data'!G102 -> 1.1441902e-06 | C97: ='DF raw data'!H102 -> 8.2238703e-06 | D97: ='DF raw data'!I102 -> -8.8608094e-06 | F97: 1.145920216e-06 | G97: 8.257017875e-06 | H97: -8.874206944e-06 | J97: 6.972127373e-05 | K97: 0.003216830231 | L97: 1.601634646e-05 | M97: 0.001266033797 | N97: 2.849975224e-07
A98: 45.9458 | B98: ='DF raw data'!G103 -> 3.5406991e-08 | C98: ='DF raw data'!H103 -> -5.2908484e-07 | D98: ='DF raw data'!I103 -> -7.9084302e-06 | F98: 3.546052637e-08 | G98: -5.312173979e-07 | H98: -7.920387746e-06 | J98: 6.973900931e-05 | K98: 0.003251710196 | L98: 1.575065808e-05 | M98: 0.001273911489 | N98: 2.875540955e-07
A99: 46.44595 | B99: ='DF raw data'!G104 -> -1.1318143e-05 | C99: ='DF raw data'!H104 -> -1.6201201e-06 | D99: ='DF raw data'!I104 -> -8.6947575e-06 | F99: -1.133525603e-05 | G99: -1.626650243e-06 | H99: -8.707903973e-06 | J99: 6.406968101e-05 | K99: 0.003283754647 | L99: 1.493708896e-05 | M99: 0.001281382274 | N99: 2.89718765e-07
A100: 46.9461 | B100: ='DF raw data'!G105 -> -1.3374358e-05 | C100: ='DF raw data'!H105 -> 5.3490485e-06 | D100: ='DF raw data'!I105 -> -6.7433316e-06 | F100: -1.339458003e-05 | G100: 5.370608663e-06 | H100: -6.753527517e-06 | J100: 5.737038181e-05 | K100: 0.003312448444 | L100: 1.762319888e-05 | M100: 0.001290196517 | N100: 2.915202742e-07
A101: 47.44625 | B101: ='DF raw data'!G106 -> -2.2822037e-06 | C101: ='DF raw data'!H106 -> 7.3372457e-06 | D101: ='DF raw data'!I106 -> 1.4995863e-06 | F101: -2.285654392e-06 | G101: 7.366819598e-06 | H101: 1.501853674e-06 | J101: 5.622721176e-05 | K101: 0.003340570484 | L101: 2.130771371e-05 | M101: 0.00130085357 | N101: 2.933285756e-07
A102: 47.9464 | B102: ='DF raw data'!G107 -> 3.2983248e-06 | C102: ='DF raw data'!H107 -> 1.407025e-05 | D102: ='DF raw data'!I107 -> 6.2572039e-06 | F102: 3.303311867e-06 | G102: 1.412696231e-05 | H102: 6.266664792e-06 | J102: 5.787936319e-05 | K102: 0.003369518847 | L102: 2.83733139e-05 | M102: 0.001315044483 | N102: 2.954067316e-07
A103: 48.44655 | B103: ='DF raw data'!G108 -> 1.4837445e-06 | C103: ='DF raw data'!H108 -> 3.4586528e-06 | D103: ='DF raw data'!I108 -> 2.1087587e-06 | F103: 1.485987922e-06 | G103: 3.472593433e-06 | H103: 2.111947143e-06 | J103: 5.862258005e-05 | K103: 0.003398838931 | L103: 3.011013151e-05 | M103: 0.001330104065 | N103: 2.975789966e-07
A104: 48.9467 | B104: ='DF raw data'!G109 -> -2.4186425e-06 | C104: ='DF raw data'!H109 -> -6.3089004e-07 | D104: ='DF raw data'!I109 -> -2.7291273e-06 | F104: -2.422299487e-06 | G104: -6.334329394e-07 | H104: -2.73325374e-06 | J104: 5.741106696e-05 | K104: 0.003427553076 | L104: 2.979332003e-05 | M104: 0.001345005194 | N104: 2.996714604e-07
A105: 49.44685 | B105: ='DF raw data'!G110 -> -2.4752349e-06 | C105: ='DF raw data'!H110 -> -2.7263823e-07 | D105: ='DF raw data'!I110 -> -8.8164541e-07 | F105: -2.478977455e-06 | G105: -2.737371404e-07 | H105: -8.829784579e-07 | J105: 5.617120639e-05 | K105: 0.003455647105 | L105: 2.965641039e-05 | M105: 0.001359837848 | N105: 3.016894192e-07
A106: 49.947 | B106: ='DF raw data'!G111 -> -2.9603812e-06 | C106: ='DF raw data'!H111 -> 9.5008824e-07 | D106: ='DF raw data'!I111 -> 2.7347094e-06 | F106: -2.964857296e-06 | G106: 9.539177169e-07 | H106: 2.738844281e-06 | J106: 5.468833301e-05 | K106: 0.003482999474 | L106: 3.013351234e-05 | M106: 0.001374909124 | N106: 3.036394251e-07
A107: 50.44715 | B107: ='DF raw data'!G112 -> -3.547842e-06 | C107: ='DF raw data'!H112 -> 1.0504256e-06 | D107: ='DF raw data'!I112 -> 1.1141061e-06 | F107: -3.553206337e-06 | G107: 1.054659502e-06 | H107: 1.115790628e-06 | J107: 5.291119686e-05 | K107: 0.003509463009 | L107: 3.066100029e-05 | M107: 0.001390244223 | N107: 3.055098319e-07
A108: 50.9473 | B108: ='DF raw data'!G113 -> -7.2252953e-07 | C108: ='DF raw data'!H113 -> 1.4657463e-05 | D108: ='DF raw data'!I113 -> 7.6210983e-07 | F108: -7.236219946e-07 | G108: 1.471654216e-05 | H108: 7.632621401e-07 | J108: 5.254927732e-05 | K108: 0.00353574553 | L108: 3.802147885e-05 | M108: 0.001409260666 | N108: 3.076139927e-07
A109: 51.44745 | B109: ='DF raw data'!G114 -> 7.6585491e-07 | C109: ='DF raw data'!H114 -> 5.4783386e-06 | D109: ='DF raw data'!I114 -> 9.7211423e-06 | F109: 7.670128826e-07 | G109: 5.500419887e-06 | H109: 9.735840667e-06 | J109: 5.293289881e-05 | K109: 0.00356221992 | L109: 4.077251386e-05 | M109: 0.001429653038 | N109: 3.098468072e-07
A110: 51.9476 | B110: ='DF raw data'!G115 -> -1.9133417e-06 | C110: ='DF raw data'!H115 -> -1.2155677e-06 | D110: ='DF raw data'!I115 -> 6.7703481e-06 | F110: -1.916234673e-06 | G110: -1.220467233e-06 | H110: 6.780584866e-06 | J110: 5.197449404e-05 | K110: 0.003588214963 | L110: 4.016209717e-05 | M110: 0.001449740111 | N110: 3.120046254e-07
A111: 52.44775 | B111: ='DF raw data'!G116 -> -5.1637739e-06 | C111: ='DF raw data'!H116 -> -2.8665954e-06 | D111: ='DF raw data'!I116 -> -5.3756407e-06 | F111: -5.171581526e-06 | G111: -2.878149654e-06 | H111: -5.383768669e-06 | J111: 4.938792754e-05 | K111: 0.003612916335 | L111: 3.872259062e-05 | M111: 0.001469107215 | N111: 3.139745194e-07
A112: 52.9479 | B112: ='DF raw data'!G117 -> -4.5707106e-06 | C112: ='DF raw data'!H117 -> -9.2649625e-06 | D112: ='DF raw data'!I117 -> -1.1529804e-06 | F112: -4.577621514e-06 | G112: -9.302306358e-06 | H112: -1.154723706e-06 | J112: 4.709843014e-05 | K112: 0.003636472615 | L112: 3.40700421e-05 | M112: 0.001486147347 | N112: 3.156645412e-07
A113: 53.44805 | B113: ='DF raw data'!G118 -> 3.3498728e-07 | C113: ='DF raw data'!H118 -> -7.497586e-06 | D113: ='DF raw data'!I118 -> 7.4356763e-06 | F113: 3.354937808e-07 | G113: -7.527806175e-06 | H113: 7.446919043e-06 | J113: 4.726622736e-05 | K113: 0.003660112818 | L113: 3.030500984e-05 | M113: 0.001501304397 | N113: 3.17241259e-07
A114: 53.9482 | B114: ='DF raw data'!G119 -> 1.7909209e-06 | C114: ='DF raw data'!H119 -> 7.4260885e-07 | D114: ='DF raw data'!I119 -> 5.5580572e-06 | F114: 1.793628772e-06 | G114: 7.456020493e-07 | H114: 5.566460982e-06 | J114: 4.816331079e-05 | K114: 0.003684201698 | L114: 3.067792271e-05 | M114: 0.00151664796 | N114: 3.188721678e-07
A115: 54.44835 | B115: ='DF raw data'!G120 -> 1.6036232e-06 | C115: ='DF raw data'!H120 -> -3.5666881e-06 | D115: ='DF raw data'!I120 -> 3.6011741e-06 | F115: 1.606047878e-06 | G115: -3.581064185e-06 | H115: 3.606619075e-06 | J115: 4.896657563e-05 | K115: 0.003708692331 | L115: 2.888685345e-05 | M115: 0.00153109572 | N115: 3.204887406e-07
A116: 54.9485 | B116: ='DF raw data'!G121 -> 3.7946033e-06 | C116: ='DF raw data'!H121 -> -2.9454523e-06 | D116: ='DF raw data'!I121 -> 2.9527989e-06 | F116: 3.80034074e-06 | G116: -2.957324399e-06 | H116: 2.957263532e-06 | J116: 5.086731605e-05 | K116: 0.003734133619 | L116: 2.740774765e-05 | M116: 0.001544803705 | N116: 3.221585756e-07
A117: 55.44865 | B117: ='DF raw data'!G122 -> 7.0952979e-06 | C117: ='DF raw data'!H122 -> -1.7885039e-06 | D117: ='DF raw data'!I122 -> 3.9689444e-06 | F117: 7.10602599e-06 | G117: -1.79571274e-06 | H117: 3.974945444e-06 | J117: 5.442139495e-05 | K117: 0.00376135248 | L117: 2.650962193e-05 | M117: 0.001558062492 | N117: 3.239913494e-07
A118: 55.9488 | B118: ='DF raw data'!G123 -> 1.0868449e-05 | C118: ='DF raw data'!H123 -> -9.3655672e-06 | D118: ='DF raw data'!I123 -> 4.0822165e-06 | F118: 1.088488209e-05 | G118: -9.40331656e-06 | H118: 4.088388811e-06 | J118: 5.986546873e-05 | K118: 0.003791294194 | L118: 2.180655315e-05 | M118: 0.00156896904 | N118: 3.260216584e-07
A119: 56.44895 | B119: ='DF raw data'!G124 -> 1.0750302e-05 | C119: ='DF raw data'!H124 -> -4.5181578e-06 | D119: ='DF raw data'!I124 -> 2.3307191e-06 | F119: 1.076655646e-05 | G119: -4.536368931e-06 | H119: 2.334243147e-06 | J119: 6.525036195e-05 | K119: 0.003823929163 | L119: 1.953768823e-05 | M119: 0.001578740815 | N119: 3.283420198e-07
A120: 56.9491 | B120: ='DF raw data'!G125 -> 9.8895707e-06 | C120: ='DF raw data'!H125 -> 6.150146e-06 | D120: ='DF raw data'!I125 -> 1.8336983e-06 | F120: 9.904523731e-06 | G120: 6.17493511e-06 | H120: 1.836470852e-06 | J120: 7.020410949e-05 | K120: 0.003859041748 | L120: 2.262608202e-05 | M120: 0.00159005725 | N120: 3.310631142e-07
A121: 57.44925 | B121: ='DF raw data'!G126 -> 9.8994369e-06 | C121: ='DF raw data'!H126 -> -1.1766068e-06 | D121: ='DF raw data'!I126 -> 1.0594944e-07 | F121: 9.914404849e-06 | G121: -1.181349295e-06 | H121: 1.061096356e-07 | J121: 7.516279907e-05 | K121: 0.003896634422 | L121: 2.203523017e-05 | M121: 0.00160107817 | N121: 3.341315333e-07
A122: 57.9494 | B122: ='DF raw data'!G127 -> 6.4834771e-06 | C122: ='DF raw data'!H127 -> -2.0508223e-06 | D122: ='DF raw data'!I127 -> -3.0900439e-06 | F122: 6.493280117e-06 | G122: -2.059088455e-06 | H122: -3.094716046e-06 | J122: 7.841041313e-05 | K122: 0.00393585139 | L122: 2.100537708e-05 | M122: 0.001611584009 | N122: 3.374272311e-07
A123: 58.44955 | B123: ='DF raw data'!G128 -> 8.4127748e-07 | C123: ='DF raw data'!H128 -> 2.5726958e-06 | D123: ='DF raw data'!I128 -> -7.6156462e-06 | F123: 8.425494915e-07 | G123: 2.583065446e-06 | H123: -7.627161057e-06 | J123: 7.883181425e-05 | K123: 0.003975279122 | L123: 2.229729727e-05 | M123: 0.001622736003 | N123: 3.4078405e-07
A124: 58.9497 | B124: ='DF raw data'!G129 -> -1.4549129e-06 | C124: ='DF raw data'!H129 -> -4.1825888e-06 | D124: ='DF raw data'!I129 -> -1.1440442e-05 | F124: -1.457112728e-06 | G124: -4.199447368e-06 | H124: -1.145773995e-05 | J124: 7.810303932e-05 | K124: 0.004014342357 | L124: 2.019694367e-05 | M124: 0.001632837504 | N124: 3.440390268e-07
A125: 59.44985 | B125: ='DF raw data'!G130 -> -1.5217207e-06 | C125: ='DF raw data'!H130 -> -2.5118143e-06 | D125: ='DF raw data'!I130 -> -9.8074843e-06 | F125: -1.524021542e-06 | G125: -2.521938554e-06 | H125: -9.822313216e-06 | J125: 7.734079995e-05 | K125: 0.004053024358 | L125: 1.89355961e-05 | M125: 0.001642308142 | N125: 3.472100559e-07
A126: 59.95 | B126: ='DF raw data'!G131 -> -6.0345121e-07 | C126: ='DF raw data'!H131 -> 1.1083202e-07 | D126: ='DF raw data'!I131 -> -1.973068e-06 | F126: -6.043636282e-07 | G126: 1.112787455e-07 | H126: -1.976051279e-06 | J126: 7.703852748e-05 | K126: 0.004091555178 | L126: 1.899125216e-05 | M126: 0.001651806617 | N126: 3.503588015e-07
A127: 60.45015 | B127: ='DF raw data'!G132 -> -3.9295824e-06 | C127: ='DF raw data'!H132 -> -7.8768522e-08 | D127: ='DF raw data'!I132 -> 2.8615584e-06 | F127: -3.935523929e-06 | G127: -7.908601065e-08 | H127: 2.865885076e-06 | J127: 7.507017519e-05 | K127: 0.004129101526 | L127: 1.895169729e-05 | M127: 0.001661285309 | N127: 3.533570497e-07
A128: 60.9503 | B128: ='DF raw data'!G133 -> -8.5094634e-06 | C128: ='DF raw data'!H133 -> 4.8248121e-06 | D128: ='DF raw data'!I133 -> 2.039608e-06 | F128: -8.522329709e-06 | G128: 4.844259248e-06 | H128: 2.042691887e-06 | J128: 7.080773198e-05 | K128: 0.004164516013 | L128: 2.137455356e-05 | M128: 0.001671975792 | N128: 3.560931735e-07
A129: 61.45045 | B129: ='DF raw data'!G134 -> -6.2584709e-06 | C129: ='DF raw data'!H134 -> 6.7002389e-07 | D129: ='DF raw data'!I134 -> -1.0781108e-06 | F129: -6.267933708e-06 | G129: 6.727245244e-07 | H129: -1.079740904e-06 | J129: 6.767282494e-05 | K129: 0.004198362576 | L129: 2.171101673e-05 | M129: 0.001682834557 | N129: 3.586194209e-07
A130: 61.9506 | B130: ='DF raw data'!G135 -> -1.3888129e-07 | C130: ='DF raw data'!H135 -> -3.7678974e-06 | D130: ='DF raw data'!I135 -> 1.3769283e-06 | F130: -1.390912785e-07 | G130: -3.783084491e-06 | H130: 1.379010216e-06 | J130: 6.760325844e-05 | K130: 0.004232174346 | L130: 1.981890702e-05 | M130: 0.001692746983 | N130: 3.611016602e-07
A131: 62.45075 | B131: ='DF raw data'!G136 -> 1.9386375e-06 | C131: ='DF raw data'!H136 -> 4.4420112e-06 | D131: ='DF raw data'!I136 -> 6.6092875e-06 | F131: 1.94156872e-06 | G131: 4.45991541e-06 | H131: 6.619280743e-06 | J131: 6.857433403e-05 | K131: 0.004266471799 | L131: 2.204953371e-05 | M131: 0.001703775057 | N131: 3.636967491e-07
A132: 62.9509 | B132: ='DF raw data'!G137 -> 3.8817453e-07 | C132: ='DF raw data'!H137 -> 1.1312815e-06 | D132: ='DF raw data'!I137 -> 2.5713787e-06 | F132: 3.887614499e-07 | G132: 1.135841304e-06 | H132: 2.575266625e-06 | J132: 6.876877307e-05 | K132: 0.004300866501 | L132: 2.261762474e-05 | M132: 0.001715087262 | N132: 3.663178857e-07
A133: 63.45105 | B133: ='DF raw data'!G138 -> -1.6825194e-06 | C133: ='DF raw data'!H138 -> -3.8917178e-06 | D133: ='DF raw data'!I138 -> -4.5518423e-06 | F133: -1.685063369e-06 | G133: -3.907403968e-06 | H133: -4.558724686e-06 | J133: 6.792598863e-05 | K133: 0.004334839684 | L133: 2.066333665e-05 | M133: 0.00172542203 | N133: 3.688390986e-07
A134: 63.9512 | B134: ='DF raw data'!G139 -> -8.8727177e-07 | C134: ='DF raw data'!H139 -> 9.1072898e-06 | D134: ='DF raw data'!I139 -> -7.1466525e-06 | F134: -8.886133249e-07 | G134: 9.143998134e-06 | H134: -7.157458239e-06 | J134: 6.748154867e-05 | K134: 0.004368590581 | L134: 2.523670731e-05 | M134: 0.001738044169 | N134: 3.714352026e-07
A135: 64.45135 | B135: ='DF raw data'!G140 -> -1.6014216e-06 | C135: ='DF raw data'!H140 -> 4.8856555e-06 | D135: ='DF raw data'!I140 -> -6.5948439e-06 | F135: -1.603842949e-06 | G135: =(1-$G$1*($B$2-$G$2))*C135*$M$2/$M$1 -> 4.905347887e-06 | H135: -6.604815304e-06 | J135: 6.667938662e-05 | K135: 0.004401940276 | L135: 2.769011706e-05 | M135: 0.001751893381 | N135: 3.740424261e-07
A136: =A135+$B$1 -> 64.9515 | B136: ='DF raw data'!G141 -> -4.751329e-06 | C136: ='DF raw data'!H141 -> -4.6064861e-06 | D136: ='DF raw data'!I141 -> -1.1673316e-05 | F136: -4.758513009e-06 | G136: -4.625053251e-06 | H136: -1.169096605e-05 | J136: =F136*$B$1+J135 -> 6.429941634e-05 | K136: =J136*$B$1+K135 -> 0.004434099629 | L136: =G136*$B$1+L135 -> 2.537689667e-05 | M136: =L136*$B$1+M135 -> 0.001764585636 | N136: =(J136^2+L136^2)*$B$1+N135 -> 3.764323438e-07
A137: 65.45165 | B137: ='DF raw data'!G142 -> -5.1475486e-06 | C137: ='DF raw data'!H142 -> 7.0438409e-06 | D137: ='DF raw data'!I142 -> -1.0312552e-05 | F137: -5.155331693e-06 | G137: 7.072232185e-06 | H137: -1.032814458e-05 | J137: 6.172097719e-05 | K137: 0.004464969376 | L137: 2.89140736e-05 | M137: 0.00177904701 | N137: 3.787557919e-07
A138: 65.9518 | B138: ='DF raw data'!G143 -> -3.4566597e-06 | C138: ='DF raw data'!H143 -> 7.6159768e-06 | D138: ='DF raw data'!I143 -> -5.6392632e-06 | F138: -3.461886169e-06 | G138: 7.646674167e-06 | H138: -5.647789766e-06 | J138: 5.998951482e-05 | K138: 0.004494973132 | L138: 3.273855769e-05 | M138: 0.0017954212 | N138: 3.8109177e-07
A139: 66.45195 | B139: ='DF raw data'!G144 -> 2.068266e-06 | C139: ='DF raw data'!H144 -> 5.1187535e-06 | D139: ='DF raw data'!I144 -> -8.8463739e-06 | F139: 2.071393218e-06 | G139: 5.139385424e-06 | H139: -8.859749617e-06 | J139: 6.102552214e-05 | K139: 0.004525495047 | L139: 3.530902131e-05 | M139: 0.001813081007 | N139: 3.835779363e-07
A140: 66.9521 | B140: ='DF raw data'!G145 -> 4.0279579e-06 | C140: ='DF raw data'!H145 -> 5.1522429e-06 | D140: ='DF raw data'!I145 -> -1.0999126e-05 | F140: 4.034048172e-06 | G140: 5.173009808e-06 | H140: -1.101575668e-05 | J140: 6.304315134e-05 | K140: 0.004557026079 | L140: 3.789630216e-05 | M140: 0.001832034842 | N140: 3.862840322e-07
A141: 67.45225 | B141: ='DF raw data'!G146 -> -3.9969868e-06 | C141: ='DF raw data'!H146 -> 3.8617354e-06 | D141: ='DF raw data'!I146 -> -9.7793991e-06 | F141: -4.003030244e-06 | G141: 3.877300719e-06 | H141: -9.794185551e-06 | J141: 6.104103576e-05 | K141: 0.004587555753 | L141: 3.983553412e-05 | M141: 0.001851958585 | N141: 3.889412681e-07
A142: 67.9524 | B142: ='DF raw data'!G147 -> -1.2876741e-05 | C142: ='DF raw data'!H147 -> -2.1979931e-06 | D142: ='DF raw data'!I147 -> -4.3722134e-06 | F142: -1.289621063e-05 | G142: -2.20685245e-06 | H142: -4.378824187e-06 | J142: 5.459099601e-05 | K142: 0.004614859439 | L142: 3.873177686e-05 | M142: 0.001871330283 | N142: 3.911821038e-07
A143: 68.45255 | B143: ='DF raw data'!G148 -> -1.4755073e-05 | C143: ='DF raw data'!H148 -> -1.0698905e-05 | D143: ='DF raw data'!I148 -> 2.366997e-06 | F143: -1.477738267e-05 | G143: -1.074202858e-05 | H143: 2.370575899e-06 | J143: 4.720008807e-05 | K143: 0.004638466564 | L143: 3.335915127e-05 | M143: 0.001888014862 | N143: 3.928529456e-07
A144: 68.9527 | B144: ='DF raw data'!G149 -> -1.0633956e-05 | C144: ='DF raw data'!H149 -> 1.1139388e-05 | D144: ='DF raw data'!I149 -> -1.1646947e-06 | F144: -1.065003454e-05 | G144: 1.118428702e-05 | H144: -1.166455718e-06 | J144: 4.187347329e-05 | K144: 0.004659409581 | L144: 3.895297242e-05 | M144: 0.001907497191 | N144: 3.944887971e-07
A145: 69.45285 | B145: ='DF raw data'!G150 -> -6.0903235e-06 | C145: ='DF raw data'!H150 -> 5.9081076e-06 | D145: ='DF raw data'!I150 -> -4.1845228e-06 | F145: -6.099532069e-06 | G145: 5.931921137e-06 | H145: -4.190849798e-06 | J145: 3.882279233e-05 | K145: 0.004678826801 | L145: 4.191982278e-05 | M145: 0.001928463391 | N145: 3.961215271e-07
A146: 69.953 | B146: ='DF raw data'!G151 -> -2.9081107e-06 | C146: ='DF raw data'!H151 -> -6.5833437e-06 | D146: ='DF raw data'!I151 -> -5.8068269e-07 | F146: -2.912507763e-06 | G146: -6.60987888e-06 | H146: -5.815606822e-07 | J146: 3.736610157e-05 | K146: 0.004697515456 | L146: 3.861389185e-05 | M146: 0.001947776129 | N146: 3.975655893e-07
A147: 70.45315 | B147: ='DF raw data'!G152 -> -1.9420767e-07 | C147: ='DF raw data'!H152 -> -4.9903565e-06 | D147: ='DF raw data'!I152 -> -4.8004763e-06 | F147: -1.94501312e-07 | G147: -5.0104709e-06 | H147: -4.80773462e-06 | J147: 3.726882174e-05 | K147: 0.004716155458 | L147: 3.610790483e-05 | M147: 0.001965835497 | N147: 3.989123662e-07
A148: 70.9533 | B148: ='DF raw data'!G153 -> -3.6299439e-06 | C148: ='DF raw data'!H153 -> -7.6698683e-07 | D148: ='DF raw data'!I153 -> -7.3540318e-06 | F148: -3.635432375e-06 | G148: -7.700782885e-07 | H148: -7.365151096e-06 | J148: 3.545056024e-05 | K148: 0.004733886055 | L148: 3.572275018e-05 | M148: 0.001983702231 | N148: 4.001791746e-07
A149: 71.45345 | B149: ='DF raw data'!G154 -> -8.3001341e-06 | C149: ='DF raw data'!H154 -> 1.3130389e-05 | D149: ='DF raw data'!I154 -> -1.7185697e-06 | F149: -8.312683903e-06 | G149: 1.318331305e-05 | H149: -1.721168177e-06 | J149: 3.129297138e-05 | K149: 0.004749537235 | L149: 4.23163842e-05 | M149: 0.002004866771 | N149: 4.015645533e-07
A150: 71.9536 | B150: ='DF raw data'!G155 -> -6.7473425e-06 | C150: ='DF raw data'!H155 -> 9.2213731e-06 | D150: ='DF raw data'!I155 -> -2.350763e-06 | F150: -6.757544482e-06 | G150: 9.258541264e-06 | H150: -2.354317354e-06 | J150: 2.791318551e-05 | K150: 0.004763498015 | L150: 4.694704362e-05 | M150: 0.002028347334 | N150: 4.030565862e-07
A151: 72.45375 | B151: ='DF raw data'!G156 -> -3.9730926e-06 | C151: ='DF raw data'!H156 -> 1.4137469e-06 | D151: ='DF raw data'!I156 -> -3.3577846e-06 | F151: =(1-$G$1*($B$2-$G$2))*B151 -> -3.979099916e-06 | G151: 1.419445225e-06 | H151: -3.36286157e-06 | J151: 2.592303869e-05 | K151: 0.004776463423 | L151: 4.765697914e-05 | M151: 0.002052182972 | N151: 4.045286235e-07
A152: 72.9539 | B152: ='DF raw data'!G157 -> 2.1069937e-07 | C152: ='DF raw data'!H157 -> 2.0916914e-06 | D152: ='DF raw data'!I157 -> -1.1855331e-06 | F152: 2.110179474e-07 | G152: 2.100122284e-06 | H152: -1.187325626e-06 | J152: 2.602857931e-05 | K152: 0.004789481617 | L152: 4.87073553e-05 | M152: 0.002076543956 | N152: 4.060540277e-07
A153: 73.45405 | B153: ='DF raw data'!G158 -> 3.1526747e-06 | C153: ='DF raw data'!H158 -> 4.7148687e-06 | D153: ='DF raw data'!I158 -> 1.3950308e-06 | F153: 3.157441544e-06 | G153: 4.733872704e-06 | H153: 1.397140087e-06 | J153: 2.76077737e-05 | K153: 0.004803289645 | L153: 5.107500174e-05 | M153: 0.002102089118 | N153: 4.077399558e-07
A154: 73.9542 | B154: ='DF raw data'!G159 -> 3.5026679e-07 | C154: ='DF raw data'!H159 -> 3.7504569e-06 | D154: ='DF raw data'!I159 -> 2.7400936e-06 | F154: 3.507963934e-07 | G154: 3.765573694e-06 | H154: 2.744236622e-06 | J154: 2.778322452e-05 | K154: 0.004817185424 | L154: 5.295835342e-05 | M154: 0.002128576239 | N154: 4.095287397e-07
A155: 74.45435 | B155: ='DF raw data'!G160 -> -6.8836164e-07 | C155: ='DF raw data'!H160 -> 4.3400714e-06 | D155: ='DF raw data'!I160 -> -3.843164e-06 | F155: -6.894024428e-07 | G155: 4.357564726e-06 | H155: -3.848974864e-06 | J155: 2.743841989e-05 | K155: 0.00483090875 | L155: 5.513778942e-05 | M155: 0.002156153404 | N155: 4.1142583e-07
A156: 74.9545 | B156: ='DF raw data'!G161 -> 1.9553868e-06 | C156: ='DF raw data'!H161 -> 7.8482726e-06 | D156: ='DF raw data'!I161 -> -4.3207579e-06 | F156: 1.958343345e-06 | G156: 7.879906271e-06 | H156: -4.327290886e-06 | J156: 2.841788531e-05 | K156: 0.004845121955 | L156: 5.907892454e-05 | M156: 0.002185701728 | N156: 4.135754224e-07
A157: 75.45465 | B157: ='DF raw data'!G162 -> 4.53646e-06 | C157: ='DF raw data'!H162 -> 1.1440908e-06 | D157: ='DF raw data'!I162 -> 2.1601415e-06 | F157: 4.543319128e-06 | G157: 1.148702234e-06 | H157: 2.163407634e-06 | J157: 3.069022637e-05 | K157: 0.004860471672 | L157: 5.965344796e-05 | M157: 0.0022155374 | N157: 4.158263094e-07
A158: 75.9548 | B158: ='DF raw data'!G163 -> 8.0131013e-06 | C158: ='DF raw data'!H163 -> -1.2283771e-06 | D158: ='DF raw data'!I163 -> 2.2810098e-06 | F158: 8.025217109e-06 | G158: -1.233328263e-06 | H158: 2.284458687e-06 | J158: 3.470403871e-05 | K158: 0.004877828897 | L158: 5.903659883e-05 | M158: 0.002245064555 | N158: 4.18171858e-07
A159: 76.45495 | B159: ='DF raw data'!G164 -> 6.6362577e-06 | C159: ='DF raw data'!H164 -> 1.6663245e-06 | D159: ='DF raw data'!I164 -> -3.8555606e-07 | F159: 6.646291722e-06 | G159: 1.673040877e-06 | H159: -3.861390208e-07 | J159: 3.802818151e-05 | K159: 0.004896848692 | L159: 5.987337023e-05 | M159: 0.002275010221 | N159: 4.206880942e-07
A160: 76.9551 | B160: ='DF raw data'!G165 -> 1.6466096e-06 | C160: ='DF raw data'!H165 -> 5.2042806e-06 | D160: ='DF raw data'!I165 -> -6.9995019e-07 | F160: 1.649099274e-06 | G160: 5.225257254e-06 | H160: -7.010085147e-07 | J160: 3.885297852e-05 | K160: 0.004916281009 | L160: 6.248678264e-05 | M160: 0.002306262986 | N160: 4.233959823e-07
A161: 77.45525 | B161: ='DF raw data'!G166 -> -1.0298514e-06 | C161: ='DF raw data'!H166 -> 1.0499872e-05 | D161: ='DF raw data'!I166 -> 1.5412485e-06 | F161: -1.031408535e-06 | G161: 1.054219335e-05 | H161: 1.543578868e-06 | J161: 3.833711954e-05 | K161: 0.00493545532 | L161: 6.775946065e-05 | M161: 0.00234015288 | N161: 4.264274311e-07
A162: 77.9554 | B162: ='DF raw data'!G167 -> -1.6892569e-06 | C162: ='DF raw data'!H167 -> 9.4387242e-06 | D162: ='DF raw data'!I167 -> -2.5746442e-06 | F162: -1.691811056e-06 | G162: 9.476768431e-06 | H162: -2.578537062e-06 | J162: 3.749096024e-05 | K162: 0.004954206423 | L162: 7.249926638e-05 | M162: 0.002376413388 | N162: 4.297592882e-07
A163: 78.45555 | B163: ='DF raw data'!G168 -> -2.3810549e-06 | C163: ='DF raw data'!H168 -> 6.7956653e-06 | D163: ='DF raw data'!I168 -> -3.8759786e-06 | F163: -2.384655055e-06 | G163: 6.823056275e-06 | H163: -3.88183908e-06 | J163: 3.629827501e-05 | K163: 0.004972361006 | L163: 7.591181797e-05 | M163: 0.002414380684 | N163: 4.333004346e-07
A164: 78.9557 | B164: ='DF raw data'!G169 -> -1.0987256e-06 | C164: ='DF raw data'!H169 -> 8.9055493e-06 | D164: ='DF raw data'!I169 -> -1.8003935e-07 | F164: -1.100386873e-06 | G164: 8.941444487e-06 | H164: -1.803115695e-07 | J164: 3.574791652e-05 | K164: 0.004990240326 | L164: 8.038388143e-05 | M164: 0.002454584682 | N164: 4.371713365e-07
A165: 79.45585 | B165: ='DF raw data'!G170 -> 3.9219086e-07 | C165: ='DF raw data'!H170 -> -4.296825e-07 | D165: ='DF raw data'!I170 -> -6.0533671e-06 | F165: 3.927838526e-07 | G165: -4.314144015e-07 | H165: -6.062519791e-06 | J165: 3.594436736e-05 | K165: 0.005008217901 | L165: 8.016810952e-05 | M165: 0.002494680762 | N165: 4.41031956e-07
A166: 79.956 | B166: ='DF raw data'!G171 -> 8.0169627e-07 | C166: ='DF raw data'!H171 -> -4.415685e-06 | D166: ='DF raw data'!I171 -> -7.7303293e-06 | F166: 8.029084348e-07 | G166: -4.433483098e-06 | H166: -7.742017558e-06 | J166: 3.634594201e-05 | K166: 0.005026396324 | L166: 7.795070295e-05 | M166: 0.002533667806 | N166: 4.447317354e-07
A167: 80.45615 | B167: ='DF raw data'!G172 -> 5.0759262e-08 | C167: ='DF raw data'!H172 -> 7.5895578e-06 | D167: ='DF raw data'!I172 -> -4.4839576e-06 | F167: 5.083601e-08 | G167: 7.620148681e-06 | H167: -4.490737344e-06 | J167: 3.637136764e-05 | K167: 0.005044587464 | L167: 8.176192031e-05 | M167: 0.002574561031 | N167: 4.487368806e-07
A168: 80.9563 | B168: ='DF raw data'!G173 -> 1.0883596e-07 | C168: ='DF raw data'!H173 -> 8.9755986e-06 | D168: ='DF raw data'!I173 -> -5.4732113e-06 | F168: 1.0900052e-07 | G168: 9.011776132e-06 | H168: -5.481486795e-06 | J168: 3.642588425e-05 | K168: 0.00506280587 | L168: 8.626916014e-05 | M168: 0.002617708551 | N168: 4.531228025e-07
A169: 81.45645 | B169: ='DF raw data'!G174 -> 7.4596778e-06 | C169: ='DF raw data'!H174 -> 1.7152935e-06 | D169: ='DF raw data'!I174 -> -4.3916402e-06 | F169: 7.470956833e-06 | G169: 1.722207255e-06 | H169: -4.39828036e-06 | J169: 4.016248331e-05 | K169: 0.005082893136 | L169: 8.71305221e-05 | M169: 0.002661286882 | N169: 4.577265597e-07
A170: 81.9566 | B170: ='DF raw data'!G175 -> 1.0364822e-05 | C170: ='DF raw data'!H175 -> 1.6800687e-06 | D170: ='DF raw data'!I175 -> -3.1868142e-06 | F170: 1.038049361e-05 | G170: 1.686840476e-06 | H170: -3.191632663e-06 | J170: 4.535428719e-05 | K170: 0.005105577083 | L170: 8.797419537e-05 | M170: 0.002705287175 | N170: 4.626262644e-07
A171: 82.45675 | B171: ='DF raw data'!G176 -> 5.0096446e-06 | C171: ='DF raw data'!H176 -> 7.4195714e-06 | D171: ='DF raw data'!I176 -> -2.8088573e-06 | F171: 5.017219183e-06 | G171: 7.449477125e-06 | H171: -2.813104292e-06 | J171: 4.786364937e-05 | K171: 0.005129516087 | L171: 9.170005135e-05 | M171: 0.002751150956 | N171: 4.679777835e-07
A172: 82.9569 | B172: ='DF raw data'!G177 -> -4.0033555e-07 | C172: ='DF raw data'!H177 -> 1.5725265e-06 | D172: ='DF raw data'!I177 -> -1.257316e-07 | F172: -4.009408574e-07 | G172: 1.57886481e-06 | H172: -1.259217062e-07 | J172: 4.76631188e-05 | K172: 0.005153354796 | L172: 9.248972058e-05 | M172: 0.00279740969 | N172: 4.733924681e-07
A173: 83.45705 | B173: ='DF raw data'!G178 -> -5.2080991e-06 | C173: ='DF raw data'!H178 -> -7.9565762e-06 | D173: ='DF raw data'!I178 -> -2.7787057e-06 | F173: -5.215973746e-06 | G173: -7.988646405e-06 | H173: -2.782907103e-06 | J173: 4.505434953e-05 | K173: 0.005175888729 | L173: 8.849419909e-05 | M173: 0.002841670064 | N173: 4.783245061e-07
A174: 83.9572 | B174: ='DF raw data'!G179 -> -1.3384248e-06 | C174: ='DF raw data'!H179 -> -1.2555411e-05 | D174: ='DF raw data'!I179 -> -2.9482792e-06 | F174: -1.340448498e-06 | G174: -1.260601752e-05 | H174: -2.952736998e-06 | J174: 4.438392421e-05 | K174: 0.005198087348 | L174: 8.218929942e-05 | M174: 0.002882777042 | N174: 4.826883217e-07
A175: 84.45735 | B175: ='DF raw data'!G180 -> 1.541472e-06 | C175: ='DF raw data'!H180 -> -4.0122022e-06 | D175: ='DF raw data'!I180 -> -6.2145587e-06 | F175: 1.543802706e-06 | G175: -4.028373999e-06 | H175: -6.223955113e-06 | J175: 4.515605714e-05 | K175: 0.00522067215 | L175: 8.017450817e-05 | M175: 0.002922876322 | N175: 4.869231024e-07
A176: 84.9575 | B176: ='DF raw data'!G181 -> -3.1542127e-06 | C176: ='DF raw data'!H181 -> -1.8875079e-06 | D176: ='DF raw data'!I181 -> -9.9389172e-06 | F176: -3.15898187e-06 | G176: -1.895115791e-06 | H176: -9.953944843e-06 | J176: 4.357609235e-05 | K176: 0.005242466733 | L176: 7.922666601e-05 | M176: 0.002962501539 | N176: 4.91012199e-07
A177: 85.45765 | B177: ='DF raw data'!G182 -> -4.1234139e-06 | C177: ='DF raw data'!H182 -> 4.2773618e-06 | D177: ='DF raw data'!I182 -> -4.4018848e-06 | F177: -4.129648502e-06 | G177: 4.294602365e-06 | H177: -4.40854045e-06 | J177: 4.151064866e-05 | K177: 0.005263228284 | L177: 8.137461138e-05 | M177: 0.003003201051 | N177: 4.951859314e-07
A178: 85.9578 | B178: ='DF raw data'!G183 -> -3.1699724e-06 | C178: ='DF raw data'!H183 -> 9.1761385e-06 | D178: ='DF raw data'!I183 -> -8.2700296e-07 | F178: -3.174765398e-06 | G178: 9.213124339e-06 | H178: -8.282533885e-07 | J178: 3.992278974e-05 | K178: 0.005283195667 | L178: 8.598255552e-05 | M178: 0.003046205226 | N178: 4.996806939e-07
A179: 86.45795 | B179: ='DF raw data'!G184 -> -1.0240452e-06 | C179: ='DF raw data'!H184 -> 9.1206044e-07 | D179: ='DF raw data'!I184 -> 1.1988274e-06 | F179: -1.025593556e-06 | G179: 9.1573664e-07 | H179: 1.200640027e-06 | J179: 3.940983913e-05 | K179: 0.005302906498 | L179: 8.64405612e-05 | M179: 0.003089438473 | N179: 5.041946007e-07
A180: 86.9581 | B180: ='DF raw data'!G185 -> -1.0851196e-06 | C180: ='DF raw data'!H185 -> 2.1688111e-06 | D180: ='DF raw data'!I185 -> 8.5195336e-07 | F180: -1.086760301e-06 | G180: 2.177552827e-06 | H180: 8.532415135e-07 | J180: 3.886629596e-05 | K180: 0.005322345476 | L180: 8.752966424e-05 | M180: 0.003133216434 | N180: 5.08781992e-07
A181: 87.45825 | B181: ='DF raw data'!G186 -> -1.4493686e-06 | C181: ='DF raw data'!H186 -> -2.6771295e-06 | D181: ='DF raw data'!I186 -> -1.6446896e-06 | F181: -1.451560045e-06 | G181: -2.687920083e-06 | H181: -1.647176371e-06 | J181: 3.81402982e-05 | K181: 0.005341421346 | L181: 8.618530101e-05 | M181: 0.003176322012 | N181: 5.132246186e-07
A182: 87.9584 | B182: ='DF raw data'!G187 -> 1.5595018e-06 | C182: ='DF raw data'!H187 -> -1.5453996e-06 | D182: ='DF raw data'!I187 -> -4.3965588e-06 | F182: 1.561859767e-06 | G182: -1.551628571e-06 | H182: -4.403206397e-06 | J182: 3.892146237e-05 | K182: 0.005360887916 | L182: 8.540925398e-05 | M182: 0.003219039451 | N182: 5.176307505e-07
A183: 88.45855 | B183: ='DF raw data'!G188 -> 1.4759884e-06 | C183: ='DF raw data'!H188 -> -1.7539468e-06 | D183: ='DF raw data'!I188 -> -6.715843e-06 | F183: 1.478220094e-06 | G183: -1.761016353e-06 | H183: -6.725997355e-06 | J183: 3.966079415e-05 | K183: 0.005380724262 | L183: 8.452848166e-05 | M183: 0.003261316371 | N183: 5.219910796e-07
A184: 88.9587 | B184: ='DF raw data'!G189 -> -2.2872482e-07 | C184: ='DF raw data'!H189 -> 5.3214289e-06 | D184: ='DF raw data'!I189 -> -8.692371e-06 | F184: -2.290706519e-07 | G184: 5.342877738e-06 | H184: -8.705513865e-06 | J184: 3.954622446e-05 | K184: 0.005400503306 | L184: 8.720072196e-05 | M184: 0.003304929812 | N184: 5.265763897e-07
A185: 89.45885 | B185: ='DF raw data'!G190 -> -3.4028612e-06 | C185: ='DF raw data'!H190 -> 1.524094e-05 | D185: ='DF raw data'!I190 -> -6.5089876e-06 | F185: -3.408006326e-06 | G185: 1.530237095e-05 | H185: -6.518829189e-06 | J185: 3.78417101e-05 | K185: 0.005419429837 | L185: 9.485420279e-05 | M185: 0.003352371142 | N185: 5.317926115e-07
A186: 89.959 | B186: ='DF raw data'!G191 -> -6.735992e-06 | C186: ='DF raw data'!H191 -> 1.092657e-05 | D186: ='DF raw data'!I191 -> -1.8368913e-06 | F186: -6.74617682e-06 | G186: 1.097061122e-05 | H186: -1.83966868e-06 | J186: 3.446760976e-05 | K186: 0.005436668812 | L186: 0.000100341154 | M186: 0.00340255677 | N186: 5.374224816e-07
A187: 90.45915 | B187: ='DF raw data'!G192 -> -2.3776497e-06 | C187: ='DF raw data'!H192 -> 1.1264677e-05 | D187: ='DF raw data'!I192 -> -8.4575613e-06 | F187: -2.381244706e-06 | G187: 1.131008101e-05 | H187: -8.470349133e-06 | J187: 3.327663022e-05 | K187: 0.005453312119 | L187: 0.000105997891 | M187: 0.003455571615 | N187: 5.435957766e-07
A188: 90.9593 | B188: ='DF raw data'!G193 -> 3.8570165e-06 | C188: ='DF raw data'!H193 -> 1.0187784e-05 | D188: ='DF raw data'!I193 -> -9.4428278e-06 | F188: 3.862848309e-06 | G188: 1.022884743e-05 | H188: -9.457105356e-06 | J188: 3.52086338e-05 | K188: 0.005470921717 | L188: 0.0001111138491 | M188: 0.003511145207 | N188: 5.503907821e-07
A189: 91.45945 | B189: ='DF raw data'!G194 -> 1.8626037e-06 | C189: ='DF raw data'!H194 -> 8.6852606e-06 | D189: ='DF raw data'!I194 -> -3.1961274e-06 | F189: 1.865419957e-06 | G189: 8.72026788e-06 | H189: -3.200959945e-06 | J189: 3.614162359e-05 | K189: 0.00548899795 | L189: 0.000115475291 | M189: 0.003568900173 | N189: 5.577133581e-07
A190: 91.9596 | B190: ='DF raw data'!G195 -> 3.1622986e-07 | C190: ='DF raw data'!H195 -> 1.9071605e-06 | D190: ='DF raw data'!I195 -> -1.7865126e-06 | F190: 3.167079995e-07 | G190: 1.914847604e-06 | H190: -1.789213807e-06 | J190: 3.63000251e-05 | K190: 0.005507153408 | L190: 0.0001164330021 | M190: 0.003627134139 | N190: 5.651527572e-07
A191: 92.45975 | B191: ='DF raw data'!G196 -> 1.9642634e-06 | C191: ='DF raw data'!H196 -> 1.9601312e-06 | D191: ='DF raw data'!I196 -> -5.476209e-06 | F191: 1.967233366e-06 | G191: 1.968031811e-06 | H191: -5.484489028e-06 | J191: 3.728393687e-05 | K191: 0.005525800969 | L191: 0.0001174173132 | M191: 0.003685860409 | N191: 5.727434924e-07
A192: 92.9599 | B192: ='DF raw data'!G197 -> 1.5536228e-06 | C192: ='DF raw data'!H197 -> -7.2202141e-07 | D192: ='DF raw data'!I197 -> -6.2208742e-06 | F192: 1.555971878e-06 | G192: -7.249316284e-07 | H192: -6.230280162e-06 | J192: 3.80621562e-05 | K192: 0.005544837756 | L192: 0.0001170547386 | M192: 0.003744405336 | N192: 5.803210348e-07
A193: 93.46005 | B193: ='DF raw data'!G198 -> 4.8677343e-06 | C193: ='DF raw data'!H198 -> 8.9862724e-06 | D193: ='DF raw data'!I198 -> 9.5370197e-08 | F193: 4.875094314e-06 | G193: 9.022492954e-06 | H193: 9.551439674e-08 | J193: 4.050043462e-05 | K193: 0.005565094048 | L193: 0.0001215673385 | M193: 0.00380520724 | N193: 5.885329491e-07
A194: 93.9602 | B194: ='DF raw data'!G199 -> 8.3800278e-06 | C194: ='DF raw data'!H199 -> 1.5413727e-05 | D194: ='DF raw data'!I199 -> 3.690159e-06 | F194: 8.392698402e-06 | G194: 1.54758544e-05 | H194: 3.69573852e-06 | J194: 4.469804273e-05 | K194: 0.005587449774 | L194: 0.000129307587 | M194: 0.00386988043 | N194: 5.978949404e-07
A195: 94.46035 | B195: ='DF raw data'!G200 -> 3.900876e-06 | C195: ='DF raw data'!H200 -> 7.5990311e-06 | D195: ='DF raw data'!I200 -> 1.9988772e-06 | F195: 3.906774125e-06 | G195: 7.629660165e-06 | H195: 2.001899502e-06 | J195: 4.665201581e-05 | K195: 0.00561078278 | L195: 0.0001331235616 | M195: 0.003936462179 | N195: 6.078470718e-07
A196: 94.9605 | B196: ='DF raw data'!G201 -> 2.5967188e-06 | C196: ='DF raw data'!H201 -> 3.6237025e-06 | D196: ='DF raw data'!I201 -> -2.0373584e-06 | F196: 2.600645039e-06 | G196: 3.638308391e-06 | H196: -2.040438886e-06 | J196: 4.795272842e-05 | K196: 0.005634766337 | L196: 0.0001349432615 | M196: 0.004003954052 | N196: 6.181047221e-07
A197: 95.46065 | B197: ='DF raw data'!G202 -> 7.3070282e-06 | C197: ='DF raw data'!H202 -> 2.8607656e-06 | D197: ='DF raw data'!I202 -> -8.0879863e-06 | F197: 7.318076427e-06 | G197: 2.872296356e-06 | H197: -8.100215335e-06 | J197: 5.161286435e-05 | K197: 0.005660580511 | L197: 0.0001363798405 | M197: 0.004072164429 | N197: 6.28739586e-07
A198: 95.9608 | B198: ='DF raw data'!G203 -> 7.6404413e-06 | C198: ='DF raw data'!H203 -> -3.6987813e-06 | D198: ='DF raw data'!I203 -> -5.8608889e-06 | F198: 7.651993647e-06 | G198: -3.713689807e-06 | H198: -5.869750564e-06 | J198: 5.544000897e-05 | K198: 0.005688308832 | L198: 0.0001345224386 | M198: 0.004139445827 | N198: 6.39327702e-07
A199: 96.46095 | B199: ='DF raw data'!G204 -> 3.3316342e-06 | C199: ='DF raw data'!H204 -> -2.2372196e-06 | D199: ='DF raw data'!I204 -> -1.2214763e-06 | F199: 3.336671631e-06 | G199: =(1-$G$1*($B$2-$G$2))*C199*$M$2/$M$1 -> -2.246237058e-06 | H199: -1.223323172e-06 | J199: 5.710884529e-05 | K199: 0.005716871821 | L199: 0.0001333989831 | M199: 0.004206165328 | N199: 6.498592149e-07
A200: =A199+$B$1 -> 96.9611 | B200: ='DF raw data'!G205 -> 1.5968857e-06 | C200: ='DF raw data'!H205 -> 7.565407e-06 | D200: ='DF raw data'!I205 -> -7.1531717e-06 | F200: 1.599300191e-06 | G200: 7.595900538e-06 | H200: -7.163987296e-06 | J200: =F200*$B$1+J199 -> 5.790873528e-05 | K200: =J200*$B$1+K199 -> 0.005745834875 | L200: =G200*$B$1+L199 -> 0.0001371980728 | M200: =L200*$B$1+M199 -> 0.004274784944 | N200: =(J200^2+L200^2)*$B$1+N199 -> 6.609509079e-07
A201: 97.46125 | B201: ='DF raw data'!G206 -> 3.7469458e-06 | C201: ='DF raw data'!H206 -> 1.4518165e-05 | D201: ='DF raw data'!I206 -> -1.0525534e-05 | F201: 3.752611182e-06 | G201: 1.45766827e-05 | H201: -1.054144861e-05 | J201: 5.978560376e-05 | K201: 0.005775736645 | L201: 0.0001444886006 | M201: 0.004347050918 | N201: 6.731802126e-07
... 1002 more rows

Sheet 20 mm
A1: dz | B1: ='DF raw data'!K7 -> 0.50017 | C1: mm | F1: T_coeff | G1: -0.0008 | H1: /degC | L1: Hallref | M1: ='[1]PI vs x'!B50 -> 0.505 | N1: T | P1: IBy total | Q1: =L1203*1000 -> -11.10512968 | R1: muTm | X1: DF ref | Y1: 21
A2: Tref | B2: ='DF raw data'!K8 -> 22.01 | C2: degC | F2: Tcorr | G2: 20 | H2: degC | L2: NMRref | M2: ='[1]PI vs x'!B51 -> 0.50627 | N2: T | P2: JBy total | Q2: =M1203 -> -3.619126392 | R2: muTm^2
A3: Encoder | B3: ='DF raw data'!K9 -> 14457898 | P3: PI total | Q3: =N1203 -> 202.0345203 | R3: T^2mm^3
A5: z [mm] | B5: Bx | C5: By | D5: Bz | F5: Bx_corr | G5: By_corr | H5: Bz_corr | J5: Ix | K5: Jx | L5: Iy | M5: Jy | N5: PI
A6: ='[1]PI vs x'!B53 -> -0.068 | B6: ='DF raw data'!J11 -> 7.4811283e-06 | C6: ='DF raw data'!K11 -> -4.0654481e-06 | D6: ='DF raw data'!L11 -> 3.9050992e-06 | F6: =(1-$G$1*($B$2-$G$2))*B6 -> 7.493157954e-06 | G6: =(1-$G$1*($B$2-$G$2))*C6*$M$2/$M$1 -> -4.082225779e-06 | H6: =(1-$G$1*($B$2-$G$2))*D6 -> 3.9113786e-06 | J6: =F6*$B$1 -> 3.747852814e-06 | K6: =J6*$B$1 -> 1.874563542e-06 | L6: =G6*$B$1 -> -2.041806868e-06 | M6: =L6*$B$1 -> -1.021250541e-06 | N6: =(J6^2+L6)^2*$B$1 -> 2.085167679e-12
A7: =A6+$B$1 -> 0.43217 | B7: ='DF raw data'!J12 -> 7.6874458e-06 | C7: ='DF raw data'!K12 -> -1.0133316e-05 | D7: ='DF raw data'!L12 -> 1.0757414e-06 | F7: =(1-$G$1*($B$2-$G$2))*B7 -> 7.699807213e-06 | G7: =(1-$G$1*($B$2-$G$2))*C7*$M$2/$M$1 -> -1.017513513e-05 | H7: 1.077471192e-06 | J7: =F7*$B$1+J6 -> 7.599065388e-06 | K7: =J7*$B$1+K6 -> 5.675388077e-06 | L7: =G7*$B$1+L6 -> -7.131104208e-06 | M7: =L7*$B$1+M6 -> -4.588014933e-06 | N7: =(J7^2+L7^2)*$B$1+N6 -> 5.640285041e-11
A8: =A7+$B$1 -> 0.93234 | B8: ='DF raw data'!J13 -> 7.598213e-06 | C8: ='DF raw data'!K13 -> -7.9238962e-06 | D8: ='DF raw data'!L13 -> -6.4081718e-07 | F8: 7.610430927e-06 | G8: -7.956597291e-06 | H8: -6.41847614e-07 | J8: =F8*$B$1+J7 -> 1.140557462e-05 | K8: =J8*$B$1+K7 -> 1.138011434e-05 | L8: =G8*$B$1+L7 -> -1.111075548e-05 | M8: =L8*$B$1+M7 -> -1.01452815e-05 | N8: =(J8^2+L8^2)*$B$1+N7 -> 1.832139614e-10
A9: 1.43251 | B9: ='DF raw data'!J14 -> 7.6465258e-06 | C9: ='DF raw data'!K14 -> -8.8050492e-06 | D9: ='DF raw data'!L14 -> 1.6666073e-06 | F9: 7.658821413e-06 | G9: -8.841386717e-06 | H9: 1.669287205e-06 | J9: 1.523628733e-05 | K9: 1.900084817e-05 | L9: -1.553295187e-05 | M9: -1.791439804e-05 | N9: 4.20002965e-10
A10: 1.93268 | B10: ='DF raw data'!J15 -> 7.6552715e-06 | C10: ='DF raw data'!K15 -> -9.0513558e-06 | D10: ='DF raw data'!L15 -> 1.4546441e-06 | F10: 7.667581177e-06 | G10: -9.088709798e-06 | H10: 1.456983168e-06 | J10: 1.907138141e-05 | K10: 2.853978101e-05 | L10: -2.007885185e-05 | M10: -2.795723736e-05 | N10: 8.035722744e-10
A11: 2.43285 | B11: ='DF raw data'!J16 -> 7.3592414e-06 | C11: ='DF raw data'!K16 -> -1.1652752e-06 | D11: ='DF raw data'!L16 -> 3.8285188e-07 | F11: 7.37107506e-06 | G11: -1.170084169e-06 | H11: 3.834675058e-07 | J11: 2.275817202e-05 | K11: 3.992273591e-05 | L11: -2.066409285e-05 | M11: -3.829279668e-05 | N11: 1.276202478e-09
A12: 2.93302 | B12: ='DF raw data'!J17 -> 7.540471e-06 | C12: ='DF raw data'!K17 -> -5.850437e-06 | D12: ='DF raw data'!L17 -> 1.848841e-06 | F12: 7.552596077e-06 | G12: -5.874581141e-06 | H12: 1.851813936e-06 | J12: 2.6535754e-05 | K12: 5.319512399e-05 | L12: -2.36023821e-05 | M12: -5.009800014e-05 | N12: 1.907026225e-09
A13: 3.43319 | B13: ='DF raw data'!J18 -> 7.5102903e-06 | C13: ='DF raw data'!K18 -> -5.2665596e-06 | D13: ='DF raw data'!L18 -> 4.0227022e-08 | F13: 7.522366847e-06 | G13: -5.28829414e-06 | H13: 4.029170705e-08 | J13: 3.029821623e-05 | K13: 6.83493828e-05 | L13: -2.624742818e-05 | M13: -6.322617629e-05 | N13: 2.710754096e-09
A14: 3.93336 | B14: ='DF raw data'!J19 -> 7.1048594e-06 | C14: ='DF raw data'!K19 -> 5.1035336e-06 | D14: ='DF raw data'!L19 -> -4.126583e-06 | F14: 7.116284014e-06 | G14: 5.124595349e-06 | H14: -4.133218545e-06 | J14: 3.3857568e-05 | K14: 8.528392258e-05 | L14: -2.368425932e-05 | M14: -7.507233227e-05 | N14: 3.564683859e-09
A15: 4.43353 | B15: ='DF raw data'!J20 -> 6.9298435e-06 | C15: ='DF raw data'!K20 -> 9.239775e-06 | D15: ='DF raw data'!L20 -> -7.3356296e-06 | F15: 6.940986688e-06 | G15: 9.277906585e-06 | H15: -7.347425292e-06 | J15: 3.732924131e-05 | K15: 0.0001039548892 | L15: -1.904372879e-05 | M15: -8.45974341e-05 | N15: 4.443050333e-09
A16: 4.9337 | B16: ='DF raw data'!J21 -> 7.0915735e-06 | C16: ='DF raw data'!K21 -> 4.3554069e-06 | D16: ='DF raw data'!L21 -> -9.5888772e-06 | F16: 7.10297675e-06 | G16: 4.373381209e-06 | H16: -9.604296115e-06 | J16: 4.088193719e-05 | K16: 0.0001244028077 | L16: -1.685629471e-05 | M16: -9.302844702e-05 | N16: 5.421116493e-09
A17: 5.43387 | B17: ='DF raw data'!J22 -> 7.2515136e-06 | C17: ='DF raw data'!K22 -> 2.5492264e-07 | D17: ='DF raw data'!L22 -> -7.7700915e-06 | F17: 7.263174034e-06 | G17: 2.559746791e-07 | H17: -7.782585807e-06 | J17: 4.451475895e-05 | K17: 0.0001466677547 | L17: -1.672826385e-05 | M17: -0.0001013954228 | N17: 6.552200219e-09
A18: 5.93404 | B18: ='DF raw data'!J23 -> 7.1443096e-06 | C18: ='DF raw data'!K23 -> 3.9407155e-06 | D18: ='DF raw data'!L23 -> -3.0839528e-06 | F18: 7.15579765e-06 | G18: 3.956978421e-06 | H18: -3.088911796e-06 | J18: 4.809387426e-05 | K18: 0.0001707228678 | L18: -1.474910195e-05 | M18: -0.0001087724811 | N18: 7.817908788e-09
A19: 6.43421 | B19: ='DF raw data'!J24 -> 7.6944598e-06 | C19: ='DF raw data'!K24 -> -1.047996e-05 | D19: ='DF raw data'!L24 -> 2.8980693e-07 | F19: 7.706832491e-06 | G19: -1.05232097e-05 | H19: 2.902729395e-07 | J19: 5.194860067e-05 | K19: 0.0001967059994 | L19: -2.001249575e-05 | M19: -0.0001187821311 | N19: 9.368014194e-09
A20: 6.93438 | B20: ='DF raw data'!J25 -> 7.5243183e-06 | C20: ='DF raw data'!K25 -> -5.2013143e-06 | D20: ='DF raw data'!L25 -> 3.627958e-06 | F20: 7.536417404e-06 | G20: -5.22277958e-06 | H20: 3.633791756e-06 | J20: 5.571809056e-05 | K20: 0.0002245745168 | L20: -2.262477341e-05 | M20: -0.000130098364 | N20: 1.117682197e-08
A21: 7.43455 | B21: ='DF raw data'!J26 -> 7.6535398e-06 | C21: ='DF raw data'!K26 -> -8.5115089e-06 | D21: ='DF raw data'!L26 -> 4.3372911e-06 | F21: 7.665846692e-06 | G21: -8.546635007e-06 | H21: 4.344265464e-06 | J21: 5.95523171e-05 | K21: 0.0002543607992 | L21: -2.689954384e-05 | M21: -0.0001435527088 | N21: 1.331257985e-08
A22: 7.93472 | B22: ='DF raw data'!J27 -> 5.6287568e-06 | C22: ='DF raw data'!K27 -> -5.4959214e-06 | D22: ='DF raw data'!L27 -> 1.2455537e-07 | F22: 5.637807841e-06 | G22: -5.518602493e-06 | H22: 1.24755655e-07 | J22: 6.237217945e-05 | K22: 0.0002855574922 | L22: -2.965978325e-05 | M22: -0.0001583876426 | N22: 1.56983865e-08
A23: 8.43489 | B23: ='DF raw data'!J28 -> 8.7026592e-07 | C23: ='DF raw data'!K28 -> 5.5347705e-06 | D23: ='DF raw data'!L28 -> -2.4048295e-06 | F23: =(1-$G$1*($B$2-$G$2))*B23 -> 8.716653076e-07 | G23: 5.557611919e-06 | H23: -2.408696466e-06 | J23: 6.280816029e-05 | K23: 0.0003169722497 | L23: -2.68800325e-05 | M23: -0.0001718322285 | N23: 1.803288054e-08
A24: 8.93506 | B24: ='DF raw data'!J29 -> -1.4864604e-06 | C24: ='DF raw data'!K29 -> 1.0999178e-06 | D24: ='DF raw data'!L29 -> -1.4015912e-06 | F24: -1.488850628e-06 | G24: 1.104457046e-06 | H24: -1.403844959e-06 | J24: 6.206348187e-05 | K24: 0.0003480145415 | L24: -2.632761622e-05 | M24: -0.0001850005123 | N24: 2.030616277e-08
A25: 9.43523 | B25: ='DF raw data'!J30 -> -3.4667141e-06 | C25: ='DF raw data'!K30 -> 5.9089002e-06 | D25: ='DF raw data'!L30 -> -5.2068299e-06 | F25: -3.472288576e-06 | G25: 5.933285613e-06 | H25: -5.215202482e-06 | J25: 6.032674729e-05 | K25: 0.0003781881707 | L25: -2.335996475e-05 | M25: -0.0001966844659 | N25: 2.239937641e-08
A26: 9.9354 | B26: ='DF raw data'!J31 -> -2.3194266e-06 | C26: ='DF raw data'!K31 -> -4.7195094e-06 | D26: ='DF raw data'!L31 -> -5.3829954e-06 | F26: -2.323156238e-06 | G26: -4.738986321e-06 | H26: -5.391651257e-06 | J26: 5.916477423e-05 | K26: 0.0004077806158 | L26: -2.573026354e-05 | M26: -0.0002095539718 | N26: 2.448134253e-08
A27: 10.43557 | B27: ='DF raw data'!J32 -> 2.7004603e-06 | C27: ='DF raw data'!K32 -> -1.098685e-05 | D27: ='DF raw data'!L32 -> -3.2056068e-06 | F27: 2.70480264e-06 | G27: -1.103219158e-05 | H27: -3.210761416e-06 | J27: 6.051763537e-05 | K27: 0.0004380497215 | L27: -3.12482348e-05 | M27: -0.0002251834014 | N27: 2.680154931e-08
A28: 10.93574 | B28: ='DF raw data'!J33 -> 3.1341365e-06 | C28: ='DF raw data'!K33 -> -6.5971977e-07 | D28: ='DF raw data'!L33 -> 1.2706788e-06 | F28: 3.139176191e-06 | G28: -6.624423645e-07 | H28: 1.272722052e-06 | J28: 6.208775713e-05 | K28: 0.0004691041549 | L28: -3.15795686e-05 | M28: -0.0002409785542 | N28: 2.922845355e-08
A29: 11.43591 | B29: ='DF raw data'!J34 -> -3.3738002e-06 | C29: ='DF raw data'!K34 -> -1.8707048e-06 | D29: ='DF raw data'!L34 -> 5.6137415e-06 | F29: -3.379225271e-06 | G29: -1.878425003e-06 | H29: 5.622768396e-06 | J29: 6.039757002e-05 | K29: 0.0004993132075 | L29: -3.251910043e-05 | M29: -0.0002572436327 | N29: 3.158193264e-08
A30: 11.93608 | B30: ='DF raw data'!J35 -> -9.4530078e-06 | C30: ='DF raw data'!K35 -> -6.4864848e-06 | D30: ='DF raw data'!L35 -> 2.0606731e-06 | F30: -9.468208237e-06 | G30: -6.513253844e-06 | H30: 2.063986662e-06 | J30: 5.566185631e-05 | K30: 0.0005271535982 | L30: -3.577683461e-05 | M30: -0.000275138132 | N30: 3.377178901e-08
A31: 12.43625 | B31: ='DF raw data'!J36 -> -6.8433114e-06 | C31: ='DF raw data'!K36 -> -2.406548e-06 | D31: ='DF raw data'!L36 -> -1.8788504e-06 | F31: -6.854315445e-06 | G31: -2.416479572e-06 | H31: -1.881871591e-06 | J31: 5.223353335e-05 | K31: 0.0005532792446 | L31: -3.69854852e-05 | M31: -0.0002936371622 | N31: 3.582061944e-08
A32: 12.93642 | B32: ='DF raw data'!J37 -> 2.3094503e-06 | C32: ='DF raw data'!K37 -> -6.2387103e-06 | D32: ='DF raw data'!L37 -> -5.5891815e-06 | F32: 2.313163896e-06 | G32: -6.264456805e-06 | H32: -5.598168904e-06 | J32: 5.339050854e-05 | K32: 0.0005799835753 | L32: -4.011877856e-05 | M32: -0.0003137033716 | N32: 3.805140904e-08
A33: 13.43659 | B33: ='DF raw data'!J38 -> 6.6032403e-06 | C33: ='DF raw data'!K38 -> 6.2933036e-06 | D33: ='DF raw data'!L38 -> -5.0256585e-06 | F33: 6.61385831e-06 | G33: 6.319275405e-06 | H33: -5.033739759e-06 | J33: 5.669856205e-05 | K33: 0.000608342495 | L33: -3.695806658e-05 | M33: -0.0003321886878 | N33: 4.034250056e-08
A34: 13.93676 | B34: ='DF raw data'!J39 -> 7.8184858e-06 | C34: ='DF raw data'!K39 -> -5.0896356e-06 | D34: ='DF raw data'!L39 -> -4.4918943e-06 | F34: 7.831057925e-06 | G34: -5.110639994e-06 | H34: -4.499117266e-06 | J34: 6.061542229e-05 | K34: 0.0006386605108 | L34: -3.951425538e-05 | M34: -0.0003519525329 | N34: 4.296119351e-08
A35: 14.43693 | B35: ='DF raw data'!J40 -> 8.3112282e-06 | C35: ='DF raw data'!K40 -> -6.4490956e-07 | D35: ='DF raw data'!L40 -> 3.5003731e-07 | F35: 8.324592655e-06 | G35: -6.475710343e-07 | H35: 3.5060017e-07 | J35: 6.47791338e-05 | K35: 0.0006710610902 | L35: -3.983815099e-05 | M35: -0.0003718783809 | N35: 4.585388392e-08
A36: 14.9371 | B36: ='DF raw data'!J41 -> 8.9388086e-06 | C36: ='DF raw data'!K41 -> 7.1173495e-06 | D36: ='DF raw data'!L41 -> -2.1267071e-07 | F36: 8.953182204e-06 | G36: 7.146722057e-06 | H36: -2.130126845e-07 | J36: 6.925724694e-05 | K36: 0.0007057014874 | L36: -3.626357502e-05 | M36: -0.0003900163332 | N36: 4.891072946e-08
A37: 15.43727 | B37: ='DF raw data'!J42 -> 7.8815538e-06 | C37: ='DF raw data'!K42 -> -3.1275881e-06 | D37: ='DF raw data'!L42 -> -5.8378882e-06 | F37: 7.894227339e-06 | G37: -3.140495329e-06 | H37: -5.847275524e-06 | J37: 7.320570263e-05 | K37: 0.0007423167836 | L37: -3.783435657e-05 | M37: -0.0004089399433 | N37: 5.230714056e-08
A38: 15.93744 | B38: ='DF raw data'!J43 -> 6.5728705e-06 | C38: ='DF raw data'!K43 -> -4.7026965e-06 | D38: ='DF raw data'!L43 -> -8.4229778e-06 | F38: 6.583439676e-06 | G38: -4.722104036e-06 | H38: -8.436521948e-06 | J38: 7.649854165e-05 | K38: 0.0007805790592 | L38: -4.019621134e-05 | M38: -0.0004290448824 | N38: 5.604229122e-08
A39: 16.43761 | B39: ='DF raw data'!J44 -> 6.4650699e-06 | C39: ='DF raw data'!K44 -> -1.124046e-06 | D39: ='DF raw data'!L44 -> -7.069475e-06 | F39: 6.475465732e-06 | G39: -1.12868482e-06 | H39: -7.080842716e-06 | J39: 7.973737535e-05 | K39: 0.0008204613023 | L39: -4.076074563e-05 | M39: -0.0004494321845 | N39: 6.005339824e-08
A40: 16.93778 | B40: ='DF raw data'!J45 -> 4.4051153e-06 | C40: ='DF raw data'!K45 -> -1.8472216e-06 | D40: ='DF raw data'!L45 -> -1.0675833e-05 | F40: 4.412198725e-06 | G40: -1.85484489e-06 | H40: -1.069299974e-05 | J40: 8.194422479e-05 | K40: 0.0008614473452 | L40: -4.16884834e-05 | M40: -0.0004702835132 | N40: 6.428122803e-08
A41: 17.43795 | B41: ='DF raw data'!J46 -> 2.0827606e-06 | C41: ='DF raw data'!K46 -> -4.3644591e-06 | D41: ='DF raw data'!L46 -> -7.3796782e-06 | F41: 2.086109679e-06 | G41: -4.382470766e-06 | H41: -7.391544723e-06 | J41: 8.298763427e-05 | K41: 0.0009029552702 | L41: -4.38804638e-05 | M41: -0.0004922312048 | N41: 6.868894741e-08
A42: 17.93812 | B42: ='DF raw data'!J47 -> 1.3011918e-06 | C42: ='DF raw data'!K47 -> -4.4138264e-06 | D42: ='DF raw data'!L47 -> -2.7969682e-07 | F42: 1.303284116e-06 | G42: -4.4320418e-06 | H42: -2.801465725e-07 | J42: 8.363949788e-05 | K42: 0.0009447892379 | L42: -4.609723815e-05 | M42: -0.0005152876604 | N42: 7.325075839e-08
A43: 18.43829 | B43: ='DF raw data'!J48 -> -3.344289e-07 | C43: ='DF raw data'!K48 -> -4.4063344e-07 | D43: ='DF raw data'!L48 -> 3.8614289e-06 | F43: -3.349666617e-07 | G43: -4.424518881e-07 | H43: 3.867638078e-06 | J43: 8.347195761e-05 | K43: 0.0009865394069 | L43: -4.631853931e-05 | M43: -0.0005384548042 | N43: 7.780879499e-08
A44: 18.93846 | B44: ='DF raw data'!J49 -> 2.810589e-07 | C44: ='DF raw data'!K49 -> -5.366997e-07 | D44: ='DF raw data'!L49 -> 5.2614687e-06 | F44: 2.815108427e-07 | G44: -5.389146035e-07 | H44: 5.269929142e-06 | J44: 8.361276088e-05 | K44: 0.001028360001 | L44: -4.658808822e-05 | M44: -0.0005617567683 | N44: 8.239112433e-08
A45: 19.43863 | B45: ='DF raw data'!J50 -> 2.2752097e-06 | C45: ='DF raw data'!K50 -> -1.842685e-06 | D45: ='DF raw data'!L50 -> 5.4061584e-06 | F45: 2.278868237e-06 | G45: -1.850289568e-06 | H45: 5.414851503e-06 | J45: 8.475258241e-05 | K45: 0.001070750701 | L45: -4.751354756e-05 | M45: -0.0005855216194 | N45: 8.711299793e-08
A46: 19.9388 | B46: ='DF raw data'!J51 -> 1.0010876e-06 | C46: ='DF raw data'!K51 -> 9.0653848e-06 | D46: ='DF raw data'!L51 -> 6.1683295e-06 | F46: 1.002697349e-06 | G46: 9.102796695e-06 | H46: 6.178248174e-06 | J46: 8.525410154e-05 | K46: 0.001113392245 | L46: -4.296060174e-05 | M46: -0.0006070092236 | N46: 9.167148485e-08
A47: 20.43897 | B47: ='DF raw data'!J52 -> -4.2587021e-06 | C47: ='DF raw data'!K52 -> 1.7030721e-05 | D47: ='DF raw data'!L52 -> 4.6008554e-06 | F47: -4.265550093e-06 | G47: 1.7101005e-05 | H47: 4.608253575e-06 | J47: 8.312060135e-05 | K47: 0.001154966676 | L47: -3.440719206e-05 | M47: -0.0006242186688 | N47: 9.571930526e-08
A48: 20.93914 | B48: ='DF raw data'!J53 -> -8.1945873e-06 | C48: ='DF raw data'!K53 -> 9.9531132e-07 | D48: ='DF raw data'!L53 -> -1.4655615e-06 | F48: -8.207764196e-06 | G48: 9.994188657e-07 | H48: -1.467918123e-06 | J48: 7.901532394e-05 | K48: 0.00119448777 | L48: -3.390731273e-05 | M48: -0.0006411780894 | N48: 9.941712573e-08
A49: 21.43931 | B49: ='DF raw data'!J54 -> -6.0289717e-06 | C49: ='DF raw data'!K54 -> -2.3553125e-06 | D49: ='DF raw data'!L54 -> 2.2873628e-06 | F49: -6.038666286e-06 | G49: -2.365032628e-06 | H49: 2.291040879e-06 | J49: 7.599496422e-05 | K49: 0.001232498172 | L49: -3.50902311e-05 | M49: -0.0006587291703 | N49: 1.029215963e-07
A50: 21.93948 | B50: ='DF raw data'!J55 -> -7.9246502e-07 | C50: ='DF raw data'!K55 -> -3.3961783e-06 | D50: ='DF raw data'!L55 -> 3.2042062e-06 | F50: -7.937393038e-07 | G50: -3.410193972e-06 | H50: 3.209358564e-06 | J50: 7.559795963e-05 | K50: 0.001270310003 | L50: -3.679590782e-05 | M50: -0.0006771333795 | N50: 1.064572932e-07
A51: 22.43965 | B51: ='DF raw data'!J56 -> 1.6952868e-06 | C51: ='DF raw data'!K56 -> 1.1266023e-06 | D51: ='DF raw data'!L56 -> 2.0824427e-06 | F51: 1.698012821e-06 | G51: 1.13125167e-06 | H51: 2.085791268e-06 | J51: 7.64472547e-05 | K51: 0.001308546626 | L51: -3.623008967e-05 | M51: -0.0006952545835 | N51: 1.100369109e-07
A52: 22.93982 | B52: ='DF raw data'!J57 -> 1.0162362e-06 | C52: ='DF raw data'!K57 -> 4.4513404e-06 | D52: ='DF raw data'!L57 -> 5.4009633e-06 | F52: 1.017870308e-06 | G52: 4.469710616e-06 | H52: 5.409648049e-06 | J52: 7.69563629e-05 | K52: 0.001347037891 | L52: -3.399447451e-05 | M52: -0.0007122575998 | N52: 1.135770672e-07
A53: 23.43999 | B53: ='DF raw data'!J58 -> -1.3118232e-07 | C53: ='DF raw data'!K58 -> 1.3637022e-06 | D53: ='DF raw data'!L58 -> 4.1474759e-06 | F53: -1.313932612e-07 | G53: 1.369330056e-06 | H53: 4.154145041e-06 | J53: 7.689064393e-05 | K53: 0.001385496284 | L53: -3.33095767e-05 | M53: -0.0007289180508 | N53: 1.170891104e-07
A54: 23.94016 | B54: ='DF raw data'!J59 -> 5.9826152e-07 | C54: ='DF raw data'!K59 -> 3.2115354e-06 | D54: ='DF raw data'!L59 -> 2.6286489e-06 | F54: 5.992235245e-07 | G54: 3.224789071e-06 | H54: 2.632875767e-06 | J54: 7.719035756e-05 | K54: 0.001424104585 | L54: -3.169663395e-05 | M54: -0.0007447717562 | N54: 1.205718081e-07
A55: 24.44033 | B55: ='DF raw data'!J60 -> 1.0919352e-06 | C55: ='DF raw data'!K60 -> 3.2483914e-07 | D55: ='DF raw data'!L60 -> 5.8578498e-06 | F55: 1.093691032e-06 | G55: 3.261797171e-07 | H55: 5.867269222e-06 | J55: 7.7737389e-05 | K55: 0.001462986495 | L55: -3.153348864e-05 | M55: -0.0007605438612 | N55: 1.240917357e-07
A56: 24.9405 | B56: ='DF raw data'!J61 -> 6.4050573e-07 | C56: ='DF raw data'!K61 -> 1.0492153e-06 | D56: ='DF raw data'!L61 -> 5.7877096e-06 | F56: 6.415356632e-07 | G56: 1.053545302e-06 | H56: 5.797016237e-06 | J56: 7.80582659e-05 | K56: 0.001502028898 | L56: -3.100653688e-05 | M56: -0.0007760524007 | N56: 1.276201841e-07
A57: 25.44067 | B57: ='DF raw data'!J62 -> 4.5933443e-06 | C57: ='DF raw data'!K62 -> -2.402679e-06 | D57: ='DF raw data'!L62 -> 1.8497723e-06 | F57: 4.600730398e-06 | G57: -2.412594605e-06 | H57: 1.852746734e-06 | J57: 8.035941322e-05 | K57: 0.001542222265 | L57: -3.221324433e-05 | M57: -0.0007921644992 | N57: 1.313691225e-07
A58: 25.94084 | B58: ='DF raw data'!J63 -> 5.7934408e-06 | C58: ='DF raw data'!K63 -> -6.8004388e-06 | D58: ='DF raw data'!L63 -> 1.7352924e-06 | F58: 5.802756653e-06 | G58: -6.828503499e-06 | H58: 1.73808275e-06 | J58: 8.326177801e-05 | K58: 0.001583867309 | L58: -3.562865692e-05 | M58: -0.0008099848845 | N58: 1.354714793e-07
A59: 26.44101 | B59: ='DF raw data'!J64 -> 4.300909e-06 | C59: ='DF raw data'!K64 -> -7.0973142e-06 | D59: ='DF raw data'!L64 -> 4.1246585e-06 | F59: 4.307824862e-06 | G59: -7.126604073e-06 | H59: 4.131290951e-06 | J59: 8.541642277e-05 | K59: 0.001626590041 | L59: -3.919317048e-05 | M59: -0.0008295881326 | N59: 1.398890157e-07
A60: 26.94118 | B60: ='DF raw data'!J65 -> 4.0753689e-06 | C60: ='DF raw data'!K65 -> 1.546898e-06 | D60: ='DF raw data'!L65 -> 1.3134032e-06 | F60: 4.081922093e-06 | G60: 1.553281886e-06 | H60: 1.315515152e-06 | J60: 8.745807775e-05 | K60: 0.001670333948 | L60: -3.841626548e-05 | M60: -0.0008488027961 | N60: 1.444529293e-07
A61: 27.44135 | B61: ='DF raw data'!J66 -> 4.1098715e-06 | C61: ='DF raw data'!K66 -> -1.650416e-06 | D61: ='DF raw data'!L66 -> -6.3409419e-07 | F61: 4.116480173e-06 | G61: -1.657227094e-06 | H61: -6.351138135e-07 | J61: 8.951701764e-05 | K61: 0.001715107675 | L61: -3.924516076e-05 | M61: -0.0008684320481 | N61: 1.492312929e-07
A62: 27.94152 | B62: ='DF raw data'!J67 -> 2.6341181e-06 | C62: ='DF raw data'!K67 -> -6.2516261e-07 | D62: ='DF raw data'!L67 -> 1.0639689e-06 | F62: 2.638353762e-06 | G62: -6.277425907e-07 | H62: 1.065679762e-06 | J62: 9.083664304e-05 | K62: 0.001760541438 | L62: -3.955913877e-05 | M62: -0.0008882183426 | N62: 1.541410723e-07
A63: 28.44169 | B63: ='DF raw data'!J68 -> 1.6437584e-06 | C63: ='DF raw data'!K68 -> 3.0851811e-06 | D63: ='DF raw data'!L68 -> 4.6219411e-06 | F63: 1.646401564e-06 | G63: 3.09791332e-06 | H63: 4.629373181e-06 | J63: 9.166012371e-05 | K63: 0.001806387082 | L63: -3.800965546e-05 | M63: -0.0009072296319 | N63: 1.590659022e-07
A64: 28.94186 | B64: ='DF raw data'!J69 -> -7.5809339e-07 | C64: ='DF raw data'!K69 -> -2.1150095e-06 | D64: ='DF raw data'!L69 -> 8.7938879e-06 | F64: -7.593124042e-07 | G64: -2.123737923e-06 | H64: 8.808028472e-06 | J64: 9.128033842e-05 | K64: 0.001852042769 | L64: -3.907188546e-05 | M64: -0.0009267722169 | N64: 1.639969344e-07
A65: 29.44203 | B65: ='DF raw data'!J70 -> -3.9879637e-06 | C65: ='DF raw data'!K70 -> -6.1583874e-06 | D65: ='DF raw data'!L70 -> 5.5507026e-06 | F65: -3.994376346e-06 | G65: -6.18380242e-06 | H65: 5.55962813e-06 | J65: 8.92824712e-05 | K65: 0.001896699183 | L65: -4.216483792e-05 | M65: -0.0009478618039 | N65: 1.688732084e-07
A66: 29.9422 | B66: ='DF raw data'!J71 -> -5.8107657e-06 | C66: ='DF raw data'!K71 -> -6.4185701e-06 | D66: ='DF raw data'!L71 -> -4.3348937e-06 | F66: -5.820109411e-06 | G66: -6.445058867e-06 | H66: -4.341864209e-06 | J66: 8.637142708e-05 | K66: 0.00193989958 | L66: -4.538846301e-05 | M66: -0.0009705637514 | N66: 1.736348948e-07
A67: 30.44237 | B67: ='DF raw data'!J72 -> -6.9069906e-06 | C67: ='DF raw data'!K72 -> -4.8559701e-07 | D67: ='DF raw data'!L72 -> -9.9117988e-06 | F67: -6.918097041e-06 | G67: -4.876010181e-07 | H67: -9.927736972e-06 | J67: 8.291120248e-05 | K67: 0.001981369276 | L67: -4.563234641e-05 | M67: -0.0009933876821 | N67: 1.781147067e-07
A68: 30.94254 | B68: ='DF raw data'!J73 -> -6.1568539e-06 | C68: ='DF raw data'!K73 -> -5.61774e-06 | D68: ='DF raw data'!L73 -> -7.089775e-06 | F68: -6.166754121e-06 | G68: -5.640923825e-06 | H68: -7.101175358e-06 | J68: 7.982677708e-05 | K68: 0.002021296235 | L68: -4.845376728e-05 | M68: -0.001017622803 | N68: 1.824762301e-07
A69: 31.44271 | B69: ='DF raw data'!J74 -> -1.374789e-06 | C69: ='DF raw data'!K74 -> -5.8939345e-06 | D69: ='DF raw data'!L74 -> 1.3615992e-06 | F69: -1.376999661e-06 | G69: -5.918258151e-06 | H69: 1.363788652e-06 | J69: 7.913804315e-05 | K69: 0.00206087871 | L69: -5.141390246e-05 | M69: -0.001043338494 | N69: 1.869308537e-07
A70: 31.94288 | B70: ='DF raw data'!J75 -> 4.3702053e-06 | C70: ='DF raw data'!K75 -> -6.0009429e-06 | D70: ='DF raw data'!L75 -> 5.2189334e-06 | F70: 4.37723259e-06 | G70: -6.025708163e-06 | H70: 5.227325445e-06 | J70: 8.132740358e-05 | K70: 0.002101556237 | L70: -5.442778091e-05 | M70: -0.001070561638 | N70: 1.917207467e-07
A71: 32.44305 | B71: ='DF raw data'!J76 -> 6.7387332e-06 | C71: ='DF raw data'!K76 -> 8.9482364e-06 | D71: ='DF raw data'!L76 -> 3.3079032e-06 | F71: 6.749569083e-06 | G71: =(1-$G$1*($B$2-$G$2))*C71*$M$2/$M$1 -> 8.985164835e-06 | H71: 3.313222308e-06 | J71: 8.470333555e-05 | K71: 0.002143922305 | L71: -4.993367102e-05 | M71: -0.001095536962 | N71: 1.965564035e-07
A72: =A71+$B$1 -> 32.94322 | B72: ='DF raw data'!J77 -> 3.3857827e-06 | C72: ='DF raw data'!K77 -> 4.7079216e-06 | D72: ='DF raw data'!L77 -> 3.2138687e-06 | F72: 3.391227039e-06 | G72: 4.7273507e-06 | H72: 3.219036601e-06 | J72: =F72*$B$1+J71 -> 8.639952558e-05 | K72: =J72*$B$1+K71 -> 0.002187136755 | L72: =G72*$B$1+L71 -> -4.756919202e-05 | M72: =L72*$B$1+M71 -> -0.001119329645 | N72: =(J72^2+L72^2)*$B$1+N71 -> 2.014219103e-07
A73: 33.44339 | B73: ='DF raw data'!J78 -> -3.6538227e-06 | C73: ='DF raw data'!K78 -> 1.5428963e-06 | D73: ='DF raw data'!L78 -> 5.6300396e-06 | F73: -3.659698047e-06 | G73: 1.549263672e-06 | H73: 5.639092704e-06 | J73: 8.45690544e-05 | K73: 0.002229435659 | L73: -4.679429681e-05 | M73: -0.001142734748 | N73: 2.060943139e-07
A74: 33.94356 | B74: ='DF raw data'!J79 -> -7.3946544e-06 | C74: ='DF raw data'!K79 -> 9.6902259e-06 | D74: ='DF raw data'!L79 -> 1.1767753e-06 | F74: -7.406545004e-06 | G74: 9.730216448e-06 | H74: 1.178667555e-06 | J74: 8.086452279e-05 | K74: 0.002269881668 | L74: -4.192753445e-05 | M74: -0.001163705643 | N74: 2.10244219e-07
A75: 34.44373 | B75: ='DF raw data'!J80 -> -4.9211199e-06 | C75: ='DF raw data'!K80 -> 7.7029599e-06 | D75: ='DF raw data'!L80 -> -4.8240709e-06 | F75: -4.929033061e-06 | G75: 7.73474921e-06 | H75: -4.831828006e-06 | J75: 7.839916832e-05 | K75: 0.00230909458 | L75: -3.805884493e-05 | M75: -0.001182741535 | N75: 2.140429628e-07
A76: 34.9439 | B76: ='DF raw data'!J81 -> -2.1438141e-06 | C76: ='DF raw data'!K81 -> 1.2019598e-05 | D76: ='DF raw data'!L81 -> -8.596553e-06 | F76: -2.147261353e-06 | G76: 1.206920162e-05 | H76: -8.610376257e-06 | J76: 7.732517261e-05 | K76: 0.002347770311 | L76: -3.202219236e-05 | M76: -0.001198758075 | N76: 2.175464551e-07
A77: 35.44407 | B77: ='DF raw data'!J82 -> 4.2964851e-07 | C77: ='DF raw data'!K82 -> 5.6146932e-06 | D77: ='DF raw data'!L82 -> -4.6002478e-06 | F77: 4.303393848e-07 | G77: 5.637864451e-06 | H77: -4.607644998e-06 | J77: 7.754041546e-05 | K77: 0.002386553701 | L77: -2.92023017e-05 | M77: -0.001213364191 | N77: 2.209802675e-07
A78: 35.94424 | B78: ='DF raw data'!J83 -> -4.5675261e-08 | C78: ='DF raw data'!K83 -> 2.3856214e-06 | D78: ='DF raw data'!L83 -> -2.575538e-06 | F78: -4.574870682e-08 | G78: 2.39546661e-06 | H78: -2.579679465e-06 | J78: 7.751753333e-05 | K78: 0.002425325646 | L78: -2.800416116e-05 | M78: -0.001227371032 | N78: 2.243780228e-07
A79: 36.44441 | B79: ='DF raw data'!J84 -> -3.1887143e-06 | C79: ='DF raw data'!K84 -> 8.9530404e-06 | D79: ='DF raw data'!L84 -> -1.5732456e-06 | F79: -3.193841753e-06 | G79: 8.989988661e-06 | H79: -1.575775379e-06 | J79: 7.59200695e-05 | K79: 0.002463298587 | L79: -2.350763853e-05 | M79: -0.001239128848 | N79: 2.275373296e-07
A80: 36.94458 | B80: ='DF raw data'!J85 -> -6.8846971e-06 | C80: ='DF raw data'!K85 -> 1.3716392e-05 | D80: ='DF raw data'!L85 -> 1.9489933e-07 | F80: -6.895767693e-06 | G80: 1.377299811e-05 | H80: 1.952127281e-07 | J80: 7.247101337e-05 | K80: 0.002499546413 | L80: -1.661879807e-05 | M80: -0.001247441072 | N80: 2.303023855e-07
A81: 37.44475 | B81: ='DF raw data'!J86 -> -8.0132268e-06 | C81: ='DF raw data'!K86 -> 9.8427336e-06 | D81: ='DF raw data'!L86 -> -2.0606767e-06 | F81: -8.026112069e-06 | G81: 9.883353532e-06 | H81: -2.063990268e-06 | J81: 6.84565929e-05 | K81: 0.002533786348 | L81: -1.167544113e-05 | M81: -0.001253280777 | N81: 2.327145159e-07
A82: 37.94492 | B82: ='DF raw data'!J87 -> -7.1546933e-06 | C82: ='DF raw data'!K87 -> -2.1679803e-06 | D82: ='DF raw data'!L87 -> 1.5268507e-06 | F82: -7.166198047e-06 | G82: -2.176927328e-06 | H82: 1.529305876e-06 | J82: 6.487227562e-05 | K82: 0.002566233514 | L82: -1.276427487e-05 | M82: -0.001259665085 | N82: 2.349009285e-07
A83: 38.44509 | B83: ='DF raw data'!J88 -> -7.6973629e-06 | C83: ='DF raw data'!K88 -> 8.4200332e-07 | D83: ='DF raw data'!L88 -> 2.6618563e-06 | F83: -7.70974026e-06 | G83: 8.454781796e-07 | H83: 2.666136565e-06 | J83: 6.101609484e-05 | K83: 0.002596751934 | L83: -1.234139205e-05 | M83: -0.001265837879 | N83: 2.368392242e-07
A84: 38.94526 | B84: ='DF raw data'!J89 -> -7.5821558e-06 | C84: ='DF raw data'!K89 -> -7.3960578e-06 | D84: ='DF raw data'!L89 -> -6.5264558e-06 | F84: -7.594347907e-06 | G84: -7.426580557e-06 | H84: -6.536950341e-06 | J84: 5.721762985e-05 | K84: 0.002625370476 | L84: -1.605594485e-05 | M84: -0.001273868581 | N84: 2.386056498e-07
A85: 39.44543 | B85: ='DF raw data'!J90 -> -4.5994643e-06 | C85: ='DF raw data'!K90 -> -4.6870859e-06 | D85: ='DF raw data'!L90 -> -9.4330699e-06 | F85: -4.606860239e-06 | G85: -4.706429013e-06 | H85: -9.448238276e-06 | J85: 5.491341656e-05 | K85: 0.002652836519 | L85: -1.840995945e-05 | M85: -0.00128307669 | N85: 2.40283425e-07
A86: 39.9456 | B86: ='DF raw data'!J91 -> 2.4348555e-08 | C86: ='DF raw data'!K91 -> 3.361642e-06 | D86: ='DF raw data'!L91 -> -4.9131286e-06 | F86: 2.438770748e-08 | G86: 3.375515145e-06 | H86: -4.921028911e-06 | J86: 5.492561456e-05 | K86: 0.002680308664 | L86: -1.672162804e-05 | M86: -0.001291440347 | N86: 2.419322034e-07
A87: 40.44577 | B87: ='DF raw data'!J92 -> 4.8573452e-06 | C87: ='DF raw data'!K92 -> -2.2246873e-06 | D87: ='DF raw data'!L92 -> -1.6853827e-06 | F87: =(1-$G$1*($B$2-$G$2))*B87 -> 4.865155811e-06 | G87: -2.233868352e-06 | H87: -1.688092795e-06 | J87: 5.735901954e-05 | K87: 0.002708997925 | L87: -1.783894197e-05 | M87: -0.00130036285 | N87: 2.437369593e-07
A88: 40.94594 | B88: ='DF raw data'!J93 -> 8.570878e-06 | C88: ='DF raw data'!K93 -> -7.5593721e-06 | D88: ='DF raw data'!L93 -> 2.1720243e-06 | F88: 8.584659972e-06 | G88: -7.590568838e-06 | H88: 2.175516915e-06 | J88: 6.165280892e-05 | K88: 0.00273983481 | L88: -2.163551679e-05 | M88: -0.001311184287 | N88: 2.458722673e-07
A89: 41.44611 | B89: ='DF raw data'!J94 -> 9.9067292e-06 | C89: ='DF raw data'!K94 -> -1.0602686e-06 | D89: ='DF raw data'!L94 -> 5.2727961e-07 | F89: 9.922659221e-06 | G89: -1.064644218e-06 | H89: 5.281274756e-07 | J89: 6.661582538e-05 | K89: 0.002773154047 | L89: -2.216801988e-05 | M89: -0.001322272065 | N89: 2.483376499e-07
A90: 41.94628 | B90: ='DF raw data'!J95 -> 7.7427867e-06 | C90: ='DF raw data'!K95 -> -1.0329164e-06 | D90: ='DF raw data'!L95 -> -2.1726246e-06 | F90: 7.755237101e-06 | G90: -1.037179138e-06 | H90: -2.17611818e-06 | J90: 7.049476232e-05 | K90: 0.002808413413 | L90: -2.268678577e-05 | M90: -0.001333619315 | N90: 2.510806831e-07
A91: 42.44645 | B91: ='DF raw data'!J96 -> 2.7857636e-06 | C91: ='DF raw data'!K96 -> -5.2334703e-06 | D91: ='DF raw data'!L96 -> -3.7667287e-06 | F91: 2.790243108e-06 | G91: -5.255068284e-06 | H91: -3.7727856e-06 | J91: 7.189035822e-05 | K91: 0.002844370813 | L91: -2.531521328e-05 | M91: -0.001346281225 | N91: 2.539862124e-07
A92: 42.94662 | B92: ='DF raw data'!J97 -> -3.187914e-06 | C92: ='DF raw data'!K97 -> -7.9060164e-06 | D92: ='DF raw data'!L97 -> -4.1086114e-06 | F92: -3.193040166e-06 | G92: -7.938643702e-06 | H92: -4.115218047e-06 | J92: 7.029329532e-05 | K92: 0.002879529411 | L92: -2.92858847e-05 | M92: -0.001360929146 | N92: 2.568866034e-07
A93: 43.44679 | B93: ='DF raw data'!J98 -> -8.2712177e-06 | C93: ='DF raw data'!K98 -> 7.3993073e-07 | D93: ='DF raw data'!L98 -> -5.4924197e-07 | F93: -8.284517818e-06 | G93: 7.429843467e-07 | H93: -5.501251511e-07 | J93: 6.614962804e-05 | K93: 0.00291261547 | L93: -2.891426622e-05 | M93: -0.001375391195 | N93: 2.594933935e-07
A94: 43.94696 | B94: ='DF raw data'!J99 -> -1.0740547e-05 | C94: ='DF raw data'!K99 -> 9.4495226e-06 | D94: ='DF raw data'!L99 -> -3.3905408e-07 | F94: -1.07578178e-05 | G94: 9.488519791e-06 | H94: -3.39599279e-07 | J94: 6.076889031e-05 | K94: 0.002943010246 | L94: -2.416839327e-05 | M94: -0.0013874795 | N94: 2.616326052e-07
A95: 44.44713 | B95: ='DF raw data'!J100 -> -1.1505759e-05 | C95: ='DF raw data'!K100 -> 4.006361e-06 | D95: ='DF raw data'!L100 -> -1.3767657e-06 | F95: -1.152426026e-05 | G95: 4.022894833e-06 | H95: -1.378979539e-06 | J95: 5.500480106e-05 | K95: 0.002970521997 | L95: -2.215626197e-05 | M95: -0.001398561397 | N95: 2.63391417e-07
A96: 44.9473 | B96: ='DF raw data'!J101 -> -1.2331988e-05 | C96: ='DF raw data'!K101 -> -1.4293288e-06 | D96: ='DF raw data'!L101 -> 2.8898121e-06 | F96: -1.235181784e-05 | G96: -1.43522749e-06 | H96: 2.894458918e-06 | J96: 4.882679233e-05 | K96: 0.002994943694 | L96: -2.28741197e-05 | M96: -0.001410002346 | N96: 2.648455518e-07
A97: 45.44747 | B97: ='DF raw data'!J102 -> -1.0220359e-05 | C97: ='DF raw data'!K102 -> 4.6080132e-07 | D97: ='DF raw data'!L102 -> 4.2249503e-06 | F97: -1.023679334e-05 | G97: 4.627029988e-07 | H97: 4.23174402e-06 | J97: 4.370665541e-05 | K97: 0.003016804452 | L97: -2.264268954e-05 | M97: -0.00142132754 | N97: 2.660574452e-07
A98: 45.94764 | B98: ='DF raw data'!J103 -> -4.0533746e-06 | C98: ='DF raw data'!K103 -> -1.4020717e-05 | D98: ='DF raw data'!L103 -> 1.3188748e-06 | F98: -4.059892426e-06 | G98: -1.407857903e-05 | H98: 1.320995551e-06 | J98: 4.167601901e-05 | K98: 0.003037649546 | L98: -2.968437241e-05 | M98: -0.001436174772 | N98: 2.673669165e-07
A99: 46.44781 | B99: ='DF raw data'!J104 -> 1.3945132e-06 | C99: ='DF raw data'!K104 -> 1.6815269e-06 | D99: ='DF raw data'!L104 -> -5.1224288e-06 | F99: 1.396755577e-06 | G99: 1.688466386e-06 | H99: -5.130665666e-06 | J99: 4.237463425e-05 | K99: 0.003058844067 | L99: -2.883985218e-05 | M99: -0.001450599601 | N99: 2.686810365e-07
A100: 46.94798 | B100: ='DF raw data'!J105 -> 2.9250691e-06 | C100: ='DF raw data'!K105 -> -2.013739e-06 | D100: ='DF raw data'!L105 -> -6.0639813e-06 | F100: 2.929772611e-06 | G100: -2.02204949e-06 | H100: -6.073732182e-06 | J100: 4.384001862e-05 | K100: 0.003080771529 | L100: -2.985122068e-05 | M100: -0.001465530286 | N100: 2.700880361e-07
A101: 47.44815 | B101: ='DF raw data'!J106 -> 1.2610722e-06 | C101: ='DF raw data'!K106 -> -1.4661968e-05 | D101: ='DF raw data'!L106 -> -2.1172546e-06 | F101: 1.263100004e-06 | G101: -1.472247641e-05 | H101: -2.120659145e-06 | J101: 4.447178335e-05 | K101: 0.003103014981 | L101: -3.72149617e-05 | M101: -0.001484144094 | N101: 2.717699542e-07
A102: 47.94832 | B102: ='DF raw data'!J107 -> 1.357726e-06 | C102: ='DF raw data'!K107 -> -7.7326949e-06 | D102: ='DF raw data'!L107 -> -1.6809298e-06 | F102: 1.359909223e-06 | G102: -7.764606923e-06 | H102: -1.683632735e-06 | J102: 4.515196914e-05 | K102: 0.003125598642 | L102: -4.109858515e-05 | M102: -0.001504700373 | N102: 2.736344849e-07
A103: 48.44849 | B103: ='DF raw data'!J108 -> 5.2159189e-06 | C103: ='DF raw data'!K108 -> -2.9070338e-06 | D103: ='DF raw data'!L108 -> 1.2888542e-06 | F103: 5.224306098e-06 | G103: -2.919030824e-06 | H103: 1.290926678e-06 | J103: 4.776501032e-05 | K103: 0.003149489267 | L103: -4.255859679e-05 | M103: -0.001525986906 | N103: 2.756815459e-07
A104: 48.94866 | B104: ='DF raw data'!J109 -> 1.102145e-05 | C104: ='DF raw data'!K109 -> -7.3016923e-07 | D104: ='DF raw data'!L109 -> 6.9067519e-06 | F104: 1.103917249e-05 | G104: -7.33182562e-07 | H104: 6.917857957e-06 | J104: 5.328647323e-05 | K104: 0.003176141562 | L104: -4.292531271e-05 | M104: -0.00154745686 | N104: 2.780233572e-07
A105: 49.44883 | B105: ='DF raw data'!J110 -> 1.2150125e-05 | C105: ='DF raw data'!K110 -> -9.1726406e-06 | D105: ='DF raw data'!L110 -> 5.4997272e-06 | F105: 1.21696624e-05 | G105: -9.210495128e-06 | H105: 5.508570761e-06 | J105: 5.937337327e-05 | K105: 0.003205838342 | L105: -4.753212606e-05 | M105: -0.001571231003 | N105: 2.809165907e-07
A106: 49.949 | B106: ='DF raw data'!J111 -> 5.3135768e-06 | C106: ='DF raw data'!K111 -> -1.0443801e-05 | D106: ='DF raw data'!L111 -> -2.1296382e-06 | F106: 5.322121031e-06 | G106: -1.048690147e-05 | H106: -2.133062658e-06 | J106: 6.203533855e-05 | K106: 0.003236866558 | L106: -5.277735957e-05 | M106: -0.001597628655 | N106: 2.84234635e-07
A107: 50.44917 | B107: ='DF raw data'!J112 -> -3.7159011e-06 | C107: ='DF raw data'!K112 -> 7.0675819e-06 | D107: ='DF raw data'!L112 -> -4.0783289e-06 | F107: -3.721876269e-06 | G107: 7.096749071e-06 | H107: -4.084886853e-06 | J107: 6.017376769e-05 | K107: 0.003266963671 | L107: -4.922777859e-05 | M107: -0.001622250913 | N107: 2.872577907e-07
A108: 50.94934 | B108: ='DF raw data'!J113 -> -6.1065916e-06 | C108: ='DF raw data'!K113 -> 7.9051024e-06 | D108: ='DF raw data'!L113 -> 3.3735178e-06 | F108: -6.116410999e-06 | G108: 7.93772593e-06 | H108: 3.378942417e-06 | J108: 5.71145224e-05 | K108: 0.003295530642 | L108: -4.525756621e-05 | M108: -0.00164488739 | N108: 2.899138515e-07
A109: 51.44951 | B109: ='DF raw data'!J114 -> -3.0760389e-06 | C109: ='DF raw data'!K114 -> 6.594048e-06 | D109: ='DF raw data'!L114 -> 8.1771341e-06 | F109: -3.080985171e-06 | G109: 6.621260946e-06 | H109: 8.190282932e-06 | J109: 5.557350605e-05 | K109: 0.003323326842 | L109: -4.194581012e-05 | M109: -0.001665867426 | N109: 2.923386084e-07
A110: 51.94968 | B110: ='DF raw data'!J115 -> -1.5531518e-06 | C110: ='DF raw data'!K115 -> 2.1286419e-06 | D110: ='DF raw data'!L115 -> 9.3127364e-06 | F110: -1.555649268e-06 | G110: 2.137426582e-06 | H110: 9.32771128e-06 | J110: 5.479541696e-05 | K110: 0.003350733866 | L110: -4.087673347e-05 | M110: -0.001686312742 | N110: 2.946761254e-07
A111: 52.44985 | B111: ='DF raw data'!J116 -> -1.3130452e-06 | C111: ='DF raw data'!K116 -> -1.711169e-05 | D111: ='DF raw data'!L116 -> 5.8474016e-06 | F111: -1.315156577e-06 | G111: -1.718230815e-05 | H111: 5.856804222e-06 | J111: 5.413761509e-05 | K111: 0.003377811877 | L111: -4.947080854e-05 | M111: -0.001711056556 | N111: 2.973661608e-07
A112: 52.95002 | B112: ='DF raw data'!J117 -> -4.7507316e-07 | C112: ='DF raw data'!K117 -> 4.9445973e-08 | D112: ='DF raw data'!L117 -> -1.4398046e-06 | F112: -4.758370776e-07 | G112: 4.965003136e-08 | H112: -1.442119806e-06 | J112: 5.389961566e-05 | K112: 0.003404770848 | L112: -4.944597508e-05 | M112: -0.00173578795 | N112: 3.000421069e-07
A113: 53.45019 | B113: ='DF raw data'!J118 -> -1.2587084e-06 | C113: ='DF raw data'!K118 -> 8.8799225e-06 | D113: ='DF raw data'!L118 -> -2.0572134e-06 | F113: -1.260732403e-06 | G113: 8.916569011e-06 | H113: -2.060521399e-06 | J113: 5.326903514e-05 | K113: 0.003431414421 | L113: -4.498617476e-05 | M113: -0.001758288685 | N113: 3.024736063e-07
A114: 53.95036 | B114: ='DF raw data'!J119 -> -1.3731883e-06 | C114: ='DF raw data'!K119 -> 3.4559748e-06 | D114: ='DF raw data'!L119 -> -1.5639179e-06 | F114: -1.375396387e-06 | G114: 3.470237246e-06 | H114: -1.56643268e-06 | J114: 5.258110312e-05 | K114: 0.003457713911 | L114: -4.32504662e-05 | M114: -0.00177992127 | N114: 3.047920819e-07
A115: 54.45053 | B115: ='DF raw data'!J120 -> 8.4269004e-07 | C115: ='DF raw data'!K120 -> 9.9433382e-06 | D115: ='DF raw data'!L120 -> 1.308709e-07 | F115: 8.440450856e-07 | G115: 9.984373316e-06 | H115: 1.310813404e-07 | J115: 5.300326916e-05 | K115: 0.003484224556 | L115: -3.82565822e-05 | M115: -0.001799056065 | N115: 3.069292646e-07
A116: 54.9507 | B116: ='DF raw data'!J121 -> 3.0034457e-06 | C116: ='DF raw data'!K121 -> 1.3508946e-06 | D116: ='DF raw data'!L121 -> 2.5887184e-06 | F116: 3.008275241e-06 | G116: 1.356469601e-06 | H116: 2.592881059e-06 | J116: 5.450791818e-05 | K116: 0.003511487782 | L116: -3.75781168e-05 | M116: -0.001817851512 | N116: 3.091216238e-07
A117: 55.45087 | B117: ='DF raw data'!J122 -> 4.7110257e-06 | C117: ='DF raw data'!K122 -> -2.3328971e-06 | D117: ='DF raw data'!L122 -> 1.5297757e-06 | F117: 4.718601029e-06 | G117: -2.342524722e-06 | H117: 1.532235579e-06 | J117: 5.686802086e-05 | K117: 0.00353993146 | L117: -3.874977739e-05 | M117: -0.001837232988 | N117: 3.114901873e-07
A118: 55.95104 | B118: ='DF raw data'!J123 -> 4.6985401e-06 | C118: ='DF raw data'!K123 -> 3.0587621e-06 | D118: ='DF raw data'!L123 -> 1.9404888e-06 | F118: 4.706095352e-06 | G118: 3.071385291e-06 | H118: 1.943609106e-06 | J118: 5.922186857e-05 | K118: 0.003569552462 | L118: -3.721356261e-05 | M118: -0.001855846096 | N118: 3.139370585e-07
A119: 56.45121 | B119: ='DF raw data'!J124 -> 3.6628512e-06 | C119: ='DF raw data'!K124 -> 5.2861947e-06 | D119: ='DF raw data'!L124 -> 5.2902087e-06 | F119: 3.668741065e-06 | G119: 5.308010272e-06 | H119: 5.298715356e-06 | J119: 6.105686279e-05 | K119: 0.003600091273 | L119: -3.455865511e-05 | M119: -0.001873131298 | N119: 3.163990158e-07
A120: 56.95138 | B120: ='DF raw data'!J125 -> 3.3109568e-06 | C120: ='DF raw data'!K125 -> 6.2612803e-06 | D120: ='DF raw data'!L125 -> 5.9154172e-06 | F120: 3.316280819e-06 | G120: 6.287119949e-06 | H120: 5.924929191e-06 | J120: 6.271556697e-05 | K120: 0.003631459718 | L120: -3.141402632e-05 | M120: -0.001888843652 | N120: 3.188598939e-07
A121: 57.45155 | B121: ='DF raw data'!J126 -> 1.5680594e-06 | C121: ='DF raw data'!K126 -> 6.80126e-06 | D121: ='DF raw data'!L126 -> 7.1668734e-07 | F121: 1.57058084e-06 | G121: 6.829328088e-06 | H121: 7.178397732e-07 | J121: 6.350112439e-05 | K121: 0.003663221075 | L121: -2.799820129e-05 | M121: -0.001902847512 | N121: 3.212688587e-07
A122: 57.95172 | B122: ='DF raw data'!J127 -> -2.4298467e-07 | C122: ='DF raw data'!K127 -> 4.3215173e-06 | D122: ='DF raw data'!L127 -> -3.5795765e-06 | F122: -2.433753893e-07 | G122: 4.33935175e-06 | H122: -3.585332459e-06 | J122: 6.337939532e-05 | K122: 0.003694921547 | L122: -2.582778773e-05 | M122: -0.001915765797 | N122: 3.236116662e-07
A123: 58.45189 | B123: ='DF raw data'!J128 -> -1.8903634e-06 | C123: ='DF raw data'!K128 -> 7.5472512e-06 | D123: ='DF raw data'!L128 -> -4.4008575e-06 | F123: -1.893403104e-06 | G123: 7.578397916e-06 | H123: -4.407934079e-06 | J123: 6.243237189e-05 | K123: 0.003726148347 | L123: -2.203730044e-05 | M123: -0.001926788193 | N123: 3.258041332e-07
A124: 58.95206 | B124: ='DF raw data'!J129 -> -2.9717744e-06 | C124: ='DF raw data'!K129 -> 3.9396477e-06 | D124: ='DF raw data'!L129 -> -2.7312872e-06 | F124: -2.976553013e-06 | G124: 3.955906214e-06 | H124: -2.73567911e-06 | J124: 6.094358937e-05 | K124: 0.003756630502 | L124: -2.005867483e-05 | M124: -0.00193682094 | N124: 3.278630688e-07
A125: 59.45223 | B125: ='DF raw data'!J130 -> -1.231278e-06 | C125: ='DF raw data'!K130 -> -6.5732124e-06 | D125: ='DF raw data'!L130 -> -4.0324758e-06 | F125: -1.233257895e-06 | G125: -6.60033936e-06 | H125: -4.038960021e-06 | J125: 6.032675076e-05 | K125: 0.003786804133 | L125: -2.335996657e-05 | M125: -0.001948504895 | N125: 3.299562827e-07
A126: 59.9524 | B126: ='DF raw data'!J131 -> 4.709614e-07 | C126: ='DF raw data'!K131 -> -2.2142808e-06 | D126: ='DF raw data'!L131 -> -7.0347978e-06 | F126: 4.717187059e-07 | G126: -2.223418905e-06 | H126: -7.046109755e-06 | J126: 6.056269031e-05 | K126: 0.003817095774 | L126: -2.4472054e-05 | M126: -0.001960745082 | N126: 3.320903685e-07
A127: 60.45257 | B127: ='DF raw data'!J132 -> 8.2126962e-07 | C127: ='DF raw data'!K132 -> 1.2879536e-05 | D127: ='DF raw data'!L132 -> -7.2248167e-06 | F127: 8.225902215e-07 | G127: 1.29326885e-05 | H127: -7.236434205e-06 | J127: 6.097412526e-05 | K127: 0.003847593202 | L127: -1.80035112e-05 | M127: -0.001969749898 | N127: 3.341120408e-07
A128: 60.95274 | B128: ='DF raw data'!J133 -> 2.2950876e-06 | C128: ='DF raw data'!K133 -> 6.8283466e-06 | D128: ='DF raw data'!L133 -> -7.933073e-06 | F128: 2.298778101e-06 | G128: 6.856526472e-06 | H128: -7.945829381e-06 | J128: 6.21239051e-05 | K128: 0.003878665716 | L128: -1.457408235e-05 | M128: -0.001977039417 | N128: 3.361486247e-07
A129: 61.45291 | B129: ='DF raw data'!J134 -> 7.4583249e-07 | C129: ='DF raw data'!K134 -> 3.6820202e-07 | D129: ='DF raw data'!L134 -> -7.7404784e-06 | F129: 7.470317886e-07 | G129: 3.697215512e-07 | H129: -7.752925089e-06 | J129: 6.249754799e-05 | K129: 0.003909925114 | L129: -1.438915872e-05 | M129: -0.001984236443 | N129: 3.382058196e-07
A130: 61.95308 | B130: ='DF raw data'!J135 -> -5.201739e-06 | C130: ='DF raw data'!K135 -> -5.7339236e-07 | D130: ='DF raw data'!L135 -> -2.4938145e-06 | F130: -5.210103396e-06 | G130: -5.757586903e-07 | H130: -2.497824554e-06 | J130: 5.989161058e-05 | K130: 0.003939881101 | L130: -1.467713595e-05 | M130: -0.001991577506 | N130: 3.401076777e-07
A131: 62.45325 | B131: ='DF raw data'!J136 -> -1.0910426e-05 | C131: ='DF raw data'!K136 -> -8.1236027e-07 | D131: ='DF raw data'!L136 -> 2.103412e-06 | F131: -1.092796997e-05 | G131: -8.157127958e-07 | H131: 2.106794286e-06 | J131: 5.442576784e-05 | K131: 0.003967103237 | L131: -1.508513102e-05 | M131: -0.001999122636 | N131: 3.417030827e-07
A132: 62.95342 | B132: ='DF raw data'!J137 -> -9.2759983e-06 | C132: ='DF raw data'!K137 -> -1.249431e-05 | D132: ='DF raw data'!L137 -> 1.7840849e-06 | F132: -9.290914105e-06 | G132: -1.254587271e-05 | H132: 1.786953709e-06 | J132: 4.977873133e-05 | K132: 0.003992001065 | L132: -2.136020017e-05 | M132: -0.002009806367 | N132: 3.431706716e-07
A133: 63.45359 | B133: ='DF raw data'!J138 -> -3.1900386e-06 | C133: ='DF raw data'!K138 -> 3.782101e-07 | D133: ='DF raw data'!L138 -> 4.8973567e-07 | F133: -3.195168182e-06 | G133: 3.797709335e-07 | H133: 4.90523165e-07 | J133: 4.818060406e-05 | K133: 0.004016099558 | L133: -2.117025014e-05 | M133: -0.002020395091 | N133: 3.445559175e-07
A134: 63.95376 | B134: ='DF raw data'!J139 -> 2.9003745e-06 | C134: ='DF raw data'!K139 -> 9.7398606e-06 | D134: ='DF raw data'!L139 -> -2.3077973e-06 | F134: 2.905038302e-06 | G134: 9.780055986e-06 | H134: -2.311508238e-06 | J134: 4.963361707e-05 | K134: 0.004040924804 | L134: -1.627855954e-05 | M134: -0.002028537138 | N134: 3.45920625e-07
A135: 64.45393 | B135: ='DF raw data'!J140 -> 3.8926696e-06 | C135: ='DF raw data'!K140 -> 5.5179811e-07 | D135: ='DF raw data'!L140 -> -3.6072688e-06 | F135: 3.898929013e-06 | G135: =(1-$G$1*($B$2-$G$2))*C135*$M$2/$M$1 -> 5.540753231e-07 | H135: -3.613069288e-06 | J135: 5.158374439e-05 | K135: 0.004066725446 | L135: -1.600142769e-05 | M135: -0.002036540572 | N135: 3.473795851e-07
A136: =A135+$B$1 -> 64.9541 | B136: ='DF raw data'!J141 -> -2.7521714e-06 | C136: ='DF raw data'!K141 -> 4.5573179e-07 | D136: ='DF raw data'!L141 -> -1.393544e-06 | F136: -2.756596892e-06 | G136: 4.576125474e-07 | H136: -1.395784819e-06 | J136: =F136*$B$1+J135 -> 5.020497733e-05 | K136: =J136*$B$1+K135 -> 0.004091836469 | L136: =G136*$B$1+L135 -> -1.577254362e-05 | M136: =L136*$B$1+M135 -> -0.002044429525 | N136: =(J136^2+L136^2)*$B$1+N135 -> 3.487647123e-07
A137: 65.45427 | B137: ='DF raw data'!J142 -> -7.9419369e-06 | C137: ='DF raw data'!K142 -> 1.4911568e-07 | D137: ='DF raw data'!L142 -> -8.8447445e-07 | F137: -7.954707535e-06 | G137: 1.497310648e-07 | H137: -8.858966849e-07 | J137: 4.622627126e-05 | K137: 0.004114957463 | L137: -1.569765263e-05 | M137: -0.00205228102 | N137: 3.499567597e-07
A138: 65.95444 | B138: ='DF raw data'!J143 -> -7.5357643e-06 | C138: ='DF raw data'!K143 -> 4.5838337e-06 | D138: ='DF raw data'!L143 -> -4.0065297e-06 | F138: -7.547881809e-06 | G138: 4.602750702e-06 | H138: -4.0129722e-06 | J138: 4.245104721e-05 | K138: 0.004136190204 | L138: -1.339549481e-05 | M138: -0.002058981045 | N138: 3.509478619e-07
A139: 66.45461 | B139: ='DF raw data'!J144 -> -4.8362822e-06 | C139: ='DF raw data'!K144 -> 1.0615007e-05 | D139: ='DF raw data'!L144 -> -2.8942686e-06 | F139: -4.844058942e-06 | G139: 1.065881402e-05 | H139: -2.898922584e-06 | J139: 4.002819425e-05 | K139: 0.004156211106 | L139: -8.064275802e-06 | M139: -0.002063014554 | N139: 3.517817898e-07
A140: 66.95478 | B140: ='DF raw data'!J145 -> -1.1366906e-06 | C140: ='DF raw data'!K145 -> 6.5137251e-06 | D140: ='DF raw data'!L145 -> -2.9876483e-06 | F140: -1.138518398e-06 | G140: 6.540606562e-06 | H140: -2.992452438e-06 | J140: 3.945874151e-05 | K140: 0.004175947184 | L140: -4.792860618e-06 | M140: -0.002065411799 | N140: 3.525720403e-07
A141: 67.45495 | B141: ='DF raw data'!J146 -> 6.4631195e-07 | C141: ='DF raw data'!K146 -> 3.3432284e-06 | D141: ='DF raw data'!L146 -> -6.0235125e-06 | F141: 6.473512196e-07 | G141: 3.357025554e-06 | H141: -6.033198308e-06 | J141: 3.978252717e-05 | K141: 0.004195845211 | L141: -3.113777147e-06 | M141: -0.002066969217 | N141: 3.533684835e-07
A142: 67.95512 | B142: ='DF raw data'!J147 -> -1.7776297e-06 | C142: ='DF raw data'!K147 -> 5.0112017e-06 | D142: ='DF raw data'!L147 -> -5.7546949e-06 | F142: -1.780488129e-06 | G142: 5.031882405e-06 | H142: -5.763948449e-06 | J142: 3.889198042e-05 | K142: 0.004215297813 | L142: -5.969805246e-07 | M142: -0.002067267809 | N142: 3.54125212e-07
A143: 68.45529 | B143: ='DF raw data'!J148 -> -3.003483e-06 | C143: ='DF raw data'!K148 -> 5.3284916e-06 | D143: ='DF raw data'!L148 -> -5.9925023e-06 | F143: -3.008312601e-06 | G143: 5.350481727e-06 | H143: -6.002138244e-06 | J143: 3.738731271e-05 | K143: 0.004233997825 | L143: 2.079169921e-06 | M143: -0.00206622787 | N143: 3.548265174e-07
A144: 68.95546 | B144: ='DF raw data'!J149 -> 2.2485939e-07 | C144: ='DF raw data'!K149 -> 8.0957983e-07 | D144: ='DF raw data'!L149 -> -5.3811909e-06 | F144: 2.252209639e-07 | G144: 8.129208812e-07 | H144: -5.389843855e-06 | J144: 3.749996147e-05 | K144: 0.004252754181 | L144: 2.485768558e-06 | M144: -0.002064984563 | N144: 3.555329706e-07
A145: 69.45563 | B145: ='DF raw data'!J150 -> 2.9642574e-06 | C145: ='DF raw data'!K150 -> 5.3347617e-06 | D145: ='DF raw data'!L150 -> -1.7946676e-06 | F145: 2.969023926e-06 | G145: 5.356777703e-06 | H145: -1.797553426e-06 | J145: 3.898497817e-05 | K145: 0.004272253297 | L145: 5.165068062e-06 | M145: -0.002062401151 | N145: 3.563064867e-07
A146: 69.9558 | B146: ='DF raw data'!J151 -> 9.8480405e-07 | C146: ='DF raw data'!K151 -> 1.1887103e-05 | D146: ='DF raw data'!L151 -> 6.1026918e-07 | F146: 9.863876149e-07 | G146: 1.193615983e-05 | H146: 6.112504928e-07 | J146: 3.947833967e-05 | K146: 0.004291999178 | L146: 1.113517712e-05 | M146: -0.00205683167 | N146: 3.571480385e-07
A147: 70.45597 | B147: ='DF raw data'!J152 -> -1.7299722e-06 | C147: ='DF raw data'!K152 -> 6.503717e-06 | D147: ='DF raw data'!L152 -> -1.8270165e-06 | F147: -1.732753995e-06 | G147: 6.53055716e-06 | H147: -1.829954343e-06 | J147: 3.86116681e-05 | K147: 0.004311311576 | L147: 1.44015659e-05 | M147: -0.002049628438 | N147: 3.579974602e-07
A148: 70.95614 | B148: ='DF raw data'!J153 -> -2.7874162e-06 | C148: ='DF raw data'!K153 -> 8.4496187e-06 | D148: ='DF raw data'!L153 -> -7.3984502e-06 | F148: -2.791898365e-06 | G148: 8.484489392e-06 | H148: -7.410346908e-06 | J148: 3.721524429e-05 | K148: 0.004329925525 | L148: 1.864525296e-05 | M148: -0.002040302642 | N148: 3.588640647e-07
A149: 71.45631 | B149: ='DF raw data'!J154 -> -1.0897024e-06 | C149: ='DF raw data'!K154 -> 4.9806463e-06 | D149: ='DF raw data'!L154 -> -1.126504e-05 | F149: -1.091454641e-06 | G149: 5.001200906e-06 | H149: -1.128315418e-05 | J149: 3.666933143e-05 | K149: 0.004348266425 | L149: 2.114670362e-05 | M149: -0.002029725696 | N149: 3.597602808e-07
A150: 71.95648 | B150: ='DF raw data'!J155 -> 7.4223817e-07 | C150: ='DF raw data'!K155 -> -6.4155015e-06 | D150: ='DF raw data'!L155 -> -9.4594234e-06 | F150: 7.43431689e-07 | G150: -6.441977603e-06 | H150: -9.474634153e-06 | J150: 3.704117365e-05 | K150: 0.004366793309 | L150: 1.792461968e-05 | M150: -0.002020760338 | N150: 3.606072389e-07
A151: 72.45665 | B151: ='DF raw data'!J156 -> -1.3035315e-08 | C151: ='DF raw data'!K156 -> -1.1226219e-05 | D151: ='DF raw data'!L156 -> -5.5935556e-07 | F151: =(1-$G$1*($B$2-$G$2))*B151 -> -1.305627579e-08 | G151: -1.127254843e-05 | H151: -5.602550037e-07 | J151: 3.70346433e-05 | K151: 0.004385316926 | L151: 1.228642913e-05 | M151: -0.002014615035 | N151: 3.613687583e-07
A152: 72.95682 | B152: ='DF raw data'!J157 -> -3.3575893e-06 | C152: ='DF raw data'!K157 -> -5.4626976e-06 | D152: ='DF raw data'!L157 -> 3.1336585e-06 | F152: -3.362988304e-06 | G152: -5.485241581e-06 | H152: 3.138697423e-06 | J152: 3.535257744e-05 | K152: 0.004402999225 | L152: 9.542875847e-06 | M152: -0.002009841975 | N152: 3.620394218e-07
A153: 73.45699 | B153: ='DF raw data'!J158 -> -3.9871052e-06 | C153: ='DF raw data'!K158 -> 2.9976513e-06 | D153: ='DF raw data'!L158 -> 2.5011304e-06 | F153: -3.993516465e-06 | G153: 3.010022293e-06 | H153: 2.505152218e-06 | J153: 3.335514031e-05 | K153: 0.004419682465 | L153: 1.10483987e-05 | M153: -0.002004315897 | N153: 3.62656948e-07
A154: 73.95716 | B154: ='DF raw data'!J159 -> 8.3574878e-07 | C154: ='DF raw data'!K159 -> -5.7853244e-06 | D154: ='DF raw data'!L159 -> 2.6639955e-06 | F154: 8.37092664e-07 | G154: -5.809199828e-06 | H154: 2.668279205e-06 | J154: 3.377382894e-05 | K154: 0.004436575121 | L154: 8.142811219e-06 | M154: -0.002000243108 | N154: 3.632606416e-07
A155: 74.45733 | B155: ='DF raw data'!J160 -> 1.3272979e-06 | C155: ='DF raw data'!K160 -> -1.1227019e-05 | D155: ='DF raw data'!L160 -> 1.3913639e-07 | F155: 1.329432195e-06 | G155: -1.127335173e-05 | H155: 1.393601213e-07 | J155: 3.443877104e-05 | K155: 0.004453800361 | L155: 2.504218883e-06 | M155: -0.001998990572 | N155: 3.638569943e-07
A156: 74.9575 | B156: ='DF raw data'!J161 -> -3.5881353e-06 | C156: ='DF raw data'!K161 -> 1.585859e-06 | D156: ='DF raw data'!L161 -> -1.2920444e-06 | F156: -3.593905022e-06 | G156: 1.592403674e-06 | H156: -1.294122007e-06 | J156: 3.264120757e-05 | K156: 0.004470126514 | L156: 3.300691429e-06 | M156: -0.001997339666 | N156: 3.643953488e-07
A157: 75.45767 | B157: ='DF raw data'!J162 -> -4.1802673e-06 | C157: ='DF raw data'!K162 -> 4.9615886e-07 | D157: ='DF raw data'!L162 -> 3.4213062e-06 | F157: -4.18698917e-06 | G157: 4.982064557e-07 | H157: 3.42680766e-06 | J157: 3.05470012e-05 | K157: 0.004485405208 | L157: 3.549879352e-06 | M157: -0.001995564122 | N157: 3.6486837e-07
A158: 75.95784 | B158: ='DF raw data'!J163 -> -3.7387913e-06 | C158: ='DF raw data'!K163 -> -9.5275573e-06 | D158: ='DF raw data'!L163 -> 6.7673154e-06 | F158: -3.744803276e-06 | G158: -9.566876532e-06 | H158: 6.778197243e-06 | J158: 2.867396294e-05 | K158: 0.004499747064 | L158: -1.235185283e-06 | M158: -0.001996181925 | N158: 3.65280371e-07
A159: 76.45801 | B159: ='DF raw data'!J164 -> -3.0198976e-06 | C159: ='DF raw data'!K164 -> -7.2877151e-06 | D159: ='DF raw data'!L164 -> 2.380204e-06 | F159: -3.024753595e-06 | G159: -7.317790738e-06 | H159: 2.384031368e-06 | J159: 2.716107194e-05 | K159: 0.004513332217 | L159: -4.895324677e-06 | M159: -0.00199863042 | N159: 3.656613445e-07
A160: 76.95818 | B160: ='DF raw data'!J165 -> 1.3389686e-06 | C160: ='DF raw data'!K165 -> -5.4337175e-07 | D160: ='DF raw data'!L165 -> -3.7142836e-06 | F160: 1.341121662e-06 | G160: -5.456141884e-07 | H160: -3.720256168e-06 | J160: 2.783186076e-05 | K160: 0.004527252879 | L160: -5.168224525e-06 | M160: -0.00200121541 | N160: 3.660621422e-07
A161: 77.45835 | B161: ='DF raw data'!J166 -> 3.7702589e-06 | C161: ='DF raw data'!K166 -> 1.355214e-05 | D161: ='DF raw data'!L166 -> -3.6498623e-06 | F161: 3.776321476e-06 | G161: 1.360806826e-05 | H161: -3.655731279e-06 | J161: 2.972066347e-05 | K161: 0.004542118263 | L161: 1.638122978e-06 | M161: -0.00200039607 | N161: 3.665052935e-07
A162: 77.95852 | B162: ='DF raw data'!J167 -> 4.7389944e-06 | C162: ='DF raw data'!K167 -> 1.3440898e-06 | D162: ='DF raw data'!L167 -> -4.6046071e-07 | F162: 4.746614703e-06 | G162: 1.349636718e-06 | H162: -4.612011308e-07 | J162: 3.209477775e-05 | K162: 0.004558171108 | L162: 2.313170775e-06 | M162: -0.001999239092 | N162: 3.670231823e-07
A163: 78.45869 | B163: ='DF raw data'!J168 -> 5.1708662e-06 | C163: ='DF raw data'!K168 -> -3.6360793e-06 | D163: ='DF raw data'!L168 -> 7.5015674e-07 | F163: 5.179180953e-06 | G163: -3.651085019e-06 | H163: 7.51362992e-07 | J163: 3.468524868e-05 | K163: 0.004575519629 | L163: 4.870075816e-07 | M163: -0.001998995505 | N163: 3.676250387e-07
A164: 78.95886 | B164: ='DF raw data'!J169 -> 6.4278897e-06 | C164: ='DF raw data'!K169 -> 6.5089212e-06 | D164: ='DF raw data'!L169 -> -5.8595035e-08 | F164: 6.438225747e-06 | G164: 6.535782837e-06 | H164: -5.868925582e-08 | J164: 3.790545606e-05 | K164: 0.004594478801 | L164: 3.756010083e-06 | M164: -0.001997116862 | N164: 3.683507509e-07
A165: 79.45903 | B165: ='DF raw data'!J170 -> 7.0879792e-06 | C165: ='DF raw data'!K170 -> -2.3974749e-06 | D165: ='DF raw data'!L170 -> -4.6358937e-07 | F165: 7.099376671e-06 | G165: -2.407369028e-06 | H165: -4.643348217e-07 | J165: 4.145635129e-05 | K165: 0.004615214024 | L165: 2.551916316e-06 | M165: -0.00199584047 | N165: 3.692136149e-07
A166: 79.9592 | B166: ='DF raw data'!J171 -> 8.6111277e-07 | C166: ='DF raw data'!K171 -> 4.3251421e-07 | D166: ='DF raw data'!L171 -> 1.0993737e-06 | F166: 8.624974393e-07 | G166: 4.342991509e-07 | H166: 1.101141493e-06 | J166: 4.188774663e-05 | K166: 0.004636165018 | L166: 2.769139723e-06 | M166: -0.001994455429 | N166: 3.700950402e-07
A167: 80.45937 | B167: ='DF raw data'!J172 -> -4.4931917e-06 | C167: ='DF raw data'!K172 -> 6.8973281e-06 | D167: ='DF raw data'!L172 -> 1.0339689e-07 | F167: -4.500416752e-06 | G167: 6.925792651e-06 | H167: 1.035631522e-07 | J167: 3.963677318e-05 | K167: 0.004655990143 | L167: 6.233213433e-06 | M167: -0.001991337763 | N167: 3.709002772e-07
A168: 80.95954 | B168: ='DF raw data'!J173 -> -1.6555391e-06 | C168: ='DF raw data'!K173 -> -7.2189647e-07 | D168: ='DF raw data'!L173 -> 1.3735026e-06 | F168: -1.658201207e-06 | G168: -7.248756612e-07 | H168: 1.375711192e-06 | J168: 3.880739068e-05 | K168: 0.004675400436 | L168: 5.870652374e-06 | M168: -0.001988401439 | N168: 3.716707782e-07
A169: 81.45971 | B169: ='DF raw data'!J174 -> 1.9408209e-07 | C169: ='DF raw data'!K174 -> 1.4097353e-06 | D169: ='DF raw data'!L174 -> 1.3024893e-06 | F169: 1.94394174e-07 | G169: 1.41555313e-06 | H169: 1.304583703e-06 | J169: 3.890462082e-05 | K169: 0.00469485936 | L169: 6.578669583e-06 | M169: -0.001985110985 | N169: 3.724494671e-07
A170: 81.95988 | B170: ='DF raw data'!J175 -> 5.6581047e-08 | C170: ='DF raw data'!K175 -> 8.4596268e-06 | D170: ='DF raw data'!L175 -> -5.4378501e-07 | F170: 5.667202932e-08 | G170: 8.494538795e-06 | H170: -5.446594163e-07 | J170: 3.893296647e-05 | K170: 0.004714332462 | L170: 1.082738305e-05 | M170: -0.001979695453 | N170: 3.732662487e-07
A171: 82.46005 | B171: ='DF raw data'!J176 -> 1.4934371e-06 | C171: ='DF raw data'!K176 -> 1.1619617e-06 | D171: ='DF raw data'!L176 -> 3.2774169e-06 | F171: 1.495838547e-06 | G171: 1.166756994e-06 | H171: 3.282686986e-06 | J171: 3.968114003e-05 | K171: 0.004734179778 | L171: 1.14109599e-05 | M171: -0.001973988033 | N171: 3.7411894e-07
A172: 82.96022 | B172: ='DF raw data'!J177 -> 3.0890837e-06 | C172: ='DF raw data'!K177 -> -8.8059833e-06 | D172: ='DF raw data'!L177 -> 3.4607128e-06 | F172: 3.094050947e-06 | G172: -8.842324672e-06 | H172: 3.466277626e-06 | J172: 4.12286915e-05 | K172: 0.004754801132 | L172: 6.988294366e-06 | M172: -0.001970492698 | N172: 3.749935579e-07
A173: 83.46039 | B173: ='DF raw data'!J178 -> 3.452998e-06 | C173: ='DF raw data'!K178 -> -9.4509696e-06 | D173: ='DF raw data'!L178 -> -3.0100146e-06 | F173: 3.458550421e-06 | G173: -9.489972763e-06 | H173: -3.014854703e-06 | J173: 4.295855466e-05 | K173: 0.004776287713 | L173: 2.24169469e-06 | M173: -0.00196937147 | N173: 3.759191038e-07
A174: 83.96056 | B174: ='DF raw data'!J179 -> 3.2542771e-06 | C174: ='DF raw data'!K179 -> -4.328967e-06 | D174: ='DF raw data'!L179 -> -9.4343359e-06 | F174: 3.259509978e-06 | G174: -4.346832194e-06 | H174: -9.449506312e-06 | J174: 4.458886376e-05 | K174: 0.004798589725 | L174: 6.753963126e-08 | M174: -0.001969337688 | N174: 3.769135274e-07
A175: 84.46073 | B175: ='DF raw data'!J180 -> 3.5680746e-06 | C175: ='DF raw data'!K180 -> -9.2673745e-06 | D175: ='DF raw data'!L180 -> -1.092029e-05 | F175: 3.573812064e-06 | G175: -9.305619985e-06 | H175: -1.093784983e-05 | J175: 4.637637734e-05 | K175: 0.004821785797 | L175: -4.586852317e-06 | M175: -0.001971631894 | N175: 3.779998004e-07
A176: 84.9609 | B176: ='DF raw data'!J181 -> 2.9305552e-06 | C176: ='DF raw data'!K181 -> -4.5632655e-06 | D176: ='DF raw data'!L181 -> -7.5387452e-06 | F176: 2.935267533e-06 | G176: -4.582097619e-06 | H176: -7.550867502e-06 | J176: 4.784451011e-05 | K176: 0.004845716186 | L176: -6.878680083e-06 | M176: -0.001975072404 | N176: 3.791684043e-07
A177: 85.46107 | B177: ='DF raw data'!J182 -> 2.328004e-06 | C177: ='DF raw data'!K182 -> 9.2943465e-06 | D177: ='DF raw data'!L182 -> -1.6304056e-06 | F177: 2.33174743e-06 | G177: 9.332703296e-06 | H177: -1.633027292e-06 | J177: 4.901078022e-05 | K177: 0.004870229908 | L177: -2.210741875e-06 | M177: -0.001976178151 | N177: 3.803722855e-07
A178: 85.96124 | B178: ='DF raw data'!J183 -> 3.828929e-08 | C178: ='DF raw data'!K183 -> -3.4813052e-06 | D178: ='DF raw data'!L183 -> 8.0554133e-07 | F178: 3.835085918e-08 | G178: -3.495672182e-06 | H178: 8.068366405e-07 | J178: 4.902996217e-05 | K178: 0.004894753224 | L178: -3.959172231e-06 | M178: -0.00197815841 | N178: 3.815825029e-07
A179: 86.46141 | B179: ='DF raw data'!J184 -> -3.4229274e-06 | C179: ='DF raw data'!K184 -> -1.1312145e-05 | D179: ='DF raw data'!L184 -> -1.5041531e-06 | F179: -3.428431467e-06 | G179: -1.135882904e-05 | H179: -1.506571778e-06 | J179: 4.73151636e-05 | K179: 0.004918418849 | L179: -9.640517751e-06 | M179: -0.001982980308 | N179: 3.827487314e-07
A180: 86.96158 | B180: ='DF raw data'!J185 -> -2.416677e-06 | C180: ='DF raw data'!K185 -> 2.3264003e-07 | D180: ='DF raw data'!L185 -> -3.8186354e-06 | F180: -2.420563017e-06 | G180: 2.336001111e-07 | H180: -3.824775766e-06 | J180: 4.61044706e-05 | K180: 0.004941478922 | L180: -9.523677984e-06 | M180: -0.001987743766 | N180: 3.838572695e-07
A181: 87.46175 | B181: ='DF raw data'!J186 -> 4.0596092e-06 | C181: ='DF raw data'!K186 -> 6.8414215e-06 | D181: ='DF raw data'!L186 -> -2.1918622e-06 | F181: 4.066137052e-06 | G181: 6.869655331e-06 | H181: -2.195386714e-06 | J181: 4.813823037e-05 | K181: 0.004965556221 | L181: -6.087682477e-06 | M181: -0.001990788642 | N181: 3.850348443e-07
A182: 87.96192 | B182: ='DF raw data'!J187 -> 7.5941966e-06 | C182: ='DF raw data'!K187 -> 5.8385835e-06 | D182: ='DF raw data'!L187 -> 6.0620423e-06 | F182: 7.606408068e-06 | G182: 5.862678723e-06 | H182: 6.071790064e-06 | J182: 5.194272749e-05 | K182: 0.004991536415 | L182: -3.15534646e-06 | M182: -0.001992366851 | N182: 3.863893063e-07
A183: 88.46209 | B183: ='DF raw data'!J188 -> 5.6796885e-06 | C183: ='DF raw data'!K188 -> 6.0127063e-06 | D183: ='DF raw data'!L188 -> 7.61089e-06 | F183: 5.688821439e-06 | G183: 6.03752011e-06 | H183: 7.623128311e-06 | J183: 5.478810531e-05 | K183: 0.005018939782 | L183: -1.355600267e-07 | M183: -0.001992434654 | N183: 3.87890694e-07
A184: 88.96226 | B184: ='DF raw data'!J189 -> 2.0844483e-07 | C184: ='DF raw data'!K189 -> 9.6996007e-07 | D184: ='DF raw data'!L189 -> -1.5862842e-06 | F184: 2.087800093e-07 | G184: 9.739629937e-07 | H184: -1.588834945e-06 | J184: 5.489253081e-05 | K184: 0.005046395379 | L184: 3.515870439e-07 | M184: -0.001992258801 | N184: 3.89397863e-07
A185: 89.46243 | B185: ='DF raw data'!J190 -> -5.0224448e-06 | C185: ='DF raw data'!K190 -> -1.5164566e-06 | D185: ='DF raw data'!L190 -> -6.9842154e-06 | F185: -5.030520891e-06 | G185: -1.522714858e-06 | H185: -6.995446018e-06 | J185: 5.237641517e-05 | K185: 0.00507259249 | L185: -4.100292465e-07 | M185: -0.001992463885 | N185: 3.907700579e-07
A186: 89.9626 | B186: ='DF raw data'!J191 -> -3.9738193e-06 | C186: ='DF raw data'!K191 -> 1.3827936e-05 | D186: ='DF raw data'!L191 -> -5.240372e-06 | F186: -3.980209201e-06 | G186: 1.388500245e-05 | H186: -5.248798518e-06 | J186: 5.038563394e-05 | K186: 0.005097793873 | L186: 6.534832426e-06 | M186: -0.001989195358 | N186: 3.920612048e-07
A187: 90.46277 | B187: ='DF raw data'!J192 -> 2.8963e-06 | C187: ='DF raw data'!K192 -> 1.0525513e-06 | D187: ='DF raw data'!L192 -> 8.755506e-07 | F187: 2.90095725e-06 | G187: 1.056895069e-06 | H187: 8.769584854e-07 | J187: 5.183660572e-05 | K187: 0.005123720988 | L187: 7.063459633e-06 | M187: -0.001985662428 | N187: 3.934301332e-07
A188: 90.96294 | B188: ='DF raw data'!J193 -> 5.6443128e-06 | C188: ='DF raw data'!K193 -> -6.9440061e-06 | D188: ='DF raw data'!L193 -> -2.5600402e-06 | F188: 5.653388855e-06 | G188: -6.972663287e-06 | H188: -2.564156745e-06 | J188: 5.466426123e-05 | K188: 0.005151062412 | L188: 3.575942637e-06 | M188: -0.001983873848 | N188: 3.949311278e-07
A189: 91.46311 | B189: ='DF raw data'!J194 -> 2.1800838e-06 | C189: ='DF raw data'!K194 -> 4.6560527e-07 | D189: ='DF raw data'!L194 -> -1.0786587e-05 | F189: 2.183589375e-06 | G189: 4.675267742e-07 | H189: -1.080393183e-05 | J189: 5.575642712e-05 | K189: 0.005178950104 | L189: 3.809785504e-06 | M189: -0.001981968308 | N189: 3.964933055e-07
A190: 91.96328 | B190: ='DF raw data'!J195 -> -3.7104151e-06 | C190: ='DF raw data'!K195 -> 4.9471569e-06 | D190: ='DF raw data'!L195 -> -6.2332929e-06 | F190: -3.716381447e-06 | G190: 4.967573299e-06 | H190: -6.243316035e-06 | J190: 5.389760462e-05 | K190: 0.005205908069 | L190: 6.294416641e-06 | M190: -0.00197882003 | N190: 3.979660918e-07
A191: 92.46345 | B191: ='DF raw data'!J196 -> -6.6313191e-06 | C191: ='DF raw data'!K196 -> 8.7786502e-06 | D191: ='DF raw data'!L196 -> -2.4807759e-06 | F191: -6.641982261e-06 | G191: 8.814878771e-06 | H191: -2.484764988e-06 | J191: 5.057548435e-05 | K191: 0.005231204409 | L191: 1.070335456e-05 | M191: -0.001973466533 | N191: 3.993027669e-07
A192: 92.96362 | B192: ='DF raw data'!J197 -> -4.5469901e-06 | C192: ='DF raw data'!K197 -> 2.3559933e-08 | D192: ='DF raw data'!L197 -> -4.4288699e-06 | F192: -4.55430166e-06 | G192: 2.365716238e-08 | H192: -4.435991523e-06 | J192: 4.829755929e-05 | K192: 0.005255361399 | L192: 1.071518716e-05 | M192: -0.001968107118 | N192: 4.005269177e-07
A193: 93.46379 | B193: ='DF raw data'!J198 -> -4.207232e-06 | C193: ='DF raw data'!K198 -> 1.4236124e-06 | D193: ='DF raw data'!L198 -> -6.5752483e-06 | F193: -4.213997229e-06 | G193: 1.429487499e-06 | H193: -6.585821299e-06 | J193: 4.618984429e-05 | K193: 0.005278464173 | L193: 1.143017392e-05 | M193: -0.001962390088 | N193: 4.016593779e-07
A194: 93.96396 | B194: ='DF raw data'!J199 -> -4.5106831e-06 | C194: ='DF raw data'!K199 -> 4.0800137e-06 | D194: ='DF raw data'!L199 -> -7.6291271e-06 | F194: -4.517936278e-06 | G194: 4.09685149e-06 | H194: -7.641394736e-06 | J194: 4.393010811e-05 | K194: 0.005300436696 | L194: 1.347929613e-05 | M194: -0.001955648148 | N194: 4.027155097e-07
A195: 94.46413 | B195: ='DF raw data'!J200 -> -1.8835531e-06 | C195: ='DF raw data'!K200 -> 6.4123201e-06 | D195: ='DF raw data'!L200 -> -9.8204855e-06 | F195: -1.886581853e-06 | G195: 6.438783074e-06 | H195: -9.836276841e-06 | J195: 4.298649646e-05 | K195: 0.005321937251 | L195: 1.669978226e-05 | M195: -0.001947295418 | N195: 4.037792321e-07
A196: 94.9643 | B196: ='DF raw data'!J201 -> 5.5984419e-08 | C196: ='DF raw data'!K201 -> 7.4665281e-06 | D196: ='DF raw data'!L201 -> -1.1348364e-05 | F196: 5.607444195e-08 | G196: 7.49734168e-06 | H196: -1.136661217e-05 | J196: 4.301454321e-05 | K196: 0.005343451836 | L196: 2.044972765e-05 | M196: -0.001937067078 | N196: 4.049138389e-07
A197: 95.46447 | B197: ='DF raw data'!J202 -> -1.3372742e-06 | C197: ='DF raw data'!K202 -> 8.730216e-06 | D197: ='DF raw data'!L202 -> -9.7343673e-06 | F197: -1.339424537e-06 | G197: 8.766244688e-06 | H197: -9.750020163e-06 | J197: 4.234460324e-05 | K197: 0.005364631336 | L197: 2.483434025e-05 | M197: -0.001924645686 | N197: 4.061191535e-07
A198: 95.96464 | B198: ='DF raw data'!J203 -> -2.8486215e-06 | C198: ='DF raw data'!K203 -> 8.0269219e-06 | D198: ='DF raw data'!L203 -> -6.1613482e-06 | F198: -2.853202083e-06 | G198: 8.060048167e-06 | H198: -6.171255648e-06 | J198: 4.091751716e-05 | K198: 0.00538509705 | L198: 2.886573455e-05 | M198: -0.001910207911 | N198: 4.073733167e-07
A199: 96.46481 | B199: ='DF raw data'!J204 -> -4.4063459e-06 | C199: ='DF raw data'!K204 -> -1.1463286e-06 | D199: ='DF raw data'!L204 -> -4.0394025e-06 | F199: -4.413431304e-06 | G199: =(1-$G$1*($B$2-$G$2))*C199*$M$2/$M$1 -> -1.151059378e-06 | H199: -4.045897859e-06 | J199: 3.871005122e-05 | K199: 0.005404458657 | L199: 2.829000918e-05 | M199: -0.001896058097 | N199: 4.085231038e-07
A200: =A199+$B$1 -> 96.96498 | B200: ='DF raw data'!J205 -> -5.8460687e-06 | C200: ='DF raw data'!K205 -> -1.9292797e-06 | D200: ='DF raw data'!L205 -> -4.2738047e-06 | F200: -5.855469178e-06 | G200: -1.937241635e-06 | H200: -4.280676978e-06 | J200: =F200*$B$1+J199 -> 3.57813212e-05 | K200: =J200*$B$1+K199 -> 0.0054223554 | L200: =G200*$B$1+L199 -> 2.732105903e-05 | M200: =L200*$B$1+M199 -> -0.001882392923 | N200: =(J200^2+L200^2)*$B$1+N199 -> 4.0953682e-07
A201: 97.46515 | B201: ='DF raw data'!J206 -> -3.5194503e-06 | C201: ='DF raw data'!K206 -> 4.508182e-06 | D201: ='DF raw data'!L206 -> -2.8432205e-06 | F201: -3.525109576e-06 | G201: 4.526786795e-06 | H201: -2.847792399e-06 | J201: 3.401816715e-05 | K201: 0.005439370267 | L201: 2.958522198e-05 | M201: -0.001867595283 | N201: 4.10553426e-07
... 1002 more rows

Sheet 30 mm
A1: dz | B1: ='DF raw data'!N7 -> 0.50018 | C1: mm | F1: T_coeff | G1: -0.0008 | H1: /degC | L1: Hallref | M1: ='[1]PI vs x'!B50 -> 0.505 | N1: T | P1: IBy total | Q1: =L1203*1000 -> -6.44365736 | R1: muTm | X1: DF ref | Y1: 22
A2: Tref | B2: ='DF raw data'!N8 -> 21.97 | C2: degC | F2: Tcorr | G2: 20 | H2: degC | L2: NMRref | M2: ='[1]PI vs x'!B51 -> 0.50627 | N2: T | P2: JBy total | Q2: =M1203 -> -2.100240079 | R2: muTm^2
A3: Encoder | B3: ='DF raw data'!N9 -> 14417896 | P3: PI total | Q3: =N1203 -> 67.88652725 | R3: T^2mm^3
A5: z [mm] | B5: Bx | C5: By | D5: Bz | F5: Bx_corr | G5: By_corr | H5: Bz_corr | J5: Ix | K5: Jx | L5: Iy | M5: Jy | N5: PI
A6: ='[1]PI vs x'!B53 -> -0.068 | B6: ='DF raw data'!M11 -> -7.26281e-06 | C6: ='DF raw data'!N11 -> -3.1919642e-06 | D6: ='DF raw data'!O11 -> -7.251258e-06 | F6: =(1-$G$1*($B$2-$G$2))*B6 -> -7.274256189e-06 | G6: =(1-$G$1*($B$2-$G$2))*C6*$M$2/$M$1 -> -3.205034703e-06 | H6: =(1-$G$1*($B$2-$G$2))*D6 -> -7.262685983e-06 | J6: =F6*$B$1 -> -3.63843746e-06 | K6: =J6*$B$1 -> -1.819873649e-06 | L6: =G6*$B$1 -> -1.603094258e-06 | M6: =L6*$B$1 -> -8.018356857e-07 | N6: =(J6^2+L6)^2*$B$1 -> 1.285396954e-12
A7: =A6+$B$1 -> 0.43218 | B7: ='DF raw data'!M12 -> -7.4987693e-06 | C7: ='DF raw data'!N12 -> 3.194795e-06 | D7: ='DF raw data'!O12 -> -7.2084026e-06 | F7: =(1-$G$1*($B$2-$G$2))*B7 -> -7.51058736e-06 | G7: =(1-$G$1*($B$2-$G$2))*C7*$M$2/$M$1 -> 3.207877094e-06 | H7: -7.219763042e-06 | J7: =F7*$B$1+J6 -> -7.395083046e-06 | K7: =J7*$B$1+K6 -> -5.518746287e-06 | L7: =G7*$B$1+L6 -> 1.421707431e-09 | M7: =L7*$B$1+M6 -> -8.011245761e-07 | N7: =(J7^2+L7^2)*$B$1+N6 -> 2.86388683e-11
A8: =A7+$B$1 -> 0.93236 | B8: ='DF raw data'!M13 -> -7.638002e-06 | C8: ='DF raw data'!N13 -> 7.6690067e-06 | D8: ='DF raw data'!O13 -> -2.4002754e-06 | F8: -7.650039491e-06 | G8: 7.700409863e-06 | H8: -2.404058234e-06 | J8: =F8*$B$1+J7 -> -1.12214798e-05 | K8: =J8*$B$1+K7 -> -1.113150605e-05 | L8: =G8*$B$1+L7 -> 3.853012713e-06 | M8: =L8*$B$1+M7 -> 1.126075322e-06 | N8: =(J8^2+L8^2)*$B$1+N7 -> 9.904786434e-11
A9: 1.43254 | B9: ='DF raw data'!M14 -> -7.3907649e-06 | C9: ='DF raw data'!N14 -> 9.1839354e-07 | D9: ='DF raw data'!O14 -> -1.8555972e-06 | F9: -7.402412745e-06 | G9: 9.221541915e-07 | H9: -1.858521621e-06 | J9: -1.492401861e-05 | K9: -1.859620168e-05 | L9: 4.314255796e-06 | M9: 3.283979787e-06 | N9: 2.197608726e-10
A10: 1.93272 | B10: ='DF raw data'!M15 -> -7.2800249e-06 | C10: ='DF raw data'!N15 -> -2.2865258e-06 | D10: ='DF raw data'!O15 -> -2.8544407e-06 | F10: -7.291498219e-06 | G10: -2.2958887e-06 | H10: -2.858939299e-06 | J10: -1.857108019e-05 | K10: -2.788508457e-05 | L10: 3.165898186e-06 | M10: 4.867498741e-06 | N10: 3.972787213e-10
A11: 2.4329 | B11: ='DF raw data'!M16 -> -7.1249015e-06 | C11: ='DF raw data'!N16 -> -5.865711e-06 | D11: ='DF raw data'!O16 -> 9.6158078e-07 | F11: -7.136130345e-06 | G11: -5.889730001e-06 | H11: 9.630962313e-07 | J11: -2.214042986e-05 | K11: -3.895928477e-05 | L11: 2.199730345e-07 | M11: 4.977524854e-06 | N11: 6.424904771e-10
A12: 2.93308 | B12: ='DF raw data'!M17 -> -7.1160975e-06 | C12: ='DF raw data'!N17 -> -5.5632313e-06 | D12: ='DF raw data'!O17 -> 4.135281e-06 | F12: -7.12731247e-06 | G12: -5.586011702e-06 | H12: 4.141798203e-06 | J12: -2.570536901e-05 | K12: -5.181659625e-05 | L12: -2.574038299e-06 | M12: 3.690042377e-06 | N12: 9.763064422e-10
A13: 3.43326 | B13: ='DF raw data'!M18 -> -6.8598383e-06 | C13: ='DF raw data'!N18 -> -1.3032484e-05 | D13: ='DF raw data'!O18 -> 9.9445356e-07 | F13: -6.870649405e-06 | G13: -1.308584961e-05 | H13: 9.960208188e-07 | J13: -2.914193043e-05 | K13: -6.639280701e-05 | L13: -9.119318557e-06 | M13: -8.712583781e-07 | N13: 1.442681317e-09
A14: 3.93344 | B14: ='DF raw data'!M19 -> -6.9267189e-06 | C14: ='DF raw data'!N19 -> -1.161442e-05 | D14: ='DF raw data'!O19 -> -1.8880626e-06 | F14: -6.937635409e-06 | G14: -1.16619789e-05 | H14: -1.891038187e-06 | J14: -3.261199691e-05 | K14: -8.270467563e-05 | L14: -1.495240716e-05 | M14: -8.350153393e-06 | N14: 2.086471409e-09
A15: 4.43362 | B15: ='DF raw data'!M20 -> -7.0857277e-06 | C15: ='DF raw data'!N20 -> -7.1463451e-06 | D15: ='DF raw data'!O20 -> -1.4610512e-06 | F15: -7.096894807e-06 | G15: -7.17560806e-06 | H15: -1.463353817e-06 | J15: -3.616172176e-05 | K15: -0.0001007920456 | L15: -1.85415028e-05 | M15: -1.762424226e-05 | N15: 2.912497395e-09
A16: 4.9338 | B16: ='DF raw data'!M21 -> -7.0802416e-06 | C16: ='DF raw data'!N21 -> -7.5024614e-06 | D16: ='DF raw data'!O21 -> -2.944488e-06 | F16: -7.091400061e-06 | G16: -7.533182591e-06 | H16: -2.949128513e-06 | J16: -3.970869824e-05 | K16: -0.0001206535423 | L16: -2.230945007e-05 | M16: -2.8782983e-05 | N16: 3.950116942e-09
A17: 5.43398 | B17: ='DF raw data'!M22 -> -7.2882467e-06 | C17: ='DF raw data'!N22 -> -2.3026712e-06 | D17: ='DF raw data'!O22 -> -5.6752565e-06 | F17: -7.299732977e-06 | G17: -2.312100212e-06 | H17: -5.684200704e-06 | J17: -4.335987868e-05 | K17: -0.0001423412864 | L17: -2.346591635e-05 | M17: -4.052016504e-05 | N17: 5.165918628e-09
A18: 5.93416 | B18: ='DF raw data'!M23 -> -7.635339e-06 | C18: ='DF raw data'!N23 -> 6.9609109e-06 | D18: ='DF raw data'!O23 -> -6.0325206e-06 | F18: -7.647372294e-06 | G18: 6.989414542e-06 | H18: -6.042027852e-06 | J18: -4.718494135e-05 | K18: -0.0001659422504 | L18: -1.996995099e-05 | M18: -5.050873513e-05 | N18: 6.478999984e-09
A19: 6.43434 | B19: ='DF raw data'!M24 -> -7.40619e-06 | C19: ='DF raw data'!N24 -> 7.7015682e-07 | D19: ='DF raw data'!O24 -> -4.8054012e-06 | F19: -7.417862155e-06 | G19: 7.733104696e-07 | H19: -4.812974512e-06 | J19: -5.089520764e-05 | K19: -0.0001913990153 | L19: -1.958315656e-05 | M19: -6.030383838e-05 | N19: 7.966446363e-09
A20: 6.93452 | B20: ='DF raw data'!M25 -> -6.7255387e-06 | C20: ='DF raw data'!N25 -> -1.7566206e-05 | D20: ='DF raw data'!O25 -> -3.6869558e-06 | F20: -6.736138149e-06 | G20: -1.763813636e-05 | H20: -3.692766442e-06 | J20: -5.426448922e-05 | K20: -0.0002185410276 | L20: -2.84053996e-05 | M20: -7.451165115e-05 | N20: 9.842872392e-09
A21: 7.4347 | B21: ='DF raw data'!M26 -> -7.0018214e-06 | C21: ='DF raw data'!N26 -> -1.0339924e-05 | D21: ='DF raw data'!O26 -> -6.4298461e-06 | F21: -7.012856271e-06 | G21: -1.038226407e-05 | H21: -6.439979537e-06 | J21: -5.777217967e-05 | K21: -0.0002474375164 | L21: -3.359840045e-05 | M21: -9.131689909e-05 | N21: 1.207691499e-08
A22: 7.93488 | B22: ='DF raw data'!M27 -> -6.4284468e-06 | C22: ='DF raw data'!N27 -> -7.1273985e-06 | D22: ='DF raw data'!O27 -> -1.0532977e-05 | F22: -6.438578032e-06 | G22: -7.156583878e-06 | H22: -1.054957697e-05 | J22: -6.099262763e-05 | K22: -0.0002779448089 | L22: -3.717798057e-05 | M22: -0.0001099125814 | N22: 1.462898483e-08
A23: 8.43506 | B23: ='DF raw data'!M28 -> -4.1865205e-06 | C23: ='DF raw data'!N28 -> -6.5130985e-06 | D23: ='DF raw data'!O28 -> -6.5598965e-06 | F23: =(1-$G$1*($B$2-$G$2))*B23 -> -4.193118456e-06 | G23: -6.539768433e-06 | H23: -6.570234897e-06 | J23: -6.308994162e-05 | K23: -0.0003095011359 | L23: -4.044904195e-05 | M23: -0.0001301443832 | N23: 1.743822866e-08
A24: 8.93524 | B24: ='DF raw data'!M29 -> -2.642344e-06 | C24: ='DF raw data'!N29 -> -3.1907618e-06 | D24: ='DF raw data'!O29 -> 6.2487857e-07 | F24: -2.646508334e-06 | G24: -3.203827379e-06 | H24: 6.258633786e-07 | J24: -6.441367216e-05 | K24: -0.0003417195664 | L24: -4.205153233e-05 | M24: -0.0001511777187 | N24: 2.039802007e-08
A25: 9.43542 | B25: ='DF raw data'!M30 -> -3.385001e-06 | C25: ='DF raw data'!N30 -> -2.9986275e-06 | D25: ='DF raw data'!O30 -> 4.0006606e-07 | F25: -3.390335762e-06 | G25: -3.010906325e-06 | H25: 4.006965641e-07 | J25: -6.61094503e-05 | K25: -0.0003747861913 | L25: -4.355752745e-05 | M25: -0.0001729643227 | N25: 2.353300707e-08
A26: 9.9356 | B26: ='DF raw data'!M31 -> -6.0827515e-06 | C26: ='DF raw data'!N31 -> -2.8641332e-06 | D26: ='DF raw data'!O31 -> 2.6634851e-07 | F26: -6.092337916e-06 | G26: -2.875861295e-06 | H26: 2.667682753e-07 | J26: -6.915671588e-05 | K26: -0.0004093769974 | L26: -4.499597575e-05 | M26: -0.0001954704099 | N26: 2.693787697e-08
A27: 10.43578 | B27: ='DF raw data'!M32 -> -1.0470721e-05 | C27: ='DF raw data'!N32 -> -4.8806173e-06 | D27: ='DF raw data'!O32 -> 2.0004129e-06 | F27: -1.048722286e-05 | G27: -4.900602524e-06 | H27: 2.003565551e-06 | J27: -7.440221501e-05 | K27: -0.0004465914973 | L27: -4.744715912e-05 | M27: -0.0002192025299 | N27: 3.083273987e-08
A28: 10.93596 | B28: ='DF raw data'!M33 -> -1.1388263e-05 | C28: ='DF raw data'!N33 -> -2.4896033e-06 | D28: ='DF raw data'!O33 -> 2.0900673e-06 | F28: -1.14062109e-05 | G28: -2.499797765e-06 | H28: 2.093361246e-06 | J28: -8.010737358e-05 | K28: -0.0004866596034 | L28: -4.869750797e-05 | M28: -0.0002435600495 | N28: 3.522864112e-08
A29: 11.43614 | B29: ='DF raw data'!M34 -> -5.8661462e-06 | C29: ='DF raw data'!N34 -> -8.1046192e-06 | D29: ='DF raw data'!O34 -> -1.0192696e-06 | F29: -5.875391246e-06 | G29: -8.137806115e-06 | H29: -1.020875969e-06 | J29: -8.304612677e-05 | K29: -0.0005281976151 | L29: -5.276787583e-05 | M29: -0.0002699534856 | N29: 4.007093766e-08
A30: 11.93632 | B30: ='DF raw data'!M35 -> 8.857678e-07 | C30: ='DF raw data'!N35 -> -3.2351943e-06 | D30: ='DF raw data'!O35 -> 9.7169436e-07 | F30: 8.871637701e-07 | G30: -3.248441822e-06 | H30: 9.732257503e-07 | J30: -8.26023852e-05 | K30: -0.0005695136762 | L30: -5.439268146e-05 | M30: -0.000297159617 | N30: 4.496355729e-08
A31: 12.4365 | B31: ='DF raw data'!M36 -> 5.1262978e-06 | C31: ='DF raw data'!N36 -> 8.4511576e-06 | D31: ='DF raw data'!O36 -> 4.5077809e-06 | F31: 5.134376845e-06 | G31: 8.485763526e-06 | H31: 4.514885163e-06 | J31: -8.003427259e-05 | K31: -0.0006095452186 | L31: -5.014827226e-05 | M31: -0.0003222427798 | N31: 4.942532995e-08
A32: 12.93668 | B32: ='DF raw data'!M37 -> 5.0042072e-06 | C32: ='DF raw data'!N37 -> 9.133104e-06 | D32: ='DF raw data'!O37 -> 5.9865465e-06 | F32: 5.012093831e-06 | G32: 9.17050237e-06 | H32: 5.995981297e-06 | J32: -7.75273235e-05 | K32: -0.0006483228353 | L32: -4.556137039e-05 | M32: -0.0003450316661 | N32: 5.346994767e-08
A33: 13.43686 | B33: ='DF raw data'!M38 -> 3.1194722e-06 | C33: ='DF raw data'!N38 -> 3.8740732e-06 | D33: ='DF raw data'!O38 -> 2.860693e-06 | F33: 3.124388488e-06 | G33: 3.889936813e-06 | H33: 2.865201452e-06 | J33: -7.596456686e-05 | K33: -0.0006863187923 | L33: -4.361570179e-05 | M33: -0.0003668473678 | N33: 5.730780123e-08
A34: 13.93704 | B34: ='DF raw data'!M39 -> 3.2179305e-06 | C34: ='DF raw data'!N39 -> -2.7174972e-06 | D34: ='DF raw data'!O39 -> 7.8195194e-07 | F34: 3.223001958e-06 | G34: -2.728624848e-06 | H34: 7.831842963e-07 | J34: -7.435248574e-05 | K34: -0.0007235084187 | L34: -4.498050537e-05 | M34: -0.000389345717 | N34: 6.108492951e-08
A35: 14.43722 | B35: ='DF raw data'!M40 -> 4.2592801e-06 | C35: ='DF raw data'!N40 -> -9.1181319e-06 | D35: ='DF raw data'!O40 -> 1.9013144e-06 | F35: 4.265992725e-06 | G35: -9.155468962e-06 | H35: 1.904310871e-06 | J35: -7.22187215e-05 | K35: -0.0007596307788 | L35: -4.955988783e-05 | M35: -0.0004141345817 | N35: 6.492217353e-08
A36: 14.9374 | B36: ='DF raw data'!M41 -> 1.4492616e-06 | C36: ='DF raw data'!N41 -> -1.008281e-05 | D36: ='DF raw data'!O41 -> 2.2536599e-06 | F36: 1.451545636e-06 | G36: -1.012409724e-05 | H36: 2.257211668e-06 | J36: -7.14926874e-05 | K36: -0.0007953899912 | L36: -5.462375879e-05 | M36: -0.0004414562933 | N36: 6.897111031e-08
A37: 15.43758 | B37: ='DF raw data'!M42 -> 9.4056304e-08 | C37: ='DF raw data'!N42 -> -7.603599e-06 | D37: ='DF raw data'!O42 -> 1.6670431e-06 | F37: 9.420453674e-08 | G37: -7.63473433e-06 | H37: 1.66967036e-06 | J37: -7.144556818e-05 | K37: -0.0008311256355 | L37: -5.844250021e-05 | M37: -0.0004706880631 | N37: 7.323264143e-08
A38: 15.93776 | B38: ='DF raw data'!M43 -> 3.2854805e-06 | C38: ='DF raw data'!N43 -> -3.5184601e-06 | D38: ='DF raw data'!O43 -> 2.2408975e-07 | F38: 3.290658417e-06 | G38: -3.532867543e-06 | H38: 2.244429154e-07 | J38: -6.979964665e-05 | K38: -0.0008660380227 | L38: -6.02095699e-05 | M38: -0.0005008036858 | N38: 7.748276241e-08
A39: 16.43794 | B39: ='DF raw data'!M44 -> 3.4903278e-06 | C39: ='DF raw data'!N44 -> -2.0929235e-06 | D39: ='DF raw data'!O44 -> 1.2428402e-06 | F39: 3.495828557e-06 | G39: -2.101493634e-06 | H39: 1.244798916e-06 | J39: -6.805110312e-05 | K39: -0.0009000758235 | L39: -6.126069498e-05 | M39: -0.0005314450602 | N39: 8.167618419e-08
A40: 16.93812 | B40: ='DF raw data'!M45 -> -9.3188282e-07 | C40: ='DF raw data'!N45 -> -1.3381265e-06 | D40: ='DF raw data'!O45 -> 2.6932441e-06 | F40: -9.333514673e-07 | G40: -1.34360588e-06 | H40: 2.697488653e-06 | J40: -6.851794686e-05 | K40: -0.0009343471301 | L40: -6.193273977e-05 | M40: -0.000562422578 | N40: 8.594290631e-08
A41: 17.4383 | B41: ='DF raw data'!M46 -> -7.0461101e-07 | C41: ='DF raw data'!N46 -> -1.0679763e-05 | D41: ='DF raw data'!O46 -> 2.2448705e-06 | F41: -7.05721477e-07 | G41: -1.072349465e-05 | H41: 2.248408416e-06 | J41: -6.887093463e-05 | K41: -0.0009687949942 | L41: -6.729641733e-05 | M41: -0.0005960829 | N41: 9.058058198e-08
A42: 17.93848 | B42: ='DF raw data'!M47 -> 5.0048766e-06 | C42: ='DF raw data'!N47 -> -8.7127801e-06 | D42: ='DF raw data'!O47 -> 4.7033732e-06 | F42: 5.012764286e-06 | G42: -8.748457322e-06 | H42: 4.710785716e-06 | J42: -6.636365019e-05 | K42: -0.001001988765 | L42: -7.167222071e-05 | M42: -0.0006319319113 | N42: 9.535282001e-08
A43: 18.43866 | B43: ='DF raw data'!M48 -> 9.0541653e-06 | C43: ='DF raw data'!N48 -> 2.5558113e-06 | D43: ='DF raw data'!O48 -> 6.82366e-06 | F43: 9.068434665e-06 | G43: 2.566276874e-06 | H43: 6.834414088e-06 | J43: -6.182780054e-05 | K43: -0.001032913794 | L43: -7.038862034e-05 | M43: -0.0006671388915 | N43: 9.974301731e-08
A44: 18.93884 | B44: ='DF raw data'!M49 -> 8.828014e-06 | C44: ='DF raw data'!N49 -> -5.5014548e-06 | D44: ='DF raw data'!O49 -> 6.083375e-06 | F44: 8.84192695e-06 | G44: -5.523982239e-06 | H44: 6.092962399e-06 | J44: -5.740524552e-05 | K44: -0.00106162675 | L44: -7.315160578e-05 | M44: -0.0007037278617 | N44: 1.040678335e-07
A45: 19.43902 | B45: ='DF raw data'!M50 -> 5.6198405e-06 | C45: ='DF raw data'!N50 -> -4.5326392e-06 | D45: ='DF raw data'!O50 -> 2.3394139e-07 | F45: 5.628697369e-06 | G45: -4.551199518e-06 | H45: 2.343100816e-07 | J45: -5.458988367e-05 | K45: -0.001088931518 | L45: -7.542802476e-05 | M45: -0.0007414554511 | N45: 1.084041152e-07
A46: 19.9392 | B46: ='DF raw data'!M51 -> 2.8081486e-06 | C46: ='DF raw data'!N51 -> 2.1790131e-06 | D46: ='DF raw data'!O51 -> -3.8255916e-06 | F46: 2.812574242e-06 | G46: 2.187935755e-06 | H46: -3.831620732e-06 | J46: -5.318309028e-05 | K46: -0.001115532636 | L46: -7.433366305e-05 | M46: -0.0007786356627 | N46: 1.125825862e-07
A47: 20.43938 | B47: ='DF raw data'!M52 -> 1.1314769e-06 | C47: ='DF raw data'!N52 -> -1.0928867e-06 | D47: ='DF raw data'!O52 -> -4.1009284e-06 | F47: 1.133260108e-06 | G47: -1.097361869e-06 | H47: -4.107391463e-06 | J47: -5.261625624e-05 | K47: -0.001141850235 | L47: -7.488254151e-05 | M47: -0.0008160904123 | N47: 1.167720265e-07
A48: 20.93956 | B48: ='DF raw data'!M53 -> -3.2239768e-08 | C48: ='DF raw data'!N53 -> 1.6118141e-06 | D48: ='DF raw data'!O53 -> -1.5048524e-06 | F48: -3.229057787e-08 | G48: 1.61841418e-06 | H48: -1.507224047e-06 | J48: -5.263240734e-05 | K48: -0.001168175912 | L48: -7.40730431e-05 | M48: -0.000853140267 | N48: 1.209020058e-07
A49: 21.43974 | B49: ='DF raw data'!M54 -> -8.0433529e-07 | C49: ='DF raw data'!N54 -> 1.3611987e-05 | D49: ='DF raw data'!O54 -> -3.9106337e-07 | F49: -8.056029224e-07 | G49: 1.366772557e-05 | H49: -3.916796859e-07 | J49: -5.303535381e-05 | K49: -0.001194703136 | L49: -6.723672013e-05 | M49: -0.0008867707296 | N49: 1.245700885e-07
A50: 21.93992 | B50: ='DF raw data'!M55 -> 1.7533093e-06 | C50: ='DF raw data'!N55 -> 9.023026e-06 | D50: ='DF raw data'!O55 -> -3.7622041e-07 | F50: 1.756072515e-06 | G50: 9.059973621e-06 | H50: -3.768133334e-07 | J50: -5.215700146e-05 | K50: -0.001220791025 | L50: -6.270510252e-05 | M50: -0.0009181345678 | N50: 1.278974272e-07
A51: 22.4401 | B51: ='DF raw data'!M56 -> 3.8284124e-06 | C51: ='DF raw data'!N56 -> -5.1581412e-07 | D51: ='DF raw data'!O56 -> 8.8997081e-07 | F51: 3.834445978e-06 | G51: -5.179262833e-07 | H51: 8.91373404e-07 | J51: -5.023908827e-05 | K51: -0.001245919612 | L51: -6.296415889e-05 | M51: -0.0009496279808 | N51: 1.311428208e-07
A52: 22.94028 | B52: ='DF raw data'!M57 -> 1.4010075e-06 | C52: ='DF raw data'!N57 -> -6.4657399e-07 | D52: ='DF raw data'!O57 -> 7.8394555e-07 | F52: 1.403215488e-06 | G52: -6.492215908e-07 | H52: 7.851810482e-07 | J52: -4.953722795e-05 | K52: -0.001270697143 | L52: -6.328888655e-05 | M52: -0.0009812838161 | N52: 1.343736935e-07
A53: 23.44046 | B53: ='DF raw data'!M58 -> -3.916859e-06 | C53: ='DF raw data'!N58 -> 1.4622423e-06 | D53: ='DF raw data'!O58 -> -7.6503306e-07 | F53: -3.92303197e-06 | G53: 1.468229912e-06 | H53: -7.662387521e-07 | J53: -5.149945008e-05 | K53: -0.001296456137 | L53: -6.255450731e-05 | M53: -0.00101257233 | N53: 1.376575052e-07
A54: 23.94064 | B54: ='DF raw data'!M59 -> -5.90532e-06 | C54: ='DF raw data'!N59 -> -2.0037949e-06 | D54: ='DF raw data'!O59 -> -1.0319152e-06 | F54: -5.914626784e-06 | G54: -2.012000069e-06 | H54: -1.033541498e-06 | J54: -5.445782811e-05 | K54: -0.001323694854 | L54: -6.356086951e-05 | M54: -0.001044364205 | N54: 1.411615858e-07
A55: 24.44082 | B55: ='DF raw data'!M60 -> -2.6295238e-06 | C55: ='DF raw data'!N60 -> -2.8934862e-06 | D55: ='DF raw data'!O60 -> -4.243348e-06 | F55: -2.63366793e-06 | G55: -2.90533449e-06 | H55: -4.250035516e-06 | J55: -5.577513613e-05 | K55: -0.001351592462 | L55: -6.501405971e-05 | M55: -0.001076882938 | N55: 1.448317534e-07
A56: 24.941 | B56: ='DF raw data'!M61 -> 1.2638411e-06 | C56: ='DF raw data'!N61 -> -3.188761e-06 | D56: ='DF raw data'!O61 -> -6.3502471e-06 | F56: 1.265832914e-06 | G56: -3.201818386e-06 | H56: -6.360255089e-06 | J56: -5.514199182e-05 | K56: -0.001379173383 | L56: -6.661554523e-05 | M56: -0.001110202701 | N56: 1.485722346e-07
A57: 25.44118 | B57: ='DF raw data'!M62 -> 4.0527593e-06 | C57: ='DF raw data'!N62 -> 1.9922156e-06 | D57: ='DF raw data'!O62 -> -4.6300361e-06 | F57: 4.059146449e-06 | G57: 2.000373354e-06 | H57: -4.637333037e-06 | J57: -5.311168795e-05 | K57: -0.001405738787 | L57: -6.561499849e-05 | M57: -0.001143022011 | N57: 1.52136607e-07
A58: 25.94136 | B58: ='DF raw data'!M63 -> 5.2420437e-06 | C58: ='DF raw data'!N63 -> 1.014368e-05 | D58: ='DF raw data'!O63 -> -2.3907585e-06 | F58: 5.250305161e-06 | G58: 1.018521649e-05 | H58: -2.394526335e-06 | J58: -5.048559032e-05 | K58: -0.00143099067 | L58: -6.05205569e-05 | M58: -0.001173293183 | N58: 1.552434914e-07
A59: 26.44154 | B59: ='DF raw data'!M64 -> 4.4167464e-06 | C59: ='DF raw data'!N64 -> 2.5532775e-06 | D59: ='DF raw data'!O64 -> -2.7041485e-06 | F59: 4.423707192e-06 | G59: 2.563732699e-06 | H59: -2.708410238e-06 | J59: -4.827294046e-05 | K59: -0.001455135829 | L59: -5.923822908e-05 | M59: -0.001202922961 | N59: 1.581642648e-07
A60: 26.94172 | B60: ='DF raw data'!M65 -> 3.5155608e-06 | C60: ='DF raw data'!N65 -> -3.2105106e-06 | D60: ='DF raw data'!O65 -> -6.072582e-06 | F60: 3.521101324e-06 | G60: -3.223657047e-06 | H60: -6.082152389e-06 | J60: -4.651175599e-05 | K60: -0.001478400079 | L60: -6.085063786e-05 | M60: -0.001233359233 | N60: 1.610983925e-07
A61: 27.4419 | B61: ='DF raw data'!M66 -> 1.7842176e-06 | C61: ='DF raw data'!N66 -> 1.8497161e-06 | D61: ='DF raw data'!O66 -> -6.4961446e-06 | F61: 1.787029527e-06 | G61: 1.857290345e-06 | H61: -6.506382524e-06 | J61: -4.561791957e-05 | K61: -0.00150121725 | L61: -5.992165838e-05 | M61: -0.001263330848 | N61: 1.639352132e-07
A62: 27.94208 | B62: ='DF raw data'!M67 -> -1.1956217e-06 | C62: ='DF raw data'!N67 -> 1.595003e-06 | D62: ='DF raw data'!O67 -> -2.6919686e-06 | F62: -1.197506e-06 | G62: 1.601534242e-06 | H62: -2.696211143e-06 | J62: -4.621688812e-05 | K62: -0.001524334013 | L62: -5.912060298e-05 | M62: -0.001292901791 | N62: 1.667518501e-07
A63: 28.44226 | B63: ='DF raw data'!M68 -> -1.7460916e-06 | C63: ='DF raw data'!N68 -> 2.6291966e-06 | D63: ='DF raw data'!O68 -> 2.6202659e-07 | F63: -1.74884344e-06 | G63: 2.639962673e-06 | H63: 2.624395439e-07 | J63: -4.709162463e-05 | K63: -0.001547888302 | L63: -5.780014645e-05 | M63: -0.001321812268 | N63: 1.695320896e-07
A64: 28.94244 | B64: ='DF raw data'!M69 -> -7.8557787e-07 | C64: ='DF raw data'!N69 -> 2.5307274e-06 | D64: ='DF raw data'!O69 -> 6.7939004e-07 | F64: -7.868159407e-07 | G64: 2.54109026e-06 | H64: 6.804607587e-07 | J64: -4.748517423e-05 | K64: -0.001571639436 | L64: -5.652914392e-05 | M64: -0.001350087015 | N64: 1.722582636e-07
A65: 29.44262 | B65: ='DF raw data'!M70 -> -1.4030738e-06 | C65: ='DF raw data'!N70 -> 5.7081559e-07 | D65: ='DF raw data'!O70 -> -3.0879698e-06 | F65: -1.405285044e-06 | G65: 5.731529742e-07 | H65: -3.09283644e-06 | J65: -4.81880697e-05 | K65: -0.001595742145 | L65: -5.624246427e-05 | M65: -0.001378218371 | N65: 1.750019034e-07
A66: 29.9428 | B66: ='DF raw data'!M71 -> -1.8012288e-06 | C66: ='DF raw data'!N71 -> 1.1034575e-06 | D66: ='DF raw data'!O71 -> -1.3929046e-06 | F66: -1.804067537e-06 | G66: 1.107975954e-06 | H66: -1.395099818e-06 | J66: -4.90904282e-05 | K66: -0.001620296196 | L66: -5.568827686e-05 | M66: -0.001406072533 | N66: 1.777584226e-07
A67: 30.44298 | B67: ='DF raw data'!M72 -> 1.9155777e-06 | C67: ='DF raw data'!N72 -> 9.4538645e-06 | D67: ='DF raw data'!O72 -> 2.6935788e-06 | F67: 1.91859665e-06 | G67: 9.492576325e-06 | H67: 2.69782388e-06 | J67: -4.813078453e-05 | K67: -0.001644370251 | L67: -5.094028003e-05 | M67: -0.001431551843 | N67: 1.802150489e-07
A68: 30.94316 | B68: ='DF raw data'!M73 -> 4.2016836e-06 | C68: ='DF raw data'!N73 -> 9.0087506e-06 | D68: ='DF raw data'!O73 -> -5.9000263e-07 | F68: 4.208305453e-06 | G68: 9.045639766e-06 | H68: -5.909324741e-07 | J68: -4.602587431e-05 | K68: -0.001667391473 | L68: -4.641583193e-05 | M68: -0.001454768114 | N68: 1.823522233e-07
A69: 31.44334 | B69: ='DF raw data'!M74 -> 2.0606167e-06 | C69: ='DF raw data'!N74 -> -7.3683673e-06 | D69: ='DF raw data'!O74 -> -4.3608838e-06 | F69: 2.063864232e-06 | G69: -7.3985394e-06 | H69: -4.367756553e-06 | J69: -4.499357069e-05 | K69: -0.001689896357 | L69: -5.011643337e-05 | M69: -0.001479835351 | N69: 1.846210789e-07
A70: 31.94352 | B70: ='DF raw data'!M75 -> 1.3093595e-06 | C70: ='DF raw data'!N75 -> -1.330054e-05 | D70: ='DF raw data'!O75 -> -2.2165138e-06 | F70: 1.311423051e-06 | G70: -1.335500325e-05 | H70: -2.220007026e-06 | J70: -4.433762311e-05 | K70: -0.00171207315 | L70: -5.679633889e-05 | M70: -0.001508243744 | N70: 1.872178379e-07
A71: 32.4437 | B71: ='DF raw data'!M76 -> 4.1645399e-07 | C71: ='DF raw data'!N76 -> -7.3483529e-06 | D71: ='DF raw data'!O76 -> -7.1878708e-07 | F71: 4.171103215e-07 | G71: =(1-$G$1*($B$2-$G$2))*C71*$M$2/$M$1 -> -7.378443045e-06 | H71: -7.199198884e-07 | J71: -4.412899287e-05 | K71: -0.001734145589 | L71: -6.048688854e-05 | M71: -0.001538498076 | N71: 1.900218628e-07
A72: =A71+$B$1 -> 32.94388 | B72: ='DF raw data'!M77 -> -2.3884277e-06 | C72: ='DF raw data'!N77 -> -1.8375446e-06 | D72: ='DF raw data'!O77 -> -2.9508035e-06 | F72: -2.392191862e-06 | G72: -1.845069005e-06 | H72: -2.955453966e-06 | J72: =F72*$B$1+J71 -> -4.53255194e-05 | K72: =J72*$B$1+K71 -> -0.001756816508 | L72: =G72*$B$1+L71 -> -6.140975515e-05 | M72: =L72*$B$1+M71 -> -0.001569214007 | N72: =(J72^2+L72^2)*$B$1+N71 -> 1.929356918e-07
A73: 33.44406 | B73: ='DF raw data'!M78 -> -3.7632635e-06 | C73: ='DF raw data'!N78 -> 5.2589135e-06 | D73: ='DF raw data'!O78 -> -5.0217736e-06 | F73: -3.769194403e-06 | G73: 5.280447777e-06 | H73: -5.029687915e-06 | J73: -4.721079505e-05 | K73: -0.001780430403 | L73: -5.876858078e-05 | M73: -0.001598608876 | N73: 1.957780173e-07
A74: 33.94424 | B74: ='DF raw data'!M79 -> -3.5704215e-06 | C74: ='DF raw data'!N79 -> 6.4368091e-06 | D74: ='DF raw data'!O79 -> -5.5093356e-06 | F74: -3.576048484e-06 | G74: 6.463166642e-06 | H74: -5.518018313e-06 | J74: -4.899946299e-05 | K74: -0.001804938955 | L74: -5.553583409e-05 | M74: -0.001626386789 | N74: 1.985215928e-07
A75: 34.44442 | B75: ='DF raw data'!M80 -> -2.2333625e-06 | C75: ='DF raw data'!N80 -> 6.3259321e-08 | D75: ='DF raw data'!O80 -> -2.550815e-06 | F75: -2.236882279e-06 | G75: 6.351835621e-08 | H75: -2.554835084e-06 | J75: -5.011830676e-05 | K75: -0.001830007129 | L75: -5.550406348e-05 | M75: -0.001654148812 | N75: 2.013188723e-07
A76: 34.9446 | B76: ='DF raw data'!M81 -> 1.8062565e-07 | C76: ='DF raw data'!N81 -> -1.5838992e-06 | D76: ='DF raw data'!O81 -> -6.1881542e-07 | F76: 1.80910316e-07 | G76: -1.590384974e-06 | H76: -6.197906731e-07 | J76: -5.002781904e-05 | K76: -0.001855030044 | L76: -5.629954224e-05 | M76: -0.001682308717 | N76: 2.041561039e-07
A77: 35.44478 | B77: ='DF raw data'!M82 -> 3.1697928e-06 | C77: ='DF raw data'!N82 -> -3.8717749e-06 | D77: ='DF raw data'!O82 -> -1.0136089e-06 | F77: 3.174788393e-06 | G77: -3.887629102e-06 | H77: -1.015206348e-06 | J77: -4.843985338e-05 | K77: -0.00187925869 | L77: -5.824405656e-05 | M77: -0.001711441229 | N77: 2.070265316e-07
A78: 35.94496 | B78: ='DF raw data'!M83 -> 4.9002774e-06 | C78: ='DF raw data'!N83 -> -7.8719213e-06 | D78: ='DF raw data'!O83 -> -2.1909607e-06 | F78: 4.908000237e-06 | G78: -7.904155361e-06 | H78: -2.194413654e-06 | J78: -4.598496982e-05 | K78: -0.001902259452 | L78: -6.219755699e-05 | M78: -0.001742551203 | N78: 2.100191854e-07
A79: 36.44514 | B79: ='DF raw data'!M84 -> 4.2221e-06 | C79: ='DF raw data'!N84 -> -3.5512837e-06 | D79: ='DF raw data'!O84 -> 3.9293562e-07 | F79: 4.22875403e-06 | G79: -3.565825549e-06 | H79: 3.935548865e-07 | J79: -4.386983163e-05 | K79: -0.001924202264 | L79: -6.398111161e-05 | M79: -0.001774553276 | N79: 2.13029341e-07
A80: 36.94532 | B80: ='DF raw data'!M85 -> 2.413326e-06 | C80: ='DF raw data'!N85 -> 5.4317011e-06 | D80: ='DF raw data'!O85 -> 4.4154053e-06 | F80: 2.417129402e-06 | G80: 5.453942911e-06 | H80: 4.422363979e-06 | J80: -4.266083185e-05 | K80: -0.001945540359 | L80: -6.125315845e-05 | M80: -0.00180519088 | N80: 2.15816292e-07
A81: 37.4455 | B81: ='DF raw data'!M86 -> -2.1600135e-07 | C81: ='DF raw data'!N86 -> 3.397605e-06 | D81: ='DF raw data'!O86 -> 1.9135671e-06 | F81: -2.163417681e-07 | G81: 3.411517564e-06 | H81: 1.916582882e-06 | J81: -4.276904168e-05 | K81: -0.001966932578 | L81: -5.954678559e-05 | M81: -0.001834974992 | N81: 2.185047648e-07
A82: 37.94568 | B82: ='DF raw data'!M87 -> -2.1205778e-07 | C82: ='DF raw data'!N87 -> 3.910231e-06 | D82: ='DF raw data'!O87 -> -2.9315659e-06 | F82: -2.123919831e-07 | G82: 3.926242672e-06 | H82: -2.936186048e-06 | J82: -4.28752759e-05 | K82: -0.001988377934 | L82: -5.758295753e-05 | M82: -0.001863776835 | N82: 2.210827356e-07
A83: 38.44586 | B83: ='DF raw data'!M88 -> 6.2204563e-06 | C83: ='DF raw data'!N88 -> 1.2099992e-05 | D83: ='DF raw data'!O88 -> -4.7926246e-06 | F83: 6.230259739e-06 | G83: 1.214953923e-05 | H83: -4.800177776e-06 | J83: -3.975902458e-05 | K83: -0.002008264603 | L83: -5.1506001e-05 | M83: -0.001889539107 | N83: 2.232003218e-07
A84: 38.94604 | B84: ='DF raw data'!M89 -> 1.2282901e-05 | C84: ='DF raw data'!N89 -> -7.6385516e-07 | D84: ='DF raw data'!O89 -> -2.5800352e-06 | F84: 1.230225885e-05 | G84: -7.669830055e-07 | H84: -2.584101335e-06 | J84: -3.360568075e-05 | K84: -0.002025073492 | L84: -5.188963056e-05 | M84: -0.001915493262 | N84: 2.251119475e-07
A85: 39.44622 | B85: ='DF raw data'!M90 -> 9.5839569e-06 | C85: ='DF raw data'!N90 -> -2.792616e-06 | D85: ='DF raw data'!O90 -> -4.3240093e-06 | F85: 9.599061216e-06 | G85: -2.804051246e-06 | H85: -4.330823939e-06 | J85: -2.880442231e-05 | K85: -0.002039480888 | L85: -5.329216091e-05 | M85: -0.001942148935 | N85: 2.269474826e-07
A86: 39.9464 | B86: ='DF raw data'!M91 -> 3.8993094e-06 | C86: ='DF raw data'!N91 -> 7.8296614e-07 | D86: ='DF raw data'!O91 -> -1.0606188e-05 | F86: 3.905454712e-06 | G86: 7.861722414e-07 | H86: -1.062290335e-05 | J86: -2.685099197e-05 | K86: -0.002052911217 | L86: -5.289893328e-05 | M86: -0.001968607924 | N86: 2.287077525e-07
A87: 40.44658 | B87: ='DF raw data'!M92 -> 9.2073606e-07 | C87: ='DF raw data'!N92 -> 4.8614334e-06 | D87: ='DF raw data'!O92 -> -1.182379e-05 | F87: =(1-$G$1*($B$2-$G$2))*B87 -> 9.2218714e-07 | G87: 4.88134007e-06 | H87: -1.184242429e-05 | J87: -2.638973241e-05 | K87: -0.002066110834 | L87: -5.045738461e-05 | M87: -0.001993845698 | N87: 2.30329519e-07
